Workbook

Sheet ApparentSets
A1: AWA (deg) | C1: =C41 -> X | D1: =D41 -> Y | E1: Z | G1: O | H1: F | I1: L | J1: =J41 -> C | L1: =L41 -> O | M1: F | N1: L | O1: C
A2: 10 | C2: 14.477 | D2: 9.686 | E2: 11.2417 | G2: =csplinea($A62:$A66,G62:G66,$A2:$A19) -> 8.9384454 | H2: =csplinea($A62:$A66,H62:H66,$A2:$A19) -> 8.378580783 | I2: =csplinea($A62:$A66,I62:I66,$A2:$A19) -> 9.050289997 | J2: =csplinea($A62:$A66,J62:J66,$A2:$A19) -> 6.440341238 | L2: =csplinea($A68:$A74,L68:L74,$A2:$A19) -> 8.965531126 | M2: =csplinea($A68:$A74,M68:M74,$A2:$A19) -> 8.412306544 | N2: =csplinea($A68:$A74,N68:N74,$A2:$A19) -> 9.00696239 | O2: =csplinea($A68:$A74,O68:O74,$A2:$A19) -> 6.458078078
A3: 20 | C3: =C2 -> 14.477 | D3: =D2 -> 9.686 | E3: 11.2417 | G3: 8.970112641 | H3: 8.871189252 | I3: 9.149063995 | J3: 6.927855981 | L3: 9.013449802 | M3: 8.925150471 | N3: 9.079739824 | O3: 6.956234925
A4: 30 | C4: 14.477 | D4: 9.686 | E4: 11.2417 | G4: 9.188223561 | H4: 9.591853096 | I4: 9.344805996 | J4: 7.509717734 | L4: 9.226143577 | M4: 9.639069162 | N4: 9.284147346 | O4: 7.534549309
A5: =A4+10 -> 40 | C5: 14.477 | D5: 9.686 | E5: 11.2417 | G5: 9.686 | H5: 10.6546 | I5: 9.686 | J5: 8.2331 | L5: 9.686 | M5: 10.6546 | N5: 9.686 | O5: 8.2331
A6: 50 | C6: 14.477 | D6: 9.686 | E6: 11.2417 | G6: 10.51481335 | H6: 12.11972477 | I6: 10.20227718 | J6: 9.121291082 | L6: 10.44070484 | M6: 12.0269537 | N6: 10.32120108 | O6: 9.072922066
A7: 60 | C7: 14.477 | D7: 9.686 | E7: 11.2417 | G7: 11.5586332 | H7: 13.83259065 | I7: 10.8478574 | J7: 10.10203847 | L7: 11.39913671 | M7: 13.6300343 | N7: 11.10600688 | O7: 9.998875781
A8: 70 | C8: 14.477 | D8: 9.686 | E8: 11.2417 | G8: 12.6595787 | H8: 15.58482804 | I8: 11.55810767 | J8: 11.07920445 | L8: 12.43547244 | M8: 15.29241918 | N8: 11.92676194 | O8: 10.93677772
A9: 80 | C9: 14.477 | D9: 9.686 | E9: 11.2417 | G9: 13.65976898 | H9: 17.16806729 | I9: 12.26839504 | J9: 11.9566513 | L9: 13.42388889 | M9: 16.84268571 | N9: 12.66981081 | O9: 11.81244444
A10: 90 | C10: 14.477 | D10: 9.686 | E10: 11.2417 | G10: 14.4013232 | H10: 18.37393879 | I10: 12.91408654 | J10: 12.63824132 | L10: 14.22499284 | M10: 18.09880205 | N10: 13.23842337 | O10: 12.54077035
A11: 100 | C11: 14.477 | D11: 9.686 | E11: 11.2417 | G11: 14.72636049 | H11: 18.9940729 | I11: 13.43054918 | J11: 13.02783679 | L11: 14.645111 | M11: 18.83629946 | N11: 13.6035709 | O11: 12.99296106
A12: 110 | C12: 14.477 | D12: 9.686 | E12: 11.2417 | G12: 14.477 | H12: 18.8201 | I12: 13.75315 | J12: 13.0293 | L12: 14.477 | M12: 18.8201 | N12: 13.75315 | O12: 13.0293
A13: 120 | C13: 14.477 | D13: 9.686 | E13: 11.2417 | G13: 13.58936001 | H13: 17.76084925 | I13: 13.83868522 | J13: 12.60198142 | L13: 13.61974397 | M13: 17.91570605 | N13: 13.7010794 | O13: 12.58398393
A14: 130 | C14: 14.477 | D14: 9.686 | E14: 11.2417 | G14: 12.37555535 | H14: 16.1939449 | I14: 13.72966783 | J14: 11.92718428 | L14: 12.39773684 | M14: 16.39094135 | N14: 13.5653663 | O14: 11.88686283
A15: 140 | C15: 14.477 | D15: 9.686 | E15: 11.2417 | G15: 11.2417 | H15: 14.61421 | I15: 13.49004 | J15: 11.2417 | L15: 11.2417 | M15: 14.61421 | N15: 13.49004 | O15: 11.2417
A16: 150 | C16: 14.477 | D16: 9.686 | E16: 11.2417 | G16: 10.50596963 | H16: 13.41391407 | I16: 13.17586473 | J16: 10.73343375 | L16: 10.49043891 | M16: 12.95400642 | N16: 13.51177911 | O16: 10.8645772
A17: 160 | C17: 14.477 | D17: 9.686 | E17: 11.2417 | G17: 10.13478672 | H17: 12.57511251 | I17: 12.81168826 | J17: 10.39474572 | L17: 10.11509524 | M17: 11.77918636 | N17: 13.23785946 | O17: 10.62085
A18: 170 | C18: 14.477 | D18: 9.686 | E18: 11.2417 | G18: 10.00663545 | H18: 11.97730719 | I18: 12.41417766 | J18: 10.16910982 | L18: 9.993761832 | M18: 11.32601078 | N18: 12.31786313 | O18: 10.3326576
A19: 180 | C19: 14.477 | D19: 9.686 | E19: 11.2417 | G19: 10 | H19: 11.5 | I19: 12 | J19: 10 | L19: 10 | M19: 11.3 | N19: 11 | O19: 10
A21: AWS (kn) | C21: =C41 -> X | D21: =D41 -> Y | E21: =E41 -> Z | G21: =G41 -> O | H21: =H41 -> F | I21: =I41 -> L | J21: =J41 -> C | L21: =L41 -> O | M21: =M41 -> F | N21: =N41 -> L | O21: =O41 -> C
A22: 10 | C22: =SQRT(1^2+C42^2+2*1*C42*COS(RADIANS($A22))) -> 0.6946167596 | D22: 1.032093334 | E22: 0.8907399044 | G22: =SQRT(1^2+G42^2+2*1*G42*COS(RADIANS($A22))) -> 1.11761937 | H22: 1.191712118 | I22: 1.103920633 | J22: 1.548099659 | L22: =SQRT(1^2+L42^2+2*1*L42*COS(RADIANS($A22))) -> 1.114270414 | M22: 1.186968601 | N22: 1.109186864 | O22: 1.543865816
A23: 20 | C23: 1.368127941 | D23: 2.032827033 | E23: 1.754415128 | G23: 2.193572508 | H23: 2.217834164 | I23: 2.151021929 | J23: 2.835529864 | L23: 2.183112212 | M23: 2.204532851 | N23: 2.167305778 | O23: 2.824018466
A24: 30 | C24: 2.000069246 | D24: 2.971794312 | E24: 2.564783335 | G24: 3.131296045 | H24: 3.00068633 | I24: 3.07928219 | J24: 3.82572021 | L24: 3.11853697 | M24: 2.986125666 | N24: 3.099222782 | O24: 3.813184207
A25: =A24+10 -> 40 | C25: 2.57123946 | D25: 3.820465125 | E25: 3.297221898 | G25: 3.820465125 | H25: 3.476633239 | I25: 3.820465125 | J25: 4.488718113 | L25: 3.820465125 | M25: 3.476633239 | N25: 3.820465125 | O25: 4.488718113
A26: 50 | C26: 3.064283864 | D26: 4.553053038 | E26: 3.929476043 | G26: 4.19773998 | H26: 3.648609674 | I26: 4.324908338 | J26: 4.832326419 | L26: 4.227201646 | M26: 3.676334201 | N26: 4.275606393 | O26: 4.857870811
A27: 60 | C27: 3.464221553 | D27: 5.147298739 | E27: 4.442335046 | G27: 4.322117523 | H27: 3.622236675 | I27: 4.601580625 | J27: 4.937381701 | L27: 4.38177566 | M27: 3.675024809 | N27: 4.495917482 | O27: 4.987796566
A28: 70 | C28: 3.758900623 | D28: 5.585146372 | E28: 4.820215947 | G28: 4.287741916 | H28: 3.49763997 | I28: 4.689982626 | J28: 4.890009855 | L28: 4.363763441 | M28: 3.562877401 | N28: 4.547019861 | O28: 4.952900652
A29: 80 | C29: 3.939367401 | D29: 5.853292159 | E29: 5.051637026 | G29: 4.170159408 | H29: 3.336345415 | I29: 4.634576875 | J29: 4.753585024 | L29: 4.242054807 | M29: 3.398878343 | N29: 4.490028891 | O29: 4.810777344
A30: 90 | C30: 4.000138492 | D30: 5.943588625 | E30: 5.12956667 | G30: 4.020710588 | H30: 3.172413663 | I30: 4.474477924 | J30: 4.570497637 | L30: 4.069503179 | M30: 3.218988882 | N30: 4.366741392 | O30: 4.605445312
A31: 100 | C31: 3.939367401 | D31: 5.853292159 | E31: 5.051637026 | G31: 3.874100629 | H31: 3.025798754 | I31: 4.239989789 | J31: 4.368682665 | L31: 3.895119689 | M31: 3.050211721 | N31: 4.187059922 | O31: 4.380206582
A32: 110 | C32: 3.758900623 | D32: 5.585146372 | E32: 4.820215947 | G32: 3.758900623 | H32: 2.912892483 | I32: 3.952618029 | J32: 4.168088444 | L32: 3.758900623 | M32: 2.912892483 | N32: 3.952618029 | O32: 4.168088444
A33: 120 | C33: 3.464221553 | D33: 5.147298739 | E33: 4.442335046 | G33: 3.685816557 | H33: 2.839012085 | I33: 3.620672561 | J33: 3.969370927 | L33: 3.677748901 | M33: 2.815267396 | N33: 3.656330266 | O33: 3.97495611
A34: 130 | C34: 3.064283864 | D34: 4.553053038 | E34: 3.929476043 | G34: 3.574325185 | H34: 2.746765711 | I34: 3.22760859 | J34: 3.706635199 | L34: 3.568030012 | M34: 2.714642734 | N34: 3.265954351 | O34: 3.719026654
A35: 140 | C35: 2.57123946 | D35: 3.820465125 | E35: 3.297221898 | G35: 3.297221898 | H35: 2.547617048 | I35: 2.755477221 | J35: 3.297221898 | L35: 3.297221898 | M35: 2.547617048 | N35: 2.755477221 | O35: 3.297221898
A36: 150 | C36: 2.000069246 | D36: 2.971794312 | E36: 2.564783335 | G36: 2.742160622 | H36: 2.155319833 | I36: 2.193552592 | J36: 2.684708381 | L36: 2.746174727 | M36: 2.230461879 | N36: 2.139996309 | O36: 2.652684312
A37: 160 | C37: 1.368127941 | D37: 2.032827033 | E37: 1.754415128 | G37: 1.943689118 | H37: 1.570922388 | I37: 1.542386108 | J37: 1.895594636 | L37: 1.947433472 | M37: 1.67541585 | N37: 1.493576002 | O37: 1.855688481
A38: 170 | C38: 0.6946167596 | D38: 1.032093334 | E38: 0.8907399044 | G38: 0.9993436441 | H38: 0.8367608359 | I38: 0.8077523718 | J38: 0.9835408955 | L38: 1.000617857 | M38: 0.8841948704 | N38: 0.8139695121 | O38: 0.9681383213
A39: 180 | C39: 0 | D39: 0 | E39: 0 | G39: 0 | H39: 0 | I39: 0 | J39: 0 | L39: 0 | M39: 0 | N39: 0 | O39: 0
A41: BS (kn) | C41: X | D41: Y | E41: Z | G41: O | H41: F | I41: L | J41: C | L41: O | M41: F | N41: L | O41: C
A42: 10 | C42: =SIN(RADIANS($A42-C2))/SIN(RADIANS(C2)) -> -0.3122464152 | D42: 0.03257268689 | E42: -0.1111580019 | G42: =SIN(RADIANS($A42-G2))/SIN(RADIANS(G2)) -> 0.1192390609 | H42: 0.1941850722 | I42: 0.1053697898 | J42: 0.5535221419 | L42: =SIN(RADIANS($A42-L2))/SIN(RADIANS(L2)) -> 0.1158488079 | M42: 0.1893901732 | N42: 0.1107020872 | O42: 0.5492613351
A43: 20 | C43: 0.384994619 | D43: 1.064155669 | E43: 0.7810614759 | G43: 1.227052074 | H43: 1.251610782 | I43: 1.183964028 | J43: 1.87513452 | L43: 1.21646163 | M43: 1.238147436 | N43: 1.200456102 | O43: 1.863538107
A44: 30 | C44: 1.070537786 | D44: 2.06340482 | E44: 1.649548796 | G44: 2.225093313 | H44: 2.092710551 | I44: 2.172391751 | J44: 2.926880491 | L44: 2.212167708 | M44: 2.077942411 | N44: 2.192598773 | O44: 2.914235672
A45: =A44+10 -> 40 | C45: 1.723553205 | D45: 2.999958459 | E45: 2.467915411 | G45: 2.999958459 | H45: 2.650650271 | I45: 2.999958459 | J45: 3.676411452 | L45: 2.999958459 | M45: 2.650650271 | N45: 2.999958459 | O45: 3.676411452
A46: 50 | C46: 2.324199332 | D46: 3.845359879 | E46: 3.211295664 | G46: 3.48446291 | H46: 2.924498258 | I46: 3.613737739 | J46: 4.128433883 | L46: 3.514424156 | M46: 2.952849896 | N46: 3.563634378 | O46: 4.154303668
A47: 60 | C47: 2.854225838 | D47: 4.573921985 | E47: 3.857102324 | G47: 3.734465713 | H47: 3.017186167 | I47: 4.019352194 | J47: 4.360837177 | L47: 3.795341422 | M47: 3.071527313 | N47: 3.911720074 | O47: 4.412037722
A48: 70 | C48: 3.297528136 | D48: 5.163507785 | E48: 4.385712882 | G48: 3.841484191 | H48: 3.027024697 | I48: 4.252859051 | J48: 4.456852033 | L48: 3.919365682 | M48: 3.094704046 | N48: 4.106841216 | O48: 4.520921625
A49: 80 | C49: 3.64063671 | D49: 5.596203015 | E49: 4.781065773 | G49: 3.87855902 | H49: 3.014039765 | I49: 4.355088567 | J49: 4.476806022 | L49: 3.952510166 | M49: 3.079431545 | N49: 4.207049613 | O49: 4.535251094
A50: 90 | C50: 3.87312638 | D50: 5.858860447 | E50: 5.0311484 | G50: 3.894369478 | H50: 3.010682389 | I50: 4.36130172 | J50: 4.459758811 | L50: 3.944725101 | M50: 3.059720481 | N50: 4.250697635 | O50: 4.495567431
A51: 100 | C51: 3.987933066 | D51: 5.94349937 | E51: 5.128362128 | G51: 3.920488096 | H51: 3.034698997 | I51: 4.297683471 | J51: 4.429883829 | L51: 3.942217015 | M51: 3.060505506 | N51: 4.24324576 | O51: 4.441711367
A52: 110 | C52: 3.981568422 | D52: 5.847548072 | E52: 5.069753168 | G52: 3.981568422 | H52: 3.099178172 | I52: 4.181312664 | J52: 4.40280074 | L52: 3.981568422 | M52: 3.099178172 | N52: 4.181312664 | O52: 4.40280074
A53: 120 | C53: 3.854225838 | D53: 5.573921985 | E53: 4.857102324 | G53: 4.082630834 | H53: 3.203699247 | I53: 4.015575314 | J53: 4.373745675 | L53: 4.074330284 | M53: 3.178755403 | N53: 4.052288137 | O53: 4.37946853
A54: 130 | C54: 3.609774551 | D54: 5.130935098 | E54: 4.496870884 | G54: 4.134059075 | H54: 3.280570349 | I54: 3.778171656 | J54: 4.269400411 | L54: 4.127613872 | M54: 3.247103467 | N54: 3.817631501 | O54: 4.282064346
A55: 140 | C55: 3.255642091 | D55: 4.532047346 | E55: 4.000004297 | G55: 4.000004297 | H55: 3.23123748 | I55: 3.445499389 | J55: 4.000004297 | L55: 4.000004297 | M55: 3.23123748 | N55: 3.445499389 | O55: 4.000004297
A56: 150 | C56: 2.802588594 | D56: 3.795455628 | E56: 3.381599604 | G56: 3.562216213 | H56: 2.962547186 | I56: 3.001832739 | J56: 3.503762898 | L56: 3.566298655 | M56: 3.039722759 | N56: 2.946790696 | O56: 3.471161497
A57: 160 | C57: 2.264379861 | D57: 2.943540911 | E57: 2.660446717 | G57: 2.853053436 | H57: 2.472930819 | I57: 2.443679698 | J57: 2.804176798 | L57: 2.856857024 | M57: 2.579826912 | N57: 2.393581026 | O57: 2.763590085
A58: 170 | C58: 1.657369091 | D58: 2.002188193 | E58: 1.858457504 | G58: 1.968949018 | H58: 1.803352197 | I58: 1.773674158 | J58: 1.952898143 | L58: 1.970242889 | M58: 1.851783462 | N58: 1.780038963 | O58: 1.93724574
A59: 180 | C59: 1 | D59: 1 | E59: 1 | G59: 1 | H59: 1 | I59: 1 | J59: 1 | L59: 1 | M59: 1 | N59: 1 | O59: 1
A62: 0 | G62: 9 | H62: 8 | I62: 9 | J62: 6
A63: 40 | G63: =$D$2 -> 9.686 | H63: =1.1*G63 -> 10.6546 | I63: =G63 -> 9.686 | J63: =0.85*G63 -> 8.2331
A64: 110 | G64: =$C$2 -> 14.477 | H64: =1.3*G64 -> 18.8201 | I64: =0.95*G64 -> 13.75315 | J64: =0.9*G64 -> 13.0293
A65: 140 | G65: =$E$2 -> 11.2417 | H65: =1.3*G65 -> 14.61421 | I65: =1.2*G65 -> 13.49004 | J65: =G65 -> 11.2417
A66: 180 | G66: 10 | H66: 11.5 | I66: 12 | J66: 10
A68: 0 | K68: =A68 -> 0 | L68: =G62 -> 9 | M68: =H62 -> 8 | N68: 9 | O68: 6
A69: 40 | K69: =A69 -> 40 | L69: =G63 -> 9.686 | M69: =H63 -> 10.6546 | N69: 9.686 | O69: 8.2331
A70: 80 | K70: 80 | L70: =(L69+L71)/1.8 -> 13.42388889 | M70: =(M69+M71)/1.75 -> 16.84268571 | N70: =(N69+N71)/1.85 -> 12.66981081 | O70: =(O69+O71)/1.8 -> 11.81244444
A71: 110 | K71: 110 | L71: =G64 -> 14.477 | M71: =H64 -> 18.8201 | N71: 13.75315 | O71: 13.0293
A72: 140 | K72: 140 | L72: =G65 -> 11.2417 | M72: =H65 -> 14.61421 | N72: 13.49004 | O72: 11.2417
A73: 160 | K73: 160 | L73: =(L72+L74)/2.1 -> 10.11509524 | M73: =(M72+M74)/2.2 -> 11.77918636 | N73: =(N72+N74)/1.85 -> 13.23785946 | O73: =(O72+O74)/2 -> 10.62085
A74: 180 | K74: 180 | L74: =G66 -> 10 | M74: 11.3 | N74: 11 | O74: =J66 -> 10
A77: ref TWA | C77: 105 | D77: 40 | E77: 140 | J77: condition | L77: light | M77: champ | N77: fresh | O77: origin
A78: BS at ref TWA | C78: 4x | D78: 3x | E78: 4x | J78: max BS | L78: 4.2x | M78: 4.5x | N78: 3.2x | O78: 4.1x
A79: max BS | C79: 4x | D79: 5.9x | E79: 5.1x | J79: TWA at max BS | L79: =WeatherTypes!T15 -> 94 | M79: =WeatherTypes!AA15 -> 77 | N79: =WeatherTypes!M15 -> 135 | O79: =WeatherTypes!F15 -> 128
A80: TWA at max BS | C80: 105 | D80: 100 | E80: 101 | J80: TWA opt VMG up | L80: =WeatherTypes!U15 -> 46 | M80: =WeatherTypes!AB15 -> 42 | N80: =WeatherTypes!N15 -> 42 | O80: =WeatherTypes!G15 -> 45
A81: const AWA | C81: =C2 -> 14.477 | D81: =D2 -> 9.686 | E81: 11.2417 | J81: TWA opt VMG dn | L81: =WeatherTypes!V15 -> 142 | M81: =WeatherTypes!AC15 -> 144 | N81: =WeatherTypes!L15 -> 148 | O81: =WeatherTypes!H15 -> 146
A82: TWA opt VMG up | C82: =WeatherTypes!AF15 -> 52 | D82: =WeatherTypes!AJ15 -> 50 | E82: =WeatherTypes!AN15 -> 51
A83: TWA opt VMG dn | C83: =WeatherTypes!AG15 -> 142 | D83: =WeatherTypes!AK15 -> 140 | E83: =WeatherTypes!AO15 -> 141 | K83: AWA | L83: light | M83: champ | N83: fresh
K84: =K68 -> 0 | L84: =N68 -> 9 | M84: =O68 -> 6 | N84: =M68 -> 8
K85: =K69 -> 40 | L85: =N69 -> 9.686 | M85: =O69 -> 8.2331 | N85: =M69 -> 10.6546
K86: =K70 -> 80 | L86: =N70 -> 12.66981081 | M86: =O70 -> 11.81244444 | N86: =M70 -> 16.84268571
K87: =K71 -> 110 | L87: =N71 -> 13.75315 | M87: =O71 -> 13.0293 | N87: =M71 -> 18.8201
K88: =K72 -> 140 | L88: =N72 -> 13.49004 | M88: =O72 -> 11.2417 | N88: =M72 -> 14.61421
K89: =K73 -> 160 | L89: =N73 -> 13.23785946 | M89: =O73 -> 10.62085 | N89: =M73 -> 11.77918636
K90: =K74 -> 180 | L90: =N74 -> 11 | M90: =O74 -> 10 | N90: =M74 -> 11.3

Sheet PolarCirca
A5: only for | BF5: 115 | BG5: 40 | BH5: 140
A6: gridding | BF6: =ApparentSets!C41 -> X | BG6: =ApparentSets!D41 -> Y | BH6: =ApparentSets!E41 -> Z
A7: 0 | B7: 0.1 | C7: =B7+0.1 -> 0.2 | D7: 0.3 | E7: 0.4 | F7: 0.5 | G7: 0.6 | H7: 0.7 | I7: 0.8 | J7: 0.9 | K7: 1 | L7: 1.1 | M7: 1.2 | N7: 1.3 | O7: 1.4 | P7: 1.5 | Q7: 1.6 | R7: 1.7 | S7: 1.8 | T7: 1.9 | U7: 2 | V7: 2.1 | W7: 2.2 | X7: 2.3 | Y7: 2.4 | Z7: 2.5 | AA7: 2.6 | AB7: 2.7 | AC7: 2.8 | AD7: 2.9 | AE7: 3 | AF7: 3.1 | AG7: 3.2 | AH7: 3.3 | AI7: 3.4 | AJ7: 3.5 | AK7: 3.6 | AL7: 3.7 | AM7: 3.8 | AN7: 3.9 | AO7: 4 | AP7: =AO7+0.1 -> 4.1 | AQ7: 4.2 | AR7: 4.3 | AS7: 4.4 | AT7: 4.5 | AU7: 4.6 | AV7: 4.7 | AW7: 4.8 | AX7: =AW7+0.1 -> 4.9 | AY7: =AX7+0.1 -> 5 | AZ7: =AY7+0.1 -> 5.1 | BA7: =AZ7+0.1 -> 5.2 | BB7: =BA7+0.1 -> 5.3 | BC7: =BB7+0.1 -> 5.4 | BD7: =BC7+0.1 -> 5.5 | BF7: -1 | BG7: -1 | BH7: -1
A8: 10 | B8: =B7 -> 0.1 | C8: =C7 -> 0.2 | D8: =D7 -> 0.3 | E8: 0.4 | F8: 0.5 | G8: 0.6 | H8: 0.7 | I8: 0.8 | J8: 0.9 | K8: 1 | L8: 1.1 | M8: 1.2 | N8: 1.3 | O8: 1.4 | P8: 1.5 | Q8: 1.6 | R8: 1.7 | S8: 1.8 | T8: 1.9 | U8: 2 | V8: =V7 -> 2.1 | W8: =W7 -> 2.2 | X8: =X7 -> 2.3 | Y8: 2.4 | Z8: 2.5 | AA8: 2.6 | AB8: 2.7 | AC8: 2.8 | AD8: 2.9 | AE8: 3 | AF8: 3.1 | AG8: 3.2 | AH8: 3.3 | AI8: 3.4 | AJ8: 3.5 | AK8: 3.6 | AL8: 3.7 | AM8: 3.8 | AN8: 3.9 | AO8: =AO7 -> 4 | AP8: =AP7 -> 4.1 | AQ8: 4.2 | AR8: 4.3 | AS8: 4.4 | AT8: 4.5 | AU8: 4.6 | AV8: 4.7 | AW8: 4.8 | AX8: =AX7 -> 4.9 | AY8: 5 | AZ8: 5.1 | BA8: 5.2 | BB8: 5.3 | BC8: 5.4 | BD8: 5.5 | BF8: =ApparentSets!C42 -> -0.3122464152 | BG8: =ApparentSets!D42 -> 0.03257268689 | BH8: =ApparentSets!E42 -> -0.1111580019
A9: 20 | B9: =B8 -> 0.1 | C9: 0.2 | D9: 0.3 | E9: 0.4 | F9: 0.5 | G9: 0.6 | H9: 0.7 | I9: 0.8 | J9: 0.9 | K9: 1 | L9: 1.1 | M9: 1.2 | N9: 1.3 | O9: 1.4 | P9: 1.5 | Q9: 1.6 | R9: 1.7 | S9: 1.8 | T9: 1.9 | U9: 2 | V9: =V8 -> 2.1 | W9: 2.2 | X9: 2.3 | Y9: 2.4 | Z9: 2.5 | AA9: 2.6 | AB9: 2.7 | AC9: 2.8 | AD9: 2.9 | AE9: 3 | AF9: 3.1 | AG9: 3.2 | AH9: 3.3 | AI9: 3.4 | AJ9: 3.5 | AK9: 3.6 | AL9: 3.7 | AM9: 3.8 | AN9: 3.9 | AO9: =AO8 -> 4 | AP9: 4.1 | AQ9: 4.2 | AR9: 4.3 | AS9: 4.4 | AT9: 4.5 | AU9: 4.6 | AV9: 4.7 | AW9: 4.8 | AX9: =AX8 -> 4.9 | AY9: 5 | AZ9: 5.1 | BA9: 5.2 | BB9: 5.3 | BC9: 5.4 | BD9: 5.5 | BF9: =ApparentSets!C43 -> 0.384994619 | BG9: =ApparentSets!D43 -> 1.064155669 | BH9: =ApparentSets!E43 -> 0.7810614759
A10: 30 | B10: 0.1 | C10: 0.2 | D10: 0.3 | E10: 0.4 | F10: 0.5 | G10: 0.6 | H10: 0.7 | I10: 0.8 | J10: 0.9 | K10: 1 | L10: 1.1 | M10: 1.2 | N10: 1.3 | O10: 1.4 | P10: 1.5 | Q10: 1.6 | R10: 1.7 | S10: 1.8 | T10: 1.9 | U10: 2 | V10: 2.1 | W10: 2.2 | X10: 2.3 | Y10: 2.4 | Z10: 2.5 | AA10: 2.6 | AB10: 2.7 | AC10: 2.8 | AD10: 2.9 | AE10: 3 | AF10: 3.1 | AG10: 3.2 | AH10: 3.3 | AI10: 3.4 | AJ10: 3.5 | AK10: 3.6 | AL10: 3.7 | AM10: 3.8 | AN10: 3.9 | AO10: 4 | AP10: 4.1 | AQ10: 4.2 | AR10: 4.3 | AS10: 4.4 | AT10: 4.5 | AU10: 4.6 | AV10: 4.7 | AW10: 4.8 | AX10: =AX9 -> 4.9 | AY10: 5 | AZ10: 5.1 | BA10: 5.2 | BB10: 5.3 | BC10: 5.4 | BD10: 5.5 | BF10: =ApparentSets!C44 -> 1.070537786 | BG10: =ApparentSets!D44 -> 2.06340482 | BH10: =ApparentSets!E44 -> 1.649548796
A11: 40 | B11: 0.1 | C11: 0.2 | D11: 0.3 | E11: 0.4 | F11: 0.5 | G11: 0.6 | H11: 0.7 | I11: 0.8 | J11: 0.9 | K11: 1 | L11: 1.1 | M11: 1.2 | N11: 1.3 | O11: 1.4 | P11: 1.5 | Q11: 1.6 | R11: 1.7 | S11: 1.8 | T11: 1.9 | U11: 2 | V11: 2.1 | W11: 2.2 | X11: 2.3 | Y11: 2.4 | Z11: 2.5 | AA11: 2.6 | AB11: 2.7 | AC11: 2.8 | AD11: 2.9 | AE11: 3 | AF11: 3.1 | AG11: 3.2 | AH11: 3.3 | AI11: 3.4 | AJ11: 3.5 | AK11: 3.6 | AL11: 3.7 | AM11: 3.8 | AN11: 3.9 | AO11: 4 | AP11: 4.1 | AQ11: 4.2 | AR11: 4.3 | AS11: 4.4 | AT11: 4.5 | AU11: 4.6 | AV11: 4.7 | AW11: 4.8 | AX11: =AX10 -> 4.9 | AY11: 5 | AZ11: 5.1 | BA11: 5.2 | BB11: 5.3 | BC11: 5.4 | BD11: 5.5 | BF11: =ApparentSets!C45 -> 1.723553205 | BG11: =ApparentSets!D45 -> 2.999958459 | BH11: =ApparentSets!E45 -> 2.467915411
A12: 50 | B12: 0.1 | C12: 0.2 | D12: 0.3 | E12: 0.4 | F12: 0.5 | G12: 0.6 | H12: 0.7 | I12: 0.8 | J12: 0.9 | K12: 1 | L12: 1.1 | M12: 1.2 | N12: 1.3 | O12: 1.4 | P12: 1.5 | Q12: 1.6 | R12: 1.7 | S12: 1.8 | T12: 1.9 | U12: 2 | V12: 2.1 | W12: 2.2 | X12: 2.3 | Y12: 2.4 | Z12: 2.5 | AA12: 2.6 | AB12: 2.7 | AC12: 2.8 | AD12: 2.9 | AE12: 3 | AF12: 3.1 | AG12: 3.2 | AH12: 3.3 | AI12: 3.4 | AJ12: 3.5 | AK12: 3.6 | AL12: 3.7 | AM12: 3.8 | AN12: 3.9 | AO12: 4 | AP12: 4.1 | AQ12: 4.2 | AR12: 4.3 | AS12: 4.4 | AT12: 4.5 | AU12: 4.6 | AV12: 4.7 | AW12: 4.8 | AX12: =AX11 -> 4.9 | AY12: 5 | AZ12: 5.1 | BA12: 5.2 | BB12: 5.3 | BC12: 5.4 | BD12: 5.5 | BF12: =ApparentSets!C46 -> 2.324199332 | BG12: =ApparentSets!D46 -> 3.845359879 | BH12: =ApparentSets!E46 -> 3.211295664
A13: 60 | B13: 0.1 | C13: 0.2 | D13: 0.3 | E13: 0.4 | F13: 0.5 | G13: 0.6 | H13: 0.7 | I13: 0.8 | J13: 0.9 | K13: 1 | L13: 1.1 | M13: 1.2 | N13: 1.3 | O13: 1.4 | P13: 1.5 | Q13: 1.6 | R13: 1.7 | S13: 1.8 | T13: 1.9 | U13: 2 | V13: 2.1 | W13: 2.2 | X13: 2.3 | Y13: 2.4 | Z13: 2.5 | AA13: 2.6 | AB13: 2.7 | AC13: 2.8 | AD13: 2.9 | AE13: 3 | AF13: 3.1 | AG13: 3.2 | AH13: 3.3 | AI13: 3.4 | AJ13: 3.5 | AK13: 3.6 | AL13: 3.7 | AM13: 3.8 | AN13: 3.9 | AO13: 4 | AP13: 4.1 | AQ13: 4.2 | AR13: 4.3 | AS13: 4.4 | AT13: 4.5 | AU13: 4.6 | AV13: 4.7 | AW13: 4.8 | AX13: =AX12 -> 4.9 | AY13: 5 | AZ13: 5.1 | BA13: 5.2 | BB13: 5.3 | BC13: 5.4 | BD13: 5.5 | BF13: =ApparentSets!C47 -> 2.854225838 | BG13: =ApparentSets!D47 -> 4.573921985 | BH13: =ApparentSets!E47 -> 3.857102324
A14: 70 | B14: 0.1 | C14: 0.2 | D14: 0.3 | E14: 0.4 | F14: 0.5 | G14: 0.6 | H14: 0.7 | I14: 0.8 | J14: 0.9 | K14: 1 | L14: 1.1 | M14: 1.2 | N14: 1.3 | O14: 1.4 | P14: 1.5 | Q14: 1.6 | R14: 1.7 | S14: 1.8 | T14: 1.9 | U14: 2 | V14: 2.1 | W14: 2.2 | X14: 2.3 | Y14: 2.4 | Z14: 2.5 | AA14: 2.6 | AB14: 2.7 | AC14: 2.8 | AD14: 2.9 | AE14: 3 | AF14: 3.1 | AG14: 3.2 | AH14: 3.3 | AI14: 3.4 | AJ14: 3.5 | AK14: 3.6 | AL14: 3.7 | AM14: 3.8 | AN14: 3.9 | AO14: 4 | AP14: 4.1 | AQ14: 4.2 | AR14: 4.3 | AS14: 4.4 | AT14: 4.5 | AU14: 4.6 | AV14: 4.7 | AW14: 4.8 | AX14: =AX13 -> 4.9 | AY14: 5 | AZ14: 5.1 | BA14: 5.2 | BB14: 5.3 | BC14: 5.4 | BD14: 5.5 | BF14: =ApparentSets!C48 -> 3.297528136 | BG14: =ApparentSets!D48 -> 5.163507785 | BH14: =ApparentSets!E48 -> 4.385712882
A15: 80 | B15: 0.1 | C15: 0.2 | D15: 0.3 | E15: 0.4 | F15: 0.5 | G15: 0.6 | H15: 0.7 | I15: 0.8 | J15: 0.9 | K15: 1 | L15: 1.1 | M15: 1.2 | N15: 1.3 | O15: 1.4 | P15: 1.5 | Q15: 1.6 | R15: 1.7 | S15: 1.8 | T15: 1.9 | U15: 2 | V15: 2.1 | W15: 2.2 | X15: 2.3 | Y15: 2.4 | Z15: 2.5 | AA15: 2.6 | AB15: 2.7 | AC15: 2.8 | AD15: 2.9 | AE15: 3 | AF15: 3.1 | AG15: 3.2 | AH15: 3.3 | AI15: 3.4 | AJ15: 3.5 | AK15: 3.6 | AL15: 3.7 | AM15: 3.8 | AN15: 3.9 | AO15: 4 | AP15: 4.1 | AQ15: 4.2 | AR15: 4.3 | AS15: 4.4 | AT15: 4.5 | AU15: 4.6 | AV15: 4.7 | AW15: 4.8 | AX15: =AX14 -> 4.9 | AY15: 5 | AZ15: 5.1 | BA15: 5.2 | BB15: 5.3 | BC15: 5.4 | BD15: 5.5 | BF15: =ApparentSets!C49 -> 3.64063671 | BG15: =ApparentSets!D49 -> 5.596203015 | BH15: =ApparentSets!E49 -> 4.781065773
A16: 90 | B16: 0.1 | C16: 0.2 | D16: 0.3 | E16: 0.4 | F16: 0.5 | G16: 0.6 | H16: 0.7 | I16: 0.8 | J16: 0.9 | K16: 1 | L16: 1.1 | M16: 1.2 | N16: 1.3 | O16: 1.4 | P16: 1.5 | Q16: 1.6 | R16: 1.7 | S16: 1.8 | T16: 1.9 | U16: 2 | V16: 2.1 | W16: 2.2 | X16: 2.3 | Y16: 2.4 | Z16: 2.5 | AA16: 2.6 | AB16: 2.7 | AC16: 2.8 | AD16: 2.9 | AE16: 3 | AF16: 3.1 | AG16: 3.2 | AH16: 3.3 | AI16: 3.4 | AJ16: 3.5 | AK16: 3.6 | AL16: 3.7 | AM16: 3.8 | AN16: 3.9 | AO16: 4 | AP16: 4.1 | AQ16: 4.2 | AR16: 4.3 | AS16: 4.4 | AT16: 4.5 | AU16: 4.6 | AV16: 4.7 | AW16: 4.8 | AX16: =AX15 -> 4.9 | AY16: 5 | AZ16: 5.1 | BA16: 5.2 | BB16: 5.3 | BC16: 5.4 | BD16: 5.5 | BF16: =ApparentSets!C50 -> 3.87312638 | BG16: =ApparentSets!D50 -> 5.858860447 | BH16: =ApparentSets!E50 -> 5.0311484
A17: 100 | B17: 0.1 | C17: 0.2 | D17: 0.3 | E17: 0.4 | F17: 0.5 | G17: 0.6 | H17: 0.7 | I17: 0.8 | J17: 0.9 | K17: 1 | L17: 1.1 | M17: 1.2 | N17: 1.3 | O17: 1.4 | P17: 1.5 | Q17: 1.6 | R17: 1.7 | S17: 1.8 | T17: 1.9 | U17: 2 | V17: 2.1 | W17: 2.2 | X17: 2.3 | Y17: 2.4 | Z17: 2.5 | AA17: 2.6 | AB17: 2.7 | AC17: 2.8 | AD17: 2.9 | AE17: 3 | AF17: 3.1 | AG17: 3.2 | AH17: 3.3 | AI17: 3.4 | AJ17: 3.5 | AK17: 3.6 | AL17: 3.7 | AM17: 3.8 | AN17: 3.9 | AO17: 4 | AP17: 4.1 | AQ17: 4.2 | AR17: 4.3 | AS17: 4.4 | AT17: 4.5 | AU17: 4.6 | AV17: 4.7 | AW17: 4.8 | AX17: =AX16 -> 4.9 | AY17: 5 | AZ17: 5.1 | BA17: 5.2 | BB17: 5.3 | BC17: 5.4 | BD17: 5.5 | BF17: =ApparentSets!C51 -> 3.987933066 | BG17: =ApparentSets!D51 -> 5.94349937 | BH17: =ApparentSets!E51 -> 5.128362128
A18: 110 | B18: 0.1 | C18: 0.2 | D18: 0.3 | E18: 0.4 | F18: 0.5 | G18: 0.6 | H18: 0.7 | I18: 0.8 | J18: 0.9 | K18: 1 | L18: 1.1 | M18: 1.2 | N18: 1.3 | O18: 1.4 | P18: 1.5 | Q18: 1.6 | R18: 1.7 | S18: 1.8 | T18: 1.9 | U18: 2 | V18: 2.1 | W18: 2.2 | X18: 2.3 | Y18: 2.4 | Z18: 2.5 | AA18: 2.6 | AB18: 2.7 | AC18: 2.8 | AD18: 2.9 | AE18: 3 | AF18: 3.1 | AG18: 3.2 | AH18: 3.3 | AI18: 3.4 | AJ18: 3.5 | AK18: 3.6 | AL18: 3.7 | AM18: 3.8 | AN18: 3.9 | AO18: 4 | AP18: 4.1 | AQ18: 4.2 | AR18: 4.3 | AS18: 4.4 | AT18: 4.5 | AU18: 4.6 | AV18: 4.7 | AW18: 4.8 | AX18: =AX17 -> 4.9 | AY18: 5 | AZ18: 5.1 | BA18: 5.2 | BB18: 5.3 | BC18: 5.4 | BD18: 5.5 | BF18: =ApparentSets!C52 -> 3.981568422 | BG18: =ApparentSets!D52 -> 5.847548072 | BH18: =ApparentSets!E52 -> 5.069753168
A19: 120 | B19: 0.1 | C19: 0.2 | D19: 0.3 | E19: 0.4 | F19: 0.5 | G19: 0.6 | H19: 0.7 | I19: 0.8 | J19: 0.9 | K19: 1 | L19: 1.1 | M19: 1.2 | N19: 1.3 | O19: 1.4 | P19: 1.5 | Q19: 1.6 | R19: 1.7 | S19: 1.8 | T19: 1.9 | U19: 2 | V19: 2.1 | W19: 2.2 | X19: 2.3 | Y19: 2.4 | Z19: 2.5 | AA19: 2.6 | AB19: 2.7 | AC19: 2.8 | AD19: 2.9 | AE19: 3 | AF19: 3.1 | AG19: 3.2 | AH19: 3.3 | AI19: 3.4 | AJ19: 3.5 | AK19: 3.6 | AL19: 3.7 | AM19: 3.8 | AN19: 3.9 | AO19: 4 | AP19: 4.1 | AQ19: 4.2 | AR19: 4.3 | AS19: 4.4 | AT19: 4.5 | AU19: 4.6 | AV19: 4.7 | AW19: 4.8 | AX19: =AX18 -> 4.9 | AY19: 5 | AZ19: 5.1 | BA19: 5.2 | BB19: 5.3 | BC19: 5.4 | BD19: 5.5 | BF19: =ApparentSets!C53 -> 3.854225838 | BG19: =ApparentSets!D53 -> 5.573921985 | BH19: =ApparentSets!E53 -> 4.857102324
A20: 130 | B20: 0.1 | C20: 0.2 | D20: 0.3 | E20: 0.4 | F20: 0.5 | G20: 0.6 | H20: 0.7 | I20: 0.8 | J20: 0.9 | K20: 1 | L20: 1.1 | M20: 1.2 | N20: 1.3 | O20: 1.4 | P20: 1.5 | Q20: 1.6 | R20: 1.7 | S20: 1.8 | T20: 1.9 | U20: 2 | V20: 2.1 | W20: 2.2 | X20: 2.3 | Y20: 2.4 | Z20: 2.5 | AA20: 2.6 | AB20: 2.7 | AC20: 2.8 | AD20: 2.9 | AE20: 3 | AF20: 3.1 | AG20: 3.2 | AH20: 3.3 | AI20: 3.4 | AJ20: 3.5 | AK20: 3.6 | AL20: 3.7 | AM20: 3.8 | AN20: 3.9 | AO20: 4 | AP20: 4.1 | AQ20: 4.2 | AR20: 4.3 | AS20: 4.4 | AT20: 4.5 | AU20: 4.6 | AV20: 4.7 | AW20: 4.8 | AX20: =AX19 -> 4.9 | AY20: 5 | AZ20: 5.1 | BA20: 5.2 | BB20: 5.3 | BC20: 5.4 | BD20: 5.5 | BF20: =ApparentSets!C54 -> 3.609774551 | BG20: =ApparentSets!D54 -> 5.130935098 | BH20: =ApparentSets!E54 -> 4.496870884
A21: 140 | B21: 0.1 | C21: 0.2 | D21: 0.3 | E21: 0.4 | F21: 0.5 | G21: 0.6 | H21: 0.7 | I21: 0.8 | J21: 0.9 | K21: 1 | L21: 1.1 | M21: 1.2 | N21: 1.3 | O21: 1.4 | P21: 1.5 | Q21: 1.6 | R21: 1.7 | S21: 1.8 | T21: 1.9 | U21: 2 | V21: 2.1 | W21: 2.2 | X21: 2.3 | Y21: 2.4 | Z21: 2.5 | AA21: 2.6 | AB21: 2.7 | AC21: 2.8 | AD21: 2.9 | AE21: 3 | AF21: 3.1 | AG21: 3.2 | AH21: 3.3 | AI21: 3.4 | AJ21: 3.5 | AK21: 3.6 | AL21: 3.7 | AM21: 3.8 | AN21: 3.9 | AO21: 4 | AP21: 4.1 | AQ21: 4.2 | AR21: 4.3 | AS21: 4.4 | AT21: 4.5 | AU21: 4.6 | AV21: 4.7 | AW21: 4.8 | AX21: =AX20 -> 4.9 | AY21: 5 | AZ21: 5.1 | BA21: 5.2 | BB21: 5.3 | BC21: 5.4 | BD21: 5.5 | BF21: =ApparentSets!C55 -> 3.255642091 | BG21: =ApparentSets!D55 -> 4.532047346 | BH21: =ApparentSets!E55 -> 4.000004297
A22: 150 | B22: 0.1 | C22: 0.2 | D22: 0.3 | E22: 0.4 | F22: 0.5 | G22: =G21 -> 0.6 | H22: 0.7 | I22: 0.8 | J22: 0.9 | K22: 1 | L22: 1.1 | M22: 1.2 | N22: 1.3 | O22: 1.4 | P22: 1.5 | Q22: 1.6 | R22: 1.7 | S22: 1.8 | T22: 1.9 | U22: 2 | V22: 2.1 | W22: 2.2 | X22: 2.3 | Y22: 2.4 | Z22: 2.5 | AA22: 2.6 | AB22: 2.7 | AC22: 2.8 | AD22: 2.9 | AE22: 3 | AF22: 3.1 | AG22: 3.2 | AH22: 3.3 | AI22: 3.4 | AJ22: 3.5 | AK22: 3.6 | AL22: 3.7 | AM22: 3.8 | AN22: 3.9 | AO22: 4 | AP22: 4.1 | AQ22: 4.2 | AR22: 4.3 | AS22: 4.4 | AT22: 4.5 | AU22: 4.6 | AV22: 4.7 | AW22: 4.8 | AX22: =AX21 -> 4.9 | AY22: 5 | AZ22: 5.1 | BA22: 5.2 | BB22: 5.3 | BC22: 5.4 | BD22: 5.5 | BF22: =ApparentSets!C56 -> 2.802588594 | BG22: =ApparentSets!D56 -> 3.795455628 | BH22: =ApparentSets!E56 -> 3.381599604
A23: 160 | B23: 0.1 | C23: 0.2 | D23: 0.3 | E23: 0.4 | F23: 0.5 | G23: 0.6 | H23: 0.7 | I23: 0.8 | J23: 0.9 | K23: 1 | L23: 1.1 | M23: 1.2 | N23: 1.3 | O23: 1.4 | P23: 1.5 | Q23: 1.6 | R23: 1.7 | S23: 1.8 | T23: 1.9 | U23: 2 | V23: 2.1 | W23: 2.2 | X23: 2.3 | Y23: 2.4 | Z23: 2.5 | AA23: 2.6 | AB23: 2.7 | AC23: 2.8 | AD23: 2.9 | AE23: 3 | AF23: 3.1 | AG23: 3.2 | AH23: 3.3 | AI23: 3.4 | AJ23: 3.5 | AK23: 3.6 | AL23: =AL22 -> 3.7 | AM23: 3.8 | AN23: 3.9 | AO23: 4 | AP23: 4.1 | AQ23: 4.2 | AR23: 4.3 | AS23: 4.4 | AT23: 4.5 | AU23: 4.6 | AV23: 4.7 | AW23: 4.8 | AX23: =AX22 -> 4.9 | AY23: 5 | AZ23: 5.1 | BA23: 5.2 | BB23: 5.3 | BC23: 5.4 | BD23: 5.5 | BF23: =ApparentSets!C57 -> 2.264379861 | BG23: =ApparentSets!D57 -> 2.943540911 | BH23: =ApparentSets!E57 -> 2.660446717
A24: 170 | B24: 0.1 | C24: 0.2 | D24: 0.3 | E24: 0.4 | F24: 0.5 | G24: 0.6 | H24: 0.7 | I24: 0.8 | J24: 0.9 | K24: 1 | L24: 1.1 | M24: 1.2 | N24: 1.3 | O24: 1.4 | P24: 1.5 | Q24: 1.6 | R24: 1.7 | S24: 1.8 | T24: 1.9 | U24: 2 | V24: 2.1 | W24: 2.2 | X24: 2.3 | Y24: 2.4 | Z24: 2.5 | AA24: 2.6 | AB24: 2.7 | AC24: 2.8 | AD24: 2.9 | AE24: 3 | AF24: 3.1 | AG24: 3.2 | AH24: 3.3 | AI24: 3.4 | AJ24: 3.5 | AK24: 3.6 | AL24: 3.7 | AM24: 3.8 | AN24: 3.9 | AO24: 4 | AP24: 4.1 | AQ24: 4.2 | AR24: 4.3 | AS24: 4.4 | AT24: 4.5 | AU24: 4.6 | AV24: 4.7 | AW24: 4.8 | AX24: =AX23 -> 4.9 | AY24: 5 | AZ24: 5.1 | BA24: 5.2 | BB24: 5.3 | BC24: 5.4 | BD24: 5.5 | BF24: =ApparentSets!C58 -> 1.657369091 | BG24: =ApparentSets!D58 -> 2.002188193 | BH24: =ApparentSets!E58 -> 1.858457504
A25: 180 | B25: =B24 -> 0.1 | C25: 0.2 | D25: 0.3 | E25: 0.4 | F25: 0.5 | G25: 0.6 | H25: 0.7 | I25: 0.8 | J25: 0.9 | K25: 1 | L25: 1.1 | M25: 1.2 | N25: 1.3 | O25: 1.4 | P25: 1.5 | Q25: 1.6 | R25: 1.7 | S25: 1.8 | T25: 1.9 | U25: 2 | V25: 2.1 | W25: =W24 -> 2.2 | X25: 2.3 | Y25: 2.4 | Z25: 2.5 | AA25: 2.6 | AB25: 2.7 | AC25: 2.8 | AD25: 2.9 | AE25: 3 | AF25: 3.1 | AG25: 3.2 | AH25: 3.3 | AI25: 3.4 | AJ25: 3.5 | AK25: 3.6 | AL25: 3.7 | AM25: 3.8 | AN25: 3.9 | AO25: 4 | AP25: 4.1 | AQ25: 4.2 | AR25: 4.3 | AS25: 4.4 | AT25: 4.5 | AU25: 4.6 | AV25: 4.7 | AW25: 4.8 | AX25: =AX24 -> 4.9 | AY25: 5 | AZ25: 5.1 | BA25: 5.2 | BB25: 5.3 | BC25: 5.4 | BD25: 5.5 | BF25: =ApparentSets!C59 -> 1 | BG25: =ApparentSets!D59 -> 1 | BH25: =ApparentSets!E59 -> 1
A26: 190 | B26: 0.1 | C26: 0.2 | D26: 0.3 | E26: 0.4 | F26: 0.5 | G26: 0.6 | H26: 0.7 | I26: 0.8 | J26: 0.9 | K26: 1 | L26: 1.1 | M26: 1.2 | N26: 1.3 | O26: 1.4 | P26: 1.5 | Q26: 1.6 | R26: 1.7 | S26: 1.8 | T26: 1.9 | U26: 2 | V26: 2.1 | W26: 2.2 | X26: 2.3 | Y26: 2.4 | Z26: 2.5 | AA26: 2.6 | AB26: 2.7 | AC26: 2.8 | AD26: 2.9 | AE26: 3 | AF26: 3.1 | AG26: 3.2 | AH26: 3.3 | AI26: 3.4 | AJ26: 3.5 | AK26: 3.6 | AL26: 3.7 | AM26: 3.8 | AN26: 3.9 | AO26: 4 | AP26: 4.1 | AQ26: 4.2 | AR26: 4.3 | AS26: 4.4 | AT26: 4.5 | AU26: 4.6 | AV26: 4.7 | AW26: 4.8 | AX26: =AX25 -> 4.9 | AY26: 5 | AZ26: 5.1 | BA26: 5.2 | BB26: 5.3 | BC26: 5.4 | BD26: 5.5
A27: 200 | B27: 0.1 | C27: 0.2 | D27: 0.3 | E27: 0.4 | F27: 0.5 | G27: 0.6 | H27: 0.7 | I27: 0.8 | J27: 0.9 | K27: 1 | L27: 1.1 | M27: 1.2 | N27: 1.3 | O27: 1.4 | P27: 1.5 | Q27: 1.6 | R27: 1.7 | S27: 1.8 | T27: 1.9 | U27: 2 | V27: 2.1 | W27: 2.2 | X27: 2.3 | Y27: 2.4 | Z27: 2.5 | AA27: 2.6 | AB27: 2.7 | AC27: 2.8 | AD27: 2.9 | AE27: 3 | AF27: 3.1 | AG27: 3.2 | AH27: 3.3 | AI27: 3.4 | AJ27: 3.5 | AK27: 3.6 | AL27: 3.7 | AM27: 3.8 | AN27: 3.9 | AO27: 4 | AP27: 4.1 | AQ27: 4.2 | AR27: 4.3 | AS27: 4.4 | AT27: 4.5 | AU27: 4.6 | AV27: 4.7 | AW27: 4.8 | AX27: =AX26 -> 4.9 | AY27: 5 | AZ27: 5.1 | BA27: 5.2 | BB27: 5.3 | BC27: 5.4 | BD27: 5.5
A28: 210 | B28: 0.1 | C28: 0.2 | D28: 0.3 | E28: 0.4 | F28: 0.5 | G28: 0.6 | H28: 0.7 | I28: 0.8 | J28: 0.9 | K28: 1 | L28: 1.1 | M28: 1.2 | N28: 1.3 | O28: 1.4 | P28: 1.5 | Q28: 1.6 | R28: 1.7 | S28: 1.8 | T28: 1.9 | U28: 2 | V28: 2.1 | W28: 2.2 | X28: 2.3 | Y28: 2.4 | Z28: 2.5 | AA28: 2.6 | AB28: 2.7 | AC28: 2.8 | AD28: 2.9 | AE28: 3 | AF28: 3.1 | AG28: 3.2 | AH28: 3.3 | AI28: 3.4 | AJ28: 3.5 | AK28: 3.6 | AL28: 3.7 | AM28: 3.8 | AN28: 3.9 | AO28: 4 | AP28: 4.1 | AQ28: 4.2 | AR28: 4.3 | AS28: 4.4 | AT28: 4.5 | AU28: 4.6 | AV28: 4.7 | AW28: 4.8 | AX28: =AX27 -> 4.9 | AY28: 5 | AZ28: 5.1 | BA28: 5.2 | BB28: 5.3 | BC28: 5.4 | BD28: 5.5
A29: 220 | B29: 0.1 | C29: 0.2 | D29: 0.3 | E29: 0.4 | F29: 0.5 | G29: 0.6 | H29: 0.7 | I29: 0.8 | J29: 0.9 | K29: 1 | L29: 1.1 | M29: 1.2 | N29: 1.3 | O29: 1.4 | P29: 1.5 | Q29: 1.6 | R29: 1.7 | S29: 1.8 | T29: 1.9 | U29: 2 | V29: 2.1 | W29: 2.2 | X29: 2.3 | Y29: 2.4 | Z29: 2.5 | AA29: 2.6 | AB29: 2.7 | AC29: 2.8 | AD29: 2.9 | AE29: 3 | AF29: 3.1 | AG29: 3.2 | AH29: 3.3 | AI29: 3.4 | AJ29: 3.5 | AK29: 3.6 | AL29: 3.7 | AM29: 3.8 | AN29: 3.9 | AO29: 4 | AP29: 4.1 | AQ29: 4.2 | AR29: 4.3 | AS29: 4.4 | AT29: 4.5 | AU29: 4.6 | AV29: 4.7 | AW29: 4.8 | AX29: =AX28 -> 4.9 | AY29: 5 | AZ29: 5.1 | BA29: 5.2 | BB29: 5.3 | BC29: 5.4 | BD29: 5.5
A30: 230 | B30: 0.1 | C30: 0.2 | D30: 0.3 | E30: 0.4 | F30: 0.5 | G30: 0.6 | H30: 0.7 | I30: 0.8 | J30: 0.9 | K30: 1 | L30: 1.1 | M30: 1.2 | N30: 1.3 | O30: 1.4 | P30: 1.5 | Q30: 1.6 | R30: 1.7 | S30: 1.8 | T30: 1.9 | U30: 2 | V30: 2.1 | W30: 2.2 | X30: 2.3 | Y30: 2.4 | Z30: 2.5 | AA30: 2.6 | AB30: 2.7 | AC30: 2.8 | AD30: 2.9 | AE30: 3 | AF30: 3.1 | AG30: 3.2 | AH30: 3.3 | AI30: 3.4 | AJ30: 3.5 | AK30: 3.6 | AL30: 3.7 | AM30: 3.8 | AN30: 3.9 | AO30: 4 | AP30: 4.1 | AQ30: 4.2 | AR30: 4.3 | AS30: 4.4 | AT30: 4.5 | AU30: 4.6 | AV30: 4.7 | AW30: 4.8 | AX30: =AX29 -> 4.9 | AY30: 5 | AZ30: 5.1 | BA30: 5.2 | BB30: 5.3 | BC30: 5.4 | BD30: 5.5
A31: 240 | B31: 0.1 | C31: 0.2 | D31: 0.3 | E31: 0.4 | F31: 0.5 | G31: 0.6 | H31: 0.7 | I31: 0.8 | J31: 0.9 | K31: 1 | L31: 1.1 | M31: 1.2 | N31: 1.3 | O31: 1.4 | P31: 1.5 | Q31: 1.6 | R31: 1.7 | S31: 1.8 | T31: 1.9 | U31: 2 | V31: 2.1 | W31: 2.2 | X31: 2.3 | Y31: 2.4 | Z31: 2.5 | AA31: 2.6 | AB31: 2.7 | AC31: 2.8 | AD31: 2.9 | AE31: 3 | AF31: 3.1 | AG31: 3.2 | AH31: 3.3 | AI31: 3.4 | AJ31: 3.5 | AK31: 3.6 | AL31: 3.7 | AM31: 3.8 | AN31: 3.9 | AO31: 4 | AP31: 4.1 | AQ31: 4.2 | AR31: 4.3 | AS31: 4.4 | AT31: 4.5 | AU31: 4.6 | AV31: 4.7 | AW31: 4.8 | AX31: =AX30 -> 4.9 | AY31: 5 | AZ31: 5.1 | BA31: 5.2 | BB31: 5.3 | BC31: 5.4 | BD31: 5.5
A32: 250 | B32: 0.1 | C32: 0.2 | D32: 0.3 | E32: 0.4 | F32: 0.5 | G32: 0.6 | H32: 0.7 | I32: 0.8 | J32: 0.9 | K32: 1 | L32: 1.1 | M32: 1.2 | N32: 1.3 | O32: 1.4 | P32: 1.5 | Q32: 1.6 | R32: 1.7 | S32: 1.8 | T32: 1.9 | U32: 2 | V32: 2.1 | W32: 2.2 | X32: 2.3 | Y32: 2.4 | Z32: 2.5 | AA32: 2.6 | AB32: 2.7 | AC32: 2.8 | AD32: 2.9 | AE32: 3 | AF32: 3.1 | AG32: 3.2 | AH32: 3.3 | AI32: 3.4 | AJ32: 3.5 | AK32: 3.6 | AL32: 3.7 | AM32: 3.8 | AN32: 3.9 | AO32: 4 | AP32: 4.1 | AQ32: 4.2 | AR32: 4.3 | AS32: 4.4 | AT32: 4.5 | AU32: 4.6 | AV32: 4.7 | AW32: 4.8 | AX32: =AX31 -> 4.9 | AY32: 5 | AZ32: 5.1 | BA32: 5.2 | BB32: 5.3 | BC32: 5.4 | BD32: 5.5
A33: 260 | B33: 0.1 | C33: 0.2 | D33: 0.3 | E33: 0.4 | F33: 0.5 | G33: 0.6 | H33: 0.7 | I33: 0.8 | J33: 0.9 | K33: 1 | L33: 1.1 | M33: 1.2 | N33: 1.3 | O33: 1.4 | P33: 1.5 | Q33: 1.6 | R33: 1.7 | S33: 1.8 | T33: 1.9 | U33: 2 | V33: 2.1 | W33: 2.2 | X33: 2.3 | Y33: 2.4 | Z33: 2.5 | AA33: 2.6 | AB33: 2.7 | AC33: 2.8 | AD33: 2.9 | AE33: 3 | AF33: 3.1 | AG33: 3.2 | AH33: 3.3 | AI33: 3.4 | AJ33: 3.5 | AK33: 3.6 | AL33: 3.7 | AM33: 3.8 | AN33: 3.9 | AO33: 4 | AP33: 4.1 | AQ33: 4.2 | AR33: 4.3 | AS33: 4.4 | AT33: 4.5 | AU33: 4.6 | AV33: 4.7 | AW33: 4.8 | AX33: =AX32 -> 4.9 | AY33: 5 | AZ33: 5.1 | BA33: 5.2 | BB33: 5.3 | BC33: 5.4 | BD33: 5.5
A34: 270 | B34: 0.1 | C34: 0.2 | D34: 0.3 | E34: 0.4 | F34: 0.5 | G34: 0.6 | H34: 0.7 | I34: 0.8 | J34: 0.9 | K34: 1 | L34: 1.1 | M34: 1.2 | N34: 1.3 | O34: 1.4 | P34: 1.5 | Q34: 1.6 | R34: 1.7 | S34: 1.8 | T34: 1.9 | U34: 2 | V34: 2.1 | W34: 2.2 | X34: 2.3 | Y34: 2.4 | Z34: 2.5 | AA34: 2.6 | AB34: 2.7 | AC34: 2.8 | AD34: 2.9 | AE34: 3 | AF34: 3.1 | AG34: 3.2 | AH34: 3.3 | AI34: 3.4 | AJ34: 3.5 | AK34: 3.6 | AL34: 3.7 | AM34: 3.8 | AN34: 3.9 | AO34: 4 | AP34: 4.1 | AQ34: 4.2 | AR34: 4.3 | AS34: 4.4 | AT34: 4.5 | AU34: 4.6 | AV34: 4.7 | AW34: 4.8 | AX34: =AX33 -> 4.9 | AY34: 5 | AZ34: 5.1 | BA34: 5.2 | BB34: 5.3 | BC34: 5.4 | BD34: 5.5
A35: 280 | B35: 0.1 | C35: 0.2 | D35: 0.3 | E35: 0.4 | F35: 0.5 | G35: 0.6 | H35: 0.7 | I35: 0.8 | J35: 0.9 | K35: 1 | L35: 1.1 | M35: 1.2 | N35: 1.3 | O35: 1.4 | P35: 1.5 | Q35: 1.6 | R35: 1.7 | S35: 1.8 | T35: 1.9 | U35: 2 | V35: 2.1 | W35: 2.2 | X35: 2.3 | Y35: 2.4 | Z35: 2.5 | AA35: 2.6 | AB35: 2.7 | AC35: 2.8 | AD35: 2.9 | AE35: 3 | AF35: 3.1 | AG35: 3.2 | AH35: 3.3 | AI35: 3.4 | AJ35: 3.5 | AK35: 3.6 | AL35: 3.7 | AM35: 3.8 | AN35: 3.9 | AO35: 4 | AP35: 4.1 | AQ35: 4.2 | AR35: 4.3 | AS35: 4.4 | AT35: 4.5 | AU35: 4.6 | AV35: 4.7 | AW35: 4.8 | AX35: =AX34 -> 4.9 | AY35: 5 | AZ35: 5.1 | BA35: 5.2 | BB35: 5.3 | BC35: 5.4 | BD35: 5.5
A36: 290 | B36: 0.1 | C36: 0.2 | D36: 0.3 | E36: 0.4 | F36: 0.5 | G36: 0.6 | H36: 0.7 | I36: 0.8 | J36: 0.9 | K36: 1 | L36: 1.1 | M36: 1.2 | N36: 1.3 | O36: 1.4 | P36: 1.5 | Q36: 1.6 | R36: 1.7 | S36: 1.8 | T36: 1.9 | U36: 2 | V36: 2.1 | W36: 2.2 | X36: 2.3 | Y36: 2.4 | Z36: 2.5 | AA36: 2.6 | AB36: 2.7 | AC36: 2.8 | AD36: 2.9 | AE36: 3 | AF36: 3.1 | AG36: 3.2 | AH36: 3.3 | AI36: 3.4 | AJ36: 3.5 | AK36: 3.6 | AL36: 3.7 | AM36: 3.8 | AN36: 3.9 | AO36: 4 | AP36: 4.1 | AQ36: 4.2 | AR36: 4.3 | AS36: 4.4 | AT36: 4.5 | AU36: 4.6 | AV36: 4.7 | AW36: 4.8 | AX36: =AX35 -> 4.9 | AY36: 5 | AZ36: 5.1 | BA36: 5.2 | BB36: 5.3 | BC36: 5.4 | BD36: 5.5
A37: 300 | B37: 0.1 | C37: 0.2 | D37: 0.3 | E37: 0.4 | F37: 0.5 | G37: 0.6 | H37: 0.7 | I37: 0.8 | J37: 0.9 | K37: 1 | L37: 1.1 | M37: 1.2 | N37: 1.3 | O37: 1.4 | P37: 1.5 | Q37: 1.6 | R37: 1.7 | S37: 1.8 | T37: 1.9 | U37: 2 | V37: 2.1 | W37: 2.2 | X37: 2.3 | Y37: 2.4 | Z37: 2.5 | AA37: 2.6 | AB37: 2.7 | AC37: 2.8 | AD37: 2.9 | AE37: 3 | AF37: 3.1 | AG37: 3.2 | AH37: 3.3 | AI37: 3.4 | AJ37: 3.5 | AK37: 3.6 | AL37: 3.7 | AM37: 3.8 | AN37: 3.9 | AO37: 4 | AP37: 4.1 | AQ37: 4.2 | AR37: 4.3 | AS37: 4.4 | AT37: 4.5 | AU37: 4.6 | AV37: 4.7 | AW37: 4.8 | AX37: =AX36 -> 4.9 | AY37: 5 | AZ37: 5.1 | BA37: 5.2 | BB37: 5.3 | BC37: 5.4 | BD37: 5.5
A38: 310 | B38: 0.1 | C38: 0.2 | D38: 0.3 | E38: 0.4 | F38: 0.5 | G38: 0.6 | H38: 0.7 | I38: 0.8 | J38: 0.9 | K38: 1 | L38: 1.1 | M38: 1.2 | N38: 1.3 | O38: 1.4 | P38: 1.5 | Q38: 1.6 | R38: =R37 -> 1.7 | S38: 1.8 | T38: 1.9 | U38: 2 | V38: 2.1 | W38: 2.2 | X38: 2.3 | Y38: 2.4 | Z38: 2.5 | AA38: 2.6 | AB38: 2.7 | AC38: 2.8 | AD38: 2.9 | AE38: 3 | AF38: 3.1 | AG38: 3.2 | AH38: 3.3 | AI38: 3.4 | AJ38: 3.5 | AK38: 3.6 | AL38: 3.7 | AM38: 3.8 | AN38: 3.9 | AO38: 4 | AP38: 4.1 | AQ38: 4.2 | AR38: 4.3 | AS38: 4.4 | AT38: 4.5 | AU38: 4.6 | AV38: 4.7 | AW38: 4.8 | AX38: =AX37 -> 4.9 | AY38: 5 | AZ38: 5.1 | BA38: 5.2 | BB38: 5.3 | BC38: 5.4 | BD38: 5.5
A39: 320 | B39: 0.1 | C39: 0.2 | D39: 0.3 | E39: 0.4 | F39: 0.5 | G39: 0.6 | H39: 0.7 | I39: 0.8 | J39: 0.9 | K39: 1 | L39: 1.1 | M39: 1.2 | N39: 1.3 | O39: 1.4 | P39: 1.5 | Q39: 1.6 | R39: 1.7 | S39: 1.8 | T39: 1.9 | U39: 2 | V39: 2.1 | W39: 2.2 | X39: 2.3 | Y39: 2.4 | Z39: 2.5 | AA39: 2.6 | AB39: 2.7 | AC39: 2.8 | AD39: 2.9 | AE39: 3 | AF39: 3.1 | AG39: 3.2 | AH39: 3.3 | AI39: 3.4 | AJ39: 3.5 | AK39: 3.6 | AL39: 3.7 | AM39: =AM38 -> 3.8 | AN39: 3.9 | AO39: 4 | AP39: 4.1 | AQ39: 4.2 | AR39: 4.3 | AS39: 4.4 | AT39: 4.5 | AU39: 4.6 | AV39: 4.7 | AW39: 4.8 | AX39: =AX38 -> 4.9 | AY39: 5 | AZ39: 5.1 | BA39: 5.2 | BB39: 5.3 | BC39: 5.4 | BD39: 5.5
A40: 330 | B40: 0.1 | C40: 0.2 | D40: 0.3 | E40: 0.4 | F40: 0.5 | G40: 0.6 | H40: 0.7 | I40: 0.8 | J40: 0.9 | K40: 1 | L40: 1.1 | M40: 1.2 | N40: 1.3 | O40: 1.4 | P40: 1.5 | Q40: 1.6 | R40: 1.7 | S40: 1.8 | T40: 1.9 | U40: 2 | V40: 2.1 | W40: 2.2 | X40: 2.3 | Y40: 2.4 | Z40: 2.5 | AA40: 2.6 | AB40: 2.7 | AC40: 2.8 | AD40: 2.9 | AE40: 3 | AF40: 3.1 | AG40: 3.2 | AH40: 3.3 | AI40: 3.4 | AJ40: 3.5 | AK40: 3.6 | AL40: 3.7 | AM40: 3.8 | AN40: 3.9 | AO40: 4 | AP40: 4.1 | AQ40: 4.2 | AR40: 4.3 | AS40: 4.4 | AT40: 4.5 | AU40: 4.6 | AV40: 4.7 | AW40: 4.8 | AX40: =AX39 -> 4.9 | AY40: 5 | AZ40: 5.1 | BA40: 5.2 | BB40: 5.3 | BC40: 5.4 | BD40: 5.5
A41: 340 | B41: =B40 -> 0.1 | C41: 0.2 | D41: 0.3 | E41: 0.4 | F41: 0.5 | G41: 0.6 | H41: 0.7 | I41: 0.8 | J41: 0.9 | K41: 1 | L41: 1.1 | M41: 1.2 | N41: 1.3 | O41: 1.4 | P41: 1.5 | Q41: 1.6 | R41: 1.7 | S41: 1.8 | T41: 1.9 | U41: 2 | V41: 2.1 | W41: 2.2 | X41: 2.3 | Y41: 2.4 | Z41: 2.5 | AA41: 2.6 | AB41: 2.7 | AC41: 2.8 | AD41: 2.9 | AE41: 3 | AF41: 3.1 | AG41: 3.2 | AH41: =AH40 -> 3.3 | AI41: 3.4 | AJ41: 3.5 | AK41: 3.6 | AL41: 3.7 | AM41: 3.8 | AN41: 3.9 | AO41: 4 | AP41: 4.1 | AQ41: 4.2 | AR41: 4.3 | AS41: 4.4 | AT41: 4.5 | AU41: 4.6 | AV41: 4.7 | AW41: 4.8 | AX41: =AX40 -> 4.9 | AY41: 5 | AZ41: 5.1 | BA41: 5.2 | BB41: 5.3 | BC41: 5.4 | BD41: 5.5
A42: 350 | B42: 0.1 | C42: 0.2 | D42: 0.3 | E42: 0.4 | F42: 0.5 | G42: 0.6 | H42: 0.7 | I42: 0.8 | J42: 0.9 | K42: 1 | L42: 1.1 | M42: 1.2 | N42: 1.3 | O42: 1.4 | P42: 1.5 | Q42: 1.6 | R42: 1.7 | S42: 1.8 | T42: 1.9 | U42: 2 | V42: 2.1 | W42: 2.2 | X42: 2.3 | Y42: 2.4 | Z42: 2.5 | AA42: 2.6 | AB42: 2.7 | AC42: 2.8 | AD42: 2.9 | AE42: 3 | AF42: 3.1 | AG42: 3.2 | AH42: 3.3 | AI42: 3.4 | AJ42: 3.5 | AK42: 3.6 | AL42: 3.7 | AM42: 3.8 | AN42: 3.9 | AO42: 4 | AP42: 4.1 | AQ42: 4.2 | AR42: 4.3 | AS42: 4.4 | AT42: 4.5 | AU42: 4.6 | AV42: 4.7 | AW42: 4.8 | AX42: =AX41 -> 4.9 | AY42: 5 | AZ42: 5.1 | BA42: 5.2 | BB42: 5.3 | BC42: 5.4 | BD42: 5.5

Sheet PolarTest

Sheet PolarData
A5: only for | AZ5: 5-pt interpolation | BE5: 7-pt interpolation
A6: gridding | AY6: =ApparentSets!C41 -> X | AZ6: =ApparentSets!G41 -> O | BA6: =ApparentSets!H41 -> F | BB6: =ApparentSets!I41 -> L | BC6: =ApparentSets!J41 -> C | BE6: =ApparentSets!L41 -> O | BF6: =ApparentSets!M41 -> F | BG6: =ApparentSets!N41 -> L | BH6: =ApparentSets!O41 -> C
A7: 0 | B7: 0.1 | C7: =B7+0.1 -> 0.2 | D7: 0.3 | E7: 0.4 | F7: 0.5 | G7: 0.6 | H7: 0.7 | I7: 0.8 | J7: 0.9 | K7: 1 | L7: 1.1 | M7: 1.2 | N7: 1.3 | O7: 1.4 | P7: 1.5 | Q7: 1.6 | R7: 1.7 | S7: 1.8 | T7: 1.9 | U7: 2 | V7: 2.1 | W7: 2.2 | X7: 2.3 | Y7: 2.4 | Z7: 2.5 | AA7: 2.6 | AB7: 2.7 | AC7: 2.8 | AD7: 2.9 | AE7: 3 | AF7: 3.1 | AG7: 3.2 | AH7: 3.3 | AI7: 3.4 | AJ7: 3.5 | AK7: 3.6 | AL7: 3.7 | AM7: 3.8 | AN7: 3.9 | AO7: 4 | AP7: =AO7+0.1 -> 4.1 | AQ7: =AP7+0.1 -> 4.2 | AR7: =AQ7+0.1 -> 4.3 | AS7: =AR7+0.1 -> 4.4 | AT7: =AS7+0.1 -> 4.5 | AU7: =AT7+0.1 -> 4.6 | AV7: =AU7+0.1 -> 4.7 | AW7: =AV7+0.1 -> 4.8 | AY7: -1 | AZ7: -1 | BA7: -1 | BB7: -1 | BC7: -1 | BE7: -1 | BF7: -1 | BG7: -1 | BH7: -1
A8: 10 | B8: =B7 -> 0.1 | C8: =C7 -> 0.2 | D8: =D7 -> 0.3 | E8: 0.4 | F8: 0.5 | G8: 0.6 | H8: 0.7 | I8: 0.8 | J8: 0.9 | K8: 1 | L8: 1.1 | M8: 1.2 | N8: 1.3 | O8: 1.4 | P8: 1.5 | Q8: 1.6 | R8: 1.7 | S8: 1.8 | T8: 1.9 | U8: 2 | V8: =V7 -> 2.1 | W8: =W7 -> 2.2 | X8: =X7 -> 2.3 | Y8: 2.4 | Z8: 2.5 | AA8: 2.6 | AB8: 2.7 | AC8: 2.8 | AD8: 2.9 | AE8: 3 | AF8: 3.1 | AG8: 3.2 | AH8: 3.3 | AI8: 3.4 | AJ8: 3.5 | AK8: 3.6 | AL8: 3.7 | AM8: 3.8 | AN8: 3.9 | AO8: =AO7 -> 4 | AP8: =AP7 -> 4.1 | AQ8: 4.2 | AR8: 4.3 | AS8: 4.4 | AT8: 4.5 | AU8: =AU7 -> 4.6 | AV8: 4.7 | AW8: 4.8 | AY8: =ApparentSets!C42 -> -0.3122464152 | AZ8: =ApparentSets!G42 -> 0.1192390609 | BA8: =ApparentSets!H42 -> 0.1941850722 | BB8: =ApparentSets!I42 -> 0.1053697898 | BC8: =ApparentSets!J42 -> 0.5535221419 | BE8: =ApparentSets!L42 -> 0.1158488079 | BF8: =ApparentSets!M42 -> 0.1893901732 | BG8: =ApparentSets!N42 -> 0.1107020872 | BH8: =ApparentSets!O42 -> 0.5492613351
A9: 20 | B9: =B8 -> 0.1 | C9: 0.2 | D9: 0.3 | E9: 0.4 | F9: 0.5 | G9: 0.6 | H9: 0.7 | I9: 0.8 | J9: 0.9 | K9: 1 | L9: 1.1 | M9: 1.2 | N9: 1.3 | O9: 1.4 | P9: 1.5 | Q9: 1.6 | R9: 1.7 | S9: 1.8 | T9: 1.9 | U9: 2 | V9: =V8 -> 2.1 | W9: 2.2 | X9: 2.3 | Y9: 2.4 | Z9: 2.5 | AA9: 2.6 | AB9: 2.7 | AC9: 2.8 | AD9: 2.9 | AE9: 3 | AF9: 3.1 | AG9: 3.2 | AH9: 3.3 | AI9: 3.4 | AJ9: 3.5 | AK9: 3.6 | AL9: 3.7 | AM9: 3.8 | AN9: 3.9 | AO9: =AO8 -> 4 | AP9: 4.1 | AQ9: 4.2 | AR9: 4.3 | AS9: 4.4 | AT9: 4.5 | AU9: =AU8 -> 4.6 | AV9: 4.7 | AW9: 4.8 | AY9: =ApparentSets!C43 -> 0.384994619 | AZ9: =ApparentSets!G43 -> 1.227052074 | BA9: =ApparentSets!H43 -> 1.251610782 | BB9: =ApparentSets!I43 -> 1.183964028 | BC9: =ApparentSets!J43 -> 1.87513452 | BE9: =ApparentSets!L43 -> 1.21646163 | BF9: =ApparentSets!M43 -> 1.238147436 | BG9: =ApparentSets!N43 -> 1.200456102 | BH9: =ApparentSets!O43 -> 1.863538107
A10: 30 | B10: 0.1 | C10: 0.2 | D10: 0.3 | E10: 0.4 | F10: 0.5 | G10: 0.6 | H10: 0.7 | I10: 0.8 | J10: 0.9 | K10: 1 | L10: 1.1 | M10: 1.2 | N10: 1.3 | O10: 1.4 | P10: 1.5 | Q10: 1.6 | R10: 1.7 | S10: 1.8 | T10: 1.9 | U10: 2 | V10: 2.1 | W10: 2.2 | X10: 2.3 | Y10: 2.4 | Z10: 2.5 | AA10: 2.6 | AB10: 2.7 | AC10: 2.8 | AD10: 2.9 | AE10: 3 | AF10: 3.1 | AG10: 3.2 | AH10: 3.3 | AI10: 3.4 | AJ10: 3.5 | AK10: 3.6 | AL10: 3.7 | AM10: 3.8 | AN10: 3.9 | AO10: 4 | AP10: 4.1 | AQ10: 4.2 | AR10: 4.3 | AS10: 4.4 | AT10: 4.5 | AU10: =AU9 -> 4.6 | AV10: 4.7 | AW10: 4.8 | AY10: =ApparentSets!C44 -> 1.070537786 | AZ10: =ApparentSets!G44 -> 2.225093313 | BA10: =ApparentSets!H44 -> 2.092710551 | BB10: =ApparentSets!I44 -> 2.172391751 | BC10: =ApparentSets!J44 -> 2.926880491 | BE10: =ApparentSets!L44 -> 2.212167708 | BF10: =ApparentSets!M44 -> 2.077942411 | BG10: =ApparentSets!N44 -> 2.192598773 | BH10: =ApparentSets!O44 -> 2.914235672
A11: 40 | B11: 0.1 | C11: 0.2 | D11: 0.3 | E11: 0.4 | F11: 0.5 | G11: 0.6 | H11: 0.7 | I11: 0.8 | J11: 0.9 | K11: 1 | L11: 1.1 | M11: 1.2 | N11: 1.3 | O11: 1.4 | P11: 1.5 | Q11: 1.6 | R11: 1.7 | S11: 1.8 | T11: 1.9 | U11: 2 | V11: 2.1 | W11: 2.2 | X11: 2.3 | Y11: 2.4 | Z11: 2.5 | AA11: 2.6 | AB11: 2.7 | AC11: 2.8 | AD11: 2.9 | AE11: 3 | AF11: 3.1 | AG11: 3.2 | AH11: 3.3 | AI11: 3.4 | AJ11: 3.5 | AK11: 3.6 | AL11: 3.7 | AM11: 3.8 | AN11: 3.9 | AO11: 4 | AP11: 4.1 | AQ11: 4.2 | AR11: 4.3 | AS11: 4.4 | AT11: 4.5 | AU11: =AU10 -> 4.6 | AV11: 4.7 | AW11: 4.8 | AY11: =ApparentSets!C45 -> 1.723553205 | AZ11: =ApparentSets!G45 -> 2.999958459 | BA11: =ApparentSets!H45 -> 2.650650271 | BB11: =ApparentSets!I45 -> 2.999958459 | BC11: =ApparentSets!J45 -> 3.676411452 | BE11: =ApparentSets!L45 -> 2.999958459 | BF11: =ApparentSets!M45 -> 2.650650271 | BG11: =ApparentSets!N45 -> 2.999958459 | BH11: =ApparentSets!O45 -> 3.676411452
A12: 50 | B12: 0.1 | C12: 0.2 | D12: 0.3 | E12: 0.4 | F12: 0.5 | G12: 0.6 | H12: 0.7 | I12: 0.8 | J12: 0.9 | K12: 1 | L12: 1.1 | M12: 1.2 | N12: 1.3 | O12: 1.4 | P12: 1.5 | Q12: 1.6 | R12: 1.7 | S12: 1.8 | T12: 1.9 | U12: 2 | V12: 2.1 | W12: 2.2 | X12: 2.3 | Y12: 2.4 | Z12: 2.5 | AA12: 2.6 | AB12: 2.7 | AC12: 2.8 | AD12: 2.9 | AE12: 3 | AF12: 3.1 | AG12: 3.2 | AH12: 3.3 | AI12: 3.4 | AJ12: 3.5 | AK12: 3.6 | AL12: 3.7 | AM12: 3.8 | AN12: 3.9 | AO12: 4 | AP12: 4.1 | AQ12: 4.2 | AR12: 4.3 | AS12: 4.4 | AT12: 4.5 | AU12: =AU11 -> 4.6 | AV12: 4.7 | AW12: 4.8 | AY12: =ApparentSets!C46 -> 2.324199332 | AZ12: =ApparentSets!G46 -> 3.48446291 | BA12: =ApparentSets!H46 -> 2.924498258 | BB12: =ApparentSets!I46 -> 3.613737739 | BC12: =ApparentSets!J46 -> 4.128433883 | BE12: =ApparentSets!L46 -> 3.514424156 | BF12: =ApparentSets!M46 -> 2.952849896 | BG12: =ApparentSets!N46 -> 3.563634378 | BH12: =ApparentSets!O46 -> 4.154303668
A13: 60 | B13: 0.1 | C13: 0.2 | D13: 0.3 | E13: 0.4 | F13: 0.5 | G13: 0.6 | H13: 0.7 | I13: 0.8 | J13: 0.9 | K13: 1 | L13: 1.1 | M13: 1.2 | N13: 1.3 | O13: 1.4 | P13: 1.5 | Q13: 1.6 | R13: 1.7 | S13: 1.8 | T13: 1.9 | U13: 2 | V13: 2.1 | W13: 2.2 | X13: 2.3 | Y13: 2.4 | Z13: 2.5 | AA13: 2.6 | AB13: 2.7 | AC13: 2.8 | AD13: 2.9 | AE13: 3 | AF13: 3.1 | AG13: 3.2 | AH13: 3.3 | AI13: 3.4 | AJ13: 3.5 | AK13: 3.6 | AL13: 3.7 | AM13: 3.8 | AN13: 3.9 | AO13: 4 | AP13: 4.1 | AQ13: 4.2 | AR13: 4.3 | AS13: 4.4 | AT13: 4.5 | AU13: =AU12 -> 4.6 | AV13: 4.7 | AW13: 4.8 | AY13: =ApparentSets!C47 -> 2.854225838 | AZ13: =ApparentSets!G47 -> 3.734465713 | BA13: =ApparentSets!H47 -> 3.017186167 | BB13: =ApparentSets!I47 -> 4.019352194 | BC13: =ApparentSets!J47 -> 4.360837177 | BE13: =ApparentSets!L47 -> 3.795341422 | BF13: =ApparentSets!M47 -> 3.071527313 | BG13: =ApparentSets!N47 -> 3.911720074 | BH13: =ApparentSets!O47 -> 4.412037722
A14: 70 | B14: 0.1 | C14: 0.2 | D14: 0.3 | E14: 0.4 | F14: 0.5 | G14: 0.6 | H14: 0.7 | I14: 0.8 | J14: 0.9 | K14: 1 | L14: 1.1 | M14: 1.2 | N14: 1.3 | O14: 1.4 | P14: 1.5 | Q14: 1.6 | R14: 1.7 | S14: 1.8 | T14: 1.9 | U14: 2 | V14: 2.1 | W14: 2.2 | X14: 2.3 | Y14: 2.4 | Z14: 2.5 | AA14: 2.6 | AB14: 2.7 | AC14: 2.8 | AD14: 2.9 | AE14: 3 | AF14: 3.1 | AG14: 3.2 | AH14: 3.3 | AI14: 3.4 | AJ14: 3.5 | AK14: 3.6 | AL14: 3.7 | AM14: 3.8 | AN14: 3.9 | AO14: 4 | AP14: 4.1 | AQ14: 4.2 | AR14: 4.3 | AS14: 4.4 | AT14: 4.5 | AU14: =AU13 -> 4.6 | AV14: 4.7 | AW14: 4.8 | AY14: =ApparentSets!C48 -> 3.297528136 | AZ14: =ApparentSets!G48 -> 3.841484191 | BA14: =ApparentSets!H48 -> 3.027024697 | BB14: =ApparentSets!I48 -> 4.252859051 | BC14: =ApparentSets!J48 -> 4.456852033 | BE14: =ApparentSets!L48 -> 3.919365682 | BF14: =ApparentSets!M48 -> 3.094704046 | BG14: =ApparentSets!N48 -> 4.106841216 | BH14: =ApparentSets!O48 -> 4.520921625
A15: 80 | B15: 0.1 | C15: 0.2 | D15: 0.3 | E15: 0.4 | F15: 0.5 | G15: 0.6 | H15: 0.7 | I15: 0.8 | J15: 0.9 | K15: 1 | L15: 1.1 | M15: 1.2 | N15: 1.3 | O15: 1.4 | P15: 1.5 | Q15: 1.6 | R15: 1.7 | S15: 1.8 | T15: 1.9 | U15: 2 | V15: 2.1 | W15: 2.2 | X15: 2.3 | Y15: 2.4 | Z15: 2.5 | AA15: 2.6 | AB15: 2.7 | AC15: 2.8 | AD15: 2.9 | AE15: 3 | AF15: 3.1 | AG15: 3.2 | AH15: 3.3 | AI15: 3.4 | AJ15: 3.5 | AK15: 3.6 | AL15: 3.7 | AM15: 3.8 | AN15: 3.9 | AO15: 4 | AP15: 4.1 | AQ15: 4.2 | AR15: 4.3 | AS15: 4.4 | AT15: 4.5 | AU15: =AU14 -> 4.6 | AV15: 4.7 | AW15: 4.8 | AY15: =ApparentSets!C49 -> 3.64063671 | AZ15: =ApparentSets!G49 -> 3.87855902 | BA15: =ApparentSets!H49 -> 3.014039765 | BB15: =ApparentSets!I49 -> 4.355088567 | BC15: =ApparentSets!J49 -> 4.476806022 | BE15: =ApparentSets!L49 -> 3.952510166 | BF15: =ApparentSets!M49 -> 3.079431545 | BG15: =ApparentSets!N49 -> 4.207049613 | BH15: =ApparentSets!O49 -> 4.535251094
A16: 90 | B16: 0.1 | C16: 0.2 | D16: 0.3 | E16: 0.4 | F16: 0.5 | G16: 0.6 | H16: 0.7 | I16: 0.8 | J16: 0.9 | K16: 1 | L16: 1.1 | M16: 1.2 | N16: 1.3 | O16: 1.4 | P16: 1.5 | Q16: 1.6 | R16: 1.7 | S16: 1.8 | T16: 1.9 | U16: 2 | V16: 2.1 | W16: 2.2 | X16: 2.3 | Y16: 2.4 | Z16: 2.5 | AA16: 2.6 | AB16: 2.7 | AC16: 2.8 | AD16: 2.9 | AE16: 3 | AF16: 3.1 | AG16: 3.2 | AH16: 3.3 | AI16: 3.4 | AJ16: 3.5 | AK16: 3.6 | AL16: 3.7 | AM16: 3.8 | AN16: 3.9 | AO16: 4 | AP16: 4.1 | AQ16: 4.2 | AR16: 4.3 | AS16: 4.4 | AT16: 4.5 | AU16: =AU15 -> 4.6 | AV16: 4.7 | AW16: 4.8 | AY16: =ApparentSets!C50 -> 3.87312638 | AZ16: =ApparentSets!G50 -> 3.894369478 | BA16: =ApparentSets!H50 -> 3.010682389 | BB16: =ApparentSets!I50 -> 4.36130172 | BC16: =ApparentSets!J50 -> 4.459758811 | BE16: =ApparentSets!L50 -> 3.944725101 | BF16: =ApparentSets!M50 -> 3.059720481 | BG16: =ApparentSets!N50 -> 4.250697635 | BH16: =ApparentSets!O50 -> 4.495567431
A17: 100 | B17: 0.1 | C17: 0.2 | D17: 0.3 | E17: 0.4 | F17: 0.5 | G17: 0.6 | H17: 0.7 | I17: 0.8 | J17: 0.9 | K17: 1 | L17: 1.1 | M17: 1.2 | N17: 1.3 | O17: 1.4 | P17: 1.5 | Q17: 1.6 | R17: 1.7 | S17: 1.8 | T17: 1.9 | U17: 2 | V17: 2.1 | W17: 2.2 | X17: 2.3 | Y17: 2.4 | Z17: 2.5 | AA17: 2.6 | AB17: 2.7 | AC17: 2.8 | AD17: 2.9 | AE17: 3 | AF17: 3.1 | AG17: 3.2 | AH17: 3.3 | AI17: 3.4 | AJ17: 3.5 | AK17: 3.6 | AL17: 3.7 | AM17: 3.8 | AN17: 3.9 | AO17: 4 | AP17: 4.1 | AQ17: 4.2 | AR17: 4.3 | AS17: 4.4 | AT17: 4.5 | AU17: =AU16 -> 4.6 | AV17: 4.7 | AW17: 4.8 | AY17: =ApparentSets!C51 -> 3.987933066 | AZ17: =ApparentSets!G51 -> 3.920488096 | BA17: =ApparentSets!H51 -> 3.034698997 | BB17: =ApparentSets!I51 -> 4.297683471 | BC17: =ApparentSets!J51 -> 4.429883829 | BE17: =ApparentSets!L51 -> 3.942217015 | BF17: =ApparentSets!M51 -> 3.060505506 | BG17: =ApparentSets!N51 -> 4.24324576 | BH17: =ApparentSets!O51 -> 4.441711367
A18: 110 | B18: 0.1 | C18: 0.2 | D18: 0.3 | E18: 0.4 | F18: 0.5 | G18: 0.6 | H18: 0.7 | I18: 0.8 | J18: 0.9 | K18: 1 | L18: 1.1 | M18: 1.2 | N18: 1.3 | O18: 1.4 | P18: 1.5 | Q18: 1.6 | R18: 1.7 | S18: 1.8 | T18: 1.9 | U18: 2 | V18: 2.1 | W18: 2.2 | X18: 2.3 | Y18: 2.4 | Z18: 2.5 | AA18: 2.6 | AB18: 2.7 | AC18: 2.8 | AD18: 2.9 | AE18: 3 | AF18: 3.1 | AG18: 3.2 | AH18: 3.3 | AI18: 3.4 | AJ18: 3.5 | AK18: 3.6 | AL18: 3.7 | AM18: 3.8 | AN18: 3.9 | AO18: 4 | AP18: 4.1 | AQ18: 4.2 | AR18: 4.3 | AS18: 4.4 | AT18: 4.5 | AU18: =AU17 -> 4.6 | AV18: 4.7 | AW18: 4.8 | AY18: =ApparentSets!C52 -> 3.981568422 | AZ18: =ApparentSets!G52 -> 3.981568422 | BA18: =ApparentSets!H52 -> 3.099178172 | BB18: =ApparentSets!I52 -> 4.181312664 | BC18: =ApparentSets!J52 -> 4.40280074 | BE18: =ApparentSets!L52 -> 3.981568422 | BF18: =ApparentSets!M52 -> 3.099178172 | BG18: =ApparentSets!N52 -> 4.181312664 | BH18: =ApparentSets!O52 -> 4.40280074
A19: 120 | B19: 0.1 | C19: 0.2 | D19: 0.3 | E19: 0.4 | F19: 0.5 | G19: 0.6 | H19: 0.7 | I19: 0.8 | J19: 0.9 | K19: 1 | L19: 1.1 | M19: 1.2 | N19: 1.3 | O19: 1.4 | P19: 1.5 | Q19: 1.6 | R19: 1.7 | S19: 1.8 | T19: 1.9 | U19: 2 | V19: 2.1 | W19: 2.2 | X19: 2.3 | Y19: 2.4 | Z19: 2.5 | AA19: 2.6 | AB19: 2.7 | AC19: 2.8 | AD19: 2.9 | AE19: 3 | AF19: 3.1 | AG19: 3.2 | AH19: 3.3 | AI19: 3.4 | AJ19: 3.5 | AK19: 3.6 | AL19: 3.7 | AM19: 3.8 | AN19: 3.9 | AO19: 4 | AP19: 4.1 | AQ19: 4.2 | AR19: 4.3 | AS19: 4.4 | AT19: 4.5 | AU19: =AU18 -> 4.6 | AV19: 4.7 | AW19: 4.8 | AY19: =ApparentSets!C53 -> 3.854225838 | AZ19: =ApparentSets!G53 -> 4.082630834 | BA19: =ApparentSets!H53 -> 3.203699247 | BB19: =ApparentSets!I53 -> 4.015575314 | BC19: =ApparentSets!J53 -> 4.373745675 | BE19: =ApparentSets!L53 -> 4.074330284 | BF19: =ApparentSets!M53 -> 3.178755403 | BG19: =ApparentSets!N53 -> 4.052288137 | BH19: =ApparentSets!O53 -> 4.37946853
A20: 130 | B20: 0.1 | C20: 0.2 | D20: 0.3 | E20: 0.4 | F20: 0.5 | G20: 0.6 | H20: 0.7 | I20: 0.8 | J20: 0.9 | K20: 1 | L20: 1.1 | M20: 1.2 | N20: 1.3 | O20: 1.4 | P20: 1.5 | Q20: 1.6 | R20: 1.7 | S20: 1.8 | T20: 1.9 | U20: 2 | V20: 2.1 | W20: 2.2 | X20: 2.3 | Y20: 2.4 | Z20: 2.5 | AA20: 2.6 | AB20: 2.7 | AC20: 2.8 | AD20: 2.9 | AE20: 3 | AF20: 3.1 | AG20: 3.2 | AH20: 3.3 | AI20: 3.4 | AJ20: 3.5 | AK20: 3.6 | AL20: 3.7 | AM20: 3.8 | AN20: 3.9 | AO20: 4 | AP20: 4.1 | AQ20: 4.2 | AR20: 4.3 | AS20: 4.4 | AT20: 4.5 | AU20: =AU19 -> 4.6 | AV20: 4.7 | AW20: 4.8 | AY20: =ApparentSets!C54 -> 3.609774551 | AZ20: =ApparentSets!G54 -> 4.134059075 | BA20: =ApparentSets!H54 -> 3.280570349 | BB20: =ApparentSets!I54 -> 3.778171656 | BC20: =ApparentSets!J54 -> 4.269400411 | BE20: =ApparentSets!L54 -> 4.127613872 | BF20: =ApparentSets!M54 -> 3.247103467 | BG20: =ApparentSets!N54 -> 3.817631501 | BH20: =ApparentSets!O54 -> 4.282064346
A21: 140 | B21: 0.1 | C21: 0.2 | D21: 0.3 | E21: 0.4 | F21: 0.5 | G21: 0.6 | H21: 0.7 | I21: 0.8 | J21: 0.9 | K21: 1 | L21: 1.1 | M21: 1.2 | N21: 1.3 | O21: 1.4 | P21: 1.5 | Q21: 1.6 | R21: 1.7 | S21: 1.8 | T21: 1.9 | U21: 2 | V21: 2.1 | W21: 2.2 | X21: 2.3 | Y21: 2.4 | Z21: 2.5 | AA21: 2.6 | AB21: 2.7 | AC21: 2.8 | AD21: 2.9 | AE21: 3 | AF21: 3.1 | AG21: 3.2 | AH21: 3.3 | AI21: 3.4 | AJ21: 3.5 | AK21: 3.6 | AL21: 3.7 | AM21: 3.8 | AN21: 3.9 | AO21: 4 | AP21: 4.1 | AQ21: 4.2 | AR21: 4.3 | AS21: 4.4 | AT21: 4.5 | AU21: =AU20 -> 4.6 | AV21: 4.7 | AW21: 4.8 | AY21: =ApparentSets!C55 -> 3.255642091 | AZ21: =ApparentSets!G55 -> 4.000004297 | BA21: =ApparentSets!H55 -> 3.23123748 | BB21: =ApparentSets!I55 -> 3.445499389 | BC21: =ApparentSets!J55 -> 4.000004297 | BE21: =ApparentSets!L55 -> 4.000004297 | BF21: =ApparentSets!M55 -> 3.23123748 | BG21: =ApparentSets!N55 -> 3.445499389 | BH21: =ApparentSets!O55 -> 4.000004297
A22: 150 | B22: 0.1 | C22: 0.2 | D22: 0.3 | E22: 0.4 | F22: 0.5 | G22: =G21 -> 0.6 | H22: 0.7 | I22: 0.8 | J22: 0.9 | K22: 1 | L22: 1.1 | M22: 1.2 | N22: 1.3 | O22: 1.4 | P22: 1.5 | Q22: 1.6 | R22: 1.7 | S22: 1.8 | T22: 1.9 | U22: 2 | V22: 2.1 | W22: 2.2 | X22: 2.3 | Y22: 2.4 | Z22: 2.5 | AA22: 2.6 | AB22: 2.7 | AC22: 2.8 | AD22: 2.9 | AE22: 3 | AF22: 3.1 | AG22: 3.2 | AH22: 3.3 | AI22: 3.4 | AJ22: 3.5 | AK22: 3.6 | AL22: 3.7 | AM22: 3.8 | AN22: 3.9 | AO22: 4 | AP22: 4.1 | AQ22: 4.2 | AR22: 4.3 | AS22: 4.4 | AT22: 4.5 | AU22: =AU21 -> 4.6 | AV22: 4.7 | AW22: 4.8 | AY22: =ApparentSets!C56 -> 2.802588594 | AZ22: =ApparentSets!G56 -> 3.562216213 | BA22: =ApparentSets!H56 -> 2.962547186 | BB22: =ApparentSets!I56 -> 3.001832739 | BC22: =ApparentSets!J56 -> 3.503762898 | BE22: =ApparentSets!L56 -> 3.566298655 | BF22: =ApparentSets!M56 -> 3.039722759 | BG22: =ApparentSets!N56 -> 2.946790696 | BH22: =ApparentSets!O56 -> 3.471161497
A23: 160 | B23: 0.1 | C23: 0.2 | D23: 0.3 | E23: 0.4 | F23: 0.5 | G23: 0.6 | H23: 0.7 | I23: 0.8 | J23: 0.9 | K23: 1 | L23: 1.1 | M23: 1.2 | N23: 1.3 | O23: 1.4 | P23: 1.5 | Q23: 1.6 | R23: 1.7 | S23: 1.8 | T23: 1.9 | U23: 2 | V23: 2.1 | W23: 2.2 | X23: 2.3 | Y23: 2.4 | Z23: 2.5 | AA23: 2.6 | AB23: 2.7 | AC23: 2.8 | AD23: 2.9 | AE23: 3 | AF23: 3.1 | AG23: 3.2 | AH23: 3.3 | AI23: 3.4 | AJ23: 3.5 | AK23: 3.6 | AL23: =AL22 -> 3.7 | AM23: 3.8 | AN23: 3.9 | AO23: 4 | AP23: 4.1 | AQ23: 4.2 | AR23: 4.3 | AS23: 4.4 | AT23: 4.5 | AU23: =AU22 -> 4.6 | AV23: 4.7 | AW23: 4.8 | AY23: =ApparentSets!C57 -> 2.264379861 | AZ23: =ApparentSets!G57 -> 2.853053436 | BA23: =ApparentSets!H57 -> 2.472930819 | BB23: =ApparentSets!I57 -> 2.443679698 | BC23: =ApparentSets!J57 -> 2.804176798 | BE23: =ApparentSets!L57 -> 2.856857024 | BF23: =ApparentSets!M57 -> 2.579826912 | BG23: =ApparentSets!N57 -> 2.393581026 | BH23: =ApparentSets!O57 -> 2.763590085
A24: 170 | B24: 0.1 | C24: 0.2 | D24: 0.3 | E24: 0.4 | F24: 0.5 | G24: 0.6 | H24: 0.7 | I24: 0.8 | J24: 0.9 | K24: 1 | L24: 1.1 | M24: 1.2 | N24: 1.3 | O24: 1.4 | P24: 1.5 | Q24: 1.6 | R24: 1.7 | S24: 1.8 | T24: 1.9 | U24: 2 | V24: 2.1 | W24: 2.2 | X24: 2.3 | Y24: 2.4 | Z24: 2.5 | AA24: 2.6 | AB24: 2.7 | AC24: 2.8 | AD24: 2.9 | AE24: 3 | AF24: 3.1 | AG24: 3.2 | AH24: 3.3 | AI24: 3.4 | AJ24: 3.5 | AK24: 3.6 | AL24: 3.7 | AM24: 3.8 | AN24: 3.9 | AO24: 4 | AP24: 4.1 | AQ24: 4.2 | AR24: 4.3 | AS24: 4.4 | AT24: 4.5 | AU24: =AU23 -> 4.6 | AV24: 4.7 | AW24: 4.8 | AY24: =ApparentSets!C58 -> 1.657369091 | AZ24: =ApparentSets!G58 -> 1.968949018 | BA24: =ApparentSets!H58 -> 1.803352197 | BB24: =ApparentSets!I58 -> 1.773674158 | BC24: =ApparentSets!J58 -> 1.952898143 | BE24: =ApparentSets!L58 -> 1.970242889 | BF24: =ApparentSets!M58 -> 1.851783462 | BG24: =ApparentSets!N58 -> 1.780038963 | BH24: =ApparentSets!O58 -> 1.93724574
A25: 180 | B25: =B24 -> 0.1 | C25: 0.2 | D25: 0.3 | E25: 0.4 | F25: 0.5 | G25: 0.6 | H25: 0.7 | I25: 0.8 | J25: 0.9 | K25: 1 | L25: 1.1 | M25: 1.2 | N25: 1.3 | O25: 1.4 | P25: 1.5 | Q25: 1.6 | R25: 1.7 | S25: 1.8 | T25: 1.9 | U25: 2 | V25: 2.1 | W25: =W24 -> 2.2 | X25: 2.3 | Y25: 2.4 | Z25: 2.5 | AA25: 2.6 | AB25: 2.7 | AC25: 2.8 | AD25: 2.9 | AE25: 3 | AF25: 3.1 | AG25: 3.2 | AH25: 3.3 | AI25: 3.4 | AJ25: 3.5 | AK25: 3.6 | AL25: 3.7 | AM25: 3.8 | AN25: 3.9 | AO25: 4 | AP25: 4.1 | AQ25: 4.2 | AR25: 4.3 | AS25: 4.4 | AT25: 4.5 | AU25: =AU24 -> 4.6 | AV25: 4.7 | AW25: 4.8 | AY25: =ApparentSets!C59 -> 1 | AZ25: =ApparentSets!G59 -> 1 | BA25: =ApparentSets!H59 -> 1 | BB25: =ApparentSets!I59 -> 1 | BC25: =ApparentSets!J59 -> 1 | BE25: =ApparentSets!L59 -> 1 | BF25: =ApparentSets!M59 -> 1 | BG25: =ApparentSets!N59 -> 1 | BH25: =ApparentSets!O59 -> 1
A26: 190 | B26: 0.1 | C26: 0.2 | D26: 0.3 | E26: 0.4 | F26: 0.5 | G26: 0.6 | H26: 0.7 | I26: 0.8 | J26: 0.9 | K26: 1 | L26: 1.1 | M26: 1.2 | N26: 1.3 | O26: 1.4 | P26: 1.5 | Q26: 1.6 | R26: 1.7 | S26: 1.8 | T26: 1.9 | U26: 2 | V26: 2.1 | W26: 2.2 | X26: 2.3 | Y26: 2.4 | Z26: 2.5 | AA26: 2.6 | AB26: 2.7 | AC26: 2.8 | AD26: 2.9 | AE26: 3 | AF26: 3.1 | AG26: 3.2 | AH26: 3.3 | AI26: 3.4 | AJ26: 3.5 | AK26: 3.6 | AL26: 3.7 | AM26: 3.8 | AN26: 3.9 | AO26: 4 | AP26: 4.1 | AQ26: 4.2 | AR26: 4.3 | AS26: 4.4 | AT26: 4.5 | AU26: =AU25 -> 4.6 | AV26: 4.7 | AW26: 4.8
A27: 200 | B27: 0.1 | C27: 0.2 | D27: 0.3 | E27: 0.4 | F27: 0.5 | G27: 0.6 | H27: 0.7 | I27: 0.8 | J27: 0.9 | K27: 1 | L27: 1.1 | M27: 1.2 | N27: 1.3 | O27: 1.4 | P27: 1.5 | Q27: 1.6 | R27: 1.7 | S27: 1.8 | T27: 1.9 | U27: 2 | V27: 2.1 | W27: 2.2 | X27: 2.3 | Y27: 2.4 | Z27: 2.5 | AA27: 2.6 | AB27: 2.7 | AC27: 2.8 | AD27: 2.9 | AE27: 3 | AF27: 3.1 | AG27: 3.2 | AH27: 3.3 | AI27: 3.4 | AJ27: 3.5 | AK27: 3.6 | AL27: 3.7 | AM27: 3.8 | AN27: 3.9 | AO27: 4 | AP27: 4.1 | AQ27: 4.2 | AR27: 4.3 | AS27: 4.4 | AT27: 4.5 | AU27: =AU26 -> 4.6 | AV27: 4.7 | AW27: 4.8
A28: 210 | B28: 0.1 | C28: 0.2 | D28: 0.3 | E28: 0.4 | F28: 0.5 | G28: 0.6 | H28: 0.7 | I28: 0.8 | J28: 0.9 | K28: 1 | L28: 1.1 | M28: 1.2 | N28: 1.3 | O28: 1.4 | P28: 1.5 | Q28: 1.6 | R28: 1.7 | S28: 1.8 | T28: 1.9 | U28: 2 | V28: 2.1 | W28: 2.2 | X28: 2.3 | Y28: 2.4 | Z28: 2.5 | AA28: 2.6 | AB28: 2.7 | AC28: 2.8 | AD28: 2.9 | AE28: 3 | AF28: 3.1 | AG28: 3.2 | AH28: 3.3 | AI28: 3.4 | AJ28: 3.5 | AK28: 3.6 | AL28: 3.7 | AM28: 3.8 | AN28: 3.9 | AO28: 4 | AP28: 4.1 | AQ28: 4.2 | AR28: 4.3 | AS28: 4.4 | AT28: 4.5 | AU28: =AU27 -> 4.6 | AV28: 4.7 | AW28: 4.8
A29: 220 | B29: 0.1 | C29: 0.2 | D29: 0.3 | E29: 0.4 | F29: 0.5 | G29: 0.6 | H29: 0.7 | I29: 0.8 | J29: 0.9 | K29: 1 | L29: 1.1 | M29: 1.2 | N29: 1.3 | O29: 1.4 | P29: 1.5 | Q29: 1.6 | R29: 1.7 | S29: 1.8 | T29: 1.9 | U29: 2 | V29: 2.1 | W29: 2.2 | X29: 2.3 | Y29: 2.4 | Z29: 2.5 | AA29: 2.6 | AB29: 2.7 | AC29: 2.8 | AD29: 2.9 | AE29: 3 | AF29: 3.1 | AG29: 3.2 | AH29: 3.3 | AI29: 3.4 | AJ29: 3.5 | AK29: 3.6 | AL29: 3.7 | AM29: 3.8 | AN29: 3.9 | AO29: 4 | AP29: 4.1 | AQ29: 4.2 | AR29: 4.3 | AS29: 4.4 | AT29: 4.5 | AU29: =AU28 -> 4.6 | AV29: 4.7 | AW29: 4.8
A30: 230 | B30: 0.1 | C30: 0.2 | D30: 0.3 | E30: 0.4 | F30: 0.5 | G30: 0.6 | H30: 0.7 | I30: 0.8 | J30: 0.9 | K30: 1 | L30: 1.1 | M30: 1.2 | N30: 1.3 | O30: 1.4 | P30: 1.5 | Q30: 1.6 | R30: 1.7 | S30: 1.8 | T30: 1.9 | U30: 2 | V30: 2.1 | W30: 2.2 | X30: 2.3 | Y30: 2.4 | Z30: 2.5 | AA30: 2.6 | AB30: 2.7 | AC30: 2.8 | AD30: 2.9 | AE30: 3 | AF30: 3.1 | AG30: 3.2 | AH30: 3.3 | AI30: 3.4 | AJ30: 3.5 | AK30: 3.6 | AL30: 3.7 | AM30: 3.8 | AN30: 3.9 | AO30: 4 | AP30: 4.1 | AQ30: 4.2 | AR30: 4.3 | AS30: 4.4 | AT30: 4.5 | AU30: =AU29 -> 4.6 | AV30: 4.7 | AW30: 4.8
A31: 240 | B31: 0.1 | C31: 0.2 | D31: 0.3 | E31: 0.4 | F31: 0.5 | G31: 0.6 | H31: 0.7 | I31: 0.8 | J31: 0.9 | K31: 1 | L31: 1.1 | M31: 1.2 | N31: 1.3 | O31: 1.4 | P31: 1.5 | Q31: 1.6 | R31: 1.7 | S31: 1.8 | T31: 1.9 | U31: 2 | V31: 2.1 | W31: 2.2 | X31: 2.3 | Y31: 2.4 | Z31: 2.5 | AA31: 2.6 | AB31: 2.7 | AC31: 2.8 | AD31: 2.9 | AE31: 3 | AF31: 3.1 | AG31: 3.2 | AH31: 3.3 | AI31: 3.4 | AJ31: 3.5 | AK31: 3.6 | AL31: 3.7 | AM31: 3.8 | AN31: 3.9 | AO31: 4 | AP31: 4.1 | AQ31: 4.2 | AR31: 4.3 | AS31: 4.4 | AT31: 4.5 | AU31: =AU30 -> 4.6 | AV31: 4.7 | AW31: 4.8
A32: 250 | B32: 0.1 | C32: 0.2 | D32: 0.3 | E32: 0.4 | F32: 0.5 | G32: 0.6 | H32: 0.7 | I32: 0.8 | J32: 0.9 | K32: 1 | L32: 1.1 | M32: 1.2 | N32: 1.3 | O32: 1.4 | P32: 1.5 | Q32: 1.6 | R32: 1.7 | S32: 1.8 | T32: 1.9 | U32: 2 | V32: 2.1 | W32: 2.2 | X32: 2.3 | Y32: 2.4 | Z32: 2.5 | AA32: 2.6 | AB32: 2.7 | AC32: 2.8 | AD32: 2.9 | AE32: 3 | AF32: 3.1 | AG32: 3.2 | AH32: 3.3 | AI32: 3.4 | AJ32: 3.5 | AK32: 3.6 | AL32: 3.7 | AM32: 3.8 | AN32: 3.9 | AO32: 4 | AP32: 4.1 | AQ32: 4.2 | AR32: 4.3 | AS32: 4.4 | AT32: 4.5 | AU32: =AU31 -> 4.6 | AV32: 4.7 | AW32: 4.8
A33: 260 | B33: 0.1 | C33: 0.2 | D33: 0.3 | E33: 0.4 | F33: 0.5 | G33: 0.6 | H33: 0.7 | I33: 0.8 | J33: 0.9 | K33: 1 | L33: 1.1 | M33: 1.2 | N33: 1.3 | O33: 1.4 | P33: 1.5 | Q33: 1.6 | R33: 1.7 | S33: 1.8 | T33: 1.9 | U33: 2 | V33: 2.1 | W33: 2.2 | X33: 2.3 | Y33: 2.4 | Z33: 2.5 | AA33: 2.6 | AB33: 2.7 | AC33: 2.8 | AD33: 2.9 | AE33: 3 | AF33: 3.1 | AG33: 3.2 | AH33: 3.3 | AI33: 3.4 | AJ33: 3.5 | AK33: 3.6 | AL33: 3.7 | AM33: 3.8 | AN33: 3.9 | AO33: 4 | AP33: 4.1 | AQ33: 4.2 | AR33: 4.3 | AS33: 4.4 | AT33: 4.5 | AU33: =AU32 -> 4.6 | AV33: 4.7 | AW33: 4.8
A34: 270 | B34: 0.1 | C34: 0.2 | D34: 0.3 | E34: 0.4 | F34: 0.5 | G34: 0.6 | H34: 0.7 | I34: 0.8 | J34: 0.9 | K34: 1 | L34: 1.1 | M34: 1.2 | N34: 1.3 | O34: 1.4 | P34: 1.5 | Q34: 1.6 | R34: 1.7 | S34: 1.8 | T34: 1.9 | U34: 2 | V34: 2.1 | W34: 2.2 | X34: 2.3 | Y34: 2.4 | Z34: 2.5 | AA34: 2.6 | AB34: 2.7 | AC34: 2.8 | AD34: 2.9 | AE34: 3 | AF34: 3.1 | AG34: 3.2 | AH34: 3.3 | AI34: 3.4 | AJ34: 3.5 | AK34: 3.6 | AL34: 3.7 | AM34: 3.8 | AN34: 3.9 | AO34: 4 | AP34: 4.1 | AQ34: 4.2 | AR34: 4.3 | AS34: 4.4 | AT34: 4.5 | AU34: =AU33 -> 4.6 | AV34: 4.7 | AW34: 4.8
A35: 280 | B35: 0.1 | C35: 0.2 | D35: 0.3 | E35: 0.4 | F35: 0.5 | G35: 0.6 | H35: 0.7 | I35: 0.8 | J35: 0.9 | K35: 1 | L35: 1.1 | M35: 1.2 | N35: 1.3 | O35: 1.4 | P35: 1.5 | Q35: 1.6 | R35: 1.7 | S35: 1.8 | T35: 1.9 | U35: 2 | V35: 2.1 | W35: 2.2 | X35: 2.3 | Y35: 2.4 | Z35: 2.5 | AA35: 2.6 | AB35: 2.7 | AC35: 2.8 | AD35: 2.9 | AE35: 3 | AF35: 3.1 | AG35: 3.2 | AH35: 3.3 | AI35: 3.4 | AJ35: 3.5 | AK35: 3.6 | AL35: 3.7 | AM35: 3.8 | AN35: 3.9 | AO35: 4 | AP35: 4.1 | AQ35: 4.2 | AR35: 4.3 | AS35: 4.4 | AT35: 4.5 | AU35: =AU34 -> 4.6 | AV35: 4.7 | AW35: 4.8
A36: 290 | B36: 0.1 | C36: 0.2 | D36: 0.3 | E36: 0.4 | F36: 0.5 | G36: 0.6 | H36: 0.7 | I36: 0.8 | J36: 0.9 | K36: 1 | L36: 1.1 | M36: 1.2 | N36: 1.3 | O36: 1.4 | P36: 1.5 | Q36: 1.6 | R36: 1.7 | S36: 1.8 | T36: 1.9 | U36: 2 | V36: 2.1 | W36: 2.2 | X36: 2.3 | Y36: 2.4 | Z36: 2.5 | AA36: 2.6 | AB36: 2.7 | AC36: 2.8 | AD36: 2.9 | AE36: 3 | AF36: 3.1 | AG36: 3.2 | AH36: 3.3 | AI36: 3.4 | AJ36: 3.5 | AK36: 3.6 | AL36: 3.7 | AM36: 3.8 | AN36: 3.9 | AO36: 4 | AP36: 4.1 | AQ36: 4.2 | AR36: 4.3 | AS36: 4.4 | AT36: 4.5 | AU36: =AU35 -> 4.6 | AV36: 4.7 | AW36: 4.8
A37: 300 | B37: 0.1 | C37: 0.2 | D37: 0.3 | E37: 0.4 | F37: 0.5 | G37: 0.6 | H37: 0.7 | I37: 0.8 | J37: 0.9 | K37: 1 | L37: 1.1 | M37: 1.2 | N37: 1.3 | O37: 1.4 | P37: 1.5 | Q37: 1.6 | R37: 1.7 | S37: 1.8 | T37: 1.9 | U37: 2 | V37: 2.1 | W37: 2.2 | X37: 2.3 | Y37: 2.4 | Z37: 2.5 | AA37: 2.6 | AB37: 2.7 | AC37: 2.8 | AD37: 2.9 | AE37: 3 | AF37: 3.1 | AG37: 3.2 | AH37: 3.3 | AI37: 3.4 | AJ37: 3.5 | AK37: 3.6 | AL37: 3.7 | AM37: 3.8 | AN37: 3.9 | AO37: 4 | AP37: 4.1 | AQ37: 4.2 | AR37: 4.3 | AS37: 4.4 | AT37: 4.5 | AU37: =AU36 -> 4.6 | AV37: 4.7 | AW37: 4.8
A38: 310 | B38: 0.1 | C38: 0.2 | D38: 0.3 | E38: 0.4 | F38: 0.5 | G38: 0.6 | H38: 0.7 | I38: 0.8 | J38: 0.9 | K38: 1 | L38: 1.1 | M38: 1.2 | N38: 1.3 | O38: 1.4 | P38: 1.5 | Q38: 1.6 | R38: =R37 -> 1.7 | S38: 1.8 | T38: 1.9 | U38: 2 | V38: 2.1 | W38: 2.2 | X38: 2.3 | Y38: 2.4 | Z38: 2.5 | AA38: 2.6 | AB38: 2.7 | AC38: 2.8 | AD38: 2.9 | AE38: 3 | AF38: 3.1 | AG38: 3.2 | AH38: 3.3 | AI38: 3.4 | AJ38: 3.5 | AK38: 3.6 | AL38: 3.7 | AM38: 3.8 | AN38: 3.9 | AO38: 4 | AP38: 4.1 | AQ38: 4.2 | AR38: 4.3 | AS38: 4.4 | AT38: 4.5 | AU38: =AU37 -> 4.6 | AV38: 4.7 | AW38: 4.8
A39: 320 | B39: 0.1 | C39: 0.2 | D39: 0.3 | E39: 0.4 | F39: 0.5 | G39: 0.6 | H39: 0.7 | I39: 0.8 | J39: 0.9 | K39: 1 | L39: 1.1 | M39: 1.2 | N39: 1.3 | O39: 1.4 | P39: 1.5 | Q39: 1.6 | R39: 1.7 | S39: 1.8 | T39: 1.9 | U39: 2 | V39: 2.1 | W39: 2.2 | X39: 2.3 | Y39: 2.4 | Z39: 2.5 | AA39: 2.6 | AB39: 2.7 | AC39: 2.8 | AD39: 2.9 | AE39: 3 | AF39: 3.1 | AG39: 3.2 | AH39: 3.3 | AI39: 3.4 | AJ39: 3.5 | AK39: 3.6 | AL39: 3.7 | AM39: =AM38 -> 3.8 | AN39: 3.9 | AO39: 4 | AP39: 4.1 | AQ39: 4.2 | AR39: 4.3 | AS39: 4.4 | AT39: 4.5 | AU39: =AU38 -> 4.6 | AV39: 4.7 | AW39: 4.8
A40: 330 | B40: 0.1 | C40: 0.2 | D40: 0.3 | E40: 0.4 | F40: 0.5 | G40: 0.6 | H40: 0.7 | I40: 0.8 | J40: 0.9 | K40: 1 | L40: 1.1 | M40: 1.2 | N40: 1.3 | O40: 1.4 | P40: 1.5 | Q40: 1.6 | R40: 1.7 | S40: 1.8 | T40: 1.9 | U40: 2 | V40: 2.1 | W40: 2.2 | X40: 2.3 | Y40: 2.4 | Z40: 2.5 | AA40: 2.6 | AB40: 2.7 | AC40: 2.8 | AD40: 2.9 | AE40: 3 | AF40: 3.1 | AG40: 3.2 | AH40: 3.3 | AI40: 3.4 | AJ40: 3.5 | AK40: 3.6 | AL40: 3.7 | AM40: 3.8 | AN40: 3.9 | AO40: 4 | AP40: 4.1 | AQ40: 4.2 | AR40: 4.3 | AS40: 4.4 | AT40: 4.5 | AU40: =AU39 -> 4.6 | AV40: 4.7 | AW40: 4.8
A41: 340 | B41: =B40 -> 0.1 | C41: 0.2 | D41: 0.3 | E41: 0.4 | F41: 0.5 | G41: 0.6 | H41: 0.7 | I41: 0.8 | J41: 0.9 | K41: 1 | L41: 1.1 | M41: 1.2 | N41: 1.3 | O41: 1.4 | P41: 1.5 | Q41: 1.6 | R41: 1.7 | S41: 1.8 | T41: 1.9 | U41: 2 | V41: 2.1 | W41: 2.2 | X41: 2.3 | Y41: 2.4 | Z41: 2.5 | AA41: 2.6 | AB41: 2.7 | AC41: 2.8 | AD41: 2.9 | AE41: 3 | AF41: 3.1 | AG41: 3.2 | AH41: =AH40 -> 3.3 | AI41: 3.4 | AJ41: 3.5 | AK41: 3.6 | AL41: 3.7 | AM41: 3.8 | AN41: 3.9 | AO41: 4 | AP41: 4.1 | AQ41: 4.2 | AR41: 4.3 | AS41: 4.4 | AT41: 4.5 | AU41: =AU40 -> 4.6 | AV41: 4.7 | AW41: 4.8
A42: 350 | B42: 0.1 | C42: 0.2 | D42: 0.3 | E42: 0.4 | F42: 0.5 | G42: 0.6 | H42: 0.7 | I42: 0.8 | J42: 0.9 | K42: 1 | L42: 1.1 | M42: 1.2 | N42: 1.3 | O42: 1.4 | P42: 1.5 | Q42: 1.6 | R42: 1.7 | S42: 1.8 | T42: 1.9 | U42: 2 | V42: 2.1 | W42: 2.2 | X42: 2.3 | Y42: 2.4 | Z42: 2.5 | AA42: 2.6 | AB42: 2.7 | AC42: 2.8 | AD42: 2.9 | AE42: 3 | AF42: 3.1 | AG42: 3.2 | AH42: 3.3 | AI42: 3.4 | AJ42: 3.5 | AK42: 3.6 | AL42: 3.7 | AM42: 3.8 | AN42: 3.9 | AO42: 4 | AP42: 4.1 | AQ42: 4.2 | AR42: 4.3 | AS42: 4.4 | AT42: 4.5 | AU42: =AU41 -> 4.6 | AV42: 4.7 | AW42: 4.8

Sheet PolarDiagram

Sheet PolarData7pt
A5: only for | AZ5: 5-pt interpolation | BE5: 7-pt interpolation
A6: gridding | AY6: =ApparentSets!C41 -> X | AZ6: =ApparentSets!G41 -> O | BA6: =ApparentSets!H41 -> F | BB6: =ApparentSets!I41 -> L | BC6: =ApparentSets!J41 -> C | BE6: =ApparentSets!L41 -> O | BF6: =ApparentSets!M41 -> F | BG6: =ApparentSets!N41 -> L | BH6: =ApparentSets!O41 -> C
A7: 0 | B7: 0.1 | C7: =B7+0.1 -> 0.2 | D7: 0.3 | E7: 0.4 | F7: 0.5 | G7: 0.6 | H7: 0.7 | I7: 0.8 | J7: 0.9 | K7: 1 | L7: 1.1 | M7: 1.2 | N7: 1.3 | O7: 1.4 | P7: 1.5 | Q7: 1.6 | R7: 1.7 | S7: 1.8 | T7: 1.9 | U7: 2 | V7: 2.1 | W7: 2.2 | X7: 2.3 | Y7: 2.4 | Z7: 2.5 | AA7: 2.6 | AB7: 2.7 | AC7: 2.8 | AD7: 2.9 | AE7: 3 | AF7: 3.1 | AG7: 3.2 | AH7: 3.3 | AI7: 3.4 | AJ7: 3.5 | AK7: 3.6 | AL7: 3.7 | AM7: 3.8 | AN7: 3.9 | AO7: 4 | AP7: =AO7+0.1 -> 4.1 | AQ7: 4.2 | AR7: 4.3 | AS7: 4.4 | AT7: 4.5 | AU7: 4.6 | AV7: 4.7 | AW7: 4.8 | AY7: -1 | AZ7: -1 | BA7: -1 | BB7: -1 | BC7: -1 | BE7: -1 | BF7: -1 | BG7: -1 | BH7: -1
A8: 10 | B8: =B7 -> 0.1 | C8: =C7 -> 0.2 | D8: =D7 -> 0.3 | E8: 0.4 | F8: 0.5 | G8: 0.6 | H8: 0.7 | I8: 0.8 | J8: 0.9 | K8: 1 | L8: 1.1 | M8: 1.2 | N8: 1.3 | O8: 1.4 | P8: 1.5 | Q8: 1.6 | R8: 1.7 | S8: 1.8 | T8: 1.9 | U8: 2 | V8: =V7 -> 2.1 | W8: =W7 -> 2.2 | X8: =X7 -> 2.3 | Y8: 2.4 | Z8: 2.5 | AA8: 2.6 | AB8: 2.7 | AC8: 2.8 | AD8: 2.9 | AE8: 3 | AF8: 3.1 | AG8: 3.2 | AH8: 3.3 | AI8: 3.4 | AJ8: 3.5 | AK8: 3.6 | AL8: 3.7 | AM8: 3.8 | AN8: 3.9 | AO8: =AO7 -> 4 | AP8: =AP7 -> 4.1 | AQ8: 4.2 | AR8: 4.3 | AS8: 4.4 | AT8: 4.5 | AU8: 4.6 | AV8: 4.7 | AW8: 4.8 | AY8: =ApparentSets!C42 -> -0.3122464152 | AZ8: =ApparentSets!G42 -> 0.1192390609 | BA8: =ApparentSets!H42 -> 0.1941850722 | BB8: =ApparentSets!I42 -> 0.1053697898 | BC8: =ApparentSets!J42 -> 0.5535221419 | BE8: =ApparentSets!L42 -> 0.1158488079 | BF8: =ApparentSets!M42 -> 0.1893901732 | BG8: =ApparentSets!N42 -> 0.1107020872 | BH8: =ApparentSets!O42 -> 0.5492613351
A9: 20 | B9: =B8 -> 0.1 | C9: 0.2 | D9: 0.3 | E9: 0.4 | F9: 0.5 | G9: 0.6 | H9: 0.7 | I9: 0.8 | J9: 0.9 | K9: 1 | L9: 1.1 | M9: 1.2 | N9: 1.3 | O9: 1.4 | P9: 1.5 | Q9: 1.6 | R9: 1.7 | S9: 1.8 | T9: 1.9 | U9: 2 | V9: =V8 -> 2.1 | W9: 2.2 | X9: 2.3 | Y9: 2.4 | Z9: 2.5 | AA9: 2.6 | AB9: 2.7 | AC9: 2.8 | AD9: 2.9 | AE9: 3 | AF9: 3.1 | AG9: 3.2 | AH9: 3.3 | AI9: 3.4 | AJ9: 3.5 | AK9: 3.6 | AL9: 3.7 | AM9: 3.8 | AN9: 3.9 | AO9: =AO8 -> 4 | AP9: 4.1 | AQ9: 4.2 | AR9: 4.3 | AS9: 4.4 | AT9: 4.5 | AU9: 4.6 | AV9: 4.7 | AW9: 4.8 | AY9: =ApparentSets!C43 -> 0.384994619 | AZ9: =ApparentSets!G43 -> 1.227052074 | BA9: =ApparentSets!H43 -> 1.251610782 | BB9: =ApparentSets!I43 -> 1.183964028 | BC9: =ApparentSets!J43 -> 1.87513452 | BE9: =ApparentSets!L43 -> 1.21646163 | BF9: =ApparentSets!M43 -> 1.238147436 | BG9: =ApparentSets!N43 -> 1.200456102 | BH9: =ApparentSets!O43 -> 1.863538107
A10: 30 | B10: 0.1 | C10: 0.2 | D10: 0.3 | E10: 0.4 | F10: 0.5 | G10: 0.6 | H10: 0.7 | I10: 0.8 | J10: 0.9 | K10: 1 | L10: 1.1 | M10: 1.2 | N10: 1.3 | O10: 1.4 | P10: 1.5 | Q10: 1.6 | R10: 1.7 | S10: 1.8 | T10: 1.9 | U10: 2 | V10: 2.1 | W10: 2.2 | X10: 2.3 | Y10: 2.4 | Z10: 2.5 | AA10: 2.6 | AB10: 2.7 | AC10: 2.8 | AD10: 2.9 | AE10: 3 | AF10: 3.1 | AG10: 3.2 | AH10: 3.3 | AI10: 3.4 | AJ10: 3.5 | AK10: 3.6 | AL10: 3.7 | AM10: 3.8 | AN10: 3.9 | AO10: 4 | AP10: 4.1 | AQ10: 4.2 | AR10: 4.3 | AS10: 4.4 | AT10: 4.5 | AU10: 4.6 | AV10: 4.7 | AW10: 4.8 | AY10: =ApparentSets!C44 -> 1.070537786 | AZ10: =ApparentSets!G44 -> 2.225093313 | BA10: =ApparentSets!H44 -> 2.092710551 | BB10: =ApparentSets!I44 -> 2.172391751 | BC10: =ApparentSets!J44 -> 2.926880491 | BE10: =ApparentSets!L44 -> 2.212167708 | BF10: =ApparentSets!M44 -> 2.077942411 | BG10: =ApparentSets!N44 -> 2.192598773 | BH10: =ApparentSets!O44 -> 2.914235672
A11: 40 | B11: 0.1 | C11: 0.2 | D11: 0.3 | E11: 0.4 | F11: 0.5 | G11: 0.6 | H11: 0.7 | I11: 0.8 | J11: 0.9 | K11: 1 | L11: 1.1 | M11: 1.2 | N11: 1.3 | O11: 1.4 | P11: 1.5 | Q11: 1.6 | R11: 1.7 | S11: 1.8 | T11: 1.9 | U11: 2 | V11: 2.1 | W11: 2.2 | X11: 2.3 | Y11: 2.4 | Z11: 2.5 | AA11: 2.6 | AB11: 2.7 | AC11: 2.8 | AD11: 2.9 | AE11: 3 | AF11: 3.1 | AG11: 3.2 | AH11: 3.3 | AI11: 3.4 | AJ11: 3.5 | AK11: 3.6 | AL11: 3.7 | AM11: 3.8 | AN11: 3.9 | AO11: 4 | AP11: 4.1 | AQ11: 4.2 | AR11: 4.3 | AS11: 4.4 | AT11: 4.5 | AU11: 4.6 | AV11: 4.7 | AW11: 4.8 | AY11: =ApparentSets!C45 -> 1.723553205 | AZ11: =ApparentSets!G45 -> 2.999958459 | BA11: =ApparentSets!H45 -> 2.650650271 | BB11: =ApparentSets!I45 -> 2.999958459 | BC11: =ApparentSets!J45 -> 3.676411452 | BE11: =ApparentSets!L45 -> 2.999958459 | BF11: =ApparentSets!M45 -> 2.650650271 | BG11: =ApparentSets!N45 -> 2.999958459 | BH11: =ApparentSets!O45 -> 3.676411452
A12: 50 | B12: 0.1 | C12: 0.2 | D12: 0.3 | E12: 0.4 | F12: 0.5 | G12: 0.6 | H12: 0.7 | I12: 0.8 | J12: 0.9 | K12: 1 | L12: 1.1 | M12: 1.2 | N12: 1.3 | O12: 1.4 | P12: 1.5 | Q12: 1.6 | R12: 1.7 | S12: 1.8 | T12: 1.9 | U12: 2 | V12: 2.1 | W12: 2.2 | X12: 2.3 | Y12: 2.4 | Z12: 2.5 | AA12: 2.6 | AB12: 2.7 | AC12: 2.8 | AD12: 2.9 | AE12: 3 | AF12: 3.1 | AG12: 3.2 | AH12: 3.3 | AI12: 3.4 | AJ12: 3.5 | AK12: 3.6 | AL12: 3.7 | AM12: 3.8 | AN12: 3.9 | AO12: 4 | AP12: 4.1 | AQ12: 4.2 | AR12: 4.3 | AS12: 4.4 | AT12: 4.5 | AU12: 4.6 | AV12: 4.7 | AW12: 4.8 | AY12: =ApparentSets!C46 -> 2.324199332 | AZ12: =ApparentSets!G46 -> 3.48446291 | BA12: =ApparentSets!H46 -> 2.924498258 | BB12: =ApparentSets!I46 -> 3.613737739 | BC12: =ApparentSets!J46 -> 4.128433883 | BE12: =ApparentSets!L46 -> 3.514424156 | BF12: =ApparentSets!M46 -> 2.952849896 | BG12: =ApparentSets!N46 -> 3.563634378 | BH12: =ApparentSets!O46 -> 4.154303668
A13: 60 | B13: 0.1 | C13: 0.2 | D13: 0.3 | E13: 0.4 | F13: 0.5 | G13: 0.6 | H13: 0.7 | I13: 0.8 | J13: 0.9 | K13: 1 | L13: 1.1 | M13: 1.2 | N13: 1.3 | O13: 1.4 | P13: 1.5 | Q13: 1.6 | R13: 1.7 | S13: 1.8 | T13: 1.9 | U13: 2 | V13: 2.1 | W13: 2.2 | X13: 2.3 | Y13: 2.4 | Z13: 2.5 | AA13: 2.6 | AB13: 2.7 | AC13: 2.8 | AD13: 2.9 | AE13: 3 | AF13: 3.1 | AG13: 3.2 | AH13: 3.3 | AI13: 3.4 | AJ13: 3.5 | AK13: 3.6 | AL13: 3.7 | AM13: 3.8 | AN13: 3.9 | AO13: 4 | AP13: 4.1 | AQ13: 4.2 | AR13: 4.3 | AS13: 4.4 | AT13: 4.5 | AU13: 4.6 | AV13: 4.7 | AW13: 4.8 | AY13: =ApparentSets!C47 -> 2.854225838 | AZ13: =ApparentSets!G47 -> 3.734465713 | BA13: =ApparentSets!H47 -> 3.017186167 | BB13: =ApparentSets!I47 -> 4.019352194 | BC13: =ApparentSets!J47 -> 4.360837177 | BE13: =ApparentSets!L47 -> 3.795341422 | BF13: =ApparentSets!M47 -> 3.071527313 | BG13: =ApparentSets!N47 -> 3.911720074 | BH13: =ApparentSets!O47 -> 4.412037722
A14: 70 | B14: 0.1 | C14: 0.2 | D14: 0.3 | E14: 0.4 | F14: 0.5 | G14: 0.6 | H14: 0.7 | I14: 0.8 | J14: 0.9 | K14: 1 | L14: 1.1 | M14: 1.2 | N14: 1.3 | O14: 1.4 | P14: 1.5 | Q14: 1.6 | R14: 1.7 | S14: 1.8 | T14: 1.9 | U14: 2 | V14: 2.1 | W14: 2.2 | X14: 2.3 | Y14: 2.4 | Z14: 2.5 | AA14: 2.6 | AB14: 2.7 | AC14: 2.8 | AD14: 2.9 | AE14: 3 | AF14: 3.1 | AG14: 3.2 | AH14: 3.3 | AI14: 3.4 | AJ14: 3.5 | AK14: 3.6 | AL14: 3.7 | AM14: 3.8 | AN14: 3.9 | AO14: 4 | AP14: 4.1 | AQ14: 4.2 | AR14: 4.3 | AS14: 4.4 | AT14: 4.5 | AU14: 4.6 | AV14: 4.7 | AW14: 4.8 | AY14: =ApparentSets!C48 -> 3.297528136 | AZ14: =ApparentSets!G48 -> 3.841484191 | BA14: =ApparentSets!H48 -> 3.027024697 | BB14: =ApparentSets!I48 -> 4.252859051 | BC14: =ApparentSets!J48 -> 4.456852033 | BE14: =ApparentSets!L48 -> 3.919365682 | BF14: =ApparentSets!M48 -> 3.094704046 | BG14: =ApparentSets!N48 -> 4.106841216 | BH14: =ApparentSets!O48 -> 4.520921625
A15: 80 | B15: 0.1 | C15: 0.2 | D15: 0.3 | E15: 0.4 | F15: 0.5 | G15: 0.6 | H15: 0.7 | I15: 0.8 | J15: 0.9 | K15: 1 | L15: 1.1 | M15: 1.2 | N15: 1.3 | O15: 1.4 | P15: 1.5 | Q15: 1.6 | R15: 1.7 | S15: 1.8 | T15: 1.9 | U15: 2 | V15: 2.1 | W15: 2.2 | X15: 2.3 | Y15: 2.4 | Z15: 2.5 | AA15: 2.6 | AB15: 2.7 | AC15: 2.8 | AD15: 2.9 | AE15: 3 | AF15: 3.1 | AG15: 3.2 | AH15: 3.3 | AI15: 3.4 | AJ15: 3.5 | AK15: 3.6 | AL15: 3.7 | AM15: 3.8 | AN15: 3.9 | AO15: 4 | AP15: 4.1 | AQ15: 4.2 | AR15: 4.3 | AS15: 4.4 | AT15: 4.5 | AU15: 4.6 | AV15: 4.7 | AW15: 4.8 | AY15: =ApparentSets!C49 -> 3.64063671 | AZ15: =ApparentSets!G49 -> 3.87855902 | BA15: =ApparentSets!H49 -> 3.014039765 | BB15: =ApparentSets!I49 -> 4.355088567 | BC15: =ApparentSets!J49 -> 4.476806022 | BE15: =ApparentSets!L49 -> 3.952510166 | BF15: =ApparentSets!M49 -> 3.079431545 | BG15: =ApparentSets!N49 -> 4.207049613 | BH15: =ApparentSets!O49 -> 4.535251094
A16: 90 | B16: 0.1 | C16: 0.2 | D16: 0.3 | E16: 0.4 | F16: 0.5 | G16: 0.6 | H16: 0.7 | I16: 0.8 | J16: 0.9 | K16: 1 | L16: 1.1 | M16: 1.2 | N16: 1.3 | O16: 1.4 | P16: 1.5 | Q16: 1.6 | R16: 1.7 | S16: 1.8 | T16: 1.9 | U16: 2 | V16: 2.1 | W16: 2.2 | X16: 2.3 | Y16: 2.4 | Z16: 2.5 | AA16: 2.6 | AB16: 2.7 | AC16: 2.8 | AD16: 2.9 | AE16: 3 | AF16: 3.1 | AG16: 3.2 | AH16: 3.3 | AI16: 3.4 | AJ16: 3.5 | AK16: 3.6 | AL16: 3.7 | AM16: 3.8 | AN16: 3.9 | AO16: 4 | AP16: 4.1 | AQ16: 4.2 | AR16: 4.3 | AS16: 4.4 | AT16: 4.5 | AU16: 4.6 | AV16: 4.7 | AW16: 4.8 | AY16: =ApparentSets!C50 -> 3.87312638 | AZ16: =ApparentSets!G50 -> 3.894369478 | BA16: =ApparentSets!H50 -> 3.010682389 | BB16: =ApparentSets!I50 -> 4.36130172 | BC16: =ApparentSets!J50 -> 4.459758811 | BE16: =ApparentSets!L50 -> 3.944725101 | BF16: =ApparentSets!M50 -> 3.059720481 | BG16: =ApparentSets!N50 -> 4.250697635 | BH16: =ApparentSets!O50 -> 4.495567431
A17: 100 | B17: 0.1 | C17: 0.2 | D17: 0.3 | E17: 0.4 | F17: 0.5 | G17: 0.6 | H17: 0.7 | I17: 0.8 | J17: 0.9 | K17: 1 | L17: 1.1 | M17: 1.2 | N17: 1.3 | O17: 1.4 | P17: 1.5 | Q17: 1.6 | R17: 1.7 | S17: 1.8 | T17: 1.9 | U17: 2 | V17: 2.1 | W17: 2.2 | X17: 2.3 | Y17: 2.4 | Z17: 2.5 | AA17: 2.6 | AB17: 2.7 | AC17: 2.8 | AD17: 2.9 | AE17: 3 | AF17: 3.1 | AG17: 3.2 | AH17: 3.3 | AI17: 3.4 | AJ17: 3.5 | AK17: 3.6 | AL17: 3.7 | AM17: 3.8 | AN17: 3.9 | AO17: 4 | AP17: 4.1 | AQ17: 4.2 | AR17: 4.3 | AS17: 4.4 | AT17: 4.5 | AU17: 4.6 | AV17: 4.7 | AW17: 4.8 | AY17: =ApparentSets!C51 -> 3.987933066 | AZ17: =ApparentSets!G51 -> 3.920488096 | BA17: =ApparentSets!H51 -> 3.034698997 | BB17: =ApparentSets!I51 -> 4.297683471 | BC17: =ApparentSets!J51 -> 4.429883829 | BE17: =ApparentSets!L51 -> 3.942217015 | BF17: =ApparentSets!M51 -> 3.060505506 | BG17: =ApparentSets!N51 -> 4.24324576 | BH17: =ApparentSets!O51 -> 4.441711367
A18: 110 | B18: 0.1 | C18: 0.2 | D18: 0.3 | E18: 0.4 | F18: 0.5 | G18: 0.6 | H18: 0.7 | I18: 0.8 | J18: 0.9 | K18: 1 | L18: 1.1 | M18: 1.2 | N18: 1.3 | O18: 1.4 | P18: 1.5 | Q18: 1.6 | R18: 1.7 | S18: 1.8 | T18: 1.9 | U18: 2 | V18: 2.1 | W18: 2.2 | X18: 2.3 | Y18: 2.4 | Z18: 2.5 | AA18: 2.6 | AB18: 2.7 | AC18: 2.8 | AD18: 2.9 | AE18: 3 | AF18: 3.1 | AG18: 3.2 | AH18: 3.3 | AI18: 3.4 | AJ18: 3.5 | AK18: 3.6 | AL18: 3.7 | AM18: 3.8 | AN18: 3.9 | AO18: 4 | AP18: 4.1 | AQ18: 4.2 | AR18: 4.3 | AS18: 4.4 | AT18: 4.5 | AU18: 4.6 | AV18: 4.7 | AW18: 4.8 | AY18: =ApparentSets!C52 -> 3.981568422 | AZ18: =ApparentSets!G52 -> 3.981568422 | BA18: =ApparentSets!H52 -> 3.099178172 | BB18: =ApparentSets!I52 -> 4.181312664 | BC18: =ApparentSets!J52 -> 4.40280074 | BE18: =ApparentSets!L52 -> 3.981568422 | BF18: =ApparentSets!M52 -> 3.099178172 | BG18: =ApparentSets!N52 -> 4.181312664 | BH18: =ApparentSets!O52 -> 4.40280074
A19: 120 | B19: 0.1 | C19: 0.2 | D19: 0.3 | E19: 0.4 | F19: 0.5 | G19: 0.6 | H19: 0.7 | I19: 0.8 | J19: 0.9 | K19: 1 | L19: 1.1 | M19: 1.2 | N19: 1.3 | O19: 1.4 | P19: 1.5 | Q19: 1.6 | R19: 1.7 | S19: 1.8 | T19: 1.9 | U19: 2 | V19: 2.1 | W19: 2.2 | X19: 2.3 | Y19: 2.4 | Z19: 2.5 | AA19: 2.6 | AB19: 2.7 | AC19: 2.8 | AD19: 2.9 | AE19: 3 | AF19: 3.1 | AG19: 3.2 | AH19: 3.3 | AI19: 3.4 | AJ19: 3.5 | AK19: 3.6 | AL19: 3.7 | AM19: 3.8 | AN19: 3.9 | AO19: 4 | AP19: 4.1 | AQ19: 4.2 | AR19: 4.3 | AS19: 4.4 | AT19: 4.5 | AU19: 4.6 | AV19: 4.7 | AW19: 4.8 | AY19: =ApparentSets!C53 -> 3.854225838 | AZ19: =ApparentSets!G53 -> 4.082630834 | BA19: =ApparentSets!H53 -> 3.203699247 | BB19: =ApparentSets!I53 -> 4.015575314 | BC19: =ApparentSets!J53 -> 4.373745675 | BE19: =ApparentSets!L53 -> 4.074330284 | BF19: =ApparentSets!M53 -> 3.178755403 | BG19: =ApparentSets!N53 -> 4.052288137 | BH19: =ApparentSets!O53 -> 4.37946853
A20: 130 | B20: 0.1 | C20: 0.2 | D20: 0.3 | E20: 0.4 | F20: 0.5 | G20: 0.6 | H20: 0.7 | I20: 0.8 | J20: 0.9 | K20: 1 | L20: 1.1 | M20: 1.2 | N20: 1.3 | O20: 1.4 | P20: 1.5 | Q20: 1.6 | R20: 1.7 | S20: 1.8 | T20: 1.9 | U20: 2 | V20: 2.1 | W20: 2.2 | X20: 2.3 | Y20: 2.4 | Z20: 2.5 | AA20: 2.6 | AB20: 2.7 | AC20: 2.8 | AD20: 2.9 | AE20: 3 | AF20: 3.1 | AG20: 3.2 | AH20: 3.3 | AI20: 3.4 | AJ20: 3.5 | AK20: 3.6 | AL20: 3.7 | AM20: 3.8 | AN20: 3.9 | AO20: 4 | AP20: 4.1 | AQ20: 4.2 | AR20: 4.3 | AS20: 4.4 | AT20: 4.5 | AU20: 4.6 | AV20: 4.7 | AW20: 4.8 | AY20: =ApparentSets!C54 -> 3.609774551 | AZ20: =ApparentSets!G54 -> 4.134059075 | BA20: =ApparentSets!H54 -> 3.280570349 | BB20: =ApparentSets!I54 -> 3.778171656 | BC20: =ApparentSets!J54 -> 4.269400411 | BE20: =ApparentSets!L54 -> 4.127613872 | BF20: =ApparentSets!M54 -> 3.247103467 | BG20: =ApparentSets!N54 -> 3.817631501 | BH20: =ApparentSets!O54 -> 4.282064346
A21: 140 | B21: 0.1 | C21: 0.2 | D21: 0.3 | E21: 0.4 | F21: 0.5 | G21: 0.6 | H21: 0.7 | I21: 0.8 | J21: 0.9 | K21: 1 | L21: 1.1 | M21: 1.2 | N21: 1.3 | O21: 1.4 | P21: 1.5 | Q21: 1.6 | R21: 1.7 | S21: 1.8 | T21: 1.9 | U21: 2 | V21: 2.1 | W21: 2.2 | X21: 2.3 | Y21: 2.4 | Z21: 2.5 | AA21: 2.6 | AB21: 2.7 | AC21: 2.8 | AD21: 2.9 | AE21: 3 | AF21: 3.1 | AG21: 3.2 | AH21: 3.3 | AI21: 3.4 | AJ21: 3.5 | AK21: 3.6 | AL21: 3.7 | AM21: 3.8 | AN21: 3.9 | AO21: 4 | AP21: 4.1 | AQ21: 4.2 | AR21: 4.3 | AS21: 4.4 | AT21: 4.5 | AU21: 4.6 | AV21: 4.7 | AW21: 4.8 | AY21: =ApparentSets!C55 -> 3.255642091 | AZ21: =ApparentSets!G55 -> 4.000004297 | BA21: =ApparentSets!H55 -> 3.23123748 | BB21: =ApparentSets!I55 -> 3.445499389 | BC21: =ApparentSets!J55 -> 4.000004297 | BE21: =ApparentSets!L55 -> 4.000004297 | BF21: =ApparentSets!M55 -> 3.23123748 | BG21: =ApparentSets!N55 -> 3.445499389 | BH21: =ApparentSets!O55 -> 4.000004297
A22: 150 | B22: 0.1 | C22: 0.2 | D22: 0.3 | E22: 0.4 | F22: 0.5 | G22: =G21 -> 0.6 | H22: 0.7 | I22: 0.8 | J22: 0.9 | K22: 1 | L22: 1.1 | M22: 1.2 | N22: 1.3 | O22: 1.4 | P22: 1.5 | Q22: 1.6 | R22: 1.7 | S22: 1.8 | T22: 1.9 | U22: 2 | V22: 2.1 | W22: 2.2 | X22: 2.3 | Y22: 2.4 | Z22: 2.5 | AA22: 2.6 | AB22: 2.7 | AC22: 2.8 | AD22: 2.9 | AE22: 3 | AF22: 3.1 | AG22: 3.2 | AH22: 3.3 | AI22: 3.4 | AJ22: 3.5 | AK22: 3.6 | AL22: 3.7 | AM22: 3.8 | AN22: 3.9 | AO22: 4 | AP22: 4.1 | AQ22: 4.2 | AR22: 4.3 | AS22: 4.4 | AT22: 4.5 | AU22: 4.6 | AV22: 4.7 | AW22: 4.8 | AY22: =ApparentSets!C56 -> 2.802588594 | AZ22: =ApparentSets!G56 -> 3.562216213 | BA22: =ApparentSets!H56 -> 2.962547186 | BB22: =ApparentSets!I56 -> 3.001832739 | BC22: =ApparentSets!J56 -> 3.503762898 | BE22: =ApparentSets!L56 -> 3.566298655 | BF22: =ApparentSets!M56 -> 3.039722759 | BG22: =ApparentSets!N56 -> 2.946790696 | BH22: =ApparentSets!O56 -> 3.471161497
A23: 160 | B23: 0.1 | C23: 0.2 | D23: 0.3 | E23: 0.4 | F23: 0.5 | G23: 0.6 | H23: 0.7 | I23: 0.8 | J23: 0.9 | K23: 1 | L23: 1.1 | M23: 1.2 | N23: 1.3 | O23: 1.4 | P23: 1.5 | Q23: 1.6 | R23: 1.7 | S23: 1.8 | T23: 1.9 | U23: 2 | V23: 2.1 | W23: 2.2 | X23: 2.3 | Y23: 2.4 | Z23: 2.5 | AA23: 2.6 | AB23: 2.7 | AC23: 2.8 | AD23: 2.9 | AE23: 3 | AF23: 3.1 | AG23: 3.2 | AH23: 3.3 | AI23: 3.4 | AJ23: 3.5 | AK23: 3.6 | AL23: =AL22 -> 3.7 | AM23: 3.8 | AN23: 3.9 | AO23: 4 | AP23: 4.1 | AQ23: 4.2 | AR23: 4.3 | AS23: 4.4 | AT23: 4.5 | AU23: 4.6 | AV23: 4.7 | AW23: 4.8 | AY23: =ApparentSets!C57 -> 2.264379861 | AZ23: =ApparentSets!G57 -> 2.853053436 | BA23: =ApparentSets!H57 -> 2.472930819 | BB23: =ApparentSets!I57 -> 2.443679698 | BC23: =ApparentSets!J57 -> 2.804176798 | BE23: =ApparentSets!L57 -> 2.856857024 | BF23: =ApparentSets!M57 -> 2.579826912 | BG23: =ApparentSets!N57 -> 2.393581026 | BH23: =ApparentSets!O57 -> 2.763590085
A24: 170 | B24: 0.1 | C24: 0.2 | D24: 0.3 | E24: 0.4 | F24: 0.5 | G24: 0.6 | H24: 0.7 | I24: 0.8 | J24: 0.9 | K24: 1 | L24: 1.1 | M24: 1.2 | N24: 1.3 | O24: 1.4 | P24: 1.5 | Q24: 1.6 | R24: 1.7 | S24: 1.8 | T24: 1.9 | U24: 2 | V24: 2.1 | W24: 2.2 | X24: 2.3 | Y24: 2.4 | Z24: 2.5 | AA24: 2.6 | AB24: 2.7 | AC24: 2.8 | AD24: 2.9 | AE24: 3 | AF24: 3.1 | AG24: 3.2 | AH24: 3.3 | AI24: 3.4 | AJ24: 3.5 | AK24: 3.6 | AL24: 3.7 | AM24: 3.8 | AN24: 3.9 | AO24: 4 | AP24: 4.1 | AQ24: 4.2 | AR24: 4.3 | AS24: 4.4 | AT24: 4.5 | AU24: 4.6 | AV24: 4.7 | AW24: 4.8 | AY24: =ApparentSets!C58 -> 1.657369091 | AZ24: =ApparentSets!G58 -> 1.968949018 | BA24: =ApparentSets!H58 -> 1.803352197 | BB24: =ApparentSets!I58 -> 1.773674158 | BC24: =ApparentSets!J58 -> 1.952898143 | BE24: =ApparentSets!L58 -> 1.970242889 | BF24: =ApparentSets!M58 -> 1.851783462 | BG24: =ApparentSets!N58 -> 1.780038963 | BH24: =ApparentSets!O58 -> 1.93724574
A25: 180 | B25: =B24 -> 0.1 | C25: 0.2 | D25: 0.3 | E25: 0.4 | F25: 0.5 | G25: 0.6 | H25: 0.7 | I25: 0.8 | J25: 0.9 | K25: 1 | L25: 1.1 | M25: 1.2 | N25: 1.3 | O25: 1.4 | P25: 1.5 | Q25: 1.6 | R25: 1.7 | S25: 1.8 | T25: 1.9 | U25: 2 | V25: 2.1 | W25: =W24 -> 2.2 | X25: 2.3 | Y25: 2.4 | Z25: 2.5 | AA25: 2.6 | AB25: 2.7 | AC25: 2.8 | AD25: 2.9 | AE25: 3 | AF25: 3.1 | AG25: 3.2 | AH25: 3.3 | AI25: 3.4 | AJ25: 3.5 | AK25: 3.6 | AL25: 3.7 | AM25: 3.8 | AN25: 3.9 | AO25: 4 | AP25: 4.1 | AQ25: 4.2 | AR25: 4.3 | AS25: 4.4 | AT25: 4.5 | AU25: 4.6 | AV25: 4.7 | AW25: 4.8 | AY25: =ApparentSets!C59 -> 1 | AZ25: =ApparentSets!G59 -> 1 | BA25: =ApparentSets!H59 -> 1 | BB25: =ApparentSets!I59 -> 1 | BC25: =ApparentSets!J59 -> 1 | BE25: =ApparentSets!L59 -> 1 | BF25: =ApparentSets!M59 -> 1 | BG25: =ApparentSets!N59 -> 1 | BH25: =ApparentSets!O59 -> 1
A26: 190 | B26: 0.1 | C26: 0.2 | D26: 0.3 | E26: 0.4 | F26: 0.5 | G26: 0.6 | H26: 0.7 | I26: 0.8 | J26: 0.9 | K26: 1 | L26: 1.1 | M26: 1.2 | N26: 1.3 | O26: 1.4 | P26: 1.5 | Q26: 1.6 | R26: 1.7 | S26: 1.8 | T26: 1.9 | U26: 2 | V26: 2.1 | W26: 2.2 | X26: 2.3 | Y26: 2.4 | Z26: 2.5 | AA26: 2.6 | AB26: 2.7 | AC26: 2.8 | AD26: 2.9 | AE26: 3 | AF26: 3.1 | AG26: 3.2 | AH26: 3.3 | AI26: 3.4 | AJ26: 3.5 | AK26: 3.6 | AL26: 3.7 | AM26: 3.8 | AN26: 3.9 | AO26: 4 | AP26: 4.1 | AQ26: 4.2 | AR26: 4.3 | AS26: 4.4 | AT26: 4.5 | AU26: 4.6 | AV26: 4.7 | AW26: 4.8
A27: 200 | B27: 0.1 | C27: 0.2 | D27: 0.3 | E27: 0.4 | F27: 0.5 | G27: 0.6 | H27: 0.7 | I27: 0.8 | J27: 0.9 | K27: 1 | L27: 1.1 | M27: 1.2 | N27: 1.3 | O27: 1.4 | P27: 1.5 | Q27: 1.6 | R27: 1.7 | S27: 1.8 | T27: 1.9 | U27: 2 | V27: 2.1 | W27: 2.2 | X27: 2.3 | Y27: 2.4 | Z27: 2.5 | AA27: 2.6 | AB27: 2.7 | AC27: 2.8 | AD27: 2.9 | AE27: 3 | AF27: 3.1 | AG27: 3.2 | AH27: 3.3 | AI27: 3.4 | AJ27: 3.5 | AK27: 3.6 | AL27: 3.7 | AM27: 3.8 | AN27: 3.9 | AO27: 4 | AP27: 4.1 | AQ27: 4.2 | AR27: 4.3 | AS27: 4.4 | AT27: 4.5 | AU27: 4.6 | AV27: 4.7 | AW27: 4.8
A28: 210 | B28: 0.1 | C28: 0.2 | D28: 0.3 | E28: 0.4 | F28: 0.5 | G28: 0.6 | H28: 0.7 | I28: 0.8 | J28: 0.9 | K28: 1 | L28: 1.1 | M28: 1.2 | N28: 1.3 | O28: 1.4 | P28: 1.5 | Q28: 1.6 | R28: 1.7 | S28: 1.8 | T28: 1.9 | U28: 2 | V28: 2.1 | W28: 2.2 | X28: 2.3 | Y28: 2.4 | Z28: 2.5 | AA28: 2.6 | AB28: 2.7 | AC28: 2.8 | AD28: 2.9 | AE28: 3 | AF28: 3.1 | AG28: 3.2 | AH28: 3.3 | AI28: 3.4 | AJ28: 3.5 | AK28: 3.6 | AL28: 3.7 | AM28: 3.8 | AN28: 3.9 | AO28: 4 | AP28: 4.1 | AQ28: 4.2 | AR28: 4.3 | AS28: 4.4 | AT28: 4.5 | AU28: 4.6 | AV28: 4.7 | AW28: 4.8
A29: 220 | B29: 0.1 | C29: 0.2 | D29: 0.3 | E29: 0.4 | F29: 0.5 | G29: 0.6 | H29: 0.7 | I29: 0.8 | J29: 0.9 | K29: 1 | L29: 1.1 | M29: 1.2 | N29: 1.3 | O29: 1.4 | P29: 1.5 | Q29: 1.6 | R29: 1.7 | S29: 1.8 | T29: 1.9 | U29: 2 | V29: 2.1 | W29: 2.2 | X29: 2.3 | Y29: 2.4 | Z29: 2.5 | AA29: 2.6 | AB29: 2.7 | AC29: 2.8 | AD29: 2.9 | AE29: 3 | AF29: 3.1 | AG29: 3.2 | AH29: 3.3 | AI29: 3.4 | AJ29: 3.5 | AK29: 3.6 | AL29: 3.7 | AM29: 3.8 | AN29: 3.9 | AO29: 4 | AP29: 4.1 | AQ29: 4.2 | AR29: 4.3 | AS29: 4.4 | AT29: 4.5 | AU29: 4.6 | AV29: 4.7 | AW29: 4.8
A30: 230 | B30: 0.1 | C30: 0.2 | D30: 0.3 | E30: 0.4 | F30: 0.5 | G30: 0.6 | H30: 0.7 | I30: 0.8 | J30: 0.9 | K30: 1 | L30: 1.1 | M30: 1.2 | N30: 1.3 | O30: 1.4 | P30: 1.5 | Q30: 1.6 | R30: 1.7 | S30: 1.8 | T30: 1.9 | U30: 2 | V30: 2.1 | W30: 2.2 | X30: 2.3 | Y30: 2.4 | Z30: 2.5 | AA30: 2.6 | AB30: 2.7 | AC30: 2.8 | AD30: 2.9 | AE30: 3 | AF30: 3.1 | AG30: 3.2 | AH30: 3.3 | AI30: 3.4 | AJ30: 3.5 | AK30: 3.6 | AL30: 3.7 | AM30: 3.8 | AN30: 3.9 | AO30: 4 | AP30: 4.1 | AQ30: 4.2 | AR30: 4.3 | AS30: 4.4 | AT30: 4.5 | AU30: 4.6 | AV30: 4.7 | AW30: 4.8
A31: 240 | B31: 0.1 | C31: 0.2 | D31: 0.3 | E31: 0.4 | F31: 0.5 | G31: 0.6 | H31: 0.7 | I31: 0.8 | J31: 0.9 | K31: 1 | L31: 1.1 | M31: 1.2 | N31: 1.3 | O31: 1.4 | P31: 1.5 | Q31: 1.6 | R31: 1.7 | S31: 1.8 | T31: 1.9 | U31: 2 | V31: 2.1 | W31: 2.2 | X31: 2.3 | Y31: 2.4 | Z31: 2.5 | AA31: 2.6 | AB31: 2.7 | AC31: 2.8 | AD31: 2.9 | AE31: 3 | AF31: 3.1 | AG31: 3.2 | AH31: 3.3 | AI31: 3.4 | AJ31: 3.5 | AK31: 3.6 | AL31: 3.7 | AM31: 3.8 | AN31: 3.9 | AO31: 4 | AP31: 4.1 | AQ31: 4.2 | AR31: 4.3 | AS31: 4.4 | AT31: 4.5 | AU31: 4.6 | AV31: 4.7 | AW31: 4.8
A32: 250 | B32: 0.1 | C32: 0.2 | D32: 0.3 | E32: 0.4 | F32: 0.5 | G32: 0.6 | H32: 0.7 | I32: 0.8 | J32: 0.9 | K32: 1 | L32: 1.1 | M32: 1.2 | N32: 1.3 | O32: 1.4 | P32: 1.5 | Q32: 1.6 | R32: 1.7 | S32: 1.8 | T32: 1.9 | U32: 2 | V32: 2.1 | W32: 2.2 | X32: 2.3 | Y32: 2.4 | Z32: 2.5 | AA32: 2.6 | AB32: 2.7 | AC32: 2.8 | AD32: 2.9 | AE32: 3 | AF32: 3.1 | AG32: 3.2 | AH32: 3.3 | AI32: 3.4 | AJ32: 3.5 | AK32: 3.6 | AL32: 3.7 | AM32: 3.8 | AN32: 3.9 | AO32: 4 | AP32: 4.1 | AQ32: 4.2 | AR32: 4.3 | AS32: 4.4 | AT32: 4.5 | AU32: 4.6 | AV32: 4.7 | AW32: 4.8
A33: 260 | B33: 0.1 | C33: 0.2 | D33: 0.3 | E33: 0.4 | F33: 0.5 | G33: 0.6 | H33: 0.7 | I33: 0.8 | J33: 0.9 | K33: 1 | L33: 1.1 | M33: 1.2 | N33: 1.3 | O33: 1.4 | P33: 1.5 | Q33: 1.6 | R33: 1.7 | S33: 1.8 | T33: 1.9 | U33: 2 | V33: 2.1 | W33: 2.2 | X33: 2.3 | Y33: 2.4 | Z33: 2.5 | AA33: 2.6 | AB33: 2.7 | AC33: 2.8 | AD33: 2.9 | AE33: 3 | AF33: 3.1 | AG33: 3.2 | AH33: 3.3 | AI33: 3.4 | AJ33: 3.5 | AK33: 3.6 | AL33: 3.7 | AM33: 3.8 | AN33: 3.9 | AO33: 4 | AP33: 4.1 | AQ33: 4.2 | AR33: 4.3 | AS33: 4.4 | AT33: 4.5 | AU33: 4.6 | AV33: 4.7 | AW33: 4.8
A34: 270 | B34: 0.1 | C34: 0.2 | D34: 0.3 | E34: 0.4 | F34: 0.5 | G34: 0.6 | H34: 0.7 | I34: 0.8 | J34: 0.9 | K34: 1 | L34: 1.1 | M34: 1.2 | N34: 1.3 | O34: 1.4 | P34: 1.5 | Q34: 1.6 | R34: 1.7 | S34: 1.8 | T34: 1.9 | U34: 2 | V34: 2.1 | W34: 2.2 | X34: 2.3 | Y34: 2.4 | Z34: 2.5 | AA34: 2.6 | AB34: 2.7 | AC34: 2.8 | AD34: 2.9 | AE34: 3 | AF34: 3.1 | AG34: 3.2 | AH34: 3.3 | AI34: 3.4 | AJ34: 3.5 | AK34: 3.6 | AL34: 3.7 | AM34: 3.8 | AN34: 3.9 | AO34: 4 | AP34: 4.1 | AQ34: 4.2 | AR34: 4.3 | AS34: 4.4 | AT34: 4.5 | AU34: 4.6 | AV34: 4.7 | AW34: 4.8
A35: 280 | B35: 0.1 | C35: 0.2 | D35: 0.3 | E35: 0.4 | F35: 0.5 | G35: 0.6 | H35: 0.7 | I35: 0.8 | J35: 0.9 | K35: 1 | L35: 1.1 | M35: 1.2 | N35: 1.3 | O35: 1.4 | P35: 1.5 | Q35: 1.6 | R35: 1.7 | S35: 1.8 | T35: 1.9 | U35: 2 | V35: 2.1 | W35: 2.2 | X35: 2.3 | Y35: 2.4 | Z35: 2.5 | AA35: 2.6 | AB35: 2.7 | AC35: 2.8 | AD35: 2.9 | AE35: 3 | AF35: 3.1 | AG35: 3.2 | AH35: 3.3 | AI35: 3.4 | AJ35: 3.5 | AK35: 3.6 | AL35: 3.7 | AM35: 3.8 | AN35: 3.9 | AO35: 4 | AP35: 4.1 | AQ35: 4.2 | AR35: 4.3 | AS35: 4.4 | AT35: 4.5 | AU35: 4.6 | AV35: 4.7 | AW35: 4.8
A36: 290 | B36: 0.1 | C36: 0.2 | D36: 0.3 | E36: 0.4 | F36: 0.5 | G36: 0.6 | H36: 0.7 | I36: 0.8 | J36: 0.9 | K36: 1 | L36: 1.1 | M36: 1.2 | N36: 1.3 | O36: 1.4 | P36: 1.5 | Q36: 1.6 | R36: 1.7 | S36: 1.8 | T36: 1.9 | U36: 2 | V36: 2.1 | W36: 2.2 | X36: 2.3 | Y36: 2.4 | Z36: 2.5 | AA36: 2.6 | AB36: 2.7 | AC36: 2.8 | AD36: 2.9 | AE36: 3 | AF36: 3.1 | AG36: 3.2 | AH36: 3.3 | AI36: 3.4 | AJ36: 3.5 | AK36: 3.6 | AL36: 3.7 | AM36: 3.8 | AN36: 3.9 | AO36: 4 | AP36: 4.1 | AQ36: 4.2 | AR36: 4.3 | AS36: 4.4 | AT36: 4.5 | AU36: 4.6 | AV36: 4.7 | AW36: 4.8
A37: 300 | B37: 0.1 | C37: 0.2 | D37: 0.3 | E37: 0.4 | F37: 0.5 | G37: 0.6 | H37: 0.7 | I37: 0.8 | J37: 0.9 | K37: 1 | L37: 1.1 | M37: 1.2 | N37: 1.3 | O37: 1.4 | P37: 1.5 | Q37: 1.6 | R37: 1.7 | S37: 1.8 | T37: 1.9 | U37: 2 | V37: 2.1 | W37: 2.2 | X37: 2.3 | Y37: 2.4 | Z37: 2.5 | AA37: 2.6 | AB37: 2.7 | AC37: 2.8 | AD37: 2.9 | AE37: 3 | AF37: 3.1 | AG37: 3.2 | AH37: 3.3 | AI37: 3.4 | AJ37: 3.5 | AK37: 3.6 | AL37: 3.7 | AM37: 3.8 | AN37: 3.9 | AO37: 4 | AP37: 4.1 | AQ37: 4.2 | AR37: 4.3 | AS37: 4.4 | AT37: 4.5 | AU37: 4.6 | AV37: 4.7 | AW37: 4.8
A38: 310 | B38: 0.1 | C38: 0.2 | D38: 0.3 | E38: 0.4 | F38: 0.5 | G38: 0.6 | H38: 0.7 | I38: 0.8 | J38: 0.9 | K38: 1 | L38: 1.1 | M38: 1.2 | N38: 1.3 | O38: 1.4 | P38: 1.5 | Q38: 1.6 | R38: =R37 -> 1.7 | S38: 1.8 | T38: 1.9 | U38: 2 | V38: 2.1 | W38: 2.2 | X38: 2.3 | Y38: 2.4 | Z38: 2.5 | AA38: 2.6 | AB38: 2.7 | AC38: 2.8 | AD38: 2.9 | AE38: 3 | AF38: 3.1 | AG38: 3.2 | AH38: 3.3 | AI38: 3.4 | AJ38: 3.5 | AK38: 3.6 | AL38: 3.7 | AM38: 3.8 | AN38: 3.9 | AO38: 4 | AP38: 4.1 | AQ38: 4.2 | AR38: 4.3 | AS38: 4.4 | AT38: 4.5 | AU38: 4.6 | AV38: 4.7 | AW38: 4.8
A39: 320 | B39: 0.1 | C39: 0.2 | D39: 0.3 | E39: 0.4 | F39: 0.5 | G39: 0.6 | H39: 0.7 | I39: 0.8 | J39: 0.9 | K39: 1 | L39: 1.1 | M39: 1.2 | N39: 1.3 | O39: 1.4 | P39: 1.5 | Q39: 1.6 | R39: 1.7 | S39: 1.8 | T39: 1.9 | U39: 2 | V39: 2.1 | W39: 2.2 | X39: 2.3 | Y39: 2.4 | Z39: 2.5 | AA39: 2.6 | AB39: 2.7 | AC39: 2.8 | AD39: 2.9 | AE39: 3 | AF39: 3.1 | AG39: 3.2 | AH39: 3.3 | AI39: 3.4 | AJ39: 3.5 | AK39: 3.6 | AL39: 3.7 | AM39: =AM38 -> 3.8 | AN39: 3.9 | AO39: 4 | AP39: 4.1 | AQ39: 4.2 | AR39: 4.3 | AS39: 4.4 | AT39: 4.5 | AU39: 4.6 | AV39: 4.7 | AW39: 4.8
A40: 330 | B40: 0.1 | C40: 0.2 | D40: 0.3 | E40: 0.4 | F40: 0.5 | G40: 0.6 | H40: 0.7 | I40: 0.8 | J40: 0.9 | K40: 1 | L40: 1.1 | M40: 1.2 | N40: 1.3 | O40: 1.4 | P40: 1.5 | Q40: 1.6 | R40: 1.7 | S40: 1.8 | T40: 1.9 | U40: 2 | V40: 2.1 | W40: 2.2 | X40: 2.3 | Y40: 2.4 | Z40: 2.5 | AA40: 2.6 | AB40: 2.7 | AC40: 2.8 | AD40: 2.9 | AE40: 3 | AF40: 3.1 | AG40: 3.2 | AH40: 3.3 | AI40: 3.4 | AJ40: 3.5 | AK40: 3.6 | AL40: 3.7 | AM40: 3.8 | AN40: 3.9 | AO40: 4 | AP40: 4.1 | AQ40: 4.2 | AR40: 4.3 | AS40: 4.4 | AT40: 4.5 | AU40: 4.6 | AV40: 4.7 | AW40: 4.8
A41: 340 | B41: =B40 -> 0.1 | C41: 0.2 | D41: 0.3 | E41: 0.4 | F41: 0.5 | G41: 0.6 | H41: 0.7 | I41: 0.8 | J41: 0.9 | K41: 1 | L41: 1.1 | M41: 1.2 | N41: 1.3 | O41: 1.4 | P41: 1.5 | Q41: 1.6 | R41: 1.7 | S41: 1.8 | T41: 1.9 | U41: 2 | V41: 2.1 | W41: 2.2 | X41: 2.3 | Y41: 2.4 | Z41: 2.5 | AA41: 2.6 | AB41: 2.7 | AC41: 2.8 | AD41: 2.9 | AE41: 3 | AF41: 3.1 | AG41: 3.2 | AH41: =AH40 -> 3.3 | AI41: 3.4 | AJ41: 3.5 | AK41: 3.6 | AL41: 3.7 | AM41: 3.8 | AN41: 3.9 | AO41: 4 | AP41: 4.1 | AQ41: 4.2 | AR41: 4.3 | AS41: 4.4 | AT41: 4.5 | AU41: 4.6 | AV41: 4.7 | AW41: 4.8
A42: 350 | B42: 0.1 | C42: 0.2 | D42: 0.3 | E42: 0.4 | F42: 0.5 | G42: 0.6 | H42: 0.7 | I42: 0.8 | J42: 0.9 | K42: 1 | L42: 1.1 | M42: 1.2 | N42: 1.3 | O42: 1.4 | P42: 1.5 | Q42: 1.6 | R42: 1.7 | S42: 1.8 | T42: 1.9 | U42: 2 | V42: 2.1 | W42: 2.2 | X42: 2.3 | Y42: 2.4 | Z42: 2.5 | AA42: 2.6 | AB42: 2.7 | AC42: 2.8 | AD42: 2.9 | AE42: 3 | AF42: 3.1 | AG42: 3.2 | AH42: 3.3 | AI42: 3.4 | AJ42: 3.5 | AK42: 3.6 | AL42: 3.7 | AM42: 3.8 | AN42: 3.9 | AO42: 4 | AP42: 4.1 | AQ42: 4.2 | AR42: 4.3 | AS42: 4.4 | AT42: 4.5 | AU42: 4.6 | AV42: 4.7 | AW42: 4.8

Sheet PolarDiagram7pt

Sheet WeatherTypes
C1: Origin 5 pts | F1: Origin 7 pts | J1: Fresh 5 pts | M1: Fresh 7 pts | Q1: Light 5 pts | T1: Light 7 pts | X1: Champagne 5 pts | AA1: Champagne 7 pts | AE1: 4x TWA at 105 | AI1: 3x TWA at 40 | AM1: 4x TWA at 140
C2: V | D2: Up | E2: Dn | F2: V | G2: Up | H2: Dn | J2: V | K2: Up | L2: Dn | M2: V | N2: Up | O2: Dn | Q2: V | R2: Up | S2: Dn | T2: V | U2: Up | V2: Dn | X2: V | Y2: Up | Z2: Dn | AA2: V | AB2: Up | AC2: Dn | AE2: V | AF2: Up | AG2: Dn | AI2: V | AJ2: Up | AK2: Dn | AM2: V | AN2: Up | AO2: Dn
A3: 0 | C3: 0 | F3: 0 | J3: 0 | M3: 0 | Q3: 0 | T3: 0 | X3: 0 | AA3: 0 | AE3: 0 | AI3: 0 | AM3: 0
A4: 30 | C4: =VLOOKUP($A4,ApparentSets!A$42:G$59,7,0) -> 2.225093313 | F4: =VLOOKUP($A4,ApparentSets!A$42:L$59,12,0) -> 2.212167708 | J4: =VLOOKUP($A4,ApparentSets!A$42:H$59,8,0) -> 2.092710551 | M4: =VLOOKUP($A4,ApparentSets!A$42:M$59,13,0) -> 2.077942411 | Q4: =VLOOKUP($A4,ApparentSets!A$42:I$59,9,0) -> 2.172391751 | T4: =VLOOKUP($A4,ApparentSets!A$42:N$59,14,0) -> 2.192598773 | X4: =VLOOKUP($A4,ApparentSets!A$42:J$59,10,0) -> 2.926880491 | AA4: =VLOOKUP($A4,ApparentSets!A$42:O$59,15,0) -> 2.914235672 | AE4: =VLOOKUP($A4,ApparentSets!$A$42:$E$59,3,0) -> 1.070537786 | AI4: =VLOOKUP($A4,ApparentSets!$A$42:$E$59,4,0) -> 2.06340482 | AM4: =VLOOKUP($A4,ApparentSets!$A$42:$E$59,5,0) -> 1.649548796
A5: 50 | C5: =VLOOKUP($A5,ApparentSets!A43:G60,7,0) -> 3.48446291 | F5: =VLOOKUP($A5,ApparentSets!A43:L60,12,0) -> 3.514424156 | J5: =VLOOKUP($A5,ApparentSets!A43:H60,8,0) -> 2.924498258 | M5: =VLOOKUP($A5,ApparentSets!A43:M60,13,0) -> 2.952849896 | Q5: =VLOOKUP($A5,ApparentSets!A43:I60,9,0) -> 3.613737739 | T5: =VLOOKUP($A5,ApparentSets!A43:N60,14,0) -> 3.563634378 | X5: =VLOOKUP($A5,ApparentSets!A43:J60,10,0) -> 4.128433883 | AA5: =VLOOKUP($A5,ApparentSets!A43:O60,15,0) -> 4.154303668 | AE5: =VLOOKUP($A5,ApparentSets!$A$42:$E$59,3,0) -> 2.324199332 | AI5: =VLOOKUP($A5,ApparentSets!$A$42:$E$59,4,0) -> 3.845359879 | AM5: =VLOOKUP($A5,ApparentSets!$A$42:$E$59,5,0) -> 3.211295664
A6: 60 | C6: =VLOOKUP($A6,ApparentSets!A44:G60,7,0) -> 3.734465713 | F6: =VLOOKUP($A6,ApparentSets!A44:L61,12,0) -> 3.795341422 | J6: =VLOOKUP($A6,ApparentSets!A44:H60,8,0) -> 3.017186167 | M6: =VLOOKUP($A6,ApparentSets!A44:M61,13,0) -> 3.071527313 | Q6: =VLOOKUP($A6,ApparentSets!A44:I60,9,0) -> 4.019352194 | T6: =VLOOKUP($A6,ApparentSets!A44:N61,14,0) -> 3.911720074 | X6: =VLOOKUP($A6,ApparentSets!A44:J60,10,0) -> 4.360837177 | AA6: =VLOOKUP($A6,ApparentSets!A44:O61,15,0) -> 4.412037722 | AE6: =VLOOKUP($A6,ApparentSets!$A$42:$E$59,3,0) -> 2.854225838 | AI6: =VLOOKUP($A6,ApparentSets!$A$42:$E$59,4,0) -> 4.573921985 | AM6: =VLOOKUP($A6,ApparentSets!$A$42:$E$59,5,0) -> 3.857102324
A7: 80 | C7: =VLOOKUP($A7,ApparentSets!A45:G60,7,0) -> 3.87855902 | F7: =VLOOKUP($A7,ApparentSets!A45:L62,12,0) -> 3.952510166 | J7: =VLOOKUP($A7,ApparentSets!A45:H60,8,0) -> 3.014039765 | M7: =VLOOKUP($A7,ApparentSets!A45:M62,13,0) -> 3.079431545 | Q7: =VLOOKUP($A7,ApparentSets!A45:I60,9,0) -> 4.355088567 | T7: =VLOOKUP($A7,ApparentSets!A45:N62,14,0) -> 4.207049613 | X7: =VLOOKUP($A7,ApparentSets!A45:J60,10,0) -> 4.476806022 | AA7: =VLOOKUP($A7,ApparentSets!A45:O62,15,0) -> 4.535251094 | AE7: =VLOOKUP($A7,ApparentSets!$A$42:$E$59,3,0) -> 3.64063671 | AI7: =VLOOKUP($A7,ApparentSets!$A$42:$E$59,4,0) -> 5.596203015 | AM7: =VLOOKUP($A7,ApparentSets!$A$42:$E$59,5,0) -> 4.781065773
A8: 90 | C8: =VLOOKUP($A8,ApparentSets!A46:G60,7,0) -> 3.894369478 | F8: =VLOOKUP($A8,ApparentSets!A46:L63,12,0) -> 3.944725101 | J8: =VLOOKUP($A8,ApparentSets!A46:H60,8,0) -> 3.010682389 | M8: =VLOOKUP($A8,ApparentSets!A46:M63,13,0) -> 3.059720481 | Q8: =VLOOKUP($A8,ApparentSets!A46:I60,9,0) -> 4.36130172 | T8: =VLOOKUP($A8,ApparentSets!A46:N63,14,0) -> 4.250697635 | X8: =VLOOKUP($A8,ApparentSets!A46:J60,10,0) -> 4.459758811 | AA8: =VLOOKUP($A8,ApparentSets!A46:O63,15,0) -> 4.495567431 | AE8: =VLOOKUP($A8,ApparentSets!$A$42:$E$59,3,0) -> 3.87312638 | AI8: =VLOOKUP($A8,ApparentSets!$A$42:$E$59,4,0) -> 5.858860447 | AM8: =VLOOKUP($A8,ApparentSets!$A$42:$E$59,5,0) -> 5.0311484
A9: 100 | C9: =VLOOKUP($A9,ApparentSets!A47:G60,7,0) -> 3.920488096 | F9: =VLOOKUP($A9,ApparentSets!A47:L64,12,0) -> 3.942217015 | J9: =VLOOKUP($A9,ApparentSets!A47:H60,8,0) -> 3.034698997 | M9: =VLOOKUP($A9,ApparentSets!A47:M64,13,0) -> 3.060505506 | Q9: =VLOOKUP($A9,ApparentSets!A47:I60,9,0) -> 4.297683471 | T9: =VLOOKUP($A9,ApparentSets!A47:N64,14,0) -> 4.24324576 | X9: =VLOOKUP($A9,ApparentSets!A47:J60,10,0) -> 4.429883829 | AA9: =VLOOKUP($A9,ApparentSets!A47:O64,15,0) -> 4.441711367 | AE9: =VLOOKUP($A9,ApparentSets!$A$42:$E$59,3,0) -> 3.987933066 | AI9: =VLOOKUP($A9,ApparentSets!$A$42:$E$59,4,0) -> 5.94349937 | AM9: =VLOOKUP($A9,ApparentSets!$A$42:$E$59,5,0) -> 5.128362128
A10: 110 | C10: =VLOOKUP($A10,ApparentSets!A48:G60,7,0) -> 3.981568422 | F10: =VLOOKUP($A10,ApparentSets!A48:L65,12,0) -> 3.981568422 | J10: =VLOOKUP($A10,ApparentSets!A48:H60,8,0) -> 3.099178172 | M10: =VLOOKUP($A10,ApparentSets!A48:M65,13,0) -> 3.099178172 | Q10: =VLOOKUP($A10,ApparentSets!A48:I60,9,0) -> 4.181312664 | T10: =VLOOKUP($A10,ApparentSets!A48:N65,14,0) -> 4.181312664 | X10: =VLOOKUP($A10,ApparentSets!A48:J60,10,0) -> 4.40280074 | AA10: =VLOOKUP($A10,ApparentSets!A48:O65,15,0) -> 4.40280074 | AE10: =VLOOKUP($A10,ApparentSets!$A$42:$E$59,3,0) -> 3.981568422 | AI10: =VLOOKUP($A10,ApparentSets!$A$42:$E$59,4,0) -> 5.847548072 | AM10: =VLOOKUP($A10,ApparentSets!$A$42:$E$59,5,0) -> 5.069753168
A11: 130 | C11: =VLOOKUP($A11,ApparentSets!A49:G60,7,0) -> 4.134059075 | F11: =VLOOKUP($A11,ApparentSets!A49:L66,12,0) -> 4.127613872 | J11: =VLOOKUP($A11,ApparentSets!A49:H60,8,0) -> 3.280570349 | M11: =VLOOKUP($A11,ApparentSets!A49:M66,13,0) -> 3.247103467 | Q11: =VLOOKUP($A11,ApparentSets!A49:I60,9,0) -> 3.778171656 | T11: =VLOOKUP($A11,ApparentSets!A49:N66,14,0) -> 3.817631501 | X11: =VLOOKUP($A11,ApparentSets!A49:J60,10,0) -> 4.269400411 | AA11: =VLOOKUP($A11,ApparentSets!A49:O66,15,0) -> 4.282064346 | AE11: =VLOOKUP($A11,ApparentSets!$A$42:$E$59,3,0) -> 3.609774551 | AI11: =VLOOKUP($A11,ApparentSets!$A$42:$E$59,4,0) -> 5.130935098 | AM11: =VLOOKUP($A11,ApparentSets!$A$42:$E$59,5,0) -> 4.496870884
A12: 150 | C12: =VLOOKUP($A12,ApparentSets!A50:G60,7,0) -> 3.562216213 | F12: =VLOOKUP($A12,ApparentSets!A50:L67,12,0) -> 3.566298655 | J12: =VLOOKUP($A12,ApparentSets!A50:H60,8,0) -> 2.962547186 | M12: =VLOOKUP($A12,ApparentSets!A50:M67,13,0) -> 3.039722759 | Q12: =VLOOKUP($A12,ApparentSets!A50:I60,9,0) -> 3.001832739 | T12: =VLOOKUP($A12,ApparentSets!A50:N67,14,0) -> 2.946790696 | X12: =VLOOKUP($A12,ApparentSets!A50:J60,10,0) -> 3.503762898 | AA12: =VLOOKUP($A12,ApparentSets!A50:O67,15,0) -> 3.471161497 | AE12: =VLOOKUP($A12,ApparentSets!$A$42:$E$59,3,0) -> 2.802588594 | AI12: =VLOOKUP($A12,ApparentSets!$A$42:$E$59,4,0) -> 3.795455628 | AM12: =VLOOKUP($A12,ApparentSets!$A$42:$E$59,5,0) -> 3.381599604
A13: 180 | C13: =VLOOKUP($A13,ApparentSets!A51:G60,7,0) -> 1 | F13: =VLOOKUP($A13,ApparentSets!A51:L68,12,0) -> 1 | J13: =VLOOKUP($A13,ApparentSets!A51:H60,8,0) -> 1 | M13: =VLOOKUP($A13,ApparentSets!A51:M68,13,0) -> 1 | Q13: =VLOOKUP($A13,ApparentSets!A51:I60,9,0) -> 1 | T13: =VLOOKUP($A13,ApparentSets!A51:N68,14,0) -> 1 | X13: =VLOOKUP($A13,ApparentSets!A51:J60,10,0) -> 1 | AA13: =VLOOKUP($A13,ApparentSets!A51:O68,15,0) -> 1 | AE13: =VLOOKUP($A13,ApparentSets!$A$42:$E$59,3,0) -> 1 | AI13: =VLOOKUP($A13,ApparentSets!$A$42:$E$59,4,0) -> 1 | AM13: =VLOOKUP($A13,ApparentSets!$A$42:$E$59,5,0) -> 1
C14: =MAX(C24:C180) -> 4.138184266 | D14: =MAX(D24:D70) -> 2.296830091 | E14: =MAX(E120:E180) -> 3.118489033 | F14: =MAX(F24:F180) -> 4.130919306 | G14: =MAX(G24:G70) -> 2.307692127 | H14: =MAX(H120:H180) -> 3.120500902 | J14: =MAX(J24:J180) -> 3.282102934 | K14: =MAX(K24:K70) -> 1.998588413 | L14: =MAX(L120:L180) -> 2.573064269 | M14: =MAX(M24:M180) -> 3.260963537 | N14: =MAX(N24:N70) -> 2.002948625 | O14: =MAX(O120:O180) -> 2.633854924 | Q14: =MAX(Q24:Q180) -> 4.368686631 | R14: =MAX(R24:R70) -> 2.346317495 | S14: =MAX(S120:S180) -> 2.659098188 | T14: =MAX(T24:T180) -> 4.253936273 | U14: =MAX(U24:U70) -> 2.325474397 | V14: =MAX(V120:V180) -> 2.642931947 | X14: =MAX(X24:X180) -> 4.476968988 | Y14: =MAX(Y24:Y70) -> 2.794449619 | Z14: =MAX(Z120:Z180) -> 3.092612379 | AA14: =MAX(AA24:AA180) -> 4.538274061 | AB14: =MAX(AB24:AB70) -> 2.799217923 | AC14: =MAX(AC120:AC180) -> 3.077220907 | AE14: =MAX(AE24:AE180) -> 4.000075161 | AF14: =MAX(AF24:AF70) -> 1.502012709 | AG14: =MAX(AG120:AG180) -> 2.501524529 | AI14: =MAX(AI24:AI180) -> 5.94349937 | AJ14: =MAX(AJ24:AJ70) -> 2.471749685 | AK14: =MAX(AK120:AK180) -> 3.473115521 | AM14: =MAX(AM24:AM180) -> 5.129545829 | AN14: =MAX(AN24:AN70) -> 2.065805443 | AO14: =MAX(AO120:AO180) -> 3.066018793
C15: =MATCH(C14,C24:C180,0)+23 -> 128 | D15: =MATCH(D14,D24:D70,0)+23 -> 45 | E15: =MATCH(E14,E120:E180,0)+119 -> 146 | F15: =MATCH(F14,F24:F180,0)+23 -> 128 | G15: =MATCH(G14,G24:G70,0)+23 -> 45 | H15: =MATCH(H14,H120:H180,0)+119 -> 146 | J15: =MATCH(J14,J24:J180,0)+23 -> 132 | K15: =MATCH(K14,K24:K70,0)+23 -> 41 | L15: =MATCH(L14,L120:L180,0)+119 -> 148 | M15: =MATCH(M14,M24:M180,0)+23 -> 135 | N15: =MATCH(N14,N24:N70,0)+23 -> 42 | O15: =MATCH(O14,O120:O180,0)+119 -> 149 | Q15: =MATCH(Q14,Q24:Q180,0)+23 -> 86 | R15: =MATCH(R14,R24:R70,0)+23 -> 47 | S15: =MATCH(S14,S120:S180,0)+119 -> 144 | T15: =MATCH(T14,T24:T180,0)+23 -> 94 | U15: =MATCH(U14,U24:U70,0)+23 -> 46 | V15: =MATCH(V14,V120:V180,0)+119 -> 142 | X15: =MATCH(X14,X24:X180,0)+23 -> 79 | Y15: =MATCH(Y14,Y24:Y70,0)+23 -> 41 | Z15: =MATCH(Z14,Z120:Z180,0)+119 -> 144 | AA15: =MATCH(AA14,AA24:AA180,0)+23 -> 77 | AB15: =MATCH(AB14,AB24:AB70,0)+23 -> 42 | AC15: =MATCH(AC14,AC120:AC180,0)+119 -> 144 | AE15: =MATCH(AE14,AE24:AE180,0)+23 -> 104 | AF15: =MATCH(AF14,AF24:AF70,0)+23 -> 52 | AG15: =MATCH(AG14,AG120:AG180,0)+119 -> 142 | AI15: =MATCH(AI14,AI24:AI180,0)+23 -> 100 | AJ15: =MATCH(AJ14,AJ24:AJ70,0)+23 -> 50 | AK15: =MATCH(AK14,AK120:AK180,0)+119 -> 140 | AM15: =MATCH(AM14,AM24:AM180,0)+23 -> 101 | AN15: =MATCH(AN14,AN24:AN70,0)+23 -> 51 | AO15: =MATCH(AO14,AO120:AO180,0)+119 -> 141
A24: 24 | C24: =csplinea($A3:$A13,C3:C13,$A24:$A180) -> 1.777734136 | D24: =C24*trig_tab!$A24 -> 1.624040945 | F24: =csplinea($A3:$A13,F3:F13,$A24:$A180) -> 1.761393378 | G24: =F24*trig_tab!$A24 -> 1.60911292 | J24: =csplinea($A3:$A13,J3:J13,$A24:$A180) -> 1.723271542 | K24: =J24*trig_tab!$A24 -> 1.57428689 | M24: =csplinea($A3:$A13,M3:M13,$A24:$A180) -> 1.704753117 | N24: =M24*trig_tab!$A24 -> 1.557369466 | Q24: =csplinea($A3:$A13,Q3:Q13,$A24:$A180) -> 1.712068979 | R24: =Q24*trig_tab!$A24 -> 1.564052839 | T24: =csplinea($A3:$A13,T3:T13,$A24:$A180) -> 1.737409681 | U24: =T24*trig_tab!$A24 -> 1.587202722 | X24: =csplinea($A3:$A13,X3:X13,$A24:$A180) -> 2.413257771 | Y24: =X24*trig_tab!$A24 -> 2.204620675 | AA24: =csplinea($A3:$A13,AA3:AA13,$A24:$A180) -> 2.397422125 | AB24: =AA24*trig_tab!$A24 -> 2.190154092 | AE24: =csplinea($A3:$A13,AE3:AE13,$A24:$A180) -> 0.7736182959 | AF24: =AE24*trig_tab!$A24 -> 0.7067354802 | AI24: =csplinea($A3:$A13,AI3:AI13,$A24:$A180) -> 1.581206941 | AJ24: =AI24*trig_tab!$A24 -> 1.444504418 | AM24: =csplinea($A3:$A13,AM3:AM13,$A24:$A180) -> 1.244580369 | AN24: =AM24*trig_tab!$A24 -> 1.136980743
A25: 25 | C25: 1.852175107 | D25: =C25*trig_tab!$A25 -> 1.678640722 | F25: 1.836098743 | G25: =F25*trig_tab!$A25 -> 1.664070589 | J25: 1.787339017 | K25: =J25*trig_tab!$A25 -> 1.619879269 | M25: 1.769105098 | N25: =M25*trig_tab!$A25 -> 1.603353726 | Q25: 1.787476614 | R25: =Q25*trig_tab!$A25 -> 1.620003974 | T25: 1.812427772 | U25: =T25*trig_tab!$A25 -> 1.642617403 | X25: 2.502506438 | Y25: =X25*trig_tab!$A25 -> 2.268041071 | AA25: 2.486912046 | AB25: =AA25*trig_tab!$A25 -> 2.253907753 | AE25: 0.818898253 | AF25: =AE25*trig_tab!$A25 -> 0.7421738634 | AI25: 1.658041981 | AJ25: =AI25*trig_tab!$A25 -> 1.502696358 | AM25: 1.308262327 | AN25: =AM25*trig_tab!$A25 -> 1.185688335
A26: 26 | C26: 1.926661227 | D26: =C26*trig_tab!$A26 -> 1.73167164 | F26: 1.910965003 | G26: =F26*trig_tab!$A26 -> 1.717563968 | J26: 1.850459286 | K26: =J26*trig_tab!$A26 -> 1.663181789 | M26: 1.832639193 | N26: =M26*trig_tab!$A26 -> 1.647165196 | Q26: 1.86338279 | R26: =Q26*trig_tab!$A26 -> 1.674797358 | T26: 1.887767416 | U26: =T26*trig_tab!$A26 -> 1.696714115 | X26: 2.590370972 | Y26: =X26*trig_tab!$A26 -> 2.328210008 | AA26: 2.57512817 | AB26: =AA26*trig_tab!$A26 -> 2.314509868 | AE26: 0.8657756624 | AF26: =AE26*trig_tab!$A26 -> 0.7781540108 | AI26: 1.73621801 | AJ26: =AI26*trig_tab!$A26 -> 1.560502411 | AM26: 1.373392177 | AN26: =AM26*trig_tab!$A26 -> 1.234396712
A27: 27 | C27: 2.001194301 | D27: =C27*trig_tab!$A27 -> 1.783077178 | F27: 1.985998594 | G27: =F27*trig_tab!$A27 -> 1.769537704 | J27: 1.912594462 | K27: =J27*trig_tab!$A27 -> 1.704134144 | M27: 1.895322688 | N27: =M27*trig_tab!$A27 -> 1.68874488 | Q27: 1.939807451 | R27: =Q27*trig_tab!$A27 -> 1.728381094 | T27: 1.963441476 | U27: =T27*trig_tab!$A27 -> 1.749439165 | X27: 2.67679601 | Y27: =X27*trig_tab!$A27 -> 2.385042709 | AA27: 2.662019547 | AB27: =AA27*trig_tab!$A27 -> 2.371876784 | AE27: 0.9143144224 | AF27: =AE27*trig_tab!$A27 -> 0.8146601155 | AI27: 1.81578867 | AJ27: =AI27*trig_tab!$A27 -> 1.617879551 | AM27: 1.440027832 | AN27: =AM27*trig_tab!$A27 -> 1.283074194
A28: 28 | C28: 2.075776136 | D28: =C28*trig_tab!$A28 -> 1.832801543 | F28: 2.061205951 | G28: =F28*trig_tab!$A28 -> 1.819936833 | J28: 1.973706657 | K28: =J28*trig_tab!$A28 -> 1.742679542 | M28: 1.957122866 | N28: =M28*trig_tab!$A28 -> 1.728036923 | Q28: 2.016770537 | R28: =Q28*trig_tab!$A28 -> 1.780702691 | T28: 2.039462815 | U28: =T28*trig_tab!$A28 -> 1.800738783 | X28: 2.761726186 | Y28: =X28*trig_tab!$A28 -> 2.438459488 | AA28: 2.747535224 | AB28: =AA28*trig_tab!$A28 -> 2.425929613 | AE28: 0.964578431 | AF28: =AE28*trig_tab!$A28 -> 0.8516722038 | AI28: 1.896807598 | AJ28: =AI28*trig_tab!$A28 -> 1.674781703 | AM28: 1.508227211 | AN28: =AM28*trig_tab!$A28 -> 1.331685585
A29: 29 | C29: 2.150408538 | D29: =C29*trig_tab!$A29 -> 1.880789686 | F29: 2.136593511 | G29: =F29*trig_tab!$A29 -> 1.868706791 | J29: 2.033757983 | K29: =J29*trig_tab!$A29 -> 1.778764812 | M29: 2.018007012 | N29: =M29*trig_tab!$A29 -> 1.764988702 | Q29: 2.09429199 | R29: =Q29*trig_tab!$A29 -> 1.831709047 | T29: 2.115844293 | U29: =T29*trig_tab!$A29 -> 1.850559116 | X29: 2.845106135 | Y29: =X29*trig_tab!$A29 -> 2.488385894 | AA29: 2.83162425 | AB29: =AA29*trig_tab!$A29 -> 2.476594372 | AE29: 1.016631586 | AF29: =AE29*trig_tab!$A29 -> 0.8891660203 | AI29: 1.979328435 | AJ29: =AI29*trig_tab!$A29 -> 1.731159656 | AM29: 1.578048226 | AN29: =AM29*trig_tab!$A29 -> 1.380192078
A30: 30 | C30: 2.225093313 | D30: =C30*trig_tab!$A30 -> 1.926987335 | F30: 2.212167708 | G30: =F30*trig_tab!$A30 -> 1.915793433 | J30: 2.092710551 | K30: =J30*trig_tab!$A30 -> 1.8123405 | M30: 2.077942411 | N30: =M30*trig_tab!$A30 -> 1.799550916 | Q30: 2.172391751 | R30: =Q30*trig_tab!$A30 -> 1.881346444 | T30: 2.192598773 | U30: =T30*trig_tab!$A30 -> 1.898846238 | X30: 2.926880491 | Y30: =X30*trig_tab!$A30 -> 2.534752859 | AA30: 2.914235672 | AB30: =AA30*trig_tab!$A30 -> 2.523802124 | AE30: 1.070537786 | AF30: =AE30*trig_tab!$A30 -> 0.9271129188 | AI30: 2.06340482 | AJ30: =AI30*trig_tab!$A30 -> 1.786960992 | AM30: 1.649548796 | AN30: =AM30*trig_tab!$A30 -> 1.428551162
A31: 31 | C31: 2.299801253 | D31: =C31*trig_tab!$A31 -> 1.971314432 | F31: 2.287902688 | G31: =F31*trig_tab!$A31 -> 1.961115371 | J31: 2.150519201 | K31: =J31*trig_tab!$A31 -> 1.843354739 | M31: 2.136887075 | N31: =M31*trig_tab!$A31 -> 1.831669726 | Q31: 2.251055663 | R31: =Q31*trig_tab!$A31 -> 1.929531306 | T31: 2.269706343 | U31: =T31*trig_tab!$A31 -> 1.94551806 | X31: 3.006992452 | Y31: =X31*trig_tab!$A31 -> 2.577495603 | AA31: 2.995315614 | AB31: =AA31*trig_tab!$A31 -> 2.567486599 | AE31: 1.126321929 | AF31: =AE31*trig_tab!$A31 -> 0.9654463275 | AI31: 2.149051788 | AJ31: =AI31*trig_tab!$A31 -> 1.84209692 | AM31: 1.722748064 | AN31: =AM31*trig_tab!$A31 -> 1.476683308
A32: 32 | C32: 2.374379099 | D32: =C32*trig_tab!$A32 -> 2.013587674 | F32: 2.363643428 | G32: =F32*trig_tab!$A32 -> 2.004483309 | J32: 2.207109684 | K32: =J32*trig_tab!$A32 -> 1.871735166 | M32: 2.194761924 | N32: =M32*trig_tab!$A32 -> 1.861263671 | Q32: 2.330133164 | R32: =Q32*trig_tab!$A32 -> 1.976064993 | T32: 2.347015996 | U32: =T32*trig_tab!$A32 -> 1.990382447 | X32: 3.085379467 | Y32: =X32*trig_tab!$A32 -> 2.616550183 | AA32: 3.0747985 | AB32: =AA32*trig_tab!$A32 -> 2.607577014 | AE32: 1.183852909 | AF32: =AE32*trig_tab!$A32 -> 1.003964205 | AI32: 2.236129951 | AJ32: =AI32*trig_tab!$A32 -> 1.896345747 | AM32: 1.797510097 | AN32: =AM32*trig_tab!$A32 -> 1.524375016
A33: 33 | C33: 2.448642577 | D33: =C33*trig_tab!$A33 -> 2.05360446 | F33: 2.439202614 | G33: =F33*trig_tab!$A33 -> 2.045687442 | J33: 2.26240048 | K33: =J33*trig_tab!$A33 -> 1.897408696 | M33: 2.251478606 | N33: =M33*trig_tab!$A33 -> 1.888248842 | Q33: 2.409439592 | R33: =Q33*trig_tab!$A33 -> 2.020726071 | T33: 2.42434395 | U33: =T33*trig_tab!$A33 -> 2.033225917 | X33: 3.161977549 | Y33: =X33*trig_tab!$A33 -> 2.651857507 | AA33: 3.152615831 | AB33: =AA33*trig_tab!$A33 -> 2.64400611 | AE33: 1.24296062 | AF33: =AE33*trig_tab!$A33 -> 1.042434489 | AI33: 2.324461317 | AJ33: =AI33*trig_tab!$A33 -> 1.949457293 | AM33: 1.873660189 | AN33: =AM33*trig_tab!$A33 -> 1.571383655
A34: 34 | C34: 2.522407414 | D34: =C34*trig_tab!$A34 -> 2.09117052 | F34: 2.514392933 | G34: =F34*trig_tab!$A34 -> 2.084526214 | J34: 2.316310068 | K34: =J34*trig_tab!$A34 -> 1.920308076 | M34: 2.306948771 | N34: =M34*trig_tab!$A34 -> 1.912547209 | Q34: 2.488790286 | R34: =Q34*trig_tab!$A34 -> 2.063300657 | T34: 2.501506421 | U34: =T34*trig_tab!$A34 -> 2.073842811 | X34: 3.23672271 | Y34: =X34*trig_tab!$A34 -> 2.683364738 | AA34: 3.228699106 | AB34: =AA34*trig_tab!$A34 -> 2.676712869 | AE34: 1.303474957 | AF34: =AE34*trig_tab!$A34 -> 1.080629715 | AI34: 2.413867893 | AJ34: =AI34*trig_tab!$A34 -> 2.001187179 | AM34: 1.951023635 | AN34: =AM34*trig_tab!$A34 -> 1.617471898
A35: 35 | C35: 2.595489338 | D35: =C35*trig_tab!$A35 -> 2.126100397 | F35: 2.589027072 | G35: =F35*trig_tab!$A35 -> 2.120806818 | J35: 2.368756927 | K35: =J35*trig_tab!$A35 -> 1.940372079 | M35: 2.361084066 | N35: =M35*trig_tab!$A35 -> 1.934086839 | Q35: 2.568000584 | R35: =Q35*trig_tab!$A35 -> 2.103582928 | T35: 2.578319629 | U35: =T35*trig_tab!$A35 -> 2.112035795 | X35: 3.309550961 | Y35: =X35*trig_tab!$A35 -> 2.711025435 | AA35: 3.302979824 | AB35: =AA35*trig_tab!$A35 -> 2.705642675 | AE35: 1.365225815 | AF35: =AE35*trig_tab!$A35 -> 1.118327518 | AI35: 2.504171687 | AJ35: =AI35*trig_tab!$A35 -> 2.051297357 | AM35: 2.02942573 | AN35: =AM35*trig_tab!$A35 -> 1.662408236
A36: 36 | C36: 2.667704076 | D36: =C36*trig_tab!$A36 -> 2.158217933 | F36: 2.662917715 | G36: =F36*trig_tab!$A36 -> 2.154345686 | J36: 2.419659537 | K36: =J36*trig_tab!$A36 -> 1.957545686 | M36: 2.413796139 | N36: =M36*trig_tab!$A36 -> 1.952802098 | Q36: 2.646885826 | R36: =Q36*trig_tab!$A36 -> 2.141375615 | T36: 2.654599792 | U36: =T36*trig_tab!$A36 -> 2.147616345 | X36: 3.380398315 | Y36: =X36*trig_tab!$A36 -> 2.734799685 | AA36: 3.375389486 | AB36: =AA36*trig_tab!$A36 -> 2.730747457 | AE36: 1.428043088 | AF36: =AE36*trig_tab!$A36 -> 1.155311127 | AI36: 2.595194707 | AJ36: =AI36*trig_tab!$A36 -> 2.099556622 | AM36: 2.10869177 | AN36: =AM36*trig_tab!$A36 -> 1.705967478
A37: 37 | C37: 2.738867353 | D37: =C37*trig_tab!$A37 -> 2.187356726 | F37: 2.735877551 | G37: =F37*trig_tab!$A37 -> 2.184968963 | J37: 2.468936376 | K37: =J37*trig_tab!$A37 -> 1.971780262 | M37: 2.464996639 | N37: =M37*trig_tab!$A37 -> 1.968633848 | Q37: 2.725261348 | R37: =Q37*trig_tab!$A37 -> 2.176490487 | T37: 2.730163127 | U37: =T37*trig_tab!$A37 -> 2.180405221 | X37: 3.449200784 | Y37: =X37*trig_tab!$A37 -> 2.754654228 | AA37: 3.445859591 | AB37: =AA37*trig_tab!$A37 -> 2.751985832 | AE37: 1.49175667 | AF37: =AE37*trig_tab!$A37 -> 1.191369849 | AI37: 2.68675896 | AJ37: =AI37*trig_tab!$A37 -> 2.145741113 | AM37: 2.188647048 | AN37: =AM37*trig_tab!$A37 -> 1.747931252
A38: 38 | C38: 2.808794899 | D38: =C38*trig_tab!$A38 -> 2.213360585 | F38: 2.807719265 | G38: =F38*trig_tab!$A38 -> 2.212512974 | J38: 2.516505924 | K38: =J38*trig_tab!$A38 -> 1.98303373 | M38: 2.514597214 | N38: =M38*trig_tab!$A38 -> 1.981529646 | Q38: 2.80294249 | R38: =Q38*trig_tab!$A38 -> 2.208748824 | T38: 2.804825852 | U38: =T38*trig_tab!$A38 -> 2.210232933 | X38: 3.515894381 | Y38: =X38*trig_tab!$A38 -> 2.770562581 | AA38: 3.514321639 | AB38: =AA38*trig_tab!$A38 -> 2.769323243 | AE38: 1.556196456 | AF38: =AE38*trig_tab!$A38 -> 1.226299542 | AI38: 2.778686454 | AJ38: =AI38*trig_tab!$A38 -> 2.189634806 | AM38: 2.269116861 | AN38: =AM38*trig_tab!$A38 -> 1.788088488
A39: 39 | C39: 2.877302438 | D39: =C39*trig_tab!$A39 -> 2.23608397 | F39: 2.878255543 | G39: =F39*trig_tab!$A39 -> 2.236824672 | J39: 2.562286661 | K39: =J39*trig_tab!$A39 -> 1.991270731 | M39: 2.562509512 | N39: =M39*trig_tab!$A39 -> 1.991443918 | Q39: 2.879744591 | R39: =Q39*trig_tab!$A39 -> 2.237981879 | T39: 2.878404186 | U39: =T39*trig_tab!$A39 -> 2.236940189 | X39: 3.580415117 | Y39: =X39*trig_tab!$A39 -> 2.782505148 | AA39: 3.580707129 | AB39: =AA39*trig_tab!$A39 -> 2.782732085 | AE39: 1.62119234 | AF39: =AE39*trig_tab!$A39 -> 1.25990308 | AI39: 2.870799195 | AJ39: =AI39*trig_tab!$A39 -> 2.231030001 | AM39: 2.349926503 | AN39: =AM39*trig_tab!$A39 -> 1.826235892
A40: 40 | C40: 2.944205699 | D40: =C40*trig_tab!$A40 -> 2.255392415 | F40: 2.947299073 | G40: =F40*trig_tab!$A40 -> 2.257762077 | J40: 2.606197065 | K40: =J40*trig_tab!$A40 -> 1.996462779 | M40: 2.608645181 | N40: =M40*trig_tab!$A40 -> 1.998338145 | Q40: 2.955482988 | R40: =Q40*trig_tab!$A40 -> 2.26403132 | T40: 2.950714346 | U40: =T40*trig_tab!$A40 -> 2.260378328 | X40: 3.642699004 | Y40: =X40*trig_tab!$A40 -> 2.79046933 | AA40: 3.644947562 | AB40: =AA40*trig_tab!$A40 -> 2.792191826 | AE40: 1.686574216 | AF40: =AE40*trig_tab!$A40 -> 1.291990806 | AI40: 2.962919192 | AJ40: =AI40*trig_tab!$A40 -> 2.269727783 | AM40: 2.430901269 | AN40: =AM40*trig_tab!$A40 -> 1.862178409
A41: 41 | C41: 3.009320408 | D41: =C41*trig_tab!$A41 -> 2.271162942 | F41: 3.014662539 | G41: =F41*trig_tab!$A41 -> 2.275194699 | J41: 2.648155616 | K41: =J41*trig_tab!$A41 -> 1.998588413 | M41: 2.652915869 | N41: =M41*trig_tab!$A41 -> 2.002181022 | Q41: 3.02997302 | R41: =Q41*trig_tab!$A41 -> 2.286749666 | T41: 3.021572551 | U41: =T41*trig_tab!$A41 -> 2.280409752 | X41: 3.702682055 | Y41: =X41*trig_tab!$A41 -> 2.794449619 | AA41: 3.706974438 | AB41: =AA41*trig_tab!$A41 -> 2.797689122 | AE41: 1.752171979 | AF41: =AE41*trig_tab!$A41 -> 1.322380979 | AI41: 3.054868453 | AJ41: =AI41*trig_tab!$A41 -> 2.305538488 | AM41: 2.511866455 | AN41: =AM41*trig_tab!$A41 -> 1.895729678
A42: 42 | C42: 3.072462292 | D42: =C42*trig_tab!$A42 -> 2.283284454 | F42: 3.080158629 | G42: =F42*trig_tab!$A42 -> 2.289003947 | J42: 2.688080793 | K42: =J42*trig_tab!$A42 -> 1.997633332 | M42: 2.695233225 | N42: =M42*trig_tab!$A42 -> 2.002948625 | Q42: 3.103030026 | R42: =Q42*trig_tab!$A42 -> 2.306000707 | T42: 3.090795019 | U42: =T42*trig_tab!$A42 -> 2.296908325 | X42: 3.760300282 | Y42: =X42*trig_tab!$A42 -> 2.794447697 | AA42: 3.766719255 | AB42: =AA42*trig_tab!$A42 -> 2.799217923 | AE42: 1.817815524 | AF42: =AE42*trig_tab!$A42 -> 1.3509002 | AI42: 3.146468984 | AJ42: =AI42*trig_tab!$A42 -> 2.338282144 | AM42: 2.592647354 | AN42: =AM42*trig_tab!$A42 -> 1.926712466
A43: 43 | C43: 3.133447078 | D43: =C43*trig_tab!$A43 -> 2.29165812 | F43: 3.143600029 | G43: =F43*trig_tab!$A43 -> 2.299083517 | J43: 2.725891075 | K43: =J43*trig_tab!$A43 -> 1.993590528 | M43: 2.735508897 | N43: =M43*trig_tab!$A43 -> 2.000624558 | Q43: 3.174469344 | R43: =Q43*trig_tab!$A43 -> 2.321659906 | T43: 3.158197967 | U43: =T43*trig_tab!$A43 -> 2.309759774 | X43: 3.815489696 | Y43: =X43*trig_tab!$A43 -> 2.790472513 | AA43: 3.824113513 | AB43: =AA43*trig_tab!$A43 -> 2.796779573 | AE43: 1.883334744 | AF43: =AE43*trig_tab!$A43 -> 1.377383836 | AI43: 3.237542793 | AJ43: =AI43*trig_tab!$A43 -> 2.367788906 | AM43: 2.673069263 | AN43: =AM43*trig_tab!$A43 -> 1.9549591
A44: 44 | C44: 3.192090494 | D44: =C44*trig_tab!$A44 -> 2.296197739 | F44: 3.204799425 | G44: =F44*trig_tab!$A44 -> 2.305339778 | J44: 2.761504942 | K44: =J44*trig_tab!$A44 -> 1.986460413 | M44: 2.773654533 | N44: =M44*trig_tab!$A44 -> 1.995200098 | Q44: 3.244106313 | R44: =Q44*trig_tab!$A44 -> 2.333614787 | T44: 3.223597614 | U44: =T44*trig_tab!$A44 -> 2.318862064 | X44: 3.868186311 | Y44: =X44*trig_tab!$A44 -> 2.782540369 | AA44: 3.879088713 | AB44: =AA44*trig_tab!$A44 -> 2.790382901 | AE44: 1.948559534 | AF44: =AE44*trig_tab!$A44 -> 1.401676426 | AI44: 3.327911888 | AJ44: =AI44*trig_tab!$A44 -> 2.393899473 | AM44: 2.752957476 | AN44: =AM44*trig_tab!$A44 -> 1.980311881
A45: 45 | C45: 3.248208266 | D45: =C45*trig_tab!$A45 -> 2.296830091 | F45: 3.263569503 | G45: =F45*trig_tab!$A45 -> 2.307692127 | J45: 2.794840872 | K45: =J45*trig_tab!$A45 -> 1.976250933 | M45: 2.809581782 | N45: =M45*trig_tab!$A45 -> 1.98667433 | Q45: 3.31175627 | R45: =Q45*trig_tab!$A45 -> 2.341765316 | T45: 3.286810178 | U45: =T45*trig_tab!$A45 -> 2.324125765 | X45: 3.918326138 | Y45: =X45*trig_tab!$A45 -> 2.770674983 | AA45: 3.931576355 | AB45: =AA45*trig_tab!$A45 -> 2.780044301 | AE45: 2.013319788 | AF45: =AE45*trig_tab!$A45 -> 1.423632075 | AI45: 3.417398276 | AJ45: =AI45*trig_tab!$A45 -> 2.416465495 | AM45: 2.832137289 | AN45: =AM45*trig_tab!$A45 -> 2.002623482
A46: 46 | C46: 3.30161612 | D46: =C46*trig_tab!$A46 -> 2.293495274 | F46: 3.319722951 | G46: =F46*trig_tab!$A46 -> 2.306073335 | J46: 2.825817346 | K46: =J46*trig_tab!$A46 -> 1.962977673 | M46: 2.843202291 | N46: =M46*trig_tab!$A46 -> 1.97505427 | Q46: 3.377234555 | R46: =Q46*trig_tab!$A46 -> 2.346024253 | T46: 3.347651877 | U46: =T46*trig_tab!$A46 -> 2.325474397 | X46: 3.96584519 | Y46: =X46*trig_tab!$A46 -> 2.754907557 | AA46: 3.981507937 | AB46: =AA46*trig_tab!$A46 -> 2.765787815 | AE46: 2.077445402 | AF46: =AE46*trig_tab!$A46 -> 1.443114838 | AI46: 3.505823965 | AJ46: =AI46*trig_tab!$A46 -> 2.435349962 | AM46: 2.910433995 | AN46: =AM46*trig_tab!$A46 -> 2.021757336
A47: 47 | C47: 3.352129785 | D47: =C47*trig_tab!$A47 -> 2.286147016 | F47: 3.373072454 | G47: =F47*trig_tab!$A47 -> 2.300429882 | J47: 2.854352842 | K47: =J47*trig_tab!$A47 -> 1.946663958 | M47: 2.874427708 | N47: =M47*trig_tab!$A47 -> 1.960354983 | Q47: 3.440356506 | R47: =Q47*trig_tab!$A47 -> 2.346317495 | T47: 3.405938928 | U47: =T47*trig_tab!$A47 -> 2.322844763 | X47: 4.010679478 | Y47: =X47*trig_tab!$A47 -> 2.735276827 | AA47: 4.028814959 | AB47: =AA47*trig_tab!$A47 -> 2.747645195 | AE47: 2.140766268 | AF47: =AE47*trig_tab!$A47 -> 1.459999084 | AI47: 3.593010962 | AJ47: =AI47*trig_tab!$A47 -> 2.450427584 | AM47: 2.987672891 | AN47: =AM47*trig_tab!$A47 -> 2.037588012
A48: 48 | C48: 3.399564987 | D48: =C48*trig_tab!$A48 -> 2.274752981 | F48: 3.423430698 | G48: =F48*trig_tab!$A48 -> 2.290722259 | J48: 2.88036584 | K48: =J48*trig_tab!$A48 -> 1.927340941 | M48: 2.903169683 | N48: =M48*trig_tab!$A48 -> 1.94259969 | Q48: 3.500937461 | R48: =Q48*trig_tab!$A48 -> 2.342584406 | T48: 3.46148755 | U48: =T48*trig_tab!$A48 -> 2.316187263 | X48: 4.052765015 | Y48: =X48*trig_tab!$A48 -> 2.711829112 | AA48: 4.073428922 | AB48: =AA48*trig_tab!$A48 -> 2.725655965 | AE48: 2.203112283 | AF48: =AE48*trig_tab!$A48 -> 1.474169858 | AI48: 3.678781275 | AJ48: =AI48*trig_tab!$A48 -> 2.461585145 | AM48: 3.063679271 | AN48: =AM48*trig_tab!$A48 -> 2.050001568
A49: 49 | C49: 3.443737453 | D49: =C49*trig_tab!$A49 -> 2.259295049 | F49: 3.47061037 | G49: =F49*trig_tab!$A49 -> 2.276925269 | J49: 2.903774819 | K49: =J49*trig_tab!$A49 -> 1.905047688 | M49: 2.929339863 | N49: =M49*trig_tab!$A49 -> 1.921819866 | Q49: 3.558792759 | R49: =Q49*trig_tab!$A49 -> 2.334778122 | T49: 3.514113961 | U49: =T49*trig_tab!$A49 -> 2.305466193 | X49: 4.092037813 | Y49: =X49*trig_tab!$A49 -> 2.684618354 | AA49: 4.115281325 | AB49: =AA49*trig_tab!$A49 -> 2.69986747 | AE49: 2.264313339 | AF49: =AE49*trig_tab!$A49 -> 1.48552321 | AI49: 3.762956912 | AJ49: =AI49*trig_tab!$A49 -> 2.468721858 | AM49: 3.138278431 | AN49: =AM49*trig_tab!$A49 -> 2.0588959
A50: 50 | C50: 3.48446291 | D50: =C50*trig_tab!$A50 -> 2.239769585 | F50: 3.514424156 | G50: =F50*trig_tab!$A50 -> 2.259028303 | J50: 2.924498258 | K50: =J50*trig_tab!$A50 -> 1.879831245 | M50: 2.952849896 | N50: =M50*trig_tab!$A50 -> 1.898055326 | Q50: 3.613737739 | R50: =Q50*trig_tab!$A50 -> 2.322865843 | T50: 3.563634378 | U50: =T50*trig_tab!$A50 -> 2.290660024 | X50: 4.128433883 | Y50: =X50*trig_tab!$A50 -> 2.653706148 | AA50: 4.154303668 | AB50: =AA50*trig_tab!$A50 -> 2.670334925 | AE50: 2.324199332 | AF50: =AE50*trig_tab!$A50 -> 1.493966533 | AI50: 3.845359879 | AJ50: =AI50*trig_tab!$A50 -> 2.471749685 | AM50: 3.211295664 | AN50: =AM50*trig_tab!$A50 -> 2.064181064
A51: 51 | C51: 3.521629958 | D51: =C51*trig_tab!$A51 -> 2.216233542 | F51: 3.554753855 | G51: =F51*trig_tab!$A51 -> 2.237079086 | J51: 2.942505729 | K51: =J51*trig_tab!$A51 -> 1.851778856 | M51: 2.973660753 | N51: =M51*trig_tab!$A51 -> 1.871385348 | Q51: 3.665644595 | R51: =Q51*trig_tab!$A51 -> 2.30686489 | T51: 3.609929164 | U51: =T51*trig_tab!$A51 -> 2.271802033 | X51: 4.161929979 | Y51: =X51*trig_tab!$A51 -> 2.619187402 | AA51: 4.190465685 | AB51: =AA51*trig_tab!$A51 -> 2.637145504 | AE51: 2.382641073 | AF51: =AE51*trig_tab!$A51 -> 1.499444612 | AI51: 3.925853373 | AJ51: =AI51*trig_tab!$A51 -> 2.47061958 | AM51: 3.282597343 | AN51: =AM51*trig_tab!$A51 -> 2.065805443
A52: 52 | C52: 3.555418694 | D52: =C52*trig_tab!$A52 -> 2.188934319 | F52: 3.591757714 | G52: =F52*trig_tab!$A52 -> 2.211306853 | J52: 2.957971175 | K52: =J52*trig_tab!$A52 -> 1.821108898 | M52: 2.991930696 | N52: =M52*trig_tab!$A52 -> 1.842016466 | Q52: 3.714612957 | R52: =Q52*trig_tab!$A52 -> 2.286944093 | T52: 3.653135251 | U52: =T52*trig_tab!$A52 -> 2.249094638 | X52: 4.192665811 | Y52: =X52*trig_tab!$A52 -> 2.581262819 | AA52: 4.223890045 | AB52: =AA52*trig_tab!$A52 -> 2.600486377 | AE52: 2.43967305 | AF52: =AE52*trig_tab!$A52 -> 1.502012709 | AI52: 4.004465337 | AJ52: =AI52*trig_tab!$A52 -> 2.465395037 | AM52: 3.352214137 | AN52: =AM52*trig_tab!$A52 -> 2.063829101
A53: 53 | C53: 3.586082088 | D53: =C53*trig_tab!$A53 -> 2.158158075 | F53: 3.625663092 | G53: =F53*trig_tab!$A53 -> 2.181978517 | J53: 2.971119633 | K53: =J53*trig_tab!$A53 -> 1.788064431 | M53: 3.007867307 | N53: =M53*trig_tab!$A53 -> 1.810179733 | Q53: 3.760799308 | R53: =Q53*trig_tab!$A53 -> 2.263305522 | T53: 3.693453718 | U53: =T53*trig_tab!$A53 -> 2.222775935 | X53: 4.220821832 | Y53: =X53*trig_tab!$A53 -> 2.540153989 | AA53: 4.254737651 | AB53: =AA53*trig_tab!$A53 -> 2.560565038 | AE53: 2.495370666 | AF53: =AE53*trig_tab!$A53 -> 1.501751555 | AI53: 4.081264907 | AJ53: =AI53*trig_tab!$A53 -> 2.456166534 | AM53: 3.420217795 | AN53: =AM53*trig_tab!$A53 -> 2.058338451
A54: 54 | C54: 3.613873109 | D54: =C54*trig_tab!$A54 -> 2.124181317 | F54: 3.656697347 | G54: =F54*trig_tab!$A54 -> 2.149352773 | J54: 2.982176138 | K54: =J54*trig_tab!$A54 -> 1.752879154 | M54: 3.021678169 | N54: =M54*trig_tab!$A54 -> 1.776097865 | Q54: 3.804360133 | R54: =Q54*trig_tab!$A54 -> 2.236146781 | T54: 3.731085641 | U54: =T54*trig_tab!$A54 -> 2.193077115 | X54: 4.246578493 | Y54: =X54*trig_tab!$A54 -> 2.496076211 | AA54: 4.283169409 | AB54: =AA54*trig_tab!$A54 -> 2.517583812 | AE54: 2.549809326 | AF54: =AE54*trig_tab!$A54 -> 1.498740318 | AI54: 4.156321213 | AJ54: =AI54*trig_tab!$A54 -> 2.443024313 | AM54: 3.486680063 | AN54: =AM54*trig_tab!$A54 -> 2.049419121
A55: 55 | C55: 3.639044727 | D55: =C55*trig_tab!$A55 -> 2.087270306 | F55: 3.685087839 | G55: =F55*trig_tab!$A55 -> 2.11367955 | J55: 2.991365726 | K55: =J55*trig_tab!$A55 -> 1.715776893 | M55: 3.033570868 | N55: =M55*trig_tab!$A55 -> 1.739984768 | Q55: 3.845451917 | R55: =Q55*trig_tab!$A55 -> 2.205660607 | T55: 3.766232097 | U55: =T55*trig_tab!$A55 -> 2.160221985 | X55: 4.270116244 | Y55: =X55*trig_tab!$A55 -> 2.449238058 | AA55: 4.30934622 | AB55: =AA55*trig_tab!$A55 -> 2.471739448 | AE55: 2.603064434 | AF55: =AE55*trig_tab!$A55 -> 1.493056421 | AI55: 4.22970339 | AJ55: =AI55*trig_tab!$A55 -> 2.426058197 | AM55: 3.551672689 | AN55: =AM55*trig_tab!$A55 -> 2.037155764
A56: 56 | C56: 3.661849911 | D56: =C56*trig_tab!$A56 -> 2.047680484 | F56: 3.711061927 | G56: =F56*trig_tab!$A56 -> 2.075199494 | J56: 2.998913432 | K56: =J56*trig_tab!$A56 -> 1.67697111 | M56: 3.043752985 | N56: =M56*trig_tab!$A56 -> 1.702045069 | Q56: 3.884231145 | R56: =Q56*trig_tab!$A56 -> 2.172034492 | T56: 3.799094163 | U56: =T56*trig_tab!$A56 -> 2.124426496 | X56: 4.291615539 | Y56: =X56*trig_tab!$A56 -> 2.399840954 | AA56: 4.33342899 | AB56: =AA56*trig_tab!$A56 -> 2.423222739 | AE56: 2.655211393 | AF56: =AE56*trig_tab!$A56 -> 1.484775368 | AI56: 4.30148057 | AJ56: =AI56*trig_tab!$A56 -> 2.405357409 | AM56: 3.615267419 | AN56: =AM56*trig_tab!$A56 -> 2.021631885
A57: 57 | C57: 3.682541633 | D57: =C57*trig_tab!$A57 -> 2.005655921 | F57: 3.734846971 | G57: =F57*trig_tab!$A57 -> 2.03414345 | J57: 3.005044294 | K57: =J57*trig_tab!$A57 -> 1.636664424 | M57: 3.052432105 | N57: =M57*trig_tab!$A57 -> 1.662473676 | Q57: 3.920854302 | R57: =Q57*trig_tab!$A57 -> 2.135450304 | T57: 3.829872917 | U57: =T57*trig_tab!$A57 -> 2.08589829 | X57: 4.311256828 | Y57: =X57*trig_tab!$A57 -> 2.348078759 | AA57: 4.355578621 | AB57: =AA57*trig_tab!$A57 -> 2.372218137 | AE57: 2.706325609 | AF57: =AE57*trig_tab!$A57 -> 1.473970568 | AI57: 4.371721887 | AJ57: =AI57*trig_tab!$A57 -> 2.38101039 | AM57: 3.677536001 | AN57: =AM57*trig_tab!$A57 -> 2.002929659
A58: 58 | C58: 3.70137286 | D58: =C58*trig_tab!$A58 -> 1.961428783 | F58: 3.756670328 | G58: =F58*trig_tab!$A58 -> 1.990731976 | J58: 3.009983346 | K58: =J58*trig_tab!$A58 -> 1.59504816 | M58: 3.059815811 | N58: =M58*trig_tab!$A58 -> 1.621455343 | Q58: 3.955477873 | R58: =Q58*trig_tab!$A58 -> 2.096083924 | T58: 3.858769435 | U58: =T58*trig_tab!$A58 -> 2.04483626 | X58: 4.329220563 | Y58: =X58*trig_tab!$A58 -> 2.294137375 | AA58: 4.375956018 | AB58: =AA58*trig_tab!$A58 -> 2.318903393 | AE58: 2.756482486 | AF58: =AE58*trig_tab!$A58 -> 1.460713171 | AI58: 4.440496473 | AJ58: =AI58*trig_tab!$A58 -> 2.353104624 | AM58: 3.738550181 | AN58: =AM58*trig_tab!$A58 -> 1.981129761
A59: 59 | C59: 3.718596564 | D59: =C59*trig_tab!$A59 -> 1.915218816 | F59: 3.776759359 | G59: =F59*trig_tab!$A59 -> 1.94517487 | J59: 3.013955625 | K59: =J59*trig_tab!$A59 -> 1.552301903 | M59: 3.066111686 | N59: =M59*trig_tab!$A59 -> 1.57916426 | Q59: 3.988258342 | R59: =Q59*trig_tab!$A59 -> 2.054104899 | T59: 3.885984795 | U59: =T59*trig_tab!$A59 -> 2.001430128 | X59: 4.345687196 | Y59: =X59*trig_tab!$A59 -> 2.238194367 | AA59: 4.394722084 | AB59: =AA59*trig_tab!$A59 -> 2.263449202 | AE59: 2.805757427 | AF59: =AE59*trig_tab!$A59 -> 1.445071904 | AI59: 4.507873461 | AJ59: =AI59*trig_tab!$A59 -> 2.321726469 | AM59: 3.798381706 | AN59: =AM59*trig_tab!$A59 -> 1.956311202
A60: 60 | C60: 3.734465713 | D60: =C60*trig_tab!$A60 -> 1.867232857 | F60: 3.795341422 | G60: =F60*trig_tab!$A60 -> 1.897670711 | J60: 3.017186167 | K60: =J60*trig_tab!$A60 -> 1.508593083 | M60: 3.071527313 | N60: =M60*trig_tab!$A60 -> 1.535763657 | Q60: 4.019352194 | R60: =Q60*trig_tab!$A60 -> 2.009676097 | T60: 3.911720074 | U60: =T60*trig_tab!$A60 -> 1.955860037 | X60: 4.360837177 | Y60: =X60*trig_tab!$A60 -> 2.180418589 | AA60: 4.412037722 | AB60: =AA60*trig_tab!$A60 -> 2.206018861 | AE60: 2.854225838 | AF60: =AE60*trig_tab!$A60 -> 1.427112919 | AI60: 4.573921985 | AJ60: =AI60*trig_tab!$A60 -> 2.286960992 | AM60: 3.857102324 | AN60: =AM60*trig_tab!$A60 -> 1.928551162
A61: 61 | C61: 3.749198478 | D61: =C61*trig_tab!$A61 -> 1.81764749 | F61: 3.812612859 | G61: =F61*trig_tab!$A61 -> 1.848391392 | J61: 3.019867688 | K61: =J61*trig_tab!$A61 -> 1.464060907 | M61: 3.076240873 | N61: =M61*trig_tab!$A61 -> 1.491391169 | Q61: 4.048894297 | R61: =Q61*trig_tab!$A61 -> 1.962942906 | T61: 3.936149071 | U61: =T61*trig_tab!$A61 -> 1.908282936 | X61: 4.374827405 | Y61: =X61*trig_tab!$A61 -> 2.120958413 | AA61: 4.42804305 | AB61: =AA61*trig_tab!$A61 -> 2.146757869 | AE61: 2.901946908 | AF61: =AE61*trig_tab!$A61 -> 1.406891778 | AI61: 4.638695404 | AJ61: =AI61*trig_tab!$A61 -> 2.248884157 | AM61: 3.914767826 | AN61: =AM61*trig_tab!$A61 -> 1.897917103
A62: 62 | C62: 3.762873823 | D62: =C62*trig_tab!$A62 -> 1.766562254 | F62: 3.828645939 | G62: =F62*trig_tab!$A62 -> 1.797440392 | J62: 3.022063633 | K62: =J62*trig_tab!$A62 -> 1.418772936 | M62: 3.080312926 | N62: =M62*trig_tab!$A62 -> 1.446119323 | Q62: 4.076933049 | R62: =Q62*trig_tab!$A62 -> 1.91400413 | T62: 3.959336477 | U62: =T62*trig_tab!$A62 -> 1.858795884 | X62: 4.387720564 | Y62: =X62*trig_tab!$A62 -> 2.05991003 | AA62: 4.442795031 | AB62: =AA62*trig_tab!$A62 -> 2.085765926 | AE62: 2.948914974 | AF62: =AE62*trig_tab!$A62 -> 1.384431721 | AI62: 4.702183993 | AJ62: =AI62*trig_tab!$A62 -> 2.207541668 | AM62: 3.971370177 | AN62: =AM62*trig_tab!$A62 -> 1.864445364
A63: 63 | C63: 3.775535912 | D63: =C63*trig_tab!$A63 -> 1.714057436 | F63: 3.843481916 | G63: =F63*trig_tab!$A63 -> 1.744904276 | J63: 3.023805126 | K63: =J63*trig_tab!$A63 -> 1.3727788 | M63: 3.08377463 | N63: =M63*trig_tab!$A63 -> 1.400004385 | Q63: 4.103495233 | R63: =Q63*trig_tab!$A63 -> 1.862947852 | T63: 3.981319707 | U63: =T63*trig_tab!$A63 -> 1.807481324 | X63: 4.399555782 | Y63: =X63*trig_tab!$A63 -> 1.997356528 | AA63: 4.456329844 | AB63: =AA63*trig_tab!$A63 -> 2.023131413 | AE63: 2.99510816 | AF63: =AE63*trig_tab!$A63 -> 1.35975065 | AI63: 4.76436225 | AJ63: =AI63*trig_tab!$A63 -> 2.162975199 | AM63: 4.026885389 | AN63: =AM63*trig_tab!$A63 -> 1.82816771
A64: 64 | C64: 3.787228912 | D64: =C64*trig_tab!$A64 -> 1.660211881 | F64: 3.857162041 | G64: =F64*trig_tab!$A64 -> 1.690868547 | J64: 3.025123294 | K64: =J64*trig_tab!$A64 -> 1.326126767 | M64: 3.086657142 | N64: =M64*trig_tab!$A64 -> 1.353101431 | Q64: 4.128607629 | R64: =Q64*trig_tab!$A64 -> 1.809862461 | T64: 4.002136175 | U64: =T64*trig_tab!$A64 -> 1.754421025 | X64: 4.410372189 | Y64: =X64*trig_tab!$A64 -> 1.933379914 | AA64: 4.468683667 | AB64: =AA64*trig_tab!$A64 -> 1.958941984 | AE64: 3.040504588 | AF64: =AE64*trig_tab!$A64 -> 1.332869483 | AI64: 4.825204678 | AJ64: =AI64*trig_tab!$A64 -> 2.115230508 | AM64: 4.081289472 | AN64: =AM64*trig_tab!$A64 -> 1.789119546
A65: 65 | C65: 3.797996986 | D65: =C65*trig_tab!$A65 -> 1.605102884 | F65: 3.869727567 | G65: =F65*trig_tab!$A65 -> 1.635417538 | J65: 3.02604926 | K65: =J65*trig_tab!$A65 -> 1.278863678 | M65: 3.088991619 | N65: =M65*trig_tab!$A65 -> 1.305464269 | Q65: 4.15229702 | R65: =Q65*trig_tab!$A65 -> 1.754836549 | T65: 4.021823293 | U65: =T65*trig_tab!$A65 -> 1.699695969 | X65: 4.420208914 | Y65: =X65*trig_tab!$A65 -> 1.868061008 | AA65: 4.479892676 | AB65: =AA65*trig_tab!$A65 -> 1.893284456 | AE65: 3.085082381 | AF65: =AE65*trig_tab!$A65 -> 1.303812153 | AI65: 4.884685775 | AJ65: =AI65*trig_tab!$A65 -> 2.064357412 | AM65: 4.134558437 | AN65: =AM65*trig_tab!$A65 -> 1.7473399
A66: 66 | C66: 3.807884299 | D66: =C66*trig_tab!$A66 -> 1.548806077 | F66: 3.881219746 | G66: =F66*trig_tab!$A66 -> 1.578634291 | J66: 3.026614151 | K66: =J66*trig_tab!$A66 -> 1.23103488 | M66: 3.090809219 | N66: =M66*trig_tab!$A66 -> 1.257145366 | Q66: 4.174590185 | R66: =Q66*trig_tab!$A66 -> 1.697958798 | T66: 4.040418477 | U66: =T66*trig_tab!$A66 -> 1.643386248 | X66: 4.429105087 | Y66: =X66*trig_tab!$A66 -> 1.801479335 | AA66: 4.489993051 | AB66: =AA66*trig_tab!$A66 -> 1.826244701 | AE66: 3.128819662 | AF66: =AE66*trig_tab!$A66 -> 1.272605606 | AI66: 4.942780044 | AJ66: =AI66*trig_tab!$A66 -> 2.010409762 | AM66: 4.186668293 | AN66: =AM66*trig_tab!$A66 -> 1.702871407
A67: 67 | C67: 3.816935016 | D67: =C67*trig_tab!$A67 -> 1.491395326 | F67: 3.891679831 | G67: =F67*trig_tab!$A67 -> 1.520600452 | J67: 3.026849091 | K67: =J67*trig_tab!$A67 -> 1.182684161 | M67: 3.092141098 | N67: =M67*trig_tab!$A67 -> 1.208195781 | Q67: 4.195513908 | R67: =Q67*trig_tab!$A67 -> 1.639317884 | T67: 4.057959139 | U67: =T67*trig_tab!$A67 -> 1.585570954 | X67: 4.437099837 | Y67: =X67*trig_tab!$A67 -> 1.733713027 | AA67: 4.499020968 | AB67: =AA67*trig_tab!$A67 -> 1.75790754 | AE67: 3.171694554 | AF67: =AE67*trig_tab!$A67 -> 1.239279792 | AI67: 4.999461984 | AJ67: =AI67*trig_tab!$A67 -> 1.953445423 | AM67: 4.237595051 | AN67: =AM67*trig_tab!$A67 -> 1.655760296
A68: 68 | C68: 3.825193301 | D68: =C68*trig_tab!$A68 -> 1.432942632 | F68: 3.901149074 | G68: =F68*trig_tab!$A68 -> 1.461396165 | J68: 3.026785206 | K68: =J68*trig_tab!$A68 -> 1.133853695 | M68: 3.093018415 | N68: =M68*trig_tab!$A68 -> 1.158665092 | Q68: 4.215094969 | R68: =Q68*trig_tab!$A68 -> 1.579002367 | T68: 4.074482694 | U68: =T68*trig_tab!$A68 -> 1.526328082 | X68: 4.444232294 | Y68: =X68*trig_tab!$A68 -> 1.66483872 | AA68: 4.507012605 | AB68: =AA68*trig_tab!$A68 -> 1.688356638 | AE68: 3.213685181 | AF68: =AE68*trig_tab!$A68 -> 1.203867658 | AI68: 5.054706095 | AJ68: =AI68*trig_tab!$A68 -> 1.893526231 | AM68: 4.287314722 | AN68: =AM68*trig_tab!$A68 -> 1.606056363
A69: 69 | C69: 3.83270332 | D69: =C69*trig_tab!$A69 -> 1.37351803 | F69: 3.909668727 | G69: =F69*trig_tab!$A69 -> 1.401099965 | J69: 3.026453621 | K69: =J69*trig_tab!$A69 -> 1.084583978 | M69: 3.093472326 | N69: =M69*trig_tab!$A69 -> 1.108601334 | Q69: 4.23336015 | R69: =Q69*trig_tab!$A69 -> 1.517100597 | T69: 4.090026555 | U69: =T69*trig_tab!$A69 -> 1.46573443 | X69: 4.450541587 | Y69: =X69*trig_tab!$A69 -> 1.594931463 | AA69: 4.51400414 | AB69: =AA69*trig_tab!$A69 -> 1.617674408 | AE69: 3.254769664 | AF69: =AE69*trig_tab!$A69 -> 1.166405131 | AI69: 5.108486879 | AJ69: =AI69*trig_tab!$A69 -> 1.830717968 | AM69: 4.335803317 | AN69: =AM69*trig_tab!$A69 -> 1.553812944
A70: 70 | C70: 3.839509237 | D70: =C70*trig_tab!$A70 -> 1.313189499 | F70: 3.917280043 | G70: =F70*trig_tab!$A70 -> 1.339788682 | J70: 3.02588546 | K70: =J70*trig_tab!$A70 -> 1.034913779 | M70: 3.093533988 | N70: =M70*trig_tab!$A70 -> 1.058050938 | Q70: 4.250336233 | R70: =Q70*trig_tab!$A70 -> 1.453700608 | T70: 4.104628136 | U70: =T70*trig_tab!$A70 -> 1.403865504 | X70: 4.456066846 | Y70: =X70*trig_tab!$A70 -> 1.524064621 | AA70: 4.52003175 | AB70: =AA70*trig_tab!$A70 -> 1.545941907 | AE70: 3.294926127 | AF70: =AE70*trig_tab!$A70 -> 1.126931106 | AI70: 5.160778835 | AJ70: =AI70*trig_tab!$A70 -> 1.765090317 | AM70: 4.383036845 | AN70: =AM70*trig_tab!$A70 -> 1.49908689
A71: 71 | C71: 3.845655216 | F71: 3.924024273 | J71: 3.02511185 | M71: 3.09323456 | Q71: 4.266049999 | T71: 4.118324852 | X71: 4.4608472 | AA71: 4.525131614 | AE71: 3.334132693 | AI71: 5.211556465 | AM71: 4.428991317
A72: 72 | C72: 3.851185422 | F72: 3.929942672 | J72: 3.024163915 | M72: 3.092605197 | Q72: 4.280528229 | T72: 4.131154116 | X72: 4.464921778 | AA72: 4.529339908 | AE72: 3.372367486 | AI72: 5.260794269 | AM72: 4.473642743
A73: 73 | C73: 3.856144021 | F73: 3.935076489 | J73: 3.02307278 | M73: 3.091677058 | Q73: 4.293797705 | T73: 4.143153341 | X73: 4.468329711 | AA73: 4.532692811 | AE73: 3.409608627 | AI73: 5.308466747 | AM73: 4.516967135
A74: 74 | C74: 3.860575176 | F74: 3.939466979 | J74: 3.021869571 | M74: 3.090481299 | Q74: 4.305885208 | T74: 4.154359943 | X74: 4.471110126 | AA74: 4.5352265 | AE74: 3.445834239 | AI74: 5.354548399 | AM74: 4.558940502
A75: 75 | C75: 3.864523052 | F75: 3.943155394 | J75: 3.020585413 | M75: 3.089049078 | Q75: 4.31681752 | T75: 4.164811333 | X75: 4.473302155 | AA75: 4.536977153 | AE75: 3.481022447 | AI75: 5.399013727 | AM75: 4.599538855
A76: 76 | C76: 3.868031815 | F76: 3.946182985 | J76: 3.019251431 | M76: 3.087411552 | Q76: 4.326621423 | T76: 4.174544927 | X76: 4.474944926 | AA76: 4.537980947 | AE76: 3.515151372 | AI76: 5.441837231 | AM76: 4.638738204
A77: 77 | C77: 3.871145628 | F77: 3.948591006 | J77: 3.01789875 | M77: 3.085599879 | Q77: 4.335323697 | T77: 4.183598138 | X77: 4.476077569 | AA77: 4.538274061 | AE77: 3.548199138 | AI77: 5.482993411 | AM77: 4.67651456
A78: 78 | C78: 3.873908657 | F78: 3.950420708 | J78: 3.016558495 | M78: 3.083645215 | Q78: 4.342951125 | T78: 4.19200838 | X78: 4.476739213 | AA78: 4.537892671 | AE78: 3.580143868 | AI78: 5.522456768 | AM78: 4.712843933
A79: 79 | C79: 3.876365066 | F79: 3.951713343 | J79: 3.015261792 | M79: 3.081578718 | Q79: 4.349530488 | T79: 4.199813067 | X79: 4.476968988 | AA79: 4.536872956 | AE79: 3.610963684 | AI79: 5.560201803 | AM79: 4.747702334
A80: 80 | C80: 3.87855902 | F80: 3.952510166 | J80: 3.014039765 | M80: 3.079431545 | Q80: 4.355088567 | T80: 4.207049613 | X80: 4.476806022 | AA80: 4.535251094 | AE80: 3.64063671 | AI80: 5.596203015 | AM80: 4.781065773
A81: 81 | C81: 3.880533273 | F81: 3.952854867 | J81: 3.012921448 | M81: 3.077234197 | Q81: 4.359653055 | T81: 4.21374973 | X81: 4.476287022 | AA81: 4.533064955 | AE81: 3.669144714 | AI81: 5.630439071 | AM81: 4.812914209
A82: 82 | C82: 3.882324939 | F82: 3.952800906 | J82: 3.011927508 | M82: 3.075014547 | Q82: 4.363255288 | T82: 4.21992233 | X82: 4.475438988 | AA82: 4.530359187 | AE82: 3.696484049 | AI82: 5.662905298 | AM82: 4.843243398
A83: 83 | C83: 3.88396972 | F83: 3.952404179 | J83: 3.011076517 | M83: 3.072799811 | Q83: 4.365927515 | T83: 4.225570621 | X83: 4.474286498 | AA83: 4.527180133 | AE83: 3.722654713 | AI83: 5.69360119 | AM83: 4.872053042
A84: 84 | C84: 3.88550332 | F84: 3.951720585 | J84: 3.010387049 | M84: 3.070617207 | Q84: 4.367701982 | T84: 4.230697814 | X84: 4.47285413 | AA84: 4.523574134 | AE84: 3.747656702 | AI84: 5.722526239 | AM84: 4.899342845
A85: 85 | C85: 3.886961441 | F85: 3.950806021 | J85: 3.00987768 | M85: 3.068493952 | Q85: 4.368610939 | T85: 4.235307117 | X85: 4.471166461 | AA85: 4.519587532 | AE85: 3.771490016 | AI85: 5.749679938 | AM85: 4.92511251
A86: 86 | C86: 3.888379788 | F86: 3.949716387 | J86: 3.009566982 | M86: 3.066457261 | Q86: 4.368686631 | T86: 4.239401741 | X86: 4.469248069 | AA86: 4.515266668 | AE86: 3.794154653 | AI86: 5.775061781 | AM86: 4.949361742
A87: 87 | C87: 3.889794061 | F87: 3.94850758 | J87: 3.00947353 | M87: 3.064534352 | Q87: 4.367961308 | T87: 4.242984896 | X87: 4.46712353 | AA87: 4.510657885 | AE87: 3.815650609 | AI87: 5.79867126 | AM87: 4.972090243
A88: 88 | C88: 3.891239966 | F88: 3.947235498 | J88: 3.009615898 | M88: 3.062752441 | Q88: 4.366467217 | T88: 4.24605979 | X88: 4.464817423 | AA88: 4.505807523 | AE88: 3.835977884 | AI88: 5.820507869 | AM88: 4.993297718
A89: 89 | C89: 3.892753204 | F89: 3.945956039 | J89: 3.01001266 | M89: 3.061138745 | Q89: 4.364236605 | T89: 4.248629633 | X89: 4.462354324 | AA89: 4.500761924 | AE89: 3.855136475 | AI89: 5.840571101 | AM89: 5.012983869
A90: 90 | C90: 3.894369478 | F90: 3.944725101 | J90: 3.010682389 | M90: 3.059720481 | Q90: 4.36130172 | T90: 4.250697635 | X90: 4.459758811 | AA90: 4.495567431 | AE90: 3.87312638 | AI90: 5.858860447 | AM90: 5.0311484
A91: 91 | C91: 3.896120927 | F91: 3.943593417 | J91: 3.01164188 | M91: 3.058523097 | Q91: 4.357692182 | T91: 4.252265769 | X91: 4.457053418 | AA91: 4.490266467 | AE91: 3.889946784 | AI91: 5.875374824 | AM91: 5.047790337
A92: 92 | C92: 3.898025423 | F92: 3.942591061 | J92: 3.012900805 | M92: 3.057564965 | Q92: 4.353427093 | T92: 4.25333106 | X92: 4.4542525 | AA92: 4.48488579 | AE92: 3.905593612 | AI92: 5.890110825 | AM92: 5.062905997
A93: 93 | C93: 3.900097275 | F93: 3.941742941 | J93: 3.014467058 | M93: 3.05686269 | Q93: 4.348522927 | T93: 4.253889299 | X93: 4.451368371 | AA93: 4.479448238 | AE93: 3.920061977 | AI93: 5.903064469 | AM93: 5.076491021
A94: 94 | C94: 3.902350792 | F94: 3.941073966 | J94: 3.016348531 | M94: 3.056432876 | Q94: 4.342996159 | T94: 4.253936273 | X94: 4.448413344 | AA94: 4.47397665 | AE94: 3.933346993 | AI94: 5.914231771 | AM94: 5.088541049
A95: 95 | C95: 3.904800281 | F95: 3.940609043 | J95: 3.018553117 | M95: 3.056292127 | Q95: 4.336863264 | T95: 4.253467772 | X95: 4.445399732 | AA95: 4.468493866 | AE95: 3.945443773 | AI95: 5.92360875 | AM95: 5.09905172
A96: 96 | C96: 3.90746005 | F96: 3.940373082 | J96: 3.02108871 | M96: 3.056457048 | Q96: 4.330140715 | T96: 4.252479585 | X96: 4.442339846 | AA96: 4.463022724 | AE96: 3.956347428 | AI96: 5.931191421 | AM96: 5.108018675
A97: 97 | C97: 3.910344408 | F97: 3.94039099 | J97: 3.023963201 | M97: 3.056944242 | Q97: 4.322844987 | T97: 4.250967501 | X97: 4.439246 | AA97: 4.457586064 | AE97: 3.966053072 | AI97: 5.936975802 | AM97: 5.115437553
A98: 98 | C98: 3.913467663 | F98: 3.940687676 | J98: 3.027184484 | M98: 3.057770313 | Q98: 4.314992554 | T98: 4.24892731 | X98: 4.436130507 | AA98: 4.452206725 | AE98: 3.974555818 | AI98: 5.940957909 | AM98: 5.121303994
A99: 99 | C99: 3.916844123 | F99: 3.941288048 | J99: 3.030760452 | M99: 3.058951867 | Q99: 4.306599891 | T99: 4.246354799 | X99: 4.433005679 | AA99: 4.446907547 | AE99: 3.981850778 | AI99: 5.94313376 | AM99: 5.12561364
A100: 100 | C100: 3.920488096 | F100: 3.942217015 | J100: 3.034698997 | M100: 3.060505506 | Q100: 4.297683471 | T100: 4.24324576 | X100: 4.429883829 | AA100: 4.441711367 | AE100: 3.987933066 | AI100: 5.94349937 | AM100: 5.128362128
A101: 101 | C101: 3.924420669 | F101: 3.943505995 | J101: 3.039011428 | M101: 3.062446854 | Q101: 4.288257746 | T101: 4.239595572 | X101: 4.426778532 | AA101: 4.436643388 | AE101: 3.992798377 | AI101: 5.942051589 | AM101: 5.129545829
A102: 102 | C102: 3.92869005 | F102: 3.945212441 | J102: 3.043722716 | M102: 3.064787608 | Q102: 4.278329066 | T102: 4.23539799 | X102: 4.423708417 | AA102: 4.431738255 | AE102: 3.99644475 | AI102: 5.938790595 | AM102: 5.129164027
A103: 103 | C103: 3.933351223 | F103: 3.947400317 | J103: 3.048861246 | M103: 3.067538485 | Q103: 4.267901761 | T103: 4.23064636 | X103: 4.420693371 | AA103: 4.427032979 | AE103: 3.998870804 | AI103: 5.933717396 | AM103: 5.127216736
A104: 104 | C104: 3.938459175 | F104: 3.950133587 | J104: 3.054455404 | M104: 3.070710199 | Q104: 4.256980158 | T104: 4.225334028 | X104: 4.417753285 | AA104: 4.422564567 | AE104: 4.000075161 | AI104: 5.926833002 | AM104: 5.12370397
A105: 105 | C105: 3.94406889 | F105: 3.953476213 | J105: 3.060533577 | M105: 3.074313467 | Q105: 4.245568586 | T105: 4.219454339 | X105: 4.414908048 | AA105: 4.418370028 | AE105: 4.000056441 | AI105: 5.918138423 | AM105: 5.118625743
A106: 106 | C106: 3.950235355 | F106: 3.95749216 | J106: 3.067124151 | M106: 3.078359005 | Q106: 4.233671372 | T106: 4.21300064 | X106: 4.41217755 | AA106: 4.414486372 | AE106: 3.998813266 | AI106: 5.907634667 | AM106: 5.111982068
A107: 107 | C107: 3.957013555 | F107: 3.962245391 | J107: 3.074255511 | M107: 3.082857528 | Q107: 4.221292845 | T107: 4.205966277 | X107: 4.409581681 | AA107: 4.410950606 | AE107: 3.996344255 | AI107: 5.895322745 | AM107: 5.103772959
A108: 108 | C108: 3.964458476 | F108: 3.96779987 | J108: 3.081956044 | M108: 3.087819753 | Q108: 4.208437332 | T108: 4.198344596 | X108: 4.407140329 | AA108: 4.40779974 | AE108: 3.99264803 | AI108: 5.881203666 | AM108: 5.093998431
A109: 109 | C109: 3.972625103 | F109: 3.974219559 | J109: 3.090254136 | M109: 3.093256396 | Q109: 4.195109163 | T109: 4.190128943 | X109: 4.404873386 | AA109: 4.405070781 | AE109: 3.987723213 | AI109: 5.865278438 | AM109: 5.082658496
A110: 110 | C110: 3.981568422 | F110: 3.981568422 | J110: 3.099178172 | M110: 3.099178172 | Q110: 4.181312664 | T110: 4.181312664 | X110: 4.40280074 | AA110: 4.40280074 | AE110: 3.981568422 | AI110: 5.847548072 | AM110: 5.069753168
A111: 111 | C111: 3.99130915 | F111: 3.989873603 | J111: 3.108735008 | M111: 3.105584686 | Q111: 4.167047724 | T111: 4.171882733 | X111: 4.400921859 | AA111: 4.400998037 | AE111: 3.974183746 | AI111: 5.828015517 | AM111: 5.055284204
A112: 112 | C112: 4.001730921 | F112: 3.999014964 | J112: 3.118845371 | M112: 3.112431097 | Q112: 4.152296465 | T112: 4.161800636 | X112: 4.399154519 | AA112: 4.399556741 | AE112: 3.965575129 | AI112: 5.806691481 | AM112: 5.039260327
A113: 113 | C113: 4.012683103 | F113: 4.008835546 | J113: 3.129408461 | M113: 3.119661454 | Q113: 4.137036571 | T113: 4.151021485 | X113: 4.397396076 | AA113: 4.398342337 | AE113: 3.955749982 | AI113: 5.783588613 | AM113: 5.021692002
A114: 114 | C114: 4.024015062 | F114: 4.019178391 | J114: 3.140323473 | M114: 3.127219803 | Q114: 4.121245724 | T114: 4.139500393 | X114: 4.395543884 | AA114: 4.397220306 | AE114: 3.944715716 | AI114: 5.758719562 | AM114: 5.002589694
A115: 115 | C115: 4.035576164 | F115: 4.029886542 | J115: 3.151489606 | M115: 3.135050193 | Q115: 4.104901606 | T115: 4.127192476 | X115: 4.393495298 | AA115: 4.396056131 | AE115: 3.932479742 | AI115: 5.732096977 | AM115: 4.981963869
A116: 116 | C116: 4.047215776 | F116: 4.040803039 | J116: 3.162806057 | M116: 3.143096671 | Q116: 4.087981902 | T116: 4.114052844 | X116: 4.391147672 | AA116: 4.394715294 | AE116: 3.919049471 | AI116: 5.703733505 | AM116: 4.959824992
A117: 117 | C117: 4.058783264 | F117: 4.051770925 | J117: 3.174172024 | M117: 3.151303286 | Q117: 4.070464292 | T117: 4.100036612 | X117: 4.388398362 | AA117: 4.393063278 | AE117: 3.904432313 | AI117: 5.673641796 | AM117: 4.936183529
A118: 118 | C118: 4.070127996 | E118: =C118*trig_tab!$A118 -> 1.910809351 | F118: 4.062633242 | H118: =F118*trig_tab!$A118 -> 1.907290777 | J118: 3.185486704 | L118: =J118*trig_tab!$A118 -> 1.495495421 | M118: 3.159614085 | O118: =M118*trig_tab!$A118 -> 1.483348962 | Q118: 4.05232646 | S118: =Q118*trig_tab!$A118 -> 1.902452036 | T118: 4.085098893 | V118: =T118*trig_tab!$A118 -> 1.917837761 | X118: 4.385144722 | Z118: =X118*trig_tab!$A118 -> 2.058700746 | AA118: 4.390965565 | AC118: =AA118*trig_tab!$A118 -> 2.061433466 | AE118: 3.888635681 | AG118: =AE118*trig_tab!$A118 -> 1.82560387 | AI118: 5.641834498 | AK118: =AI118*trig_tab!$A118 -> 2.648680859 | AM118: 4.911049945 | AO118: =AM118*trig_tab!$A118 -> 2.305598292
A119: 119 | C119: 4.081099336 | E119: =C119*trig_tab!$A119 -> 1.978556219 | F119: 4.073233032 | H119: =F119*trig_tab!$A119 -> 1.974742559 | J119: 3.196649294 | L119: =J119*trig_tab!$A119 -> 1.54976633 | M119: 3.167973117 | O119: =M119*trig_tab!$A119 -> 1.535863844 | Q119: 4.033546089 | S119: =Q119*trig_tab!$A119 -> 1.955501948 | T119: 4.0691948 | V119: =T119*trig_tab!$A119 -> 1.972784786 | X119: 4.381284106 | Z119: =X119*trig_tab!$A119 -> 2.124088684 | AA119: 4.388287639 | AC119: =AA119*trig_tab!$A119 -> 2.127484064 | AE119: 3.871666983 | AG119: =AE119*trig_tab!$A119 -> 1.8770214 | AI119: 5.60832426 | AK119: =AI119*trig_tab!$A119 -> 2.718969555 | AM119: 4.884434705 | AO119: =AM119*trig_tab!$A119 -> 2.368020934
A120: 120 | C120: 4.091546651 | E120: =C120*trig_tab!$A120 -> 2.045773326 | F120: 4.083413336 | H120: =F120*trig_tab!$A120 -> 2.041706668 | J120: 3.207558992 | L120: =J120*trig_tab!$A120 -> 1.603779496 | M120: 3.176324428 | O120: =M120*trig_tab!$A120 -> 1.588162214 | Q120: 4.014100861 | S120: =Q120*trig_tab!$A120 -> 2.007050431 | T120: 4.052279447 | V120: =T120*trig_tab!$A120 -> 2.026139724 | X120: 4.37671387 | Z120: =X120*trig_tab!$A120 -> 2.188356935 | AA120: 4.384894982 | AC120: =AA120*trig_tab!$A120 -> 2.192447491 | AE120: 3.853533632 | AG120: =AE120*trig_tab!$A120 -> 1.926766816 | AI120: 5.573123731 | AK120: =AI120*trig_tab!$A120 -> 2.786561866 | AM120: 4.856348274 | AO120: =AM120*trig_tab!$A120 -> 2.428174137
A121: 121 | C121: 4.101319309 | E121: =C121*trig_tab!$A121 -> 2.112335601 | F121: 4.093017196 | H121: =F121*trig_tab!$A121 -> 2.108059697 | J121: 3.218114995 | L121: =J121*trig_tab!$A121 -> 1.657451752 | M121: 3.184612067 | O121: =M121*trig_tab!$A121 -> 1.640196468 | Q121: 3.99396846 | S121: =Q121*trig_tab!$A121 -> 2.057045827 | T121: 4.034307946 | V121: =T121*trig_tab!$A121 -> 2.077822198 | X121: 4.371331368 | Z121: =X121*trig_tab!$A121 -> 2.251402093 | AA121: 4.380653075 | AC121: =AA121*trig_tab!$A121 -> 2.256203127 | AE121: 3.834243038 | AG121: =AE121*trig_tab!$A121 -> 1.974781153 | AI121: 5.536245559 | AK121: =AI121*trig_tab!$A121 -> 2.851377255 | AM121: 4.826801119 | AO121: =AM121*trig_tab!$A121 -> 2.485986356
A122: 122 | C122: 4.110266675 | E122: =C122*trig_tab!$A122 -> 2.178109492 | F122: 4.101887654 | H122: =F122*trig_tab!$A122 -> 2.173669288 | J122: 3.228216502 | L122: =J122*trig_tab!$A122 -> 1.710694113 | M122: 3.192780082 | O122: =M122*trig_tab!$A122 -> 1.691915672 | Q122: 3.973126566 | S122: =Q122*trig_tab!$A122 -> 2.105436307 | T122: 4.015235412 | V122: =T122*trig_tab!$A122 -> 2.127750595 | X122: 4.365033955 | Z122: =X122*trig_tab!$A122 -> 2.313115582 | AA122: 4.375427403 | AC122: =AA122*trig_tab!$A122 -> 2.31862327 | AE122: 3.813802611 | AG122: =AE122*trig_tab!$A122 -> 2.021007474 | AI122: 5.497702392 | AK122: =AI122*trig_tab!$A122 -> 2.913338407 | AM122: 4.795803704 | AO122: =AM122*trig_tab!$A122 -> 2.54138877
A123: 123 | C123: 4.118238116 | E123: =C123*trig_tab!$A123 -> 2.242953233 | F123: 4.109867752 | H123: =F123*trig_tab!$A123 -> 2.238394407 | J123: 3.237762708 | L123: =J123*trig_tab!$A123 -> 1.763411957 | M123: 3.20077252 | O123: =M123*trig_tab!$A123 -> 1.743265657 | Q123: 3.951552864 | S123: =Q123*trig_tab!$A123 -> 2.152169939 | T123: 3.995016956 | V123: =T123*trig_tab!$A123 -> 2.17584218 | X123: 4.357718985 | Z123: =X123*trig_tab!$A123 -> 2.373383863 | AA123: 4.369083447 | AC123: =AA123*trig_tab!$A123 -> 2.379573392 | AE123: 3.792219764 | AG123: =AE123*trig_tab!$A123 -> 2.065390913 | AI123: 5.45750688 | AK123: =AI123*trig_tab!$A123 -> 2.972371281 | AM123: 4.763366495 | AO123: =AM123*trig_tab!$A123 -> 2.594315331
A124: 124 | C124: 4.125082998 | E124: =C124*trig_tab!$A124 -> 2.306717139 | F124: 4.116800532 | H124: =F124*trig_tab!$A124 -> 2.302085642 | J124: 3.246652812 | L124: =J124*trig_tab!$A124 -> 1.815505213 | M124: 3.20853343 | O124: =M124*trig_tab!$A124 -> 1.794189125 | Q124: 3.929225037 | S124: =Q124*trig_tab!$A124 -> 2.197194757 | T124: 3.973607694 | V124: =T124*trig_tab!$A124 -> 2.222013223 | X124: 4.349283813 | Z124: =X124*trig_tab!$A124 -> 2.432088644 | AA124: 4.361486689 | AC124: =AA124*trig_tab!$A124 -> 2.438912405 | AE124: 3.769501906 | AG124: =AE124*trig_tab!$A124 -> 2.107878716 | AI124: 5.41567167 | AK124: =AI124*trig_tab!$A124 -> 3.028405166 | AM124: 4.729499957 | AO124: =AM124*trig_tab!$A124 -> 2.644702813
A125: 125 | C125: 4.130650687 | E125: =C125*trig_tab!$A125 -> 2.369243901 | F125: 4.122529035 | H125: =F125*trig_tab!$A125 -> 2.364585513 | J125: 3.254786012 | L125: =J125*trig_tab!$A125 -> 1.866868562 | M125: 3.216006859 | O125: =M125*trig_tab!$A125 -> 1.844625754 | Q125: 3.906120766 | S125: =Q125*trig_tab!$A125 -> 2.240458829 | T125: 3.950962736 | V125: =T125*trig_tab!$A125 -> 2.266179127 | X125: 4.339625795 | Z125: =X125*trig_tab!$A125 -> 2.489107099 | AA125: 4.352502613 | AC125: =AA125*trig_tab!$A125 -> 2.496492938 | AE125: 3.745656449 | AG125: =AE125*trig_tab!$A125 -> 2.148420278 | AI125: 5.372209412 | AK125: =AI125*trig_tab!$A125 -> 3.08137273 | AM125: 4.694214556 | AO125: =AM125*trig_tab!$A125 -> 2.692490856
A126: 126 | C126: 4.134790551 | E126: =C126*trig_tab!$A126 -> 2.430368907 | F126: 4.126896304 | H126: =F126*trig_tab!$A126 -> 2.425728785 | J126: 3.262061504 | L126: =J126*trig_tab!$A126 -> 1.917391644 | M126: 3.223136855 | O126: =M126*trig_tab!$A126 -> 1.89451231 | Q126: 3.882217734 | S126: =Q126*trig_tab!$A126 -> 2.28191033 | T126: 3.927037198 | V126: =T126*trig_tab!$A126 -> 2.30825455 | X126: 4.328642284 | Z126: =X126*trig_tab!$A126 -> 2.544312097 | AA126: 4.341996702 | AC126: =AA126*trig_tab!$A126 -> 2.552161627 | AE126: 3.720690803 | AG126: =AE126*trig_tab!$A126 -> 2.186967183 | AI126: 5.327132755 | AK126: =AI126*trig_tab!$A126 -> 3.13121007 | AM126: 4.657520756 | AO126: =AM126*trig_tab!$A126 -> 2.737622013
A127: 127 | C127: 4.137351955 | E127: =C127*trig_tab!$A127 -> 2.489920563 | F127: 4.129745381 | H127: =F127*trig_tab!$A127 -> 2.485342812 | J127: 3.268378486 | L127: =J127*trig_tab!$A127 -> 1.966959274 | M127: 3.229867466 | O127: =M127*trig_tab!$A127 -> 1.943782764 | Q127: 3.857493625 | S127: =Q127*trig_tab!$A127 -> 2.321497615 | T127: 3.901786193 | V127: =T127*trig_tab!$A127 -> 2.348153548 | X127: 4.316230636 | Z127: =X127*trig_tab!$A127 -> 2.59757244 | AA127: 4.329834436 | AC127: =AA127*trig_tab!$A127 -> 2.605759412 | AE127: 3.69461238 | AG127: =AE127*trig_tab!$A127 -> 2.223473235 | AI127: 5.280454346 | AK127: =AI127*trig_tab!$A127 -> 3.177856754 | AM127: 4.619429024 | AO127: =AM127*trig_tab!$A127 -> 2.780041785
A128: 128 | C128: 4.138184266 | E128: =C128*trig_tab!$A128 -> 2.54772063 | F128: 4.130919306 | H128: =F128*trig_tab!$A128 -> 2.543247874 | J128: 3.273636156 | L128: =J128*trig_tab!$A128 -> 2.015451666 | M128: 3.23614274 | O128: =M128*trig_tab!$A128 -> 1.992368414 | Q128: 3.83192612 | S128: =Q128*trig_tab!$A128 -> 2.359169288 | T128: 3.875164832 | V128: =T128*trig_tab!$A128 -> 2.385789698 | X128: 4.302288204 | Z128: =X128*trig_tab!$A128 -> 2.648753103 | AA128: 4.3158813 | AC128: =AA128*trig_tab!$A128 -> 2.657121849 | AE128: 3.667428589 | AG128: =AE128*trig_tab!$A128 -> 2.257894496 | AI128: 5.232186835 | AK128: =AI128*trig_tab!$A128 -> 3.221255866 | AM128: 4.579949824 | AO128: =AM128*trig_tab!$A128 -> 2.819698665
A129: 129 | C129: 4.13713685 | E129: =C129*trig_tab!$A129 -> 2.603584581 | F129: 4.130261123 | H129: =F129*trig_tab!$A129 -> 2.599257545 | J129: 3.277733711 | L129: =J129*trig_tab!$A129 -> 2.062744661 | M129: 3.241906724 | O129: =M129*trig_tab!$A129 -> 2.040198008 | Q129: 3.805492903 | S129: =Q129*trig_tab!$A129 -> 2.394874282 | T129: 3.847128231 | V129: =T129*trig_tab!$A129 -> 2.421076243 | X129: 4.286712344 | Z129: =X129*trig_tab!$A129 -> 2.697715489 | AA129: 4.300002776 | AC129: =AA129*trig_tab!$A129 -> 2.706079429 | AE129: 3.639146843 | AG129: =AE129*trig_tab!$A129 -> 2.290189314 | AI129: 5.182342869 | AK129: =AI129*trig_tab!$A129 -> 3.261354041 | AM129: 4.539093622 | AO129: =AM129*trig_tab!$A129 -> 2.856544173
A130: 130 | C130: 4.134059075 | E130: =C130*trig_tab!$A130 -> 2.657321951 | F130: 4.127613872 | H130: =F130*trig_tab!$A130 -> 2.653179054 | J130: 3.280570349 | L130: =J130*trig_tab!$A130 -> 2.108709973 | M130: 3.247103467 | O130: =M130*trig_tab!$A130 -> 2.087197876 | Q130: 3.778171656 | S130: =Q130*trig_tab!$A130 -> 2.428561928 | T130: 3.817631501 | V130: =T130*trig_tab!$A130 -> 2.453926227 | X130: 4.269400411 | Z130: =X130*trig_tab!$A130 -> 2.744317685 | AA130: 4.282064346 | AC130: =AA130*trig_tab!$A130 -> 2.752457906 | AE130: 3.609774551 | AG130: =AE130*trig_tab!$A130 -> 2.320318355 | AI130: 5.130935098 | AK130: =AI130*trig_tab!$A130 -> 3.298101507 | AM130: 4.496870884 | AO130: =AM130*trig_tab!$A130 -> 2.890532886
A131: 131 | C131: 4.128818813 | E131: =C131*trig_tab!$A131 -> 2.708748861 | F131: 4.122839477 | H131: =F131*trig_tab!$A131 -> 2.704826064 | J131: 3.282050926 | L131: =J131*trig_tab!$A131 -> 2.153219143 | M131: 3.251663763 | O131: =M131*trig_tab!$A131 -> 2.133283371 | Q131: 3.74993893 | S131: =Q131*trig_tab!$A131 -> 2.460181293 | T131: 3.786641613 | V131: =T131*trig_tab!$A131 -> 2.48426042 | X131: 4.250262665 | Z131: =X131*trig_tab!$A131 -> 2.788423197 | AA131: 4.261954943 | AC131: =AA131*trig_tab!$A131 -> 2.796094022 | AE131: 3.579318858 | AG131: =AE131*trig_tab!$A131 -> 2.348244454 | AI131: 5.077976371 | AK131: =AI131*trig_tab!$A131 -> 3.331452247 | AM131: 4.453292079 | AO131: =AM131*trig_tab!$A131 -> 2.921622477
A132: 132 | C132: 4.121357972 | E132: =C132*trig_tab!$A132 -> 2.757726759 | F132: 4.115875386 | H132: =F132*trig_tab!$A132 -> 2.754058193 | J132: 3.282102934 | L132: =J132*trig_tab!$A132 -> 2.196155527 | M132: 3.255465391 | O132: =M132*trig_tab!$A132 -> 2.178331531 | Q132: 3.720766745 | S132: =Q132*trig_tab!$A132 -> 2.489678908 | T132: 3.754172958 | V132: =T132*trig_tab!$A132 -> 2.512032028 | X132: 4.229260993 | Z132: =X132*trig_tab!$A132 -> 2.829927973 | AA132: 4.239657302 | AC132: =AA132*trig_tab!$A132 -> 2.836884461 | AE132: 3.547785837 | AG132: =AE132*trig_tab!$A132 -> 2.373932088 | AI132: 5.023480332 | AK132: =AI132*trig_tab!$A132 -> 3.36136444 | AM132: 4.408367698 | AO132: =AM132*trig_tab!$A132 -> 2.949773751
A133: 133 | C133: 4.111636965 | E133: =C133*trig_tab!$A133 -> 2.804129668 | F133: 4.106677928 | H133: =F133*trig_tab!$A133 -> 2.800747612 | J133: 3.280659527 | L133: =J133*trig_tab!$A133 -> 2.237404417 | M133: 3.258372879 | O133: =M133*trig_tab!$A133 -> 2.22220496 | Q133: 3.690625989 | S133: =Q133*trig_tab!$A133 -> 2.517000872 | T133: 3.720251784 | V133: =T133*trig_tab!$A133 -> 2.537205616 | X133: 4.206370187 | Z133: =X133*trig_tab!$A133 -> 2.868737569 | AA133: 4.215177607 | AC133: =AA133*trig_tab!$A133 -> 2.874744215 | AE133: 3.515181296 | AG133: =AE133*trig_tab!$A133 -> 2.397347879 | AI133: 4.967460828 | AK133: =AI133*trig_tab!$A133 -> 3.387800138 | AM133: 4.362108235 | AO133: =AM133*trig_tab!$A133 -> 2.974950663
A134: 134 | C134: 4.099616209 | E134: =C134*trig_tab!$A134 -> 2.847832715 | F134: 4.095203431 | H134: =F134*trig_tab!$A134 -> 2.844767342 | J134: 3.277653855 | L134: =J134*trig_tab!$A134 -> 2.276849686 | M134: 3.260250752 | O134: =M134*trig_tab!$A134 -> 2.264760475 | Q134: 3.659487552 | S134: =Q134*trig_tab!$A134 -> 2.54209366 | T134: 3.684904339 | V134: =T134*trig_tab!$A134 -> 2.559749644 | X134: 4.181565039 | Z134: =X134*trig_tab!$A134 -> 2.904759156 | AA134: 4.188522042 | AC134: =AA134*trig_tab!$A134 -> 2.909591897 | AE134: 3.481511042 | AG134: =AE134*trig_tab!$A134 -> 2.418460787 | AI134: 4.909931704 | AK134: =AI134*trig_tab!$A134 -> 3.410725157 | AM134: 4.314524187 | AO134: =AM134*trig_tab!$A134 -> 2.997120341
A135: 135 | C135: 4.085256116 | E135: =C135*trig_tab!$A135 -> 2.888712303 | F135: 4.081408224 | H135: =F135*trig_tab!$A135 -> 2.885991432 | J135: 3.273019072 | L135: =J135*trig_tab!$A135 -> 2.314373981 | M135: 3.260963537 | O135: =M135*trig_tab!$A135 -> 2.30584943 | Q135: 3.627322321 | S135: =Q135*trig_tab!$A135 -> 2.564904211 | T135: 3.648156872 | V135: =T135*trig_tab!$A135 -> 2.579636463 | X135: 4.154820343 | Z135: =X135*trig_tab!$A135 -> 2.937901639 | AA135: 4.159696794 | AC135: =AA135*trig_tab!$A135 -> 2.94134981 | AE135: 3.446780882 | AG135: =AE135*trig_tab!$A135 -> 2.437242135 | AI135: 4.850906807 | AK135: =AI135*trig_tab!$A135 -> 3.430109098 | AM135: 4.265626047 | AO135: =AM135*trig_tab!$A135 -> 3.016253104
A136: 136 | C136: 4.068517102 | E136: =C136*trig_tab!$A136 -> 2.92664628 | F136: 4.065248637 | H136: =F136*trig_tab!$A136 -> 2.924295143 | J136: 3.266688328 | L136: =J136*trig_tab!$A136 -> 2.34985893 | M136: 3.260375761 | O136: =M136*trig_tab!$A136 -> 2.345318049 | Q136: 3.594101185 | S136: =Q136*trig_tab!$A136 -> 2.585380029 | T136: 3.610035629 | V136: =T136*trig_tab!$A136 -> 2.596842309 | X136: 4.12611089 | Z136: =X136*trig_tab!$A136 -> 2.968075784 | AA136: 4.128708045 | AC136: =AA136*trig_tab!$A136 -> 2.969944021 | AE136: 3.410996624 | AG136: =AE136*trig_tab!$A136 -> 2.45366563 | AI136: 4.790399982 | AK136: =AI136*trig_tab!$A136 -> 3.445925367 | AM136: 4.215424311 | AO136: =AM136*trig_tab!$A136 -> 3.032322482
A137: 137 | C137: 4.04935958 | E137: =C137*trig_tab!$A137 -> 2.961514118 | F137: 4.046680998 | H137: =F137*trig_tab!$A137 -> 2.959555127 | J137: 3.258594776 | L137: =J137*trig_tab!$A137 -> 2.383185351 | M137: 3.25835195 | O137: =M137*trig_tab!$A137 -> 2.38300776 | Q137: 3.559795033 | S137: =Q137*trig_tab!$A137 -> 2.603469274 | T137: 3.570566859 | V137: =T137*trig_tab!$A137 -> 2.611347289 | X137: 4.095411473 | Z137: =X137*trig_tab!$A137 -> 2.995194341 | AA137: 4.095561981 | AC137: =AA137*trig_tab!$A137 -> 2.995304415 | AE137: 3.374164073 | AG137: =AE137*trig_tab!$A137 -> 2.467707385 | AI137: 4.728425075 | AK137: =AI137*trig_tab!$A137 -> 3.458151181 | AM137: 4.163929473 | AO137: =AM137*trig_tab!$A137 -> 3.045305234
A138: 138 | C138: 4.027743966 | E138: =C138*trig_tab!$A138 -> 2.993197086 | F138: 4.025661636 | H138: =F138*trig_tab!$A138 -> 2.991649614 | J138: 3.248671567 | L138: =J138*trig_tab!$A138 -> 2.414233465 | M138: 3.254756631 | O138: =M138*trig_tab!$A138 -> 2.418755548 | Q138: 3.524374751 | S138: =Q138*trig_tab!$A138 -> 2.61912086 | T138: 3.52977681 | V138: =T138*trig_tab!$A138 -> 2.623135372 | X138: 4.062696885 | Z138: =X138*trig_tab!$A138 -> 3.019172167 | AA138: 4.060264787 | AC138: =AA138*trig_tab!$A138 -> 3.017364767 | AE138: 3.336289038 | AG138: =AE138*trig_tab!$A138 -> 2.479345935 | AI138: 4.664995931 | AK138: =AI138*trig_tab!$A138 -> 3.466767587 | AM138: 4.11115203 | AO138: =AM138*trig_tab!$A138 -> 3.055181358
A139: 139 | C139: 4.003630673 | E139: =C139*trig_tab!$A139 -> 3.021578425 | F139: 4.002146881 | H139: =F139*trig_tab!$A139 -> 3.020458592 | J139: 3.236851854 | L139: =J139*trig_tab!$A139 -> 2.442883104 | M139: 3.249454329 | O139: =M139*trig_tab!$A139 -> 2.452394313 | Q139: 3.48781123 | S139: =Q139*trig_tab!$A139 -> 2.63228455 | T139: 3.48769173 | V139: =T139*trig_tab!$A139 -> 2.632194361 | X139: 4.027941917 | Z139: =X139*trig_tab!$A139 -> 3.039926353 | AA139: 4.022822647 | AC139: =AA139*trig_tab!$A139 -> 3.036062791 | AE139: 3.297377325 | AG139: =AE139*trig_tab!$A139 -> 2.488562257 | AI139: 4.600126397 | AK139: =AI139*trig_tab!$A139 -> 3.471759462 | AM139: 4.057102475 | AO139: =AM139*trig_tab!$A139 -> 3.061934106
A140: 140 | C140: 3.976980116 | E140: =C140*trig_tab!$A140 -> 3.046543519 | F140: 3.976093061 | H140: =F140*trig_tab!$A140 -> 3.045863994 | J140: 3.223068789 | L140: =J140*trig_tab!$A140 -> 2.469013936 | M140: 3.242309572 | O140: =M140*trig_tab!$A140 -> 2.48375323 | Q140: 3.450075358 | S140: =Q140*trig_tab!$A140 -> 2.642911056 | T140: 3.444337867 | V140: =T140*trig_tab!$A140 -> 2.638515883 | X140: 3.991121363 | Z140: =X140*trig_tab!$A140 -> 3.057376342 | AA140: 3.983241746 | AC140: =AA140*trig_tab!$A140 -> 3.051340205 | AE140: 3.257434742 | AG140: =AE140*trig_tab!$A140 -> 2.495339783 | AI140: 4.533830318 | AK140: =AI140*trig_tab!$A140 -> 3.473115521 | AM140: 4.001791304 | AO140: =AM140*trig_tab!$A140 -> 3.065549991
A141: 141 | C141: 3.94775271 | E141: =C141*trig_tab!$A141 -> 3.067980076 | F141: 3.947456504 | H141: =F141*trig_tab!$A141 -> 3.06774988 | J141: 3.207255524 | L141: =J141*trig_tab!$A141 -> 2.492505678 | M141: 3.233186885 | O141: =M141*trig_tab!$A141 -> 2.512658131 | Q141: 3.411138022 | S141: =Q141*trig_tab!$A141 -> 2.650952138 | T141: 3.399741468 | V141: =T141*trig_tab!$A141 -> 2.642095352 | X141: 3.952210014 | Z141: =X141*trig_tab!$A141 -> 3.071444051 | AA141: 3.941528268 | AC141: =AA141*trig_tab!$A141 -> 3.063142775 | AE141: 3.216467096 | AG141: =AE141*trig_tab!$A141 -> 2.499664414 | AI141: 4.46612154 | AK141: =AI141*trig_tab!$A141 -> 3.470828318 | AM141: 3.945229011 | AO141: =AM141*trig_tab!$A141 -> 3.066018793
A142: 142 | C142: 3.915908869 | E142: =C142*trig_tab!$A142 -> 3.085778299 | F142: 3.916193541 | H142: =F142*trig_tab!$A142 -> 3.086002624 | J142: 3.18934521 | L142: =J142*trig_tab!$A142 -> 2.513238322 | M142: 3.221950796 | O142: =M142*trig_tab!$A142 -> 2.538931875 | Q142: 3.370970111 | S142: =Q142*trig_tab!$A142 -> 2.656360698 | T142: 3.353928781 | V142: =T142*trig_tab!$A142 -> 2.642931947 | X142: 3.911182664 | Z142: =X142*trig_tab!$A142 -> 3.082053999 | AA142: 3.897688398 | AC142: =AA142*trig_tab!$A142 -> 3.071420372 | AE142: 3.174480193 | AG142: =AE142*trig_tab!$A142 -> 2.501524529 | AI142: 4.397013909 | AK142: =AI142*trig_tab!$A142 -> 3.464894244 | AM142: 3.887426093 | AO142: =AM142*trig_tab!$A142 -> 3.063333565
A143: 143 | C143: 3.881409008 | E143: =C143*trig_tab!$A143 -> 3.099831063 | F143: 3.8822605 | H143: =F143*trig_tab!$A143 -> 3.100511094 | J143: 3.169270999 | L143: =J143*trig_tab!$A143 -> 2.531092361 | M143: 3.208465831 | O143: =M143*trig_tab!$A143 -> 2.562394745 | Q143: 3.329542514 | S143: =Q143*trig_tab!$A143 -> 2.659090884 | T143: 3.306926056 | V143: =T143*trig_tab!$A143 -> 2.641028577 | X143: 3.868014105 | Z143: =X143*trig_tab!$A143 -> 3.089133418 | AA143: 3.851728322 | AC143: =AA143*trig_tab!$A143 -> 3.076127013 | AE143: 3.131479841 | AG143: =AE143*trig_tab!$A143 -> 2.500911 | AI143: 4.32652127 | AK143: =AI143*trig_tab!$A143 -> 3.455313521 | AM143: 3.828393043 | AO143: =AM143*trig_tab!$A143 -> 3.057490631
A144: 144 | C144: 3.84421354 | E144: =C144*trig_tab!$A144 -> 3.110034084 | F144: 3.845613709 | H144: =F144*trig_tab!$A144 -> 3.111166845 | J144: 3.146966044 | L144: =J144*trig_tab!$A144 -> 2.54594901 | M144: 3.192596515 | O144: =M144*trig_tab!$A144 -> 2.582864837 | Q144: 3.286826119 | S144: =Q144*trig_tab!$A144 -> 2.659098188 | T144: 3.258759538 | V144: =T144*trig_tab!$A144 -> 2.636391847 | X144: 3.822679129 | Z144: =X144*trig_tab!$A144 -> 3.092612379 | AA144: 3.803654222 | AC144: =AA144*trig_tab!$A144 -> 3.077220907 | AE144: 3.087471846 | AG144: =AE144*trig_tab!$A144 -> 2.497817193 | AI144: 4.254657469 | AK144: =AI144*trig_tab!$A144 -> 3.442090197 | AM144: 3.768140358 | AO144: =AM144*trig_tab!$A144 -> 3.048489586
A145: 145 | C145: 3.80428288 | E145: =C145*trig_tab!$A145 -> 3.116286098 | F145: 3.806209499 | H145: =F145*trig_tab!$A145 -> 3.117864292 | J145: 3.122363496 | L145: =J145*trig_tab!$A145 -> 2.557690441 | M145: 3.174207377 | O145: =M145*trig_tab!$A145 -> 2.600158462 | Q145: 3.242791814 | S145: =Q145*trig_tab!$A145 -> 2.656339544 | T145: 3.209455477 | V145: =T145*trig_tab!$A145 -> 2.629032015 | X145: 3.775152528 | Z145: =X145*trig_tab!$A145 -> 3.092423911 | AA145: 3.753472285 | AC145: =AA145*trig_tab!$A145 -> 3.074664496 | AE145: 3.042462017 | AG145: =AE145*trig_tab!$A145 -> 2.492238981 | AI145: 4.181436352 | AK145: =AI145*trig_tab!$A145 -> 3.425232136 | AM145: 3.706678531 | AO145: =AM145*trig_tab!$A145 -> 3.036333296
A146: 146 | C146: 3.761577444 | E146: =C146*trig_tab!$A146 -> 3.118489033 | F146: 3.764004197 | H146: =F146*trig_tab!$A146 -> 3.120500902 | J146: 3.095396507 | L146: =J146*trig_tab!$A146 -> 2.566200007 | M146: 3.153162941 | O146: =M146*trig_tab!$A146 -> 2.614090551 | Q146: 3.197410488 | S146: =Q146*trig_tab!$A146 -> 2.65077343 | T146: 3.159040121 | V146: =T146*trig_tab!$A146 -> 2.618962953 | X146: 3.725409096 | Z146: =X146*trig_tab!$A146 -> 3.088504114 | AA146: 3.701188695 | AC146: =AA146*trig_tab!$A146 -> 3.068424492 | AE146: 2.99645616 | AG146: =AE146*trig_tab!$A146 -> 2.484174741 | AI146: 4.106871764 | AK146: =AI146*trig_tab!$A146 -> 3.404750998 | AM146: 3.644018057 | AO146: =AM146*trig_tab!$A146 -> 3.021027885
A147: 147 | C147: 3.716057644 | E147: =C147*trig_tab!$A147 -> 3.116548175 | F147: 3.718954132 | H147: =F147*trig_tab!$A147 -> 3.118977374 | J147: 3.06599823 | L147: =J147*trig_tab!$A147 -> 2.571362477 | M147: 3.129327735 | O147: =M147*trig_tab!$A147 -> 2.624475069 | Q147: 3.150653029 | S147: =Q147*trig_tab!$A147 -> 2.642359966 | T147: 3.107539716 | V147: =T147*trig_tab!$A147 -> 2.606202099 | X147: 3.673423625 | Z147: =X147*trig_tab!$A147 -> 3.080792278 | AA147: 3.646809637 | AC147: =AA147*trig_tab!$A147 -> 3.058471909 | AE147: 2.949460082 | AG147: =AE147*trig_tab!$A147 -> 2.473625362 | AI147: 4.030977553 | AK147: =AI147*trig_tab!$A147 -> 3.380662233 | AM147: 3.580169433 | AO147: =AM147*trig_tab!$A147 -> 3.002582732
A148: 148 | C148: 3.667683896 | E148: =C148*trig_tab!$A148 -> 3.110372345 | F148: 3.671015635 | H148: =F148*trig_tab!$A148 -> 3.11319782 | J148: 3.034101816 | L148: =J148*trig_tab!$A148 -> 2.573064269 | M148: 3.102566285 | O148: =M148*trig_tab!$A148 -> 2.631125431 | Q148: 3.102490326 | S148: =Q148*trig_tab!$A148 -> 2.631061014 | T148: 3.054980512 | V148: =T148*trig_tab!$A148 -> 2.590770407 | X148: 3.619170906 | Z148: =X148*trig_tab!$A148 -> 3.069230997 | AA148: 3.590341294 | AC148: =AA148*trig_tab!$A148 -> 3.044782099 | AE148: 2.90147959 | AG148: =AE148*trig_tab!$A148 -> 2.460594243 | AI148: 3.953767562 | AK148: =AI148*trig_tab!$A148 -> 3.352985054 | AM148: 3.515143153 | AO148: =AM148*trig_tab!$A148 -> 2.981010458
A149: 149 | C149: 3.616416614 | E149: =C149*trig_tab!$A149 -> 3.099874067 | F149: 3.620145032 | H149: =F149*trig_tab!$A149 -> 3.103069946 | J149: 2.999640418 | L149: =J149*trig_tab!$A149 -> 2.57119368 | M149: 3.072743118 | O149: =M149*trig_tab!$A149 -> 2.633854924 | Q149: 3.052893267 | S149: =Q149*trig_tab!$A149 -> 2.616840281 | T149: 3.001388756 | V149: =T149*trig_tab!$A149 -> 2.572692298 | X149: 3.562625733 | Z149: =X149*trig_tab!$A149 -> 3.053766283 | AA149: 3.531789853 | AC149: =AA149*trig_tab!$A149 -> 3.027334775 | AE149: 2.852520492 | AG149: =AE149*trig_tab!$A149 -> 2.44508729 | AI149: 3.875255638 | AK149: =AI149*trig_tab!$A149 -> 3.321742415 | AM149: 3.448949711 | AO149: =AM149*trig_tab!$A149 -> 2.956326914
A150: 150 | C150: 3.562216213 | E150: =C150*trig_tab!$A150 -> 3.084969734 | F150: 3.566298655 | H150: =F150*trig_tab!$A150 -> 3.088505232 | J150: 2.962547186 | L150: =J150*trig_tab!$A150 -> 2.565641123 | M150: 3.039722759 | O150: =M150*trig_tab!$A150 -> 2.63247713 | Q150: 3.001832739 | S150: =Q150*trig_tab!$A150 -> 2.59966341 | T150: 2.946790696 | V150: =T150*trig_tab!$A150 -> 2.551995602 | X150: 3.503762898 | Z150: =X150*trig_tab!$A150 -> 3.034347679 | AA150: 3.471161497 | AC150: =AA150*trig_tab!$A150 -> 3.006114037 | AE150: 2.802588594 | AG150: =AE150*trig_tab!$A150 -> 2.427112919 | AI150: 3.795455628 | AK150: =AI150*trig_tab!$A150 -> 3.286960992 | AM150: 3.381599604 | AO150: =AM150*trig_tab!$A150 -> 2.928551162
A151: 151 | C151: 3.505066219 | E151: =C151*trig_tab!$A151 -> 3.06559999 | F151: 3.509456884 | H151: =F151*trig_tab!$A151 -> 3.069440152 | J151: 2.922781408 | L151: =J151*trig_tab!$A151 -> 2.556322219 | M151: 3.003410829 | O151: =M151*trig_tab!$A151 -> 2.6268423 | Q151: 2.949292777 | S151: =Q151*trig_tab!$A151 -> 2.579509585 | T151: 2.89121365 | V151: =T151*trig_tab!$A151 -> 2.528712436 | X151: 3.442574411 | Z151: =X151*trig_tab!$A151 -> 3.010943423 | AA151: 3.408472884 | AC151: =AA151*trig_tab!$A151 -> 2.981117556 | AE151: 2.751694108 | AG151: =AE151*trig_tab!$A151 -> 2.406685895 | AI151: 3.714386147 | AK151: =AI151*trig_tab!$A151 -> 3.248675324 | AM151: 3.313107943 | AO151: =AM151*trig_tab!$A151 -> 2.897709499
A152: 152 | C152: 3.44504261 | E152: =C152*trig_tab!$A152 -> 3.04179208 | F152: 3.449696314 | H152: =F152*trig_tab!$A152 -> 3.045901057 | J152: 2.880406904 | L152: =J152*trig_tab!$A152 -> 2.543248343 | M152: 2.963877324 | O152: =M152*trig_tab!$A152 -> 2.616948349 | Q152: 2.895309988 | S152: =Q152*trig_tab!$A152 -> 2.556406984 | T152: 2.834689216 | V152: =T152*trig_tab!$A152 -> 2.50288202 | X152: 3.37912115 | Z152: =X152*trig_tab!$A152 -> 2.983586886 | AA152: 3.343782566 | AC152: =AA152*trig_tab!$A152 -> 2.952384768 | AE152: 2.699864863 | AG152: =AE152*trig_tab!$A152 -> 2.383839181 | AI152: 3.632084899 | AK152: =AI152*trig_tab!$A152 -> 3.206940619 | AM152: 3.243508318 | AO152: =AM152*trig_tab!$A152 -> 2.863847861
A153: 153 | C153: 3.382244476 | E153: =C153*trig_tab!$A153 -> 3.013601895 | F153: 3.387117595 | H153: =F153*trig_tab!$A153 -> 3.017943875 | J153: 2.835513632 | L153: =J153*trig_tab!$A153 -> 2.526461146 | M153: 2.921233332 | O153: =M153*trig_tab!$A153 -> 2.602837957 | Q153: 2.839934125 | S153: =Q153*trig_tab!$A153 -> 2.530399833 | T153: 2.777250064 | V153: =T153*trig_tab!$A153 -> 2.474547926 | X153: 3.313481211 | Z153: =X153*trig_tab!$A153 -> 2.952333377 | AA153: 3.277159567 | AC153: =AA153*trig_tab!$A153 -> 2.919970555 | AE153: 2.647133091 | AG153: =AE153*trig_tab!$A153 -> 2.358612854 | AI153: 3.548594359 | AK153: =AI153*trig_tab!$A153 -> 3.161820726 | AM153: 3.172838932 | AO153: =AM153*trig_tab!$A153 -> 2.827020189
A154: 154 | C154: 3.316770908 | E154: =C154*trig_tab!$A154 -> 2.981093945 | F154: 3.321821373 | H154: =F154*trig_tab!$A154 -> 2.985633273 | J154: 2.788191547 | L154: =J154*trig_tab!$A154 -> 2.506009963 | M154: 2.875589941 | O154: =M154*trig_tab!$A154 -> 2.584563119 | Q154: 2.78321494 | S154: =Q154*trig_tab!$A154 -> 2.501537018 | T154: 2.718928861 | V154: =T154*trig_tab!$A154 -> 2.443757072 | X154: 3.245732689 | Z154: =X154*trig_tab!$A154 -> 2.917245217 | AA154: 3.20867291 | AC154: =AA154*trig_tab!$A154 -> 2.883936108 | AE154: 2.593531026 | AG154: =AE154*trig_tab!$A154 -> 2.331050245 | AI154: 3.463957002 | AK154: =AI154*trig_tab!$A154 -> 3.11338393 | AM154: 3.101137993 | AO154: =AM154*trig_tab!$A154 -> 2.787284365
A155: 155 | C155: 3.248720996 | E155: =C155*trig_tab!$A155 -> 2.944341137 | F155: 3.253908298 | H155: =F155*trig_tab!$A155 -> 2.949042428 | J155: 2.738530605 | L155: =J155*trig_tab!$A155 -> 2.481951613 | M155: 2.827058241 | O155: =M155*trig_tab!$A155 -> 2.562184898 | Q155: 2.725202187 | S155: =Q155*trig_tab!$A155 -> 2.469871963 | T155: 2.659758276 | V155: =T155*trig_tab!$A155 -> 2.410559637 | X155: 3.175953681 | Z155: =X155*trig_tab!$A155 -> 2.878391552 | AA155: 3.138391622 | AC155: =AA155*trig_tab!$A155 -> 2.844348766 | AE155: 2.539090901 | AG155: =AE155*trig_tab!$A155 -> 2.301197856 | AI155: 3.378215302 | AK155: =AI155*trig_tab!$A155 -> 3.061702835 | AM155: 3.028443705 | AO155: =AM155*trig_tab!$A155 -> 2.744702112
A156: 156 | C156: 3.178193829 | E156: =C156*trig_tab!$A156 -> 2.903424536 | F156: 3.183479017 | H156: =F156*trig_tab!$A156 -> 2.908252795 | J156: 2.686620763 | L156: =J156*trig_tab!$A156 -> 2.454350194 | M156: 2.77574932 | O156: =M156*trig_tab!$A156 -> 2.535773183 | Q156: 2.665945618 | S156: =Q156*trig_tab!$A156 -> 2.435462509 | T156: 2.599770978 | V156: =T156*trig_tab!$A156 -> 2.375008968 | X156: 3.104222281 | Z156: =X156*trig_tab!$A156 -> 2.835848164 | AA156: 3.066384725 | AC156: =AA156*trig_tab!$A156 -> 2.801281837 | AE156: 2.483844949 | AG156: =AE156*trig_tab!$A156 -> 2.269105271 | AI156: 3.291411735 | AK156: =AI156*trig_tab!$A156 -> 3.00685424 | AM156: 2.954794275 | AO156: =AM156*trig_tab!$A156 -> 2.699338888
A157: 157 | C157: 3.105288498 | E157: =C157*trig_tab!$A157 -> 2.858433134 | F157: 3.110634179 | H157: =F157*trig_tab!$A157 -> 2.863353859 | J157: 2.632551976 | L157: =J157*trig_tab!$A157 -> 2.423276871 | M157: 2.721774268 | O157: =M157*trig_tab!$A157 -> 2.505406424 | Q157: 2.605494985 | S157: =Q157*trig_tab!$A157 -> 2.398370779 | T157: 2.538999635 | V157: =T157*trig_tab!$A157 -> 2.337161487 | X157: 3.030616585 | Z157: =X157*trig_tab!$A157 -> 2.789697276 | AA157: 2.992721245 | AC157: =AA157*trig_tab!$A157 -> 2.754814431 | AE157: 2.427825403 | AG157: =AE157*trig_tab!$A157 -> 2.234825067 | AI157: 3.203588774 | AK157: =AI157*trig_tab!$A157 -> 2.948919015 | AM157: 2.880227907 | AO157: =AM157*trig_tab!$A157 -> 2.651263768
A158: 158 | C158: 3.030104094 | E158: =C158*trig_tab!$A158 -> 2.809463593 | F158: 3.035474432 | H158: =F158*trig_tab!$A158 -> 2.814442884 | J158: 2.5764142 | L158: =J158*trig_tab!$A158 -> 2.388809649 | M158: 2.665244173 | O158: =M158*trig_tab!$A158 -> 2.471171366 | Q158: 2.543900041 | S158: =Q158*trig_tab!$A158 -> 2.358663046 | T158: 2.477476915 | V158: =T158*trig_tab!$A158 -> 2.297076596 | X158: 2.95521469 | Z158: =X158*trig_tab!$A158 -> 2.740027347 | AA158: 2.917470204 | AC158: =AA158*trig_tab!$A158 -> 2.70503127 | AE158: 2.371064496 | AG158: =AE158*trig_tab!$A158 -> 2.198412719 | AI158: 3.114788895 | AK158: =AI158*trig_tab!$A158 -> 2.887981974 | AM158: 2.804782809 | AO158: =AM158*trig_tab!$A158 -> 2.600549336
A159: 159 | C159: 2.952739705 | E159: =C159*trig_tab!$A159 -> 2.756619994 | F159: 2.958100424 | H159: =F159*trig_tab!$A159 -> 2.761624655 | J159: 2.518297392 | L159: =J159*trig_tab!$A159 -> 2.351033153 | M159: 2.606270124 | O159: =M159*trig_tab!$A159 -> 2.433162774 | Q159: 2.48121054 | S159: =Q159*trig_tab!$A159 -> 2.316409594 | T159: 2.415235488 | V159: =T159*trig_tab!$A159 -> 2.254816577 | X159: 2.87809469 | Z159: =X159*trig_tab!$A159 -> 2.686932868 | AA159: 2.840700629 | AC159: =AA159*trig_tab!$A159 -> 2.652022505 | AE159: 2.313594461 | AG159: =AE159*trig_tab!$A159 -> 2.159926504 | AI159: 3.025054572 | AK159: =AI159*trig_tab!$A159 -> 2.824131737 | AM159: 2.728497185 | AO159: =AM159*trig_tab!$A159 -> 2.547271566
A160: 160 | C160: 2.873294424 | E160: =C160*trig_tab!$A160 -> 2.700013567 | F160: 2.878612803 | H160: =F160*trig_tab!$A160 -> 2.705011209 | J160: 2.458291507 | L160: =J160*trig_tab!$A160 -> 2.310038388 | M160: 2.544963209 | O160: =M160*trig_tab!$A160 -> 2.391483148 | Q160: 2.417476232 | S160: =Q160*trig_tab!$A160 -> 2.271684577 | T160: 2.352308022 | V160: =T160*trig_tab!$A160 -> 2.21044649 | X160: 2.799334682 | Z160: =X160*trig_tab!$A160 -> 2.630514144 | AA160: 2.762481543 | AC160: =AA160*trig_tab!$A160 -> 2.595883521 | AE160: 2.255447532 | AG160: =AE160*trig_tab!$A160 -> 2.119427402 | AI160: 2.934428279 | AK160: =AI160*trig_tab!$A160 -> 2.7574606 | AM160: 2.651409242 | AO160: =AM160*trig_tab!$A160 -> 2.491509699
A161: 161 | C161: 2.791867338 | E161: =C161*trig_tab!$A161 -> 2.639762429 | F161: 2.797112218 | H161: =F161*trig_tab!$A161 -> 2.64472156 | J161: 2.396486501 | L161: =J161*trig_tab!$A161 -> 2.265922503 | M161: 2.481434518 | O161: =M161*trig_tab!$A161 -> 2.346242431 | Q161: 2.352746872 | S161: =Q161*trig_tab!$A161 -> 2.224565871 | T161: 2.288727185 | V161: =T161*trig_tab!$A161 -> 2.164034068 | X161: 2.719012761 | Z161: =X161*trig_tab!$A161 -> 2.570877072 | AA161: 2.68288197 | AC161: =AA161*trig_tab!$A161 -> 2.536714739 | AE161: 2.196655941 | AG161: =AE161*trig_tab!$A161 -> 2.076978996 | AI161: 2.842952493 | AK161: =AI161*trig_tab!$A161 -> 2.688064392 | AM161: 2.573557184 | AO161: =AM161*trig_tab!$A161 -> 2.433346123
A162: 162 | C162: 2.70855754 | E162: =C162*trig_tab!$A162 -> 2.575991298 | F162: 2.713699317 | H162: =F162*trig_tab!$A162 -> 2.580881419 | J162: 2.332972331 | L162: =J162*trig_tab!$A162 -> 2.218788537 | M162: 2.41579514 | O162: =M162*trig_tab!$A162 -> 2.29755771 | Q162: 2.287072212 | S162: =Q162*trig_tab!$A162 -> 2.17513493 | T162: 2.224525645 | V162: =T162*trig_tab!$A162 -> 2.115649611 | X162: 2.637207022 | Z162: =X162*trig_tab!$A162 -> 2.508132923 | AA162: 2.601970935 | AC162: =AA162*trig_tab!$A162 -> 2.474621413 | AE162: 2.137251921 | AG162: =AE162*trig_tab!$A162 -> 2.032647367 | AI162: 2.750669687 | AK162: =AI162*trig_tab!$A162 -> 2.61604233 | AM162: 2.494979218 | AO162: =AM162*trig_tab!$A162 -> 2.372866243
A163: 163 | C163: 2.623464118 | E163: =C163*trig_tab!$A163 -> 2.508831213 | F163: 2.628474748 | H163: =F163*trig_tab!$A163 -> 2.513622902 | J163: 2.267838952 | L163: =J163*trig_tab!$A163 -> 2.168745175 | M163: 2.348156162 | O163: =M163*trig_tab!$A163 -> 2.245552906 | Q163: 2.220502004 | S163: =Q163*trig_tab!$A163 -> 2.123476627 | T163: 2.159736073 | V163: =T163*trig_tab!$A163 -> 2.065365878 | X163: 2.553995562 | Z163: =X163*trig_tab!$A163 -> 2.442398102 | AA163: 2.519817462 | AC163: =AA163*trig_tab!$A163 -> 2.409713423 | AE163: 2.077267706 | AG163: =AE163*trig_tab!$A163 -> 1.986500987 | AI163: 2.657622336 | AK163: =AI163*trig_tab!$A163 -> 2.541496879 | AM163: 2.415713549 | AO163: =AM163*trig_tab!$A163 -> 2.310158356
A164: 164 | C164: 2.536686164 | E164: =C164*trig_tab!$A164 -> 2.438419244 | F164: 2.541539159 | H164: =F164*trig_tab!$A164 -> 2.443084242 | J164: 2.201176321 | L164: =J164*trig_tab!$A164 -> 2.115906483 | M164: 2.278628675 | O164: =M164*trig_tab!$A164 -> 2.190358464 | Q164: 2.153086001 | S164: =Q164*trig_tab!$A164 -> 2.069679101 | T164: 2.094391135 | V164: =T164*trig_tab!$A164 -> 2.013257974 | X164: 2.469456475 | Z164: =X164*trig_tab!$A164 -> 2.373793919 | AA164: 2.436490576 | AC164: =AA164*trig_tab!$A164 -> 2.342105063 | AE164: 2.016735529 | AG164: =AE164*trig_tab!$A164 -> 1.938610615 | AI164: 2.563852915 | AK164: =AI164*trig_tab!$A164 -> 2.464533601 | AM164: 2.335798384 | AO164: =AM164*trig_tab!$A164 -> 2.245313516
A165: 165 | C165: 2.448322767 | E165: =C165*trig_tab!$A165 -> 2.364898191 | F165: 2.452993199 | H165: =F165*trig_tab!$A165 -> 2.369409482 | J165: 2.133074393 | L165: =J165*trig_tab!$A165 -> 2.060391645 | M165: 2.207323766 | O165: =M165*trig_tab!$A165 -> 2.132111033 | Q165: 2.084873956 | S165: =Q165*trig_tab!$A165 -> 2.013833599 | T165: 2.0285235 | V165: =T165*trig_tab!$A165 -> 1.959403238 | X165: 2.383667858 | Z165: =X165*trig_tab!$A165 -> 2.302446346 | AA165: 2.3520593 | AC165: =AA165*trig_tab!$A165 -> 2.271914823 | AE165: 1.955687622 | AG165: =AE165*trig_tab!$A165 -> 1.889049182 | AI165: 2.469403898 | AK165: =AI165*trig_tab!$A165 -> 2.385261001 | AM165: 2.255271927 | AO165: =AM165*trig_tab!$A165 -> 2.178425399
A166: 166 | C166: 2.358473017 | E166: =C166*trig_tab!$A166 -> 2.288416289 | F166: 2.362937515 | H166: =F166*trig_tab!$A166 -> 2.292748172 | J166: 2.063623125 | L166: =J166*trig_tab!$A166 -> 2.002324698 | M166: 2.134352526 | O166: =M166*trig_tab!$A166 -> 2.070953134 | Q166: 2.015915621 | S166: =Q166*trig_tab!$A166 -> 1.956034312 | T166: 1.962165838 | V166: =T166*trig_tab!$A166 -> 1.903881127 | X166: 2.296707807 | Z166: =X166*trig_tab!$A166 -> 2.228485769 | AA166: 2.26659266 | AC166: =AA166*trig_tab!$A166 -> 2.199265171 | AE166: 1.894156219 | AG166: =AE166*trig_tab!$A166 -> 1.837891684 | AI166: 2.374317761 | AK166: =AI166*trig_tab!$A166 -> 2.303790376 | AM166: 2.174172384 | AO166: =AM166*trig_tab!$A166 -> 2.109590172
A167: 167 | C167: 2.267236005 | E167: =C167*trig_tab!$A167 -> 2.209126893 | F167: 2.271472756 | H167: =F167*trig_tab!$A167 -> 2.213255057 | J167: 1.992912472 | L167: =J167*trig_tab!$A167 -> 1.941834254 | M167: 2.059826041 | O167: =M167*trig_tab!$A167 -> 2.007032833 | Q167: 1.946260749 | S167: =Q167*trig_tab!$A167 -> 1.896378212 | T167: 1.895350816 | V167: =T167*trig_tab!$A167 -> 1.846773097 | X167: 2.208654416 | Z167: =X167*trig_tab!$A167 -> 2.152046746 | AA167: 2.180159679 | AC167: =AA167*trig_tab!$A167 -> 2.124282327 | AE167: 1.832173553 | AG167: =AE167*trig_tab!$A167 -> 1.785215064 | AI167: 2.278636977 | AK167: =AI167*trig_tab!$A167 -> 2.220235659 | AM167: 2.092537962 | AO167: =AM167*trig_tab!$A167 -> 2.038906349
A168: 168 | C168: 2.174710821 | E168: =C168*trig_tab!$A168 -> 2.127188172 | F168: 2.178699571 | H168: =F168*trig_tab!$A168 -> 2.131089758 | J168: 1.921032391 | L168: =J168*trig_tab!$A168 -> 1.879053224 | M168: 1.983855402 | O168: =M168*trig_tab!$A168 -> 1.940503402 | Q168: 1.875959093 | S168: =Q168*trig_tab!$A168 -> 1.834964886 | T168: 1.828111103 | V168: =T168*trig_tab!$A168 -> 1.788162489 | X168: 2.119585782 | Z168: =X168*trig_tab!$A168 -> 2.073267747 | AA168: 2.092829381 | AC168: =AA168*trig_tab!$A168 -> 2.047096038 | AE168: 1.769771857 | AG168: =AE168*trig_tab!$A168 -> 1.731098096 | AI168: 2.182404023 | AK168: =AI168*trig_tab!$A168 -> 2.134713259 | AM168: 2.010406865 | AO168: =AM168*trig_tab!$A168 -> 1.966474652
A169: 169 | C169: 2.080996554 | E169: =C169*trig_tab!$A169 -> 2.042762786 | F169: 2.084718606 | H169: =F169*trig_tab!$A169 -> 2.046416454 | J169: 1.848072838 | L169: =J169*trig_tab!$A169 -> 1.814118534 | M169: 1.906551697 | O169: =M169*trig_tab!$A169 -> 1.871522973 | Q169: 1.805060405 | S169: =Q169*trig_tab!$A169 -> 1.771896361 | T169: 1.760479367 | V169: =T169*trig_tab!$A169 -> 1.728134403 | X169: 2.02958 | Z169: =X169*trig_tab!$A169 -> 1.992290899 | AA169: 2.004670792 | AC169: =AA169*trig_tab!$A169 -> 1.967839343 | AE169: 1.706983364 | AG169: =AE169*trig_tab!$A169 -> 1.675621272 | AI169: 2.085661371 | AK169: =AI169*trig_tab!$A169 -> 2.047341898 | AM169: 1.9278173 | AO169: =AM169*trig_tab!$A169 -> 1.892397867
A170: 170 | C170: 1.986192296 | E170: =C170*trig_tab!$A170 -> 1.956017572 | F170: 1.989630512 | H170: =F170*trig_tab!$A170 -> 1.959403553 | J170: 1.774123768 | L170: =J170*trig_tab!$A170 -> 1.747170842 | M170: 1.828026016 | O170: =M170*trig_tab!$A170 -> 1.800254193 | Q170: 1.733614438 | S170: =Q170*trig_tab!$A170 -> 1.707276939 | T170: 1.692488278 | V170: =T170*trig_tab!$A170 -> 1.666775578 | X170: 1.938715166 | Z170: =X170*trig_tab!$A170 -> 1.909261726 | AA170: 1.915752935 | AC170: =AA170*trig_tab!$A170 -> 1.886648343 | AE170: 1.643840307 | AG170: =AE170*trig_tab!$A170 -> 1.618866679 | AI170: 1.988451498 | AK170: =AI170*trig_tab!$A170 -> 1.958242452 | AM170: 1.844807473 | AO170: =AM170*trig_tab!$A170 -> 1.816780702
A171: 171 | C171: 1.890397136 | E171: =C171*trig_tab!$A171 -> 1.867123211 | F171: 1.893535935 | H171: =F171*trig_tab!$A171 -> 1.870223365 | J171: 1.699275138 | L171: =J171*trig_tab!$A171 -> 1.678354241 | M171: 1.748389445 | O171: =M171*trig_tab!$A171 -> 1.72686387 | Q171: 1.661670945 | S171: =Q171*trig_tab!$A171 -> 1.641213018 | T171: 1.624170504 | V171: =T171*trig_tab!$A171 -> 1.60417427 | X171: 1.847069375 | Z171: =X171*trig_tab!$A171 -> 1.824328886 | AA171: 1.826144835 | AC171: =AA171*trig_tab!$A171 -> 1.803661962 | AE171: 1.580374919 | AG171: =AE171*trig_tab!$A171 -> 1.560917881 | AI171: 1.890816878 | AK171: =AI171*trig_tab!$A171 -> 1.867537784 | AM171: 1.761415588 | AO171: =AM171*trig_tab!$A171 -> 1.739729639
A172: 172 | C172: 1.793710165 | E172: =C172*trig_tab!$A172 -> 1.776253901 | F172: 1.796535524 | H172: =F172*trig_tab!$A172 -> 1.779051764 | J172: 1.623616904 | L172: =J172*trig_tab!$A172 -> 1.607815976 | M172: 1.667753076 | O172: =M172*trig_tab!$A172 -> 1.651522618 | Q172: 1.589279677 | S172: =Q172*trig_tab!$A172 -> 1.573812917 | T172: 1.555558712 | V172: =T172*trig_tab!$A172 -> 1.540420122 | X172: 1.754720724 | Z172: =X172*trig_tab!$A172 -> 1.737643902 | AA172: 1.735915516 | AC172: =AA172*trig_tab!$A172 -> 1.719021705 | AE172: 1.516619433 | AG172: =AE172*trig_tab!$A172 -> 1.501859797 | AI172: 1.792799985 | AK172: =AI172*trig_tab!$A172 -> 1.775352579 | AM172: 1.677679852 | AO172: =AM172*trig_tab!$A172 -> 1.661352787
A173: 173 | C173: 1.696230472 | E173: =C173*trig_tab!$A173 -> 1.683587028 | F173: 1.698729927 | H173: =F173*trig_tab!$A173 -> 1.686067852 | J173: 1.547239021 | L173: =J173*trig_tab!$A173 -> 1.535706136 | M173: 1.586227996 | O173: =M173*trig_tab!$A173 -> 1.574404493 | Q173: 1.516490389 | S173: =Q173*trig_tab!$A173 -> 1.5051867 | T173: 1.486685573 | V173: =T173*trig_tab!$A173 -> 1.475604044 | X173: 1.661747307 | Z173: =X173*trig_tab!$A173 -> 1.649360895 | AA173: 1.645134002 | AC173: =AA173*trig_tab!$A173 -> 1.632871423 | AE173: 1.452606083 | AG173: =AE173*trig_tab!$A173 -> 1.441778578 | AI173: 1.694443294 | AK173: =AI173*trig_tab!$A173 -> 1.681813171 | AM173: 1.59363847 | AO173: =AM173*trig_tab!$A173 -> 1.581759731
A174: 174 | C174: 1.598057149 | E174: =C174*trig_tab!$A174 -> 1.589302824 | F174: 1.600219793 | H174: =F174*trig_tab!$A174 -> 1.591453622 | J174: 1.470231447 | L174: =J174*trig_tab!$A174 -> 1.462177365 | M174: 1.503925294 | O174: =M174*trig_tab!$A174 -> 1.495686634 | Q174: 1.443352832 | S174: =Q174*trig_tab!$A174 -> 1.435445994 | T174: 1.417583753 | V174: =T174*trig_tab!$A174 -> 1.409818081 | X174: 1.568227221 | Z174: =X174*trig_tab!$A174 -> 1.559636308 | AA174: 1.553869318 | AC174: =AA174*trig_tab!$A174 -> 1.545357059 | AE174: 1.388367101 | AG174: =AE174*trig_tab!$A174 -> 1.380761481 | AI174: 1.595789281 | AK174: =AI174*trig_tab!$A174 -> 1.58704738 | AM174: 1.509329649 | AO174: =AM174*trig_tab!$A174 -> 1.501061383
A175: 175 | C175: 1.499289284 | E175: =C175*trig_tab!$A175 -> 1.493584035 | F175: 1.50110577 | H175: =F175*trig_tab!$A175 -> 1.495393609 | J175: 1.392684136 | L175: =J175*trig_tab!$A175 -> 1.387384552 | M175: 1.420956059 | O175: =M175*trig_tab!$A175 -> 1.415548892 | Q175: 1.369916759 | S175: =Q175*trig_tab!$A175 -> 1.364703812 | T175: 1.348285923 | V175: =T175*trig_tab!$A175 -> 1.343155288 | X175: 1.474238561 | Z175: =X175*trig_tab!$A175 -> 1.468628638 | AA175: 1.462190488 | AC175: =AA175*trig_tab!$A175 -> 1.456626412 | AE175: 1.323934721 | AG175: =AE175*trig_tab!$A175 -> 1.31889675 | AI175: 1.496880419 | AK175: =AI175*trig_tab!$A175 -> 1.491184337 | AM175: 1.424791593 | AO175: =AM175*trig_tab!$A175 -> 1.419369831
A176: 176 | C176: 1.400025968 | E176: =C176*trig_tab!$A176 -> 1.396615575 | F176: 1.401488505 | H176: =F176*trig_tab!$A176 -> 1.398074549 | J176: 1.314687045 | L176: =J176*trig_tab!$A176 -> 1.311484533 | M176: 1.33743138 | O176: =M176*trig_tab!$A176 -> 1.334173465 | Q176: 1.296231923 | S176: =Q176*trig_tab!$A176 -> 1.293074367 | T176: 1.278824749 | V176: =T176*trig_tab!$A176 -> 1.275709596 | X176: 1.379859423 | Z176: =X176*trig_tab!$A176 -> 1.376498155 | AA176: 1.370166536 | AC176: =AA176*trig_tab!$A176 -> 1.366828879 | AE176: 1.259341175 | AG176: =AE176*trig_tab!$A176 -> 1.256273483 | AI176: 1.397759183 | AK176: =AI176*trig_tab!$A176 -> 1.394354312 | AM176: 1.340062508 | AO176: =AM176*trig_tab!$A176 -> 1.336798184
A177: 177 | C177: 1.300366292 | E177: =C177*trig_tab!$A177 -> 1.298584185 | F177: 1.301468647 | H177: =F177*trig_tab!$A177 -> 1.29968503 | J177: 1.23633013 | L177: =J177*trig_tab!$A177 -> 1.234635782 | M177: 1.253462346 | O177: =M177*trig_tab!$A177 -> 1.251744519 | Q177: 1.222348077 | S177: =Q177*trig_tab!$A177 -> 1.220672891 | T177: 1.209232902 | V177: =T177*trig_tab!$A177 -> 1.20757569 | X177: 1.285167902 | Z177: =X177*trig_tab!$A177 -> 1.283406624 | AA177: 1.277866487 | AC177: =AA177*trig_tab!$A177 -> 1.276115216 | AE177: 1.194618697 | AG177: =AE177*trig_tab!$A177 -> 1.192981514 | AI177: 1.298468049 | AK177: =AI177*trig_tab!$A177 -> 1.296688544 | AM177: 1.255180601 | AO177: =AM177*trig_tab!$A177 -> 1.25346042
A178: 178 | C178: 1.200409345 | E178: =C178*trig_tab!$A178 -> 1.199678088 | F178: 1.201146845 | H178: =F178*trig_tab!$A178 -> 1.200415139 | J178: 1.157703347 | L178: =J178*trig_tab!$A178 -> 1.156998105 | M178: 1.169160045 | O178: =M178*trig_tab!$A178 -> 1.168447825 | Q178: 1.148314972 | S178: =Q178*trig_tab!$A178 -> 1.14761545 | T178: 1.139543049 | V178: =T178*trig_tab!$A178 -> 1.13884887 | X178: 1.190242094 | Z178: =X178*trig_tab!$A178 -> 1.189517031 | AA178: 1.185359365 | AC178: =AA178*trig_tab!$A178 -> 1.184637277 | AE178: 1.12979952 | AG178: =AE178*trig_tab!$A178 -> 1.129111277 | AI178: 1.199049491 | AK178: =AI178*trig_tab!$A178 -> 1.198319062 | AM178: 1.170184077 | AO178: =AM178*trig_tab!$A178 -> 1.169471233
A179: 179 | C179: 1.100254217 | E179: =C179*trig_tab!$A179 -> 1.100086643 | F179: 1.100623747 | H179: =F179*trig_tab!$A179 -> 1.100456116 | J179: 1.078896651 | L179: =J179*trig_tab!$A179 -> 1.07873233 | M179: 1.084635567 | O179: =M179*trig_tab!$A179 -> 1.084470372 | Q179: 1.074182362 | S179: =Q179*trig_tab!$A179 -> 1.074018759 | T179: 1.069787859 | V179: =T179*trig_tab!$A179 -> 1.069624925 | X179: 1.095160095 | Z179: =X179*trig_tab!$A179 -> 1.094993297 | AA179: 1.092714195 | AC179: =AA179*trig_tab!$A179 -> 1.092547769 | AE179: 1.064915877 | AG179: =AE179*trig_tab!$A179 -> 1.064753685 | AI179: 1.099545983 | AK179: =AI179*trig_tab!$A179 -> 1.099378516 | AM179: 1.085111141 | AO179: =AM179*trig_tab!$A179 -> 1.084945874
A180: 180 | C180: 1 | E180: =C180*trig_tab!$A180 -> 1 | F180: 1 | H180: =F180*trig_tab!$A180 -> 1 | J180: 1 | L180: =J180*trig_tab!$A180 -> 1 | M180: 1 | O180: =M180*trig_tab!$A180 -> 1 | Q180: 1 | S180: =Q180*trig_tab!$A180 -> 1 | T180: 1 | V180: =T180*trig_tab!$A180 -> 1 | X180: 1 | Z180: =X180*trig_tab!$A180 -> 1 | AA180: 1 | AC180: =AA180*trig_tab!$A180 -> 1 | AE180: 1 | AG180: =AE180*trig_tab!$A180 -> 1 | AI180: 1 | AK180: =AI180*trig_tab!$A180 -> 1 | AM180: 1 | AO180: =AM180*trig_tab!$A180 -> 1

Sheet BSvTWSpolated
A1: m/s | B1: 0 | C1: 30 | D1: 50 | E1: 60 | F1: 80 | G1: 90 | H1: 100 | I1: 110 | J1: 130 | K1: 150 | L1: 180
A2: 0 | B2: =VLOOKUP(B$1,[1]boat_spd!$B$2:$WF$12,3+10*$A2,0) -> 0 | C2: =VLOOKUP(C$1,[1]boat_spd!$B$2:$WF$12,3+10*$A2,0) -> 0 | D2: =VLOOKUP(D$1,[1]boat_spd!$B$2:$WF$12,3+10*$A2,0) -> 0 | E2: =VLOOKUP(E$1,[1]boat_spd!$B$2:$WF$12,3+10*$A2,0) -> 0 | F2: =VLOOKUP(F$1,[1]boat_spd!$B$2:$WF$12,3+10*$A2,0) -> 0 | G2: =VLOOKUP(G$1,[1]boat_spd!$B$2:$WF$12,3+10*$A2,0) -> 0 | H2: =VLOOKUP(H$1,[1]boat_spd!$B$2:$WF$12,3+10*$A2,0) -> 0 | I2: =VLOOKUP(I$1,[1]boat_spd!$B$2:$WF$12,3+10*$A2,0) -> 0 | J2: =VLOOKUP(J$1,[1]boat_spd!$B$2:$WF$12,3+10*$A2,0) -> 0 | K2: =VLOOKUP(K$1,[1]boat_spd!$B$2:$WF$12,3+10*$A2,0) -> 0 | L2: =VLOOKUP(L$1,[1]boat_spd!$B$2:$WF$12,3+10*$A2,0) -> 0
A3: =A2+0.05 -> 0.05 | B3: =VLOOKUP(B$1,[1]boat_spd!$B$2:$WF$12,3+10*$A3,0) -> 0 | C3: =VLOOKUP(C$1,[1]boat_spd!$B$2:$WF$12,3+10*$A3,0) -> 0 | D3: =VLOOKUP(D$1,[1]boat_spd!$B$2:$WF$12,3+10*$A3,0) -> 0 | E3: =VLOOKUP(E$1,[1]boat_spd!$B$2:$WF$12,3+10*$A3,0) -> 0 | F3: =VLOOKUP(F$1,[1]boat_spd!$B$2:$WF$12,3+10*$A3,0) -> 0 | G3: =VLOOKUP(G$1,[1]boat_spd!$B$2:$WF$12,3+10*$A3,0) -> 0 | H3: =VLOOKUP(H$1,[1]boat_spd!$B$2:$WF$12,3+10*$A3,0) -> 0 | I3: =VLOOKUP(I$1,[1]boat_spd!$B$2:$WF$12,3+10*$A3,0) -> 0 | J3: =VLOOKUP(J$1,[1]boat_spd!$B$2:$WF$12,3+10*$A3,0) -> 0 | K3: =VLOOKUP(K$1,[1]boat_spd!$B$2:$WF$12,3+10*$A3,0) -> 0 | L3: =VLOOKUP(L$1,[1]boat_spd!$B$2:$WF$12,3+10*$A3,0) -> 0
A4: =A3+0.05 -> 0.1 | B4: =VLOOKUP(B$1,[1]boat_spd!$B$2:$WF$12,3+10*$A4,0) -> 0 | C4: =VLOOKUP(C$1,[1]boat_spd!$B$2:$WF$12,3+10*$A4,0) -> 0 | D4: =VLOOKUP(D$1,[1]boat_spd!$B$2:$WF$12,3+10*$A4,0) -> 0 | E4: =VLOOKUP(E$1,[1]boat_spd!$B$2:$WF$12,3+10*$A4,0) -> 0 | F4: =VLOOKUP(F$1,[1]boat_spd!$B$2:$WF$12,3+10*$A4,0) -> 0 | G4: =VLOOKUP(G$1,[1]boat_spd!$B$2:$WF$12,3+10*$A4,0) -> 0 | H4: =VLOOKUP(H$1,[1]boat_spd!$B$2:$WF$12,3+10*$A4,0) -> 0 | I4: =VLOOKUP(I$1,[1]boat_spd!$B$2:$WF$12,3+10*$A4,0) -> 0 | J4: =VLOOKUP(J$1,[1]boat_spd!$B$2:$WF$12,3+10*$A4,0) -> 0 | K4: =VLOOKUP(K$1,[1]boat_spd!$B$2:$WF$12,3+10*$A4,0) -> 0 | L4: =VLOOKUP(L$1,[1]boat_spd!$B$2:$WF$12,3+10*$A4,0) -> 0
A5: 0.15 | B5: =VLOOKUP(B$1,[1]boat_spd!$B$2:$WF$12,3+10*$A5,0) -> 0 | C5: =VLOOKUP(C$1,[1]boat_spd!$B$2:$WF$12,3+10*$A5,0) -> 0 | D5: =VLOOKUP(D$1,[1]boat_spd!$B$2:$WF$12,3+10*$A5,0) -> 0 | E5: =VLOOKUP(E$1,[1]boat_spd!$B$2:$WF$12,3+10*$A5,0) -> 0 | F5: =VLOOKUP(F$1,[1]boat_spd!$B$2:$WF$12,3+10*$A5,0) -> 0 | G5: =VLOOKUP(G$1,[1]boat_spd!$B$2:$WF$12,3+10*$A5,0) -> 0 | H5: =VLOOKUP(H$1,[1]boat_spd!$B$2:$WF$12,3+10*$A5,0) -> 0 | I5: =VLOOKUP(I$1,[1]boat_spd!$B$2:$WF$12,3+10*$A5,0) -> 0 | J5: =VLOOKUP(J$1,[1]boat_spd!$B$2:$WF$12,3+10*$A5,0) -> 0 | K5: =VLOOKUP(K$1,[1]boat_spd!$B$2:$WF$12,3+10*$A5,0) -> 0 | L5: =VLOOKUP(L$1,[1]boat_spd!$B$2:$WF$12,3+10*$A5,0) -> 0
A6: 0.2 | B6: =VLOOKUP(B$1,[1]boat_spd!$B$2:$WF$12,3+10*$A6,0) -> 0 | C6: =VLOOKUP(C$1,[1]boat_spd!$B$2:$WF$12,3+10*$A6,0) -> 0 | D6: =VLOOKUP(D$1,[1]boat_spd!$B$2:$WF$12,3+10*$A6,0) -> 0 | E6: =VLOOKUP(E$1,[1]boat_spd!$B$2:$WF$12,3+10*$A6,0) -> 0 | F6: =VLOOKUP(F$1,[1]boat_spd!$B$2:$WF$12,3+10*$A6,0) -> 0 | G6: =VLOOKUP(G$1,[1]boat_spd!$B$2:$WF$12,3+10*$A6,0) -> 0 | H6: =VLOOKUP(H$1,[1]boat_spd!$B$2:$WF$12,3+10*$A6,0) -> 0 | I6: =VLOOKUP(I$1,[1]boat_spd!$B$2:$WF$12,3+10*$A6,0) -> 0 | J6: =VLOOKUP(J$1,[1]boat_spd!$B$2:$WF$12,3+10*$A6,0) -> 0 | K6: =VLOOKUP(K$1,[1]boat_spd!$B$2:$WF$12,3+10*$A6,0) -> 0 | L6: =VLOOKUP(L$1,[1]boat_spd!$B$2:$WF$12,3+10*$A6,0) -> 0
A7: 0.25 | B7: =VLOOKUP(B$1,[1]boat_spd!$B$2:$WF$12,3+10*$A7,0) -> 0 | C7: =VLOOKUP(C$1,[1]boat_spd!$B$2:$WF$12,3+10*$A7,0) -> 0 | D7: =VLOOKUP(D$1,[1]boat_spd!$B$2:$WF$12,3+10*$A7,0) -> 0 | E7: =VLOOKUP(E$1,[1]boat_spd!$B$2:$WF$12,3+10*$A7,0) -> 0 | F7: =VLOOKUP(F$1,[1]boat_spd!$B$2:$WF$12,3+10*$A7,0) -> 0 | G7: =VLOOKUP(G$1,[1]boat_spd!$B$2:$WF$12,3+10*$A7,0) -> 0 | H7: =VLOOKUP(H$1,[1]boat_spd!$B$2:$WF$12,3+10*$A7,0) -> 0 | I7: =VLOOKUP(I$1,[1]boat_spd!$B$2:$WF$12,3+10*$A7,0) -> 0 | J7: =VLOOKUP(J$1,[1]boat_spd!$B$2:$WF$12,3+10*$A7,0) -> 0 | K7: =VLOOKUP(K$1,[1]boat_spd!$B$2:$WF$12,3+10*$A7,0) -> 0 | L7: =VLOOKUP(L$1,[1]boat_spd!$B$2:$WF$12,3+10*$A7,0) -> 0
A8: 0.3 | B8: =VLOOKUP(B$1,[1]boat_spd!$B$2:$WF$12,3+10*$A8,0) -> 0 | C8: =VLOOKUP(C$1,[1]boat_spd!$B$2:$WF$12,3+10*$A8,0) -> 0 | D8: =VLOOKUP(D$1,[1]boat_spd!$B$2:$WF$12,3+10*$A8,0) -> 0 | E8: =VLOOKUP(E$1,[1]boat_spd!$B$2:$WF$12,3+10*$A8,0) -> 0 | F8: =VLOOKUP(F$1,[1]boat_spd!$B$2:$WF$12,3+10*$A8,0) -> 0 | G8: =VLOOKUP(G$1,[1]boat_spd!$B$2:$WF$12,3+10*$A8,0) -> 0 | H8: =VLOOKUP(H$1,[1]boat_spd!$B$2:$WF$12,3+10*$A8,0) -> 0 | I8: =VLOOKUP(I$1,[1]boat_spd!$B$2:$WF$12,3+10*$A8,0) -> 0 | J8: =VLOOKUP(J$1,[1]boat_spd!$B$2:$WF$12,3+10*$A8,0) -> 0 | K8: =VLOOKUP(K$1,[1]boat_spd!$B$2:$WF$12,3+10*$A8,0) -> 0 | L8: =VLOOKUP(L$1,[1]boat_spd!$B$2:$WF$12,3+10*$A8,0) -> 0
A9: 0.35 | B9: =VLOOKUP(B$1,[1]boat_spd!$B$2:$WF$12,3+10*$A9,0) -> 0 | C9: =VLOOKUP(C$1,[1]boat_spd!$B$2:$WF$12,3+10*$A9,0) -> 0 | D9: =VLOOKUP(D$1,[1]boat_spd!$B$2:$WF$12,3+10*$A9,0) -> 0 | E9: =VLOOKUP(E$1,[1]boat_spd!$B$2:$WF$12,3+10*$A9,0) -> 0 | F9: =VLOOKUP(F$1,[1]boat_spd!$B$2:$WF$12,3+10*$A9,0) -> 0 | G9: =VLOOKUP(G$1,[1]boat_spd!$B$2:$WF$12,3+10*$A9,0) -> 0 | H9: =VLOOKUP(H$1,[1]boat_spd!$B$2:$WF$12,3+10*$A9,0) -> 0 | I9: =VLOOKUP(I$1,[1]boat_spd!$B$2:$WF$12,3+10*$A9,0) -> 0 | J9: =VLOOKUP(J$1,[1]boat_spd!$B$2:$WF$12,3+10*$A9,0) -> 0 | K9: =VLOOKUP(K$1,[1]boat_spd!$B$2:$WF$12,3+10*$A9,0) -> 0 | L9: =VLOOKUP(L$1,[1]boat_spd!$B$2:$WF$12,3+10*$A9,0) -> 0
A10: 0.4 | B10: =VLOOKUP(B$1,[1]boat_spd!$B$2:$WF$12,3+10*$A10,0) -> 0 | C10: =VLOOKUP(C$1,[1]boat_spd!$B$2:$WF$12,3+10*$A10,0) -> 0 | D10: =VLOOKUP(D$1,[1]boat_spd!$B$2:$WF$12,3+10*$A10,0) -> 0 | E10: =VLOOKUP(E$1,[1]boat_spd!$B$2:$WF$12,3+10*$A10,0) -> 0 | F10: =VLOOKUP(F$1,[1]boat_spd!$B$2:$WF$12,3+10*$A10,0) -> 0 | G10: =VLOOKUP(G$1,[1]boat_spd!$B$2:$WF$12,3+10*$A10,0) -> 0 | H10: =VLOOKUP(H$1,[1]boat_spd!$B$2:$WF$12,3+10*$A10,0) -> 0 | I10: =VLOOKUP(I$1,[1]boat_spd!$B$2:$WF$12,3+10*$A10,0) -> 0 | J10: =VLOOKUP(J$1,[1]boat_spd!$B$2:$WF$12,3+10*$A10,0) -> 0 | K10: =VLOOKUP(K$1,[1]boat_spd!$B$2:$WF$12,3+10*$A10,0) -> 0 | L10: =VLOOKUP(L$1,[1]boat_spd!$B$2:$WF$12,3+10*$A10,0) -> 0
A11: 0.45 | B11: =VLOOKUP(B$1,[1]boat_spd!$B$2:$WF$12,3+10*$A11,0) -> 0 | C11: =VLOOKUP(C$1,[1]boat_spd!$B$2:$WF$12,3+10*$A11,0) -> 0 | D11: =VLOOKUP(D$1,[1]boat_spd!$B$2:$WF$12,3+10*$A11,0) -> 0 | E11: =VLOOKUP(E$1,[1]boat_spd!$B$2:$WF$12,3+10*$A11,0) -> 0 | F11: =VLOOKUP(F$1,[1]boat_spd!$B$2:$WF$12,3+10*$A11,0) -> 0 | G11: =VLOOKUP(G$1,[1]boat_spd!$B$2:$WF$12,3+10*$A11,0) -> 0 | H11: =VLOOKUP(H$1,[1]boat_spd!$B$2:$WF$12,3+10*$A11,0) -> 0 | I11: =VLOOKUP(I$1,[1]boat_spd!$B$2:$WF$12,3+10*$A11,0) -> 0 | J11: =VLOOKUP(J$1,[1]boat_spd!$B$2:$WF$12,3+10*$A11,0) -> 0 | K11: =VLOOKUP(K$1,[1]boat_spd!$B$2:$WF$12,3+10*$A11,0) -> 0 | L11: =VLOOKUP(L$1,[1]boat_spd!$B$2:$WF$12,3+10*$A11,0) -> 0
A12: 0.5 | B12: =VLOOKUP(B$1,[1]boat_spd!$B$2:$WF$12,3+10*$A12,0) -> 0 | C12: =VLOOKUP(C$1,[1]boat_spd!$B$2:$WF$12,3+10*$A12,0) -> 0 | D12: =VLOOKUP(D$1,[1]boat_spd!$B$2:$WF$12,3+10*$A12,0) -> 0 | E12: =VLOOKUP(E$1,[1]boat_spd!$B$2:$WF$12,3+10*$A12,0) -> 0 | F12: =VLOOKUP(F$1,[1]boat_spd!$B$2:$WF$12,3+10*$A12,0) -> 0 | G12: =VLOOKUP(G$1,[1]boat_spd!$B$2:$WF$12,3+10*$A12,0) -> 0 | H12: =VLOOKUP(H$1,[1]boat_spd!$B$2:$WF$12,3+10*$A12,0) -> 0 | I12: =VLOOKUP(I$1,[1]boat_spd!$B$2:$WF$12,3+10*$A12,0) -> 0 | J12: =VLOOKUP(J$1,[1]boat_spd!$B$2:$WF$12,3+10*$A12,0) -> 0 | K12: =VLOOKUP(K$1,[1]boat_spd!$B$2:$WF$12,3+10*$A12,0) -> 0 | L12: =VLOOKUP(L$1,[1]boat_spd!$B$2:$WF$12,3+10*$A12,0) -> 0
A13: 0.55 | B13: =VLOOKUP(B$1,[1]boat_spd!$B$2:$WF$12,3+10*$A13,0) -> 0 | C13: =VLOOKUP(C$1,[1]boat_spd!$B$2:$WF$12,3+10*$A13,0) -> 0 | D13: =VLOOKUP(D$1,[1]boat_spd!$B$2:$WF$12,3+10*$A13,0) -> 0 | E13: =VLOOKUP(E$1,[1]boat_spd!$B$2:$WF$12,3+10*$A13,0) -> 0 | F13: =VLOOKUP(F$1,[1]boat_spd!$B$2:$WF$12,3+10*$A13,0) -> 0 | G13: =VLOOKUP(G$1,[1]boat_spd!$B$2:$WF$12,3+10*$A13,0) -> 0 | H13: =VLOOKUP(H$1,[1]boat_spd!$B$2:$WF$12,3+10*$A13,0) -> 0 | I13: =VLOOKUP(I$1,[1]boat_spd!$B$2:$WF$12,3+10*$A13,0) -> 0 | J13: =VLOOKUP(J$1,[1]boat_spd!$B$2:$WF$12,3+10*$A13,0) -> 0 | K13: =VLOOKUP(K$1,[1]boat_spd!$B$2:$WF$12,3+10*$A13,0) -> 0 | L13: =VLOOKUP(L$1,[1]boat_spd!$B$2:$WF$12,3+10*$A13,0) -> 0
A14: 0.6 | B14: =VLOOKUP(B$1,[1]boat_spd!$B$2:$WF$12,3+10*$A14,0) -> 0 | C14: =VLOOKUP(C$1,[1]boat_spd!$B$2:$WF$12,3+10*$A14,0) -> 0 | D14: =VLOOKUP(D$1,[1]boat_spd!$B$2:$WF$12,3+10*$A14,0) -> 0 | E14: =VLOOKUP(E$1,[1]boat_spd!$B$2:$WF$12,3+10*$A14,0) -> 0 | F14: =VLOOKUP(F$1,[1]boat_spd!$B$2:$WF$12,3+10*$A14,0) -> 0 | G14: =VLOOKUP(G$1,[1]boat_spd!$B$2:$WF$12,3+10*$A14,0) -> 0 | H14: =VLOOKUP(H$1,[1]boat_spd!$B$2:$WF$12,3+10*$A14,0) -> 0 | I14: =VLOOKUP(I$1,[1]boat_spd!$B$2:$WF$12,3+10*$A14,0) -> 0 | J14: =VLOOKUP(J$1,[1]boat_spd!$B$2:$WF$12,3+10*$A14,0) -> 0 | K14: =VLOOKUP(K$1,[1]boat_spd!$B$2:$WF$12,3+10*$A14,0) -> 0 | L14: =VLOOKUP(L$1,[1]boat_spd!$B$2:$WF$12,3+10*$A14,0) -> 0
A15: 0.65 | B15: =VLOOKUP(B$1,[1]boat_spd!$B$2:$WF$12,3+10*$A15,0) -> 0 | C15: =VLOOKUP(C$1,[1]boat_spd!$B$2:$WF$12,3+10*$A15,0) -> 0 | D15: =VLOOKUP(D$1,[1]boat_spd!$B$2:$WF$12,3+10*$A15,0) -> 0 | E15: =VLOOKUP(E$1,[1]boat_spd!$B$2:$WF$12,3+10*$A15,0) -> 0 | F15: =VLOOKUP(F$1,[1]boat_spd!$B$2:$WF$12,3+10*$A15,0) -> 0 | G15: =VLOOKUP(G$1,[1]boat_spd!$B$2:$WF$12,3+10*$A15,0) -> 0 | H15: =VLOOKUP(H$1,[1]boat_spd!$B$2:$WF$12,3+10*$A15,0) -> 0 | I15: =VLOOKUP(I$1,[1]boat_spd!$B$2:$WF$12,3+10*$A15,0) -> 0 | J15: =VLOOKUP(J$1,[1]boat_spd!$B$2:$WF$12,3+10*$A15,0) -> 0 | K15: =VLOOKUP(K$1,[1]boat_spd!$B$2:$WF$12,3+10*$A15,0) -> 0 | L15: =VLOOKUP(L$1,[1]boat_spd!$B$2:$WF$12,3+10*$A15,0) -> 0
A16: 0.7 | B16: =VLOOKUP(B$1,[1]boat_spd!$B$2:$WF$12,3+10*$A16,0) -> 0 | C16: =VLOOKUP(C$1,[1]boat_spd!$B$2:$WF$12,3+10*$A16,0) -> 0 | D16: =VLOOKUP(D$1,[1]boat_spd!$B$2:$WF$12,3+10*$A16,0) -> 0 | E16: =VLOOKUP(E$1,[1]boat_spd!$B$2:$WF$12,3+10*$A16,0) -> 0 | F16: =VLOOKUP(F$1,[1]boat_spd!$B$2:$WF$12,3+10*$A16,0) -> 0 | G16: =VLOOKUP(G$1,[1]boat_spd!$B$2:$WF$12,3+10*$A16,0) -> 0 | H16: =VLOOKUP(H$1,[1]boat_spd!$B$2:$WF$12,3+10*$A16,0) -> 0 | I16: =VLOOKUP(I$1,[1]boat_spd!$B$2:$WF$12,3+10*$A16,0) -> 0 | J16: =VLOOKUP(J$1,[1]boat_spd!$B$2:$WF$12,3+10*$A16,0) -> 0 | K16: =VLOOKUP(K$1,[1]boat_spd!$B$2:$WF$12,3+10*$A16,0) -> 0 | L16: =VLOOKUP(L$1,[1]boat_spd!$B$2:$WF$12,3+10*$A16,0) -> 0
A17: 0.75 | B17: =VLOOKUP(B$1,[1]boat_spd!$B$2:$WF$12,3+10*$A17,0) -> 0 | C17: =VLOOKUP(C$1,[1]boat_spd!$B$2:$WF$12,3+10*$A17,0) -> 0 | D17: =VLOOKUP(D$1,[1]boat_spd!$B$2:$WF$12,3+10*$A17,0) -> 0 | E17: =VLOOKUP(E$1,[1]boat_spd!$B$2:$WF$12,3+10*$A17,0) -> 0 | F17: =VLOOKUP(F$1,[1]boat_spd!$B$2:$WF$12,3+10*$A17,0) -> 0 | G17: =VLOOKUP(G$1,[1]boat_spd!$B$2:$WF$12,3+10*$A17,0) -> 0 | H17: =VLOOKUP(H$1,[1]boat_spd!$B$2:$WF$12,3+10*$A17,0) -> 0 | I17: =VLOOKUP(I$1,[1]boat_spd!$B$2:$WF$12,3+10*$A17,0) -> 0 | J17: =VLOOKUP(J$1,[1]boat_spd!$B$2:$WF$12,3+10*$A17,0) -> 0 | K17: =VLOOKUP(K$1,[1]boat_spd!$B$2:$WF$12,3+10*$A17,0) -> 0 | L17: =VLOOKUP(L$1,[1]boat_spd!$B$2:$WF$12,3+10*$A17,0) -> 0
A18: 2 | B18: =VLOOKUP(B$1,[1]boat_spd!$B$2:$WF$12,3+10*$A18,0) -> 0 | C18: =VLOOKUP(C$1,ApparentSets!$A$42:$N$59,14,0)*$A18 -> 4.385197546 | D18: =VLOOKUP(D$1,ApparentSets!$A$42:$N$59,14,0)*$A18 -> 7.127268756 | E18: =VLOOKUP(E$1,ApparentSets!$A$42:$N$59,14,0)*$A18 -> 7.823440147 | F18: =VLOOKUP(F$1,ApparentSets!$A$42:$N$59,14,0)*$A18 -> 8.414099226 | G18: =VLOOKUP(G$1,ApparentSets!$A$42:$N$59,14,0)*$A18 -> 8.50139527 | H18: =VLOOKUP(H$1,ApparentSets!$A$42:$N$59,14,0)*$A18 -> 8.486491519 | I18: =VLOOKUP(I$1,ApparentSets!$A$42:$N$59,14,0)*$A18 -> 8.362625328 | J18: =VLOOKUP(J$1,ApparentSets!$A$42:$N$59,14,0)*$A18 -> 7.635263003 | K18: =VLOOKUP(K$1,ApparentSets!$A$42:$N$59,14,0)*$A18 -> 5.893581392 | L18: =A18*0.95 -> 1.9 | M18: light
A19: 7 | B19: =VLOOKUP(B$1,[1]boat_spd!$B$2:$WF$12,3+10*$A19,0) -> 0 | C19: =VLOOKUP(C$1,ApparentSets!$A$42:$O$59,15,0)*$A19 -> 20.3996497 | D19: =VLOOKUP(D$1,ApparentSets!$A$42:$O$59,15,0)*$A19 -> 29.08012568 | E19: =VLOOKUP(E$1,ApparentSets!$A$42:$O$59,15,0)*$A19 -> 30.88426406 | F19: =VLOOKUP(F$1,ApparentSets!$A$42:$O$59,15,0)*$A19 -> 31.74675766 | G19: =VLOOKUP(G$1,ApparentSets!$A$42:$O$59,15,0)*$A19 -> 31.46897202 | H19: =VLOOKUP(H$1,ApparentSets!$A$42:$O$59,15,0)*$A19 -> 31.09197957 | I19: =VLOOKUP(I$1,ApparentSets!$A$42:$O$59,15,0)*$A19 -> 30.81960518 | J19: =VLOOKUP(J$1,ApparentSets!$A$42:$O$59,15,0)*$A19 -> 29.97445042 | K19: =VLOOKUP(K$1,ApparentSets!$A$42:$O$59,15,0)*$A19 -> 24.29813048 | L19: =A19*0.95 -> 6.65 | M19: champagne
A20: 11 | B20: =VLOOKUP(B$1,[1]boat_spd!$B$2:$WF$12,3+10*$A20,0) -> 0 | C20: =VLOOKUP(C$1,ApparentSets!$A$42:$M$59,13,0)*$A20 -> 22.85736652 | D20: =VLOOKUP(D$1,ApparentSets!$A$42:$M$59,13,0)*$A20 -> 32.48134885 | E20: =VLOOKUP(E$1,ApparentSets!$A$42:$M$59,13,0)*$A20 -> 33.78680045 | F20: =VLOOKUP(F$1,ApparentSets!$A$42:$M$59,13,0)*$A20 -> 33.873747 | G20: =VLOOKUP(G$1,ApparentSets!$A$42:$M$59,13,0)*$A20 -> 33.65692529 | H20: =VLOOKUP(H$1,ApparentSets!$A$42:$M$59,13,0)*$A20 -> 33.66556057 | I20: =VLOOKUP(I$1,ApparentSets!$A$42:$M$59,13,0)*$A20 -> 34.09095989 | J20: =VLOOKUP(J$1,ApparentSets!$A$42:$M$59,13,0)*$A20 -> 35.71813814 | K20: =VLOOKUP(K$1,ApparentSets!$A$42:$M$59,13,0)*$A20 -> 33.43695035 | L20: 10.45 | M20: fresh
A21: =A20+0.05 -> 11.05 | B21: =VLOOKUP(B$1,[1]boat_spd!$B$2:$WF$12,3+10*$A21,0) -> 0 | C21: =C20 -> 22.85736652 | D21: =D20 -> 32.48134885 | E21: =E20 -> 33.78680045 | F21: =F20 -> 33.873747 | G21: =G20 -> 33.65692529 | H21: =H20 -> 33.66556057 | I21: =I20 -> 34.09095989 | J21: =J20 -> 35.71813814 | K21: =K20 -> 33.43695035 | L21: 10.4975
A22: 11.1 | B22: =VLOOKUP(B$1,[1]boat_spd!$B$2:$WF$12,3+10*$A22,0) -> 0 | C22: =C21 -> 22.85736652 | D22: 32.48134885 | E22: 33.78680045 | F22: 33.873747 | G22: 33.65692529 | H22: 33.66556057 | I22: 34.09095989 | J22: 35.71813814 | K22: 33.43695035 | L22: 10.545
A23: 11.15 | B23: =VLOOKUP(B$1,[1]boat_spd!$B$2:$WF$12,3+10*$A23,0) -> 0 | C23: 22.85736652 | D23: 32.48134885 | E23: 33.78680045 | F23: 33.873747 | G23: 33.65692529 | H23: 33.66556057 | I23: 34.09095989 | J23: 35.71813814 | K23: 33.43695035 | L23: 10.5925
A24: 11.2 | B24: =VLOOKUP(B$1,[1]boat_spd!$B$2:$WF$12,3+10*$A24,0) -> 0 | C24: 22.85736652 | D24: 32.48134885 | E24: 33.78680045 | F24: 33.873747 | G24: 33.65692529 | H24: 33.66556057 | I24: 34.09095989 | J24: 35.71813814 | K24: 33.43695035 | L24: 10.64
A25: 11.25 | B25: =VLOOKUP(B$1,[1]boat_spd!$B$2:$WF$12,3+10*$A25,0) -> 0 | C25: 22.85736652 | D25: 32.48134885 | E25: 33.78680045 | F25: 33.873747 | G25: 33.65692529 | H25: 33.66556057 | I25: 34.09095989 | J25: 35.71813814 | K25: 33.43695035 | L25: 10.6875
A26: 11.3 | B26: =VLOOKUP(B$1,[1]boat_spd!$B$2:$WF$12,3+10*$A26,0) -> 0 | C26: 22.85736652 | D26: 32.48134885 | E26: 33.78680045 | F26: 33.873747 | G26: 33.65692529 | H26: 33.66556057 | I26: 34.09095989 | J26: 35.71813814 | K26: 33.43695035 | L26: 10.735
B29: =csplinea($A2:$A26,B2:B26,$A30:$A246) -> 0 | C29: =csplinea($A2:$A26,C2:C26,$A30:$A246) -> 0 | D29: 0 | E29: 0 | F29: 0 | G29: 0 | H29: 0 | I29: 0 | J29: 0 | K29: 0 | L29: 0
A30: 0 | B30: =csplinea($A2:$A26,B2:B26,$A30:$A246) -> 0 | C30: =csplinea($A2:$A26,C2:C26,$A30:$A246) -> 0 | D30: =csplinea($A2:$A26,D2:D26,$A30:$A246) -> 0 | E30: =csplinea($A2:$A26,E2:E26,$A30:$A246) -> 0 | F30: =csplinea($A2:$A26,F2:F26,$A30:$A246) -> 0 | G30: =csplinea($A2:$A26,G2:G26,$A30:$A246) -> 0 | H30: =csplinea($A2:$A26,H2:H26,$A30:$A246) -> 0 | I30: =csplinea($A2:$A26,I2:I26,$A30:$A246) -> 0 | J30: =csplinea($A2:$A26,J2:J26,$A30:$A246) -> 0 | K30: =csplinea($A2:$A26,K2:K26,$A30:$A246) -> 0 | L30: =csplinea($A2:$A26,L2:L26,$A30:$A246) -> 0
A31: =A30+0.1 -> 0.1 | B31: 0 | C31: 0 | D31: 0 | E31: 0 | F31: 0 | G31: 0 | H31: 0 | I31: 0 | J31: 0 | K31: 0 | L31: 0
A32: =A31+0.1 -> 0.2 | B32: 0 | C32: 0 | D32: 0 | E32: 0 | F32: 0 | G32: 0 | H32: 0 | I32: 0 | J32: 0 | K32: 0 | L32: 0
A33: 0.3 | B33: 0 | C33: -4.848369442e-23 | D33: -8.040148566e-23 | E33: -8.853503303e-23 | F33: -9.565070742e-23 | G33: -9.690533024e-23 | H33: -9.694328889e-23 | I33: -9.558937202e-23 | J33: -8.701888692e-23 | K33: -6.755948092e-23 | L33: -2.220174923e-23
A34: 0.4 | B34: 0 | C34: -6.752906573e-22 | D34: -1.11984808e-21 | E34: -1.233133765e-21 | F34: -1.332242311e-21 | G34: -1.34971695e-21 | H34: -1.350245645e-21 | I34: -1.331388019e-21 | J34: -1.212016577e-21 | K34: -9.409820521e-22 | L34: -3.092304333e-22
A35: 0.5 | B35: 0 | C35: -9.405585507e-21 | D35: -1.559747163e-20 | E35: -1.717533768e-20 | F35: -1.855574164e-20 | G35: -1.879913197e-20 | H35: -1.880649575e-20 | I35: -1.854384289e-20 | J35: -1.688121319e-20 | K35: -1.310618925e-20 | L35: -4.307024316e-21
A36: 0.6 | B36: 0 | C36: 0 | D36: 0 | E36: 0 | F36: 0 | G36: 0 | H36: 0 | I36: 0 | J36: 0 | K36: 0 | L36: 0
A37: 0.7 | B37: 0 | C37: 3.774405283e-18 | D37: 6.393404686e-18 | E37: 7.038420275e-18 | F37: 7.560721966e-18 | G37: 7.670518612e-18 | H37: 7.880741602e-18 | I37: 7.543622489e-18 | J37: 6.769804952e-18 | K37: 5.326937266e-18 | L37: 1.806310995e-18
A38: 0.8 | B38: 0 | C38: 0.01660311828 | D38: 0.02752401827 | E38: 0.03030680408 | F38: 0.03274016114 | G38: 0.03316812799 | H38: 0.03317995326 | I38: 0.0327162177 | J38: 0.02978433671 | K38: 0.02312168751 | L38: 0.007596015743
A39: 0.9 | B39: 0 | C39: 0.1098527119 | D39: 0.1819207602 | E39: 0.2002812507 | F39: 0.2163122394 | G39: 0.2191096811 | H39: 0.2191640002 | I39: 0.2160939071 | J39: 0.1967578099 | K39: 0.1526990739 | L39: 0.05011721173
A40: 1 | B40: 0 | C40: 0.2769958237 | D40: 0.4581894056 | E40: 0.504341925 | F40: 0.5445715668 | G40: 0.5515300012 | H40: 0.5516001697 | I40: 0.5438537365 | J40: 0.4952715451 | K40: 0.3842434394 | L40: 0.1259778487
A41: 1.1 | B41: 0 | C41: 0.5106353042 | D41: 0.84361831 | E41: 0.9284149585 | F41: 1.002196033 | G41: 1.014835133 | H41: 1.014832384 | I41: 1.000541868 | J41: 0.9113261775 | K41: 0.7067807405 | L41: 0.2314585928
A42: 1.2 | B42: 0 | C42: 0.8033740037 | D42: 1.325495829 | E42: 1.458426483 | F42: 1.573863527 | G42: 1.593431122 | H42: 1.593204566 | I42: 1.570704463 | J42: 1.430922342 | K42: 1.109336934 | L42: 0.3628401099
A43: 1.3 | B43: 0 | C43: 1.147814773 | D43: 1.891110317 | E43: 2.08030263 | F43: 2.244251939 | G43: 2.271724013 | H43: 2.271060637 | I43: 2.238887683 | J43: 2.040060673 | K43: 1.580937976 | L43: 0.5164030661
A44: 1.4 | B44: 0 | C44: 1.536560462 | D44: 2.527750132 | E44: 2.779969531 | F44: 2.998039157 | G44: 3.03411985 | H44: 3.03274452 | I44: 2.989637691 | J44: 2.724741806 | K44: 2.110609824 | L44: 0.6884281274
A45: 1.5 | B45: 0 | C45: 1.962213922 | D45: 3.222703627 | E45: 3.543353318 | F45: 3.819903072 | G45: 3.865024679 | H45: 3.862600137 | I45: 3.807500647 | J45: 3.470966376 | K45: 2.687378433 | L45: 0.8751959599
A46: 1.6 | B46: 0 | C46: 2.417378003 | D46: 3.963259158 | E46: 4.356380123 | F46: 4.694521573 | G46: 4.748844544 | H46: 4.744971411 | I46: 4.677022715 | J46: 4.264735018 | K46: 3.300269761 | L46: 1.072987229
A47: 1.7 | B47: 0 | C47: 2.894655555 | D47: 4.736705081 | E47: 5.204976076 | F47: 5.60657255 | G47: 5.669985491 | H47: 5.664202264 | I47: 5.582750055 | J47: 5.092048367 | K47: 3.938309765 | L47: 1.278082602
A48: 1.8 | B48: 0 | C48: 3.386649429 | D48: 5.530329751 | E48: 6.07506731 | F48: 6.540733891 | G48: 6.612853564 | H48: 6.604636618 | I48: 6.509228829 | J48: 5.938907057 | K48: 4.5905244 | L48: 1.486762744
A49: 1.9 | B49: 0 | C49: 3.885962476 | D49: 6.331421525 | E49: 6.952579957 | F49: 7.481683487 | G49: 7.561854809 | H49: 7.550618395 | I49: 7.4410052 | J49: 6.791311724 | K49: 5.245939623 | L49: 1.695308322
A50: 2 | B50: 0 | C50: 4.385197546 | D50: 7.127268756 | E50: 7.823440147 | F50: 8.414099226 | G50: 8.50139527 | H50: 8.486491519 | I50: 8.362625328 | J50: 7.635263003 | K50: 5.893581392 | L50: 1.9
A51: 2.1 | B51: 0 | C51: 4.878194522 | D51: 7.907317999 | E51: 8.675966271 | F51: 9.325268688 | G51: 9.418542427 | H51: 9.399277509 | I51: 9.261282217 | J51: 8.459163973 | K51: 6.524383342 | L51: 2.097771457
A52: 2.2 | B52: 0 | C52: 5.36374142 | D52: 8.669648593 | E52: 9.508045747 | F52: 10.21291821 | G52: 10.31100951 | H52: 10.28670827 | I52: 10.13475623 | J52: 9.261027497 | K52: 7.136909828 | L52: 2.288168416
A53: 2.3 | B53: 0 | C53: 5.841863288 | D53: 9.414498076 | E53: 10.31995825 | F53: 11.07738382 | G53: 11.17917116 | H53: 11.14919332 | I53: 10.98347456 | J53: 10.04126888 | K53: 7.731632888 | L53: 2.471389609
A54: 2.4 | B54: 0 | C54: 6.312585175 | D54: 10.14210399 | E54: 11.11198346 | F54: 11.91900153 | G54: 12.02340206 | H54: 11.98714216 | I54: 11.80786442 | J54: 10.80030343 | K54: 8.309024554 | L54: 2.647633773
A55: 2.5 | B55: 0 | C55: 6.775932129 | D55: 10.85270386 | E55: 11.88440105 | F55: 12.73810739 | G55: 12.84407685 | H55: 12.80096429 | I55: 12.60835301 | J55: 11.53854645 | K55: 8.869556865 | L55: 2.81709964
A56: 2.6 | B56: 0 | C56: 7.231929199 | D56: 11.54653524 | E56: 12.6374907 | F56: 13.53503741 | G56: 13.6415702 | H56: 13.59106923 | I56: 13.38536753 | J56: 12.25641326 | K56: 9.413701853 | L56: 2.979985945
A57: 2.7 | B57: 0 | C57: 7.680601432 | D57: 12.22383565 | E57: 13.37153209 | F57: 14.31012762 | G57: 14.41625676 | H57: 14.35786648 | I57: 14.13933518 | J57: 12.95431915 | K57: 9.941931556 | L57: 3.136491421
A58: 2.8 | B58: 0 | C58: 8.121973878 | D58: 12.88484265 | E58: 14.08680489 | F58: 15.06371405 | G58: 15.1685112 | H58: 15.10176554 | I58: 14.87068316 | J58: 13.63267943 | K58: 10.45471801 | L58: 3.286814803
A59: 2.9 | B59: 0 | C59: 8.556071585 | D59: 13.52979376 | E59: 14.78358877 | F59: 15.79613272 | G59: 15.89870817 | H59: 15.82317593 | I59: 15.57983869 | J59: 14.29190942 | K59: 10.95253324 | L59: 3.431154826
A60: 3 | B60: 0 | C60: 8.982919601 | D60: 14.15892652 | E60: 15.46216342 | F60: 16.50771965 | G60: 16.60722233 | H60: 16.52250716 | I60: 16.26722895 | J60: 14.93242441 | K60: 11.4358493 | L60: 3.569710222
A61: 3.1 | B61: 0 | C61: 9.402542974 | D61: 14.77247848 | E61: 16.12280852 | F61: 17.19881089 | G61: 17.29442835 | H61: 17.20016872 | I61: 16.93328115 | J61: 15.55463971 | K61: 11.90513821 | L61: 3.702679726
A62: 3.2 | B62: 0 | C62: 9.814966754 | D62: 15.37068716 | E62: 16.76580373 | F62: 17.86974244 | G62: 17.96070087 | H62: 17.85657013 | I62: 17.57842249 | J62: 16.15897063 | K62: 12.36087202 | L62: 3.830262073
A63: 3.3 | B63: 0 | C63: 10.22021599 | D63: 15.95379011 | E63: 17.39142873 | F63: 18.52085034 | G63: 18.60641457 | H63: 18.49212089 | I63: 18.20308018 | J63: 16.74583249 | K63: 12.80352275 | L63: 3.952655995
A64: 3.4 | B64: 0 | C64: 10.61831572 | D64: 16.52202486 | E64: 17.99996321 | F64: 19.15247061 | G64: 19.23194409 | H64: 19.10723051 | I64: 18.80768142 | J64: 17.31564057 | K64: 13.23356244 | L64: 4.070060229
A65: 3.5 | B65: 0 | C65: 11.00929101 | D65: 17.07562896 | E65: 18.59168683 | F65: 19.76493929 | G65: 19.8376641 | H65: 19.7023085 | I65: 19.3926534 | J65: 17.86881019 | K65: 13.65146313 | L65: 4.182673506
A66: 3.6 | B66: 0 | C66: 11.3931669 | D66: 17.61483993 | E66: 19.16687928 | F66: 20.35859239 | G66: 20.42394926 | H66: 20.27776436 | I66: 19.95842334 | J66: 18.40575667 | K66: 14.05769685 | L66: 4.290694562
A67: 3.7 | B67: 0 | C67: 11.76996844 | D67: 18.13989533 | E67: 19.72582023 | F67: 20.93376594 | G67: 20.99117422 | H67: 20.83400761 | I67: 20.50541843 | J67: 18.92689529 | K67: 14.45273564 | L67: 4.39432213
A68: 3.8 | B68: 0 | C68: 12.13972067 | D68: 18.65103267 | E68: 20.26878936 | F68: 21.49079596 | G68: 21.53971364 | H68: 21.37144774 | I68: 21.03406587 | J68: 19.43264138 | K68: 14.83705153 | L68: 4.493754946
A69: 3.9 | B69: 0 | C69: 12.50244865 | D69: 19.14848951 | E69: 20.79606634 | F69: 22.0300185 | G69: 22.06994219 | H69: 21.89049427 | I69: 21.54479288 | J69: 19.92341023 | K69: 15.21111656 | L69: 4.589191742
A70: 4 | B70: 0 | C70: 12.85817742 | D70: 19.63250338 | E70: 21.30793086 | F70: 22.55176956 | G70: 22.58223453 | H70: 22.3915567 | I70: 22.03802664 | J70: 20.39961716 | K70: 15.57540277 | L70: 4.680831252
A71: 4.1 | B71: 0 | C71: 13.20693203 | D71: 20.10331182 | E71: 21.80466258 | F71: 23.05638518 | G71: 23.0769653 | H71: 22.87504454 | I71: 22.51419436 | J71: 20.86167746 | K71: 15.93038218 | L71: 4.768872212
A72: 4.2 | B72: 0 | C72: 13.54873754 | D72: 20.56115236 | E72: 22.28654118 | F72: 23.54420138 | G72: 23.55450917 | H72: 23.3413673 | I72: 22.97372325 | J72: 21.31000646 | K72: 16.27652684 | L72: 4.853513354
A73: 4.3 | B73: 0 | C73: 13.88361898 | D73: 21.00626255 | E73: 22.75384635 | F73: 24.01555419 | G73: 24.01524081 | H73: 23.79093449 | I73: 23.41704051 | J73: 21.74501945 | K73: 16.61430878 | L73: 4.934953414
A74: 4.4 | B74: 0 | C74: 14.21160141 | D74: 21.43887992 | E74: 23.20685775 | F74: 24.47077963 | G74: 24.45953486 | H74: 24.2241556 | I74: 23.84457333 | J74: 22.16713173 | K74: 16.94420004 | L74: 5.013391125
A75: 4.5 | B75: 0 | C75: 14.53270987 | D75: 21.85924201 | E75: 23.64585507 | F75: 24.91021374 | G75: 24.88776599 | H75: 24.64144015 | I75: 24.25674892 | J75: 22.57675863 | K75: 17.26667264 | L75: 5.089025221
A76: 4.6 | B76: 0 | C76: 14.84696942 | D76: 22.26758635 | E76: 24.07111797 | F76: 25.33419253 | G76: 25.30030885 | H76: 25.04319765 | I76: 24.65399449 | J76: 22.97431544 | K76: 17.58219864 | L76: 5.162054436
A77: 4.7 | B77: 0 | C77: 15.1544051 | D77: 22.66415049 | E77: 24.48292615 | F77: 25.74305203 | G77: 25.69753811 | H77: 25.4298376 | I77: 25.03673722 | J77: 23.36021747 | K77: 17.89125005 | L77: 5.232677505
A78: 4.8 | B78: 0 | C78: 15.45504197 | D78: 23.04917196 | E78: 24.88155927 | F78: 26.13712828 | G78: 26.07982843 | H78: 25.80176951 | I78: 25.40540434 | J78: 23.73488003 | K78: 18.19429892 | L78: 5.301093161
A79: 4.9 | B79: 0 | C79: 15.74890506 | D79: 23.4228883 | E79: 25.26729701 | F79: 26.51675729 | G79: 26.44755446 | H79: 26.15940288 | I79: 25.76042303 | J79: 24.09871842 | K79: 18.49181729 | L79: 5.367500138
A80: 5 | B80: 0 | C80: 16.03601943 | D80: 23.78553705 | E80: 25.64041904 | F80: 26.88227509 | G80: 26.80109086 | H80: 26.50314723 | I80: 26.10222051 | J80: 24.45214795 | K80: 18.78427718 | L80: 5.432097172
A81: 5.1 | B81: 0 | C81: 16.31641012 | D81: 24.13735574 | E81: 26.00120505 | F81: 27.23401771 | G81: 27.14081229 | H81: 26.83341206 | I81: 26.43122397 | J81: 24.79558393 | K81: 19.07215064 | L81: 5.495082995
A82: 5.2 | B82: 0 | C82: 16.59010219 | D82: 24.47858192 | E82: 26.34993471 | F82: 27.57232117 | G82: 27.46709342 | H82: 27.15060688 | I82: 26.74786061 | J82: 25.12944166 | K82: 19.3559097 | L82: 5.556656341
A83: 5.3 | B83: 0 | C83: 16.85712069 | D83: 24.80945312 | E83: 26.68688769 | F83: 27.89752151 | G83: 27.78030889 | H83: 27.45514119 | I83: 27.05255764 | J83: 25.45413645 | K83: 19.63602639 | L83: 5.617015946
A84: 5.4 | B84: 0 | C84: 17.11749065 | D84: 25.13020687 | E84: 27.01234368 | F84: 28.20995474 | G84: 28.08083337 | H84: 27.74742451 | I84: 27.34574226 | J84: 25.77008362 | K84: 19.91297275 | L84: 5.676360542
A85: 5.5 | B85: 0 | C85: 17.37123713 | D85: 25.44108073 | E85: 27.32658235 | F85: 28.50995689 | G85: 28.36904152 | H85: 28.02786633 | I85: 27.62784167 | J85: 26.07769845 | K85: 20.18722081 | L85: 5.734888865
A86: 5.6 | B86: 0 | C86: 17.61838519 | D86: 25.74231221 | E86: 27.62988338 | F86: 28.79786399 | G86: 28.645308 | H86: 28.29687617 | I86: 27.89928307 | J86: 26.37739627 | K86: 20.45924262 | L86: 5.792799648
A87: 5.7 | B87: 0 | C87: 17.85895986 | D87: 26.03413887 | E87: 27.92252644 | F87: 29.07401207 | G87: 28.91000746 | H87: 28.55486353 | I87: 28.16049367 | J87: 26.66959237 | K87: 20.7295102 | L87: 5.850291624
A88: 5.8 | B88: 0 | C88: 18.09298619 | D88: 26.31679823 | E88: 28.2047912 | F88: 29.33873714 | G88: 29.16351457 | H88: 28.80223793 | I88: 28.41190066 | J88: 26.95470207 | K88: 20.99849559 | L88: 5.907563529
A89: 5.9 | B89: 0 | C89: 18.32048924 | D89: 26.59052785 | E89: 28.47695736 | F89: 29.59237525 | G89: 29.40620398 | H89: 29.03940886 | I89: 28.65393126 | J89: 27.23314067 | K89: 21.26667083 | L89: 5.964814097
A90: 6 | B90: 0 | C90: 18.54149405 | D90: 26.85556524 | E90: 28.73930458 | F90: 29.8352624 | G90: 29.63845035 | H90: 29.26678583 | I90: 28.88701265 | J90: 27.50532347 | K90: 21.53450795 | L90: 6.022242061
A91: 6.1 | B91: 0 | C91: 18.75602567 | D91: 27.11214797 | E91: 28.99211253 | F91: 30.06773464 | G91: 29.86062835 | H91: 29.48477836 | I91: 29.11157206 | J91: 27.77166579 | K91: 21.80247899 | L91: 6.080046155
A92: 6.2 | B92: 0 | C92: 18.96410915 | D92: 27.36051355 | E92: 29.23566091 | F92: 30.29012798 | G92: 30.07311262 | H92: 29.69379594 | I92: 29.32803666 | J92: 28.03258293 | K92: 22.07105599 | L92: 6.138425114
A93: 6.3 | B93: 0 | C93: 19.16576953 | D93: 27.60089952 | E93: 29.47022937 | F93: 30.50277846 | G93: 30.27627784 | H93: 29.89424809 | I93: 29.53683368 | J93: 28.2884902 | K93: 22.34071097 | L93: 6.197577672
A94: 6.4 | B94: 0 | C94: 19.36103187 | D94: 27.83354344 | E94: 29.69609761 | F94: 30.70602209 | G94: 30.47049865 | H94: 30.08654431 | I94: 29.7383903 | J94: 28.53980291 | K94: 22.61191597 | L94: 6.257702562
A95: 6.5 | B95: 0 | C95: 19.54992122 | D95: 28.05868282 | E95: 29.91354529 | F95: 30.9001949 | G95: 30.65614972 | H95: 30.27109411 | I95: 29.93313374 | J95: 28.78693635 | K95: 22.88514303 | L95: 6.318998519
A96: =A95+0.1 -> 6.6 | B96: 0 | C96: 19.73246262 | D96: 28.27655522 | E96: 30.12285209 | F96: 31.08563293 | G96: 30.83360571 | H96: 30.448307 | I96: 30.12149119 | J96: 29.03030584 | K96: 23.16086419 | L96: 6.381664277
A97: 6.7 | B97: 0 | C97: 19.90868112 | D97: 28.48739817 | E97: 30.32429769 | F97: 31.26267219 | G97: 31.00324128 | H97: 30.61859249 | I97: 30.30388986 | J97: 29.27032669 | K97: 23.43955148 | L97: 6.44589857
A98: 6.8 | B98: 0 | C98: 20.07860176 | D98: 28.6914492 | E98: 30.51816177 | F98: 31.43164871 | G98: 31.16543108 | H98: 30.78236007 | I98: 30.48075694 | J98: 29.5074142 | K98: 23.72167693 | L98: 6.511900132
A99: 6.9 | B99: 0 | C99: 20.24224961 | D99: 28.88894586 | E99: 30.704724 | F99: 31.59289853 | G99: 31.32054977 | H99: 30.94001926 | I99: 30.65251965 | J99: 29.74198367 | K99: 24.00771259 | L99: 6.579867698
A100: 7 | B100: 0 | C100: 20.3996497 | D100: 29.08012568 | E100: 30.88426406 | F100: 31.74675766 | G100: 31.46897202 | H100: 31.09197957 | I100: 30.81960518 | J100: 29.97445042 | K100: 24.29813048 | L100: 6.65
A101: 7.1 | B101: 0 | C101: 20.55084267 | D101: 29.26519818 | E101: 31.05703457 | F101: 31.89353361 | G101: 31.61103249 | H101: 31.2385953 | I101: 30.98237072 | J101: 30.20512665 | K101: 24.5932231 | L101: 6.722447932
A102: 7.2 | B102: 0 | C102: 20.69593148 | D102: 29.44426082 | E102: 31.22317992 | F102: 32.03341988 | G102: 31.74690594 | H102: 31.37999995 | I102: 31.14089338 | J102: 30.43391216 | K102: 24.89256482 | L102: 6.797171023
A103: 7.3 | B103: 0 | C103: 20.83503468 | D103: 29.61738302 | E103: 31.38281747 | F103: 32.16658144 | G103: 31.87672711 | H103: 31.51627182 | I103: 31.29518028 | J103: 30.66060366 | K103: 25.19555045 | L103: 6.874080956
A104: 7.4 | B104: 0 | C104: 20.96827082 | D104: 29.78463423 | E104: 31.53606454 | F104: 32.29318324 | G104: 32.00063077 | H104: 31.6474892 | I104: 31.44523851 | J104: 30.88499783 | K104: 25.50157481 | L104: 6.95308942
A105: 7.5 | B105: 0 | C105: 21.09575843 | D105: 29.94608388 | E105: 31.68303849 | F105: 32.41339027 | G105: 32.11875168 | H105: 31.77373041 | I105: 31.59107517 | J105: 31.10689139 | K105: 25.81003272 | L105: 7.0341081
A106: 7.6 | B106: 0 | C106: 21.21761608 | D106: 30.10180141 | E106: 31.82385665 | F106: 32.52736749 | G106: 32.2312246 | H106: 31.89507373 | I106: 31.73269737 | J106: 31.32608103 | K106: 26.12031901 | L106: 7.117048682
A107: 7.7 | B107: 0 | C107: 21.33396229 | D107: 30.25185624 | E107: 31.95863636 | F107: 32.63527987 | G107: 32.33818428 | H107: 32.01159747 | I107: 31.87011221 | J107: 31.54236345 | K107: 26.43182849 | L107: 7.201822853
A108: 7.8 | B108: 0 | C108: 21.44491564 | D108: 30.39631782 | E108: 32.08749497 | F108: 32.73729239 | G108: 32.43976548 | H108: 32.12337992 | I108: 32.0033268 | J108: 31.75553536 | K108: 26.74395598 | L108: 7.288342299
A109: 7.9 | B109: 0 | C109: 21.55059464 | D109: 30.53525558 | E109: 32.21054982 | F109: 32.83357002 | G109: 32.53610297 | H109: 32.23049939 | I109: 32.13234823 | J109: 31.96539345 | K109: 27.0560963 | L109: 7.376518706
A110: 8 | B110: 0 | C110: 21.65111787 | D110: 30.66873896 | E110: 32.32791826 | F110: 32.92427771 | G110: 32.6273315 | H110: 32.33303417 | I110: 32.2571836 | J110: 32.17173443 | K110: 27.36764428 | L110: 7.46626376
A111: 8.1 | B111: 0 | C111: 21.74660386 | D111: 30.79683738 | E111: 32.43971761 | F111: 33.00958046 | G111: 32.71358583 | H111: 32.43106256 | I111: 32.37784003 | J111: 32.37435498 | K111: 27.67799473 | L111: 7.557489147
A112: 8.2 | B112: 0 | C112: 21.83717115 | D112: 30.91962029 | E112: 32.54606522 | F112: 33.08964322 | G112: 32.79500071 | H112: 32.52466286 | I112: 32.49432462 | J112: 32.57305183 | K112: 27.98654247 | L112: 7.650106555
A113: 8.3 | B113: 0 | C113: 21.9229383 | D113: 31.03715712 | E113: 32.64707844 | F113: 33.16463096 | G113: 32.87171092 | H113: 32.61391337 | I113: 32.60664446 | J113: 32.76762165 | K113: 28.29268233 | L113: 7.744027668
A114: 8.4 | B114: 0 | C114: 22.00402385 | D114: 31.1495173 | E114: 32.74287461 | F114: 33.23470866 | G114: 32.9438512 | H114: 32.69889239 | I114: 32.71480665 | J114: 32.95786117 | K114: 28.59580912 | L114: 7.839164173
A115: 8.5 | B115: 0 | C115: 22.08054636 | D115: 31.25677028 | E115: 32.83357107 | F115: 33.30004129 | G115: 33.01155632 | H115: 32.77967822 | I115: 32.81881831 | J115: 33.14356707 | K115: 28.89531767 | L115: 7.935427757
A116: 8.6 | B116: 0 | C116: 22.15262435 | D116: 31.35898547 | E116: 32.91928515 | F116: 33.36079382 | G116: 33.07496103 | H116: 32.85634915 | I116: 32.91868654 | J116: 33.32453605 | K116: 29.19060278 | L116: 8.032730105
A117: 8.7 | B117: 0 | C117: 22.22037639 | D117: 31.45623233 | E117: 33.00013421 | F117: 33.41713122 | G117: 33.13420009 | H117: 32.92898349 | I117: 33.01441843 | J117: 33.50056482 | K117: 29.4810593 | L117: 8.130982904
A118: 8.8 | B118: 0 | C118: 22.28392102 | D118: 31.54858029 | E118: 33.07623558 | F118: 33.46921845 | G118: 33.18940827 | H118: 32.99765953 | I118: 33.10602109 | J118: 33.67145007 | K118: 29.76608203 | L118: 8.23009784
A119: 8.9 | B119: 0 | C119: 22.34337679 | D119: 31.63609877 | E119: 33.14770661 | F119: 33.5172205 | G119: 33.24072031 | H119: 33.06245557 | I119: 33.19350162 | J119: 33.83698852 | K119: 30.04506579 | L119: 8.329986599
A120: 9 | B120: 0 | C120: 22.39886223 | D120: 31.71885722 | E120: 33.21466463 | F120: 33.56130232 | G120: 33.28827099 | H120: 33.12344992 | I120: 33.27686712 | J120: 33.99697685 | K120: 30.31740541 | L120: 8.430560868
A121: 9.1 | B121: 0 | C121: 22.45049591 | D121: 31.79692507 | E121: 33.27722699 | F121: 33.60162889 | G121: 33.33219505 | H121: 33.18072086 | I121: 33.3561247 | J121: 34.15121176 | K121: 30.5824957 | L121: 8.531732332
A122: 9.2 | B122: 0 | C122: 22.49839636 | D122: 31.87037176 | E122: 33.33551103 | F122: 33.63836519 | G122: 33.37262727 | H122: 33.23434671 | I122: 33.43128147 | J122: 34.29948997 | K122: 30.83973149 | L122: 8.633412679
A123: 9.3 | B123: 0 | C123: 22.54268214 | D123: 31.93926671 | E123: 33.38963409 | F123: 33.67167617 | G123: 33.40970238 | H123: 33.28440576 | I123: 33.50234451 | J123: 34.44160816 | K123: 31.08850759 | L123: 8.735513593
A124: 9.4 | B124: 0 | C124: 22.58347179 | D124: 32.00367937 | E124: 33.43971352 | F124: 33.70172682 | G124: 33.44355517 | H124: 33.3309763 | I124: 33.56932094 | J124: 34.57736304 | K124: 31.32821883 | L124: 8.837946762
A125: 9.5 | B125: 0 | C125: 22.62088385 | D125: 32.06367917 | E125: 33.48586664 | F125: 33.72868209 | G125: 33.47432037 | H125: 33.37413664 | I125: 33.63221786 | J125: 34.70655131 | K125: 31.55826002 | L125: 8.940623871
A126: 9.6 | B126: 0 | C126: 22.65503687 | D126: 32.11933555 | E126: 33.52821082 | F126: 33.75270698 | G126: 33.50213276 | H126: 33.41396507 | I126: 33.69104237 | J126: 34.82896966 | K126: 31.77802599 | L126: 9.043456607
A127: 9.7 | B127: 0 | C127: 22.68604941 | D127: 32.17071794 | E127: 33.56686338 | F127: 33.77396643 | G127: 33.52712709 | H127: 33.4505399 | I127: 33.74580157 | J127: 34.94441481 | K127: 31.98691156 | L127: 9.146356656
A128: 9.8 | B128: 0 | C128: 22.71404 | D128: 32.21789577 | E128: 33.60194167 | F128: 33.79262542 | G128: 33.54943812 | H128: 33.48393942 | I128: 33.79650256 | J128: 35.05268345 | K128: 32.18431154 | L128: 9.249235704
A129: 9.9 | B129: 0 | C129: 22.73912719 | D129: 32.26093848 | E129: 33.63356304 | F129: 33.80884893 | G129: 33.56920061 | H129: 33.51424194 | I129: 33.84315245 | J129: 35.15357227 | K129: 32.36962076 | L129: 9.352005437
A130: 10 | B130: 0 | C130: 22.76142954 | D130: 32.29991551 | E130: 33.66184482 | F130: 33.82280193 | G130: 33.58654931 | H130: 33.54152574 | I130: 33.88575835 | J130: 35.24687798 | K130: 32.54223404 | L130: 9.454577542
A131: 10.1 | B131: 0 | C131: 22.78106558 | D131: 32.33489629 | E131: 33.68690435 | F131: 33.83464938 | G131: 33.601619 | H131: 33.56586914 | I131: 33.92432734 | J131: 35.33239729 | K131: 32.70154619 | L131: 9.556863705
A132: 10.2 | B132: 0 | C132: 22.79815387 | D132: 32.36595025 | E132: 33.70885897 | F132: 33.84455625 | G132: 33.61454441 | H132: 33.58735042 | I132: 33.95886655 | J132: 35.40992688 | K132: 32.84695204 | L132: 9.658775612
A133: 10.3 | B133: 0 | C133: 22.81281294 | D133: 32.39314684 | E133: 33.72782604 | F133: 33.85268752 | G133: 33.62546033 | H133: 33.60604789 | I133: 33.98938306 | J133: 35.47926347 | K133: 32.97784641 | L133: 9.760224949
A134: 10.4 | B134: 0 | C134: 22.82516135 | D134: 32.41655548 | E134: 33.74392288 | F134: 33.85920815 | G134: 33.63450149 | H134: 33.62203985 | I134: 34.01588398 | J134: 35.54020375 | K134: 33.09362411 | L134: 9.861123403
A135: 10.5 | B135: 0 | C135: 22.83531765 | D135: 32.43624561 | E135: 33.75726685 | F135: 33.86428313 | G135: 33.64180267 | H135: 33.63540459 | I135: 34.03837642 | J135: 35.59254442 | K135: 33.19367997 | L135: 9.96138266
A136: 10.6 | B136: 0 | C136: 22.84340038 | D136: 32.45228667 | E136: 33.76797528 | F136: 33.8680774 | G136: 33.64749862 | H136: 33.64622042 | I136: 34.05686747 | J136: 35.63608218 | K136: 33.27740881 | L136: 10.0609144
A137: 10.7 | B137: 0 | C137: 22.84952808 | D137: 32.46474809 | E137: 33.77616551 | F137: 33.87075596 | G137: 33.65172409 | H137: 33.65456564 | I137: 34.07136424 | J137: 35.67061373 | K137: 33.34420545 | L137: 10.15963033
A138: 10.8 | B138: 0 | C138: 22.85381931 | D138: 32.4736993 | E138: 33.78195489 | F138: 33.87248376 | G138: 33.65461386 | H138: 33.66051853 | I138: 34.08187383 | J138: 35.69593577 | K138: 33.3934647 | L138: 10.25744211
A139: 10.9 | B139: 0 | C139: 22.85639261 | D139: 32.47920974 | E139: 33.78546075 | F139: 33.87342579 | G139: 33.65630267 | H139: 33.66415741 | I139: 34.08840335 | J139: 35.71184501 | K139: 33.4245814 | L139: 10.35426144
A140: 11 | B140: 0 | C140: 22.85736652 | D140: 32.48134885 | E140: 33.78680045 | F140: 33.873747 | G140: 33.65692529 | H140: 33.66556057 | I140: 34.09095989 | J140: 35.71813814 | K140: 33.43695035 | L140: 10.45
A141: 11.1 | B141: 0 | C141: 22.85736652 | D141: 32.48134885 | E141: 33.78680045 | F141: 33.873747 | G141: 33.65692529 | H141: 33.66556057 | I141: 34.09095989 | J141: 35.71813814 | K141: 33.43695035 | L141: 10.545
A142: 11.2 | B142: 0 | C142: 22.85736652 | D142: 32.48134885 | E142: 33.78680045 | F142: 33.873747 | G142: 33.65692529 | H142: 33.66556057 | I142: 34.09095989 | J142: 35.71813814 | K142: 33.43695035 | L142: 10.64
A143: 11.3 | B143: 0 | C143: 22.85736652 | D143: 32.48134885 | E143: 33.78680045 | F143: 33.873747 | G143: 33.65692529 | H143: 33.66556057 | I143: 34.09095989 | J143: 35.71813814 | K143: 33.43695035 | L143: 10.735
A144: 11.4 | B144: 0 | C144: 22.85736652 | D144: 32.48134885 | E144: 33.78680045 | F144: 33.873747 | G144: 33.65692529 | H144: 33.66556057 | I144: 34.09095989 | J144: 35.71813814 | K144: 33.43695035 | L144: 10.735
A145: 11.5 | B145: 0 | C145: 22.85736652 | D145: 32.48134885 | E145: 33.78680045 | F145: 33.873747 | G145: 33.65692529 | H145: 33.66556057 | I145: 34.09095989 | J145: 35.71813814 | K145: 33.43695035 | L145: 10.735
A146: 11.6 | B146: 0 | C146: 22.85736652 | D146: 32.48134885 | E146: 33.78680045 | F146: 33.873747 | G146: 33.65692529 | H146: 33.66556057 | I146: 34.09095989 | J146: 35.71813814 | K146: 33.43695035 | L146: 10.735
A147: 11.7 | B147: 0 | C147: 22.85736652 | D147: 32.48134885 | E147: 33.78680045 | F147: 33.873747 | G147: 33.65692529 | H147: 33.66556057 | I147: 34.09095989 | J147: 35.71813814 | K147: 33.43695035 | L147: 10.735
A148: 11.8 | B148: 0 | C148: 22.85736652 | D148: 32.48134885 | E148: 33.78680045 | F148: 33.873747 | G148: 33.65692529 | H148: 33.66556057 | I148: 34.09095989 | J148: 35.71813814 | K148: 33.43695035 | L148: 10.735
A149: 11.9 | B149: 0 | C149: 22.85736652 | D149: 32.48134885 | E149: 33.78680045 | F149: 33.873747 | G149: 33.65692529 | H149: 33.66556057 | I149: 34.09095989 | J149: 35.71813814 | K149: 33.43695035 | L149: 10.735
A150: 12 | B150: 0 | C150: 22.85736652 | D150: 32.48134885 | E150: 33.78680045 | F150: 33.873747 | G150: 33.65692529 | H150: 33.66556057 | I150: 34.09095989 | J150: 35.71813814 | K150: 33.43695035 | L150: 10.735
A151: 12.1 | B151: 0 | C151: 22.85736652 | D151: 32.48134885 | E151: 33.78680045 | F151: 33.873747 | G151: 33.65692529 | H151: 33.66556057 | I151: 34.09095989 | J151: 35.71813814 | K151: 33.43695035 | L151: 10.735
A152: 12.2 | B152: 0 | C152: 22.85736652 | D152: 32.48134885 | E152: 33.78680045 | F152: 33.873747 | G152: 33.65692529 | H152: 33.66556057 | I152: 34.09095989 | J152: 35.71813814 | K152: 33.43695035 | L152: 10.735
A153: 12.3 | B153: 0 | C153: 22.85736652 | D153: 32.48134885 | E153: 33.78680045 | F153: 33.873747 | G153: 33.65692529 | H153: 33.66556057 | I153: 34.09095989 | J153: 35.71813814 | K153: 33.43695035 | L153: 10.735
A154: 12.4 | B154: 0 | C154: 22.85736652 | D154: 32.48134885 | E154: 33.78680045 | F154: 33.873747 | G154: 33.65692529 | H154: 33.66556057 | I154: 34.09095989 | J154: 35.71813814 | K154: 33.43695035 | L154: 10.735
A155: 12.5 | B155: 0 | C155: 22.85736652 | D155: 32.48134885 | E155: 33.78680045 | F155: 33.873747 | G155: 33.65692529 | H155: 33.66556057 | I155: 34.09095989 | J155: 35.71813814 | K155: 33.43695035 | L155: 10.735
A156: 12.6 | B156: 0 | C156: 22.85736652 | D156: 32.48134885 | E156: 33.78680045 | F156: 33.873747 | G156: 33.65692529 | H156: 33.66556057 | I156: 34.09095989 | J156: 35.71813814 | K156: 33.43695035 | L156: 10.735
A157: 12.7 | B157: 0 | C157: 22.85736652 | D157: 32.48134885 | E157: 33.78680045 | F157: 33.873747 | G157: 33.65692529 | H157: 33.66556057 | I157: 34.09095989 | J157: 35.71813814 | K157: 33.43695035 | L157: 10.735
A158: 12.8 | B158: 0 | C158: 22.85736652 | D158: 32.48134885 | E158: 33.78680045 | F158: 33.873747 | G158: 33.65692529 | H158: 33.66556057 | I158: 34.09095989 | J158: 35.71813814 | K158: 33.43695035 | L158: 10.735
A159: 12.9 | B159: 0 | C159: 22.85736652 | D159: 32.48134885 | E159: 33.78680045 | F159: 33.873747 | G159: 33.65692529 | H159: 33.66556057 | I159: 34.09095989 | J159: 35.71813814 | K159: 33.43695035 | L159: 10.735
A160: =A159+0.1 -> 13 | B160: 0 | C160: 22.85736652 | D160: 32.48134885 | E160: 33.78680045 | F160: 33.873747 | G160: 33.65692529 | H160: 33.66556057 | I160: 34.09095989 | J160: 35.71813814 | K160: 33.43695035 | L160: 10.735
A161: 13.1 | B161: 0 | C161: 22.85736652 | D161: 32.48134885 | E161: 33.78680045 | F161: 33.873747 | G161: 33.65692529 | H161: 33.66556057 | I161: 34.09095989 | J161: 35.71813814 | K161: 33.43695035 | L161: 10.735
A162: 13.2 | B162: 0 | C162: 22.85736652 | D162: 32.48134885 | E162: 33.78680045 | F162: 33.873747 | G162: 33.65692529 | H162: 33.66556057 | I162: 34.09095989 | J162: 35.71813814 | K162: 33.43695035 | L162: 10.735
A163: 13.3 | B163: 0 | C163: 22.85736652 | D163: 32.48134885 | E163: 33.78680045 | F163: 33.873747 | G163: 33.65692529 | H163: 33.66556057 | I163: 34.09095989 | J163: 35.71813814 | K163: 33.43695035 | L163: 10.735
A164: 13.4 | B164: 0 | C164: 22.85736652 | D164: 32.48134885 | E164: 33.78680045 | F164: 33.873747 | G164: 33.65692529 | H164: 33.66556057 | I164: 34.09095989 | J164: 35.71813814 | K164: 33.43695035 | L164: 10.735
A165: 13.5 | B165: 0 | C165: 22.85736652 | D165: 32.48134885 | E165: 33.78680045 | F165: 33.873747 | G165: 33.65692529 | H165: 33.66556057 | I165: 34.09095989 | J165: 35.71813814 | K165: 33.43695035 | L165: 10.735
A166: 13.6 | B166: 0 | C166: 22.85736652 | D166: 32.48134885 | E166: 33.78680045 | F166: 33.873747 | G166: 33.65692529 | H166: 33.66556057 | I166: 34.09095989 | J166: 35.71813814 | K166: 33.43695035 | L166: 10.735
A167: 13.7 | B167: 0 | C167: 22.85736652 | D167: 32.48134885 | E167: 33.78680045 | F167: 33.873747 | G167: 33.65692529 | H167: 33.66556057 | I167: 34.09095989 | J167: 35.71813814 | K167: 33.43695035 | L167: 10.735
A168: 13.8 | B168: 0 | C168: 22.85736652 | D168: 32.48134885 | E168: 33.78680045 | F168: 33.873747 | G168: 33.65692529 | H168: 33.66556057 | I168: 34.09095989 | J168: 35.71813814 | K168: 33.43695035 | L168: 10.735
A169: 13.9 | B169: 0 | C169: 22.85736652 | D169: 32.48134885 | E169: 33.78680045 | F169: 33.873747 | G169: 33.65692529 | H169: 33.66556057 | I169: 34.09095989 | J169: 35.71813814 | K169: 33.43695035 | L169: 10.735
A170: 14 | B170: 0 | C170: 22.85736652 | D170: 32.48134885 | E170: 33.78680045 | F170: 33.873747 | G170: 33.65692529 | H170: 33.66556057 | I170: 34.09095989 | J170: 35.71813814 | K170: 33.43695035 | L170: 10.735
A171: 14.1 | B171: 0 | C171: 22.85736652 | D171: 32.48134885 | E171: 33.78680045 | F171: 33.873747 | G171: 33.65692529 | H171: 33.66556057 | I171: 34.09095989 | J171: 35.71813814 | K171: 33.43695035 | L171: 10.735
A172: 14.2 | B172: 0 | C172: 22.85736652 | D172: 32.48134885 | E172: 33.78680045 | F172: 33.873747 | G172: 33.65692529 | H172: 33.66556057 | I172: 34.09095989 | J172: 35.71813814 | K172: 33.43695035 | L172: 10.735
A173: 14.3 | B173: 0 | C173: 22.85736652 | D173: 32.48134885 | E173: 33.78680045 | F173: 33.873747 | G173: 33.65692529 | H173: 33.66556057 | I173: 34.09095989 | J173: 35.71813814 | K173: 33.43695035 | L173: 10.735
A174: 14.4 | B174: 0 | C174: 22.85736652 | D174: 32.48134885 | E174: 33.78680045 | F174: 33.873747 | G174: 33.65692529 | H174: 33.66556057 | I174: 34.09095989 | J174: 35.71813814 | K174: 33.43695035 | L174: 10.735
A175: 14.5 | B175: 0 | C175: 22.85736652 | D175: 32.48134885 | E175: 33.78680045 | F175: 33.873747 | G175: 33.65692529 | H175: 33.66556057 | I175: 34.09095989 | J175: 35.71813814 | K175: 33.43695035 | L175: 10.735
A176: 14.6 | B176: 0 | C176: 22.85736652 | D176: 32.48134885 | E176: 33.78680045 | F176: 33.873747 | G176: 33.65692529 | H176: 33.66556057 | I176: 34.09095989 | J176: 35.71813814 | K176: 33.43695035 | L176: 10.735
A177: 14.7 | B177: 0 | C177: 22.85736652 | D177: 32.48134885 | E177: 33.78680045 | F177: 33.873747 | G177: 33.65692529 | H177: 33.66556057 | I177: 34.09095989 | J177: 35.71813814 | K177: 33.43695035 | L177: 10.735
A178: 14.8 | B178: 0 | C178: 22.85736652 | D178: 32.48134885 | E178: 33.78680045 | F178: 33.873747 | G178: 33.65692529 | H178: 33.66556057 | I178: 34.09095989 | J178: 35.71813814 | K178: 33.43695035 | L178: 10.735
A179: 14.9 | B179: 0 | C179: 22.85736652 | D179: 32.48134885 | E179: 33.78680045 | F179: 33.873747 | G179: 33.65692529 | H179: 33.66556057 | I179: 34.09095989 | J179: 35.71813814 | K179: 33.43695035 | L179: 10.735
A180: 15 | B180: 0 | C180: 22.85736652 | D180: 32.48134885 | E180: 33.78680045 | F180: 33.873747 | G180: 33.65692529 | H180: 33.66556057 | I180: 34.09095989 | J180: 35.71813814 | K180: 33.43695035 | L180: 10.735
A181: 15.1 | B181: 0 | C181: 22.85736652 | D181: 32.48134885 | E181: 33.78680045 | F181: 33.873747 | G181: 33.65692529 | H181: 33.66556057 | I181: 34.09095989 | J181: 35.71813814 | K181: 33.43695035 | L181: 10.735
A182: 15.2 | B182: 0 | C182: 22.85736652 | D182: 32.48134885 | E182: 33.78680045 | F182: 33.873747 | G182: 33.65692529 | H182: 33.66556057 | I182: 34.09095989 | J182: 35.71813814 | K182: 33.43695035 | L182: 10.735
A183: 15.3 | B183: 0 | C183: 22.85736652 | D183: 32.48134885 | E183: 33.78680045 | F183: 33.873747 | G183: 33.65692529 | H183: 33.66556057 | I183: 34.09095989 | J183: 35.71813814 | K183: 33.43695035 | L183: 10.735
A184: 15.4 | B184: 0 | C184: 22.85736652 | D184: 32.48134885 | E184: 33.78680045 | F184: 33.873747 | G184: 33.65692529 | H184: 33.66556057 | I184: 34.09095989 | J184: 35.71813814 | K184: 33.43695035 | L184: 10.735
A185: 15.5 | B185: 0 | C185: 22.85736652 | D185: 32.48134885 | E185: 33.78680045 | F185: 33.873747 | G185: 33.65692529 | H185: 33.66556057 | I185: 34.09095989 | J185: 35.71813814 | K185: 33.43695035 | L185: 10.735
A186: 15.6 | B186: 0 | C186: 22.85736652 | D186: 32.48134885 | E186: 33.78680045 | F186: 33.873747 | G186: 33.65692529 | H186: 33.66556057 | I186: 34.09095989 | J186: 35.71813814 | K186: 33.43695035 | L186: 10.735
A187: 15.7 | B187: 0 | C187: 22.85736652 | D187: 32.48134885 | E187: 33.78680045 | F187: 33.873747 | G187: 33.65692529 | H187: 33.66556057 | I187: 34.09095989 | J187: 35.71813814 | K187: 33.43695035 | L187: 10.735
A188: 15.8 | B188: 0 | C188: 22.85736652 | D188: 32.48134885 | E188: 33.78680045 | F188: 33.873747 | G188: 33.65692529 | H188: 33.66556057 | I188: 34.09095989 | J188: 35.71813814 | K188: 33.43695035 | L188: 10.735
A189: 15.9 | B189: 0 | C189: 22.85736652 | D189: 32.48134885 | E189: 33.78680045 | F189: 33.873747 | G189: 33.65692529 | H189: 33.66556057 | I189: 34.09095989 | J189: 35.71813814 | K189: 33.43695035 | L189: 10.735
A190: 16 | B190: 0 | C190: 22.85736652 | D190: 32.48134885 | E190: 33.78680045 | F190: 33.873747 | G190: 33.65692529 | H190: 33.66556057 | I190: 34.09095989 | J190: 35.71813814 | K190: 33.43695035 | L190: 10.735
A191: 16.1 | B191: 0 | C191: 22.85736652 | D191: 32.48134885 | E191: 33.78680045 | F191: 33.873747 | G191: 33.65692529 | H191: 33.66556057 | I191: 34.09095989 | J191: 35.71813814 | K191: 33.43695035 | L191: 10.735
A192: 16.2 | B192: 0 | C192: 22.85736652 | D192: 32.48134885 | E192: 33.78680045 | F192: 33.873747 | G192: 33.65692529 | H192: 33.66556057 | I192: 34.09095989 | J192: 35.71813814 | K192: 33.43695035 | L192: 10.735
A193: 16.3 | B193: 0 | C193: 22.85736652 | D193: 32.48134885 | E193: 33.78680045 | F193: 33.873747 | G193: 33.65692529 | H193: 33.66556057 | I193: 34.09095989 | J193: 35.71813814 | K193: 33.43695035 | L193: 10.735
A194: 16.4 | B194: 0 | C194: 22.85736652 | D194: 32.48134885 | E194: 33.78680045 | F194: 33.873747 | G194: 33.65692529 | H194: 33.66556057 | I194: 34.09095989 | J194: 35.71813814 | K194: 33.43695035 | L194: 10.735
A195: 16.5 | B195: 0 | C195: 22.85736652 | D195: 32.48134885 | E195: 33.78680045 | F195: 33.873747 | G195: 33.65692529 | H195: 33.66556057 | I195: 34.09095989 | J195: 35.71813814 | K195: 33.43695035 | L195: 10.735
A196: 16.6 | B196: 0 | C196: 22.85736652 | D196: 32.48134885 | E196: 33.78680045 | F196: 33.873747 | G196: 33.65692529 | H196: 33.66556057 | I196: 34.09095989 | J196: 35.71813814 | K196: 33.43695035 | L196: 10.735
A197: 16.7 | B197: 0 | C197: 22.85736652 | D197: 32.48134885 | E197: 33.78680045 | F197: 33.873747 | G197: 33.65692529 | H197: 33.66556057 | I197: 34.09095989 | J197: 35.71813814 | K197: 33.43695035 | L197: 10.735
A198: 16.8 | B198: 0 | C198: 22.85736652 | D198: 32.48134885 | E198: 33.78680045 | F198: 33.873747 | G198: 33.65692529 | H198: 33.66556057 | I198: 34.09095989 | J198: 35.71813814 | K198: 33.43695035 | L198: 10.735
A199: 16.9 | B199: 0 | C199: 22.85736652 | D199: 32.48134885 | E199: 33.78680045 | F199: 33.873747 | G199: 33.65692529 | H199: 33.66556057 | I199: 34.09095989 | J199: 35.71813814 | K199: 33.43695035 | L199: 10.735
A200: 17 | B200: 0 | C200: 22.85736652 | D200: 32.48134885 | E200: 33.78680045 | F200: 33.873747 | G200: 33.65692529 | H200: 33.66556057 | I200: 34.09095989 | J200: 35.71813814 | K200: 33.43695035 | L200: 10.735
A201: 17.1 | B201: 0 | C201: 22.85736652 | D201: 32.48134885 | E201: 33.78680045 | F201: 33.873747 | G201: 33.65692529 | H201: 33.66556057 | I201: 34.09095989 | J201: 35.71813814 | K201: 33.43695035 | L201: 10.735
A202: 17.2 | B202: 0 | C202: 22.85736652 | D202: 32.48134885 | E202: 33.78680045 | F202: 33.873747 | G202: 33.65692529 | H202: 33.66556057 | I202: 34.09095989 | J202: 35.71813814 | K202: 33.43695035 | L202: 10.735
... 48 more rows

Sheet boat_spd
A1: m/s | D1: 0 | E1: 0.05 | F1: 0.1 | G1: 0.15 | H1: 0.2 | I1: 0.25 | J1: 0.3 | K1: 0.35 | L1: 0.4 | M1: 0.45 | N1: 0.5 | O1: 0.55 | P1: 0.6 | Q1: 0.65 | R1: 0.7 | S1: 0.75 | T1: 0.8 | U1: 0.85 | V1: 0.9 | W1: 0.95 | X1: 1 | Y1: 1.05 | Z1: 1.1 | AA1: 1.15 | AB1: 1.2 | AC1: 1.25 | AD1: 1.3 | AE1: 1.35 | AF1: 1.4 | AG1: 1.45 | AH1: 1.5 | AI1: 1.55 | AJ1: 1.6 | AK1: 1.65 | AL1: 1.7 | AM1: 1.75 | AN1: 1.8 | AO1: 1.85 | AP1: 1.9 | AQ1: 1.95 | AR1: 2 | AS1: 2.05 | AT1: 2.1 | AU1: 2.15 | AV1: 2.2 | AW1: 2.25 | AX1: 2.3 | AY1: 2.35 | AZ1: 2.4 | BA1: 2.45 | BB1: 2.5 | BC1: 2.55 | BD1: 2.6 | BE1: 2.65 | BF1: 2.7 | BG1: 2.75 | BH1: 2.8 | BI1: 2.85 | BJ1: 2.9 | BK1: 2.95 | BL1: 3 | BM1: 3.05 | BN1: 3.1 | BO1: 3.15 | BP1: 3.2 | BQ1: 3.25 | BR1: 3.3 | BS1: 3.35 | BT1: 3.4 | BU1: 3.45 | BV1: 3.5 | BW1: 3.55 | BX1: 3.6 | BY1: 3.65 | BZ1: 3.7 | CA1: 3.75 | CB1: 3.8 | CC1: 3.85 | CD1: 3.9 | CE1: 3.95 | CF1: 4 | CG1: 4.05 | CH1: 4.1 | CI1: 4.15 | CJ1: 4.2 | CK1: 4.25 | CL1: 4.3 | CM1: 4.35 | CN1: 4.4 | CO1: 4.45 | CP1: 4.5 | CQ1: 4.55 | CR1: 4.6 | CS1: 4.65 | CT1: 4.7 | CU1: 4.75 | CV1: 4.8 | CW1: 4.85 | CX1: 4.9 | CY1: 4.95 | CZ1: 5 | DA1: 5.05 | DB1: 5.1 | DC1: 5.15 | DD1: 5.2 | DE1: 5.25 | DF1: 5.3 | DG1: 5.35 | DH1: 5.4 | DI1: 5.45 | DJ1: 5.5 | DK1: 5.55 | DL1: 5.6 | DM1: 5.65 | DN1: 5.7 | DO1: 5.75 | DP1: 5.8 | DQ1: 5.85 | DR1: 5.9 | DS1: 5.95 | DT1: 6 | DU1: 6.05 | DV1: 6.1 | DW1: 6.15 | DX1: 6.2 | DY1: 6.25 | DZ1: 6.3 | EA1: 6.35 | EB1: 6.4 | EC1: 6.45 | ED1: 6.5 | EE1: 6.55 | EF1: 6.6 | EG1: 6.65 | EH1: 6.7 | EI1: 6.75 | EJ1: 6.8 | EK1: 6.85 | EL1: 6.9 | EM1: 6.95 | EN1: 7 | EO1: 7.05 | EP1: 7.1 | EQ1: 7.15 | ER1: 7.2 | ES1: 7.25 | ET1: 7.3 | EU1: 7.35 | EV1: 7.4 | EW1: 7.45 | EX1: 7.5 | EY1: 7.55 | EZ1: 7.6 | FA1: 7.65 | FB1: 7.7 | FC1: 7.75 | FD1: 7.8 | FE1: 7.85 | FF1: 7.9 | FG1: 7.95 | FH1: 8 | FI1: 8.05 | FJ1: 8.1 | FK1: 8.15 | FL1: 8.2 | FM1: 8.25 | FN1: 8.3 | FO1: 8.35 | FP1: 8.4 | FQ1: 8.45 | FR1: 8.5 | FS1: 8.55 | FT1: 8.6 | FU1: 8.65 | FV1: 8.7 | FW1: 8.75 | FX1: 8.8 | FY1: 8.85 | FZ1: 8.9 | GA1: 8.95 | GB1: 9 | GC1: 9.05 | GD1: 9.1 | GE1: 9.15 | GF1: 9.2 | GG1: 9.25 | GH1: 9.3 | GI1: 9.35 | GJ1: 9.4 | GK1: 9.45 | GL1: 9.5 | GM1: 9.55 | GN1: 9.6 | GO1: 9.65 | GP1: 9.7 | GQ1: 9.75 | GR1: 9.8 | GS1: 9.85 | GT1: 9.9 | GU1: 9.95 | GV1: 10 | GW1: 10.05 | GX1: 10.1 | GY1: 10.15 | GZ1: 10.2 | HA1: 10.25 | HB1: 10.3 | HC1: 10.35 | HD1: 10.4 | HE1: 10.45 | HF1: 10.5 | HG1: 10.55 | HH1: 10.6 | HI1: 10.65 | HJ1: 10.7 | HK1: 10.75 | HL1: 10.8 | HM1: 10.85 | HN1: 10.9 | HO1: 10.95 | HP1: 11 | HQ1: 11.05 | HR1: 11.1 | HS1: 11.15 | HT1: 11.2 | HU1: 11.25 | HV1: 11.3 | HW1: 11.35 | HX1: 11.4 | HY1: 11.45 | HZ1: 11.5 | IA1: 11.55 | IB1: 11.6 | IC1: 11.65 | ID1: 11.7 | IE1: 11.75 | IF1: 11.8 | IG1: 11.85 | IH1: 11.9 | II1: 11.95 | IJ1: 12
B2: 0 | D2: 0 | E2: 0 | F2: 0 | G2: 0 | H2: 0 | I2: 0 | J2: 0 | K2: 0 | L2: 0 | M2: 0 | N2: 0 | O2: 0 | P2: 0 | Q2: 0 | R2: 0 | S2: 0 | T2: 0 | U2: 0 | V2: 0 | W2: 0 | X2: 0 | Y2: 0 | Z2: 0 | AA2: 0 | AB2: 0 | AC2: 0 | AD2: 0 | AE2: 0 | AF2: 0 | AG2: 0 | AH2: 0 | AI2: 0 | AJ2: 0 | AK2: 0 | AL2: 0 | AM2: 0 | AN2: 0 | AO2: 0 | AP2: 0 | AQ2: 0 | AR2: 0 | AS2: 0 | AT2: 0 | AU2: 0 | AV2: 0 | AW2: 0 | AX2: 0 | AY2: 0 | AZ2: 0 | BA2: 0 | BB2: 0 | BC2: 0 | BD2: 0 | BE2: 0 | BF2: 0 | BG2: 0 | BH2: 0 | BI2: 0 | BJ2: 0 | BK2: 0 | BL2: 0 | BM2: 0 | BN2: 0 | BO2: 0 | BP2: 0 | BQ2: 0 | BR2: 0 | BS2: 0 | BT2: 0 | BU2: 0 | BV2: 0 | BW2: 0 | BX2: 0 | BY2: 0 | BZ2: 0 | CA2: 0 | CB2: 0 | CC2: 0 | CD2: 0 | CE2: 0 | CF2: 0 | CG2: 0 | CH2: 0 | CI2: 0 | CJ2: 0 | CK2: 0 | CL2: 0 | CM2: 0 | CN2: 0 | CO2: 0 | CP2: 0 | CQ2: 0 | CR2: 0 | CS2: 0 | CT2: 0 | CU2: 0 | CV2: 0 | CW2: 0 | CX2: 0 | CY2: 0 | CZ2: 0 | DA2: 0 | DB2: 0 | DC2: 0 | DD2: 0 | DE2: 0 | DF2: 0 | DG2: 0 | DH2: 0 | DI2: 0 | DJ2: 0 | DK2: 0 | DL2: 0 | DM2: 0 | DN2: 0 | DO2: 0 | DP2: 0 | DQ2: 0 | DR2: 0 | DS2: 0 | DT2: 0 | DU2: 0 | DV2: 0 | DW2: 0 | DX2: 0 | DY2: 0 | DZ2: 0 | EA2: 0 | EB2: 0 | EC2: 0 | ED2: 0 | EE2: 0 | EF2: 0 | EG2: 0 | EH2: 0 | EI2: 0 | EJ2: 0 | EK2: 0 | EL2: 0 | EM2: 0 | EN2: 0 | EO2: 0 | EP2: 0 | EQ2: 0 | ER2: 0 | ES2: 0 | ET2: 0 | EU2: 0 | EV2: 0 | EW2: 0 | EX2: 0 | EY2: 0 | EZ2: 0 | FA2: 0 | FB2: 0 | FC2: 0 | FD2: 0 | FE2: 0 | FF2: 0 | FG2: 0 | FH2: 0 | FI2: 0 | FJ2: 0 | FK2: 0 | FL2: 0 | FM2: 0 | FN2: 0 | FO2: 0 | FP2: 0 | FQ2: 0 | FR2: 0 | FS2: 0 | FT2: 0 | FU2: 0 | FV2: 0 | FW2: 0 | FX2: 0 | FY2: 0 | FZ2: 0 | GA2: 0 | GB2: 0 | GC2: 0 | GD2: 0 | GE2: 0 | GF2: 0 | GG2: 0 | GH2: 0 | GI2: 0 | GJ2: 0 | GK2: 0 | GL2: 0 | GM2: 0 | GN2: 0 | GO2: 0 | GP2: 0 | GQ2: 0 | GR2: 0 | GS2: 0 | GT2: 0 | GU2: 0 | GV2: 0 | GW2: 0 | GX2: 0 | GY2: 0 | GZ2: 0 | HA2: 0 | HB2: 0 | HC2: 0 | HD2: 0 | HE2: 0 | HF2: 0 | HG2: =HF2 -> 0 | HH2: =HG2 -> 0 | HI2: 0 | HJ2: 0 | HK2: 0 | HL2: 0 | HM2: =HL2 -> 0 | HN2: =HM2 -> 0 | HO2: =HN2 -> 0 | HP2: =HO2 -> 0 | HQ2: =HP2 -> 0 | HR2: =HQ2 -> 0 | HS2: =HR2 -> 0 | HT2: =HS2 -> 0 | HU2: =HT2 -> 0 | HV2: =HU2 -> 0 | HW2: =HV2 -> 0 | HX2: =HW2 -> 0 | HY2: =HX2 -> 0 | HZ2: =HY2 -> 0 | IA2: =HZ2 -> 0 | IB2: =IA2 -> 0 | IC2: =IB2 -> 0 | ID2: =IC2 -> 0 | IE2: =ID2 -> 0 | IF2: =IE2 -> 0 | IG2: =IF2 -> 0 | IH2: =IG2 -> 0 | II2: =IH2 -> 0 | IJ2: =II2 -> 0
B3: 30 | D3: 0 | E3: 0 | F3: 0 | G3: 0 | H3: 0 | I3: 0 | J3: 0 | K3: 0 | L3: 0 | M3: 0 | N3: 0 | O3: 0 | P3: 0 | Q3: 0 | R3: 0 | S3: 0 | T3: =HLOOKUP($B3,BSvTWSpolated!$B$1:$L$250,30+10*T$1,0) -> 0.01660311828 | U3: =HLOOKUP($B3,BSvTWSpolated!$B$1:$L$250,30+10*U$1,0) -> 0.01660311828 | V3: =HLOOKUP($B3,BSvTWSpolated!$B$1:$L$250,30+10*V$1,0) -> 0.1098527119 | W3: =HLOOKUP($B3,BSvTWSpolated!$B$1:$L$250,30+10*W$1,0) -> 0.1098527119 | X3: =HLOOKUP($B3,BSvTWSpolated!$B$1:$L$250,30+10*X$1,0) -> 0.2769958237 | Y3: =HLOOKUP($B3,BSvTWSpolated!$B$1:$L$250,30+10*Y$1,0) -> 0.2769958237 | Z3: =HLOOKUP($B3,BSvTWSpolated!$B$1:$L$250,30+10*Z$1,0) -> 0.5106353042 | AA3: =HLOOKUP($B3,BSvTWSpolated!$B$1:$L$250,30+10*AA$1,0) -> 0.5106353042 | AB3: =HLOOKUP($B3,BSvTWSpolated!$B$1:$L$250,30+10*AB$1,0) -> 0.8033740037 | AC3: =HLOOKUP($B3,BSvTWSpolated!$B$1:$L$250,30+10*AC$1,0) -> 0.8033740037 | AD3: =HLOOKUP($B3,BSvTWSpolated!$B$1:$L$250,30+10*AD$1,0) -> 1.147814773 | AE3: =HLOOKUP($B3,BSvTWSpolated!$B$1:$L$250,30+10*AE$1,0) -> 1.147814773 | AF3: =HLOOKUP($B3,BSvTWSpolated!$B$1:$L$250,30+10*AF$1,0) -> 1.536560462 | AG3: =HLOOKUP($B3,BSvTWSpolated!$B$1:$L$250,30+10*AG$1,0) -> 1.536560462 | AH3: =HLOOKUP($B3,BSvTWSpolated!$B$1:$L$250,30+10*AH$1,0) -> 1.962213922 | AI3: =HLOOKUP($B3,BSvTWSpolated!$B$1:$L$250,30+10*AI$1,0) -> 1.962213922 | AJ3: =HLOOKUP($B3,BSvTWSpolated!$B$1:$L$250,30+10*AJ$1,0) -> 2.417378003 | AK3: =HLOOKUP($B3,BSvTWSpolated!$B$1:$L$250,30+10*AK$1,0) -> 2.417378003 | AL3: =HLOOKUP($B3,BSvTWSpolated!$B$1:$L$250,30+10*AL$1,0) -> 2.894655555 | AM3: =HLOOKUP($B3,BSvTWSpolated!$B$1:$L$250,30+10*AM$1,0) -> 2.894655555 | AN3: =HLOOKUP($B3,BSvTWSpolated!$B$1:$L$250,30+10*AN$1,0) -> 3.386649429 | AO3: =HLOOKUP($B3,BSvTWSpolated!$B$1:$L$250,30+10*AO$1,0) -> 3.386649429 | AP3: =HLOOKUP($B3,BSvTWSpolated!$B$1:$L$250,30+10*AP$1,0) -> 3.885962476 | AQ3: =HLOOKUP($B3,BSvTWSpolated!$B$1:$L$250,30+10*AQ$1,0) -> 3.885962476 | AR3: =HLOOKUP($B3,BSvTWSpolated!$B$1:$L$250,30+10*AR$1,0) -> 4.385197546 | AS3: =HLOOKUP($B3,BSvTWSpolated!$B$1:$L$250,30+10*AS$1,0) -> 4.385197546 | AT3: =HLOOKUP($B3,BSvTWSpolated!$B$1:$L$250,30+10*AT$1,0) -> 4.878194522 | AU3: =HLOOKUP($B3,BSvTWSpolated!$B$1:$L$250,30+10*AU$1,0) -> 4.878194522 | AV3: =HLOOKUP($B3,BSvTWSpolated!$B$1:$L$250,30+10*AV$1,0) -> 5.36374142 | AW3: =HLOOKUP($B3,BSvTWSpolated!$B$1:$L$250,30+10*AW$1,0) -> 5.36374142 | AX3: =HLOOKUP($B3,BSvTWSpolated!$B$1:$L$250,30+10*AX$1,0) -> 5.841863288 | AY3: =HLOOKUP($B3,BSvTWSpolated!$B$1:$L$250,30+10*AY$1,0) -> 5.841863288 | AZ3: =HLOOKUP($B3,BSvTWSpolated!$B$1:$L$250,30+10*AZ$1,0) -> 6.312585175 | BA3: =HLOOKUP($B3,BSvTWSpolated!$B$1:$L$250,30+10*BA$1,0) -> 6.312585175 | BB3: =HLOOKUP($B3,BSvTWSpolated!$B$1:$L$250,30+10*BB$1,0) -> 6.775932129 | BC3: =HLOOKUP($B3,BSvTWSpolated!$B$1:$L$250,30+10*BC$1,0) -> 6.775932129 | BD3: =HLOOKUP($B3,BSvTWSpolated!$B$1:$L$250,30+10*BD$1,0) -> 7.231929199 | BE3: =HLOOKUP($B3,BSvTWSpolated!$B$1:$L$250,30+10*BE$1,0) -> 7.231929199 | BF3: =HLOOKUP($B3,BSvTWSpolated!$B$1:$L$250,30+10*BF$1,0) -> 7.680601432 | BG3: =HLOOKUP($B3,BSvTWSpolated!$B$1:$L$250,30+10*BG$1,0) -> 7.680601432 | BH3: =HLOOKUP($B3,BSvTWSpolated!$B$1:$L$250,30+10*BH$1,0) -> 8.121973878 | BI3: =HLOOKUP($B3,BSvTWSpolated!$B$1:$L$250,30+10*BI$1,0) -> 8.121973878 | BJ3: =HLOOKUP($B3,BSvTWSpolated!$B$1:$L$250,30+10*BJ$1,0) -> 8.556071585 | BK3: =HLOOKUP($B3,BSvTWSpolated!$B$1:$L$250,30+10*BK$1,0) -> 8.556071585 | BL3: =HLOOKUP($B3,BSvTWSpolated!$B$1:$L$250,30+10*BL$1,0) -> 8.982919601 | BM3: =HLOOKUP($B3,BSvTWSpolated!$B$1:$L$250,30+10*BM$1,0) -> 8.982919601 | BN3: =HLOOKUP($B3,BSvTWSpolated!$B$1:$L$250,30+10*BN$1,0) -> 9.402542974 | BO3: =HLOOKUP($B3,BSvTWSpolated!$B$1:$L$250,30+10*BO$1,0) -> 9.402542974 | BP3: =HLOOKUP($B3,BSvTWSpolated!$B$1:$L$250,30+10*BP$1,0) -> 9.814966754 | BQ3: =HLOOKUP($B3,BSvTWSpolated!$B$1:$L$250,30+10*BQ$1,0) -> 9.814966754 | BR3: =HLOOKUP($B3,BSvTWSpolated!$B$1:$L$250,30+10*BR$1,0) -> 10.22021599 | BS3: =HLOOKUP($B3,BSvTWSpolated!$B$1:$L$250,30+10*BS$1,0) -> 10.22021599 | BT3: =HLOOKUP($B3,BSvTWSpolated!$B$1:$L$250,30+10*BT$1,0) -> 10.61831572 | BU3: =HLOOKUP($B3,BSvTWSpolated!$B$1:$L$250,30+10*BU$1,0) -> 10.61831572 | BV3: =HLOOKUP($B3,BSvTWSpolated!$B$1:$L$250,30+10*BV$1,0) -> 11.00929101 | BW3: =HLOOKUP($B3,BSvTWSpolated!$B$1:$L$250,30+10*BW$1,0) -> 11.00929101 | BX3: =HLOOKUP($B3,BSvTWSpolated!$B$1:$L$250,30+10*BX$1,0) -> 11.3931669 | BY3: =HLOOKUP($B3,BSvTWSpolated!$B$1:$L$250,30+10*BY$1,0) -> 11.3931669 | BZ3: =HLOOKUP($B3,BSvTWSpolated!$B$1:$L$250,30+10*BZ$1,0) -> 11.76996844 | CA3: =HLOOKUP($B3,BSvTWSpolated!$B$1:$L$250,30+10*CA$1,0) -> 11.76996844 | CB3: =HLOOKUP($B3,BSvTWSpolated!$B$1:$L$250,30+10*CB$1,0) -> 12.13972067 | CC3: =HLOOKUP($B3,BSvTWSpolated!$B$1:$L$250,30+10*CC$1,0) -> 12.13972067 | CD3: =HLOOKUP($B3,BSvTWSpolated!$B$1:$L$250,30+10*CD$1,0) -> 12.50244865 | CE3: =HLOOKUP($B3,BSvTWSpolated!$B$1:$L$250,30+10*CE$1,0) -> 12.50244865 | CF3: =HLOOKUP($B3,BSvTWSpolated!$B$1:$L$250,30+10*CF$1,0) -> 12.85817742 | CG3: =HLOOKUP($B3,BSvTWSpolated!$B$1:$L$250,30+10*CG$1,0) -> 12.85817742 | CH3: =HLOOKUP($B3,BSvTWSpolated!$B$1:$L$250,30+10*CH$1,0) -> 13.20693203 | CI3: =HLOOKUP($B3,BSvTWSpolated!$B$1:$L$250,30+10*CI$1,0) -> 13.20693203 | CJ3: =HLOOKUP($B3,BSvTWSpolated!$B$1:$L$250,30+10*CJ$1,0) -> 13.54873754 | CK3: =HLOOKUP($B3,BSvTWSpolated!$B$1:$L$250,30+10*CK$1,0) -> 13.54873754 | CL3: =HLOOKUP($B3,BSvTWSpolated!$B$1:$L$250,30+10*CL$1,0) -> 13.88361898 | CM3: =HLOOKUP($B3,BSvTWSpolated!$B$1:$L$250,30+10*CM$1,0) -> 13.88361898 | CN3: =HLOOKUP($B3,BSvTWSpolated!$B$1:$L$250,30+10*CN$1,0) -> 14.21160141 | CO3: =HLOOKUP($B3,BSvTWSpolated!$B$1:$L$250,30+10*CO$1,0) -> 14.21160141 | CP3: =HLOOKUP($B3,BSvTWSpolated!$B$1:$L$250,30+10*CP$1,0) -> 14.53270987 | CQ3: =HLOOKUP($B3,BSvTWSpolated!$B$1:$L$250,30+10*CQ$1,0) -> 14.53270987 | CR3: =HLOOKUP($B3,BSvTWSpolated!$B$1:$L$250,30+10*CR$1,0) -> 14.84696942 | CS3: =HLOOKUP($B3,BSvTWSpolated!$B$1:$L$250,30+10*CS$1,0) -> 14.84696942 | CT3: =HLOOKUP($B3,BSvTWSpolated!$B$1:$L$250,30+10*CT$1,0) -> 15.1544051 | CU3: =HLOOKUP($B3,BSvTWSpolated!$B$1:$L$250,30+10*CU$1,0) -> 15.1544051 | CV3: =HLOOKUP($B3,BSvTWSpolated!$B$1:$L$250,30+10*CV$1,0) -> 15.45504197 | CW3: =HLOOKUP($B3,BSvTWSpolated!$B$1:$L$250,30+10*CW$1,0) -> 15.45504197 | CX3: =HLOOKUP($B3,BSvTWSpolated!$B$1:$L$250,30+10*CX$1,0) -> 15.74890506 | CY3: =HLOOKUP($B3,BSvTWSpolated!$B$1:$L$250,30+10*CY$1,0) -> 15.74890506 | CZ3: =HLOOKUP($B3,BSvTWSpolated!$B$1:$L$250,30+10*CZ$1,0) -> 16.03601943 | DA3: =HLOOKUP($B3,BSvTWSpolated!$B$1:$L$250,30+10*DA$1,0) -> 16.03601943 | DB3: =HLOOKUP($B3,BSvTWSpolated!$B$1:$L$250,30+10*DB$1,0) -> 16.31641012 | DC3: =HLOOKUP($B3,BSvTWSpolated!$B$1:$L$250,30+10*DC$1,0) -> 16.31641012 | DD3: =HLOOKUP($B3,BSvTWSpolated!$B$1:$L$250,30+10*DD$1,0) -> 16.59010219 | DE3: =HLOOKUP($B3,BSvTWSpolated!$B$1:$L$250,30+10*DE$1,0) -> 16.59010219 | DF3: =HLOOKUP($B3,BSvTWSpolated!$B$1:$L$250,30+10*DF$1,0) -> 16.85712069 | DG3: =HLOOKUP($B3,BSvTWSpolated!$B$1:$L$250,30+10*DG$1,0) -> 16.85712069 | DH3: =HLOOKUP($B3,BSvTWSpolated!$B$1:$L$250,30+10*DH$1,0) -> 17.11749065 | DI3: =HLOOKUP($B3,BSvTWSpolated!$B$1:$L$250,30+10*DI$1,0) -> 17.11749065 | DJ3: =HLOOKUP($B3,BSvTWSpolated!$B$1:$L$250,30+10*DJ$1,0) -> 17.37123713 | DK3: =HLOOKUP($B3,BSvTWSpolated!$B$1:$L$250,30+10*DK$1,0) -> 17.37123713 | DL3: =HLOOKUP($B3,BSvTWSpolated!$B$1:$L$250,30+10*DL$1,0) -> 17.61838519 | DM3: =HLOOKUP($B3,BSvTWSpolated!$B$1:$L$250,30+10*DM$1,0) -> 17.61838519 | DN3: =HLOOKUP($B3,BSvTWSpolated!$B$1:$L$250,30+10*DN$1,0) -> 17.85895986 | DO3: =HLOOKUP($B3,BSvTWSpolated!$B$1:$L$250,30+10*DO$1,0) -> 17.85895986 | DP3: =HLOOKUP($B3,BSvTWSpolated!$B$1:$L$250,30+10*DP$1,0) -> 18.09298619 | DQ3: =HLOOKUP($B3,BSvTWSpolated!$B$1:$L$250,30+10*DQ$1,0) -> 18.09298619 | DR3: =HLOOKUP($B3,BSvTWSpolated!$B$1:$L$250,30+10*DR$1,0) -> 18.32048924 | DS3: =HLOOKUP($B3,BSvTWSpolated!$B$1:$L$250,30+10*DS$1,0) -> 18.32048924 | DT3: =HLOOKUP($B3,BSvTWSpolated!$B$1:$L$250,30+10*DT$1,0) -> 18.54149405 | DU3: =HLOOKUP($B3,BSvTWSpolated!$B$1:$L$250,30+10*DU$1,0) -> 18.54149405 | DV3: =HLOOKUP($B3,BSvTWSpolated!$B$1:$L$250,30+10*DV$1,0) -> 18.75602567 | DW3: =HLOOKUP($B3,BSvTWSpolated!$B$1:$L$250,30+10*DW$1,0) -> 18.75602567 | DX3: =HLOOKUP($B3,BSvTWSpolated!$B$1:$L$250,30+10*DX$1,0) -> 18.96410915 | DY3: =HLOOKUP($B3,BSvTWSpolated!$B$1:$L$250,30+10*DY$1,0) -> 18.96410915 | DZ3: =HLOOKUP($B3,BSvTWSpolated!$B$1:$L$250,30+10*DZ$1,0) -> 19.16576953 | EA3: =HLOOKUP($B3,BSvTWSpolated!$B$1:$L$250,30+10*EA$1,0) -> 19.16576953 | EB3: =HLOOKUP($B3,BSvTWSpolated!$B$1:$L$250,30+10*EB$1,0) -> 19.36103187 | EC3: =HLOOKUP($B3,BSvTWSpolated!$B$1:$L$250,30+10*EC$1,0) -> 19.36103187 | ED3: =HLOOKUP($B3,BSvTWSpolated!$B$1:$L$250,30+10*ED$1,0) -> 19.54992122 | EE3: =HLOOKUP($B3,BSvTWSpolated!$B$1:$L$250,30+10*EE$1,0) -> 19.54992122 | EF3: =HLOOKUP($B3,BSvTWSpolated!$B$1:$L$250,30+10*EF$1,0) -> 19.73246262 | EG3: =HLOOKUP($B3,BSvTWSpolated!$B$1:$L$250,30+10*EG$1,0) -> 19.73246262 | EH3: =HLOOKUP($B3,BSvTWSpolated!$B$1:$L$250,30+10*EH$1,0) -> 19.90868112 | EI3: =HLOOKUP($B3,BSvTWSpolated!$B$1:$L$250,30+10*EI$1,0) -> 19.90868112 | EJ3: =HLOOKUP($B3,BSvTWSpolated!$B$1:$L$250,30+10*EJ$1,0) -> 20.07860176 | EK3: =HLOOKUP($B3,BSvTWSpolated!$B$1:$L$250,30+10*EK$1,0) -> 20.07860176 | EL3: =HLOOKUP($B3,BSvTWSpolated!$B$1:$L$250,30+10*EL$1,0) -> 20.24224961 | EM3: =HLOOKUP($B3,BSvTWSpolated!$B$1:$L$250,30+10*EM$1,0) -> 20.24224961 | EN3: =HLOOKUP($B3,BSvTWSpolated!$B$1:$L$250,30+10*EN$1,0) -> 20.3996497 | EO3: =HLOOKUP($B3,BSvTWSpolated!$B$1:$L$250,30+10*EO$1,0) -> 20.3996497 | EP3: =HLOOKUP($B3,BSvTWSpolated!$B$1:$L$250,30+10*EP$1,0) -> 20.55084267 | EQ3: =HLOOKUP($B3,BSvTWSpolated!$B$1:$L$250,30+10*EQ$1,0) -> 20.55084267 | ER3: =HLOOKUP($B3,BSvTWSpolated!$B$1:$L$250,30+10*ER$1,0) -> 20.69593148 | ES3: =HLOOKUP($B3,BSvTWSpolated!$B$1:$L$250,30+10*ES$1,0) -> 20.69593148 | ET3: =HLOOKUP($B3,BSvTWSpolated!$B$1:$L$250,30+10*ET$1,0) -> 20.83503468 | EU3: =HLOOKUP($B3,BSvTWSpolated!$B$1:$L$250,30+10*EU$1,0) -> 20.83503468 | EV3: =HLOOKUP($B3,BSvTWSpolated!$B$1:$L$250,30+10*EV$1,0) -> 20.96827082 | EW3: =HLOOKUP($B3,BSvTWSpolated!$B$1:$L$250,30+10*EW$1,0) -> 20.96827082 | EX3: =HLOOKUP($B3,BSvTWSpolated!$B$1:$L$250,30+10*EX$1,0) -> 21.09575843 | EY3: =HLOOKUP($B3,BSvTWSpolated!$B$1:$L$250,30+10*EY$1,0) -> 21.09575843 | EZ3: =HLOOKUP($B3,BSvTWSpolated!$B$1:$L$250,30+10*EZ$1,0) -> 21.21761608 | FA3: =HLOOKUP($B3,BSvTWSpolated!$B$1:$L$250,30+10*FA$1,0) -> 21.21761608 | FB3: =HLOOKUP($B3,BSvTWSpolated!$B$1:$L$250,30+10*FB$1,0) -> 21.33396229 | FC3: =HLOOKUP($B3,BSvTWSpolated!$B$1:$L$250,30+10*FC$1,0) -> 21.33396229 | FD3: =HLOOKUP($B3,BSvTWSpolated!$B$1:$L$250,30+10*FD$1,0) -> 21.44491564 | FE3: =HLOOKUP($B3,BSvTWSpolated!$B$1:$L$250,30+10*FE$1,0) -> 21.44491564 | FF3: =HLOOKUP($B3,BSvTWSpolated!$B$1:$L$250,30+10*FF$1,0) -> 21.55059464 | FG3: =HLOOKUP($B3,BSvTWSpolated!$B$1:$L$250,30+10*FG$1,0) -> 21.55059464 | FH3: =HLOOKUP($B3,BSvTWSpolated!$B$1:$L$250,30+10*FH$1,0) -> 21.65111787 | FI3: =HLOOKUP($B3,BSvTWSpolated!$B$1:$L$250,30+10*FI$1,0) -> 21.65111787 | FJ3: =HLOOKUP($B3,BSvTWSpolated!$B$1:$L$250,30+10*FJ$1,0) -> 21.74660386 | FK3: =HLOOKUP($B3,BSvTWSpolated!$B$1:$L$250,30+10*FK$1,0) -> 21.74660386 | FL3: =HLOOKUP($B3,BSvTWSpolated!$B$1:$L$250,30+10*FL$1,0) -> 21.83717115 | FM3: =HLOOKUP($B3,BSvTWSpolated!$B$1:$L$250,30+10*FM$1,0) -> 21.83717115 | FN3: =HLOOKUP($B3,BSvTWSpolated!$B$1:$L$250,30+10*FN$1,0) -> 21.9229383 | FO3: =HLOOKUP($B3,BSvTWSpolated!$B$1:$L$250,30+10*FO$1,0) -> 21.9229383 | FP3: =HLOOKUP($B3,BSvTWSpolated!$B$1:$L$250,30+10*FP$1,0) -> 22.00402385 | FQ3: =HLOOKUP($B3,BSvTWSpolated!$B$1:$L$250,30+10*FQ$1,0) -> 22.00402385 | FR3: =HLOOKUP($B3,BSvTWSpolated!$B$1:$L$250,30+10*FR$1,0) -> 22.08054636 | FS3: =HLOOKUP($B3,BSvTWSpolated!$B$1:$L$250,30+10*FS$1,0) -> 22.08054636 | FT3: =HLOOKUP($B3,BSvTWSpolated!$B$1:$L$250,30+10*FT$1,0) -> 22.15262435 | FU3: =HLOOKUP($B3,BSvTWSpolated!$B$1:$L$250,30+10*FU$1,0) -> 22.15262435 | FV3: =HLOOKUP($B3,BSvTWSpolated!$B$1:$L$250,30+10*FV$1,0) -> 22.22037639 | FW3: =HLOOKUP($B3,BSvTWSpolated!$B$1:$L$250,30+10*FW$1,0) -> 22.22037639 | FX3: =HLOOKUP($B3,BSvTWSpolated!$B$1:$L$250,30+10*FX$1,0) -> 22.28392102 | FY3: =HLOOKUP($B3,BSvTWSpolated!$B$1:$L$250,30+10*FY$1,0) -> 22.28392102 | FZ3: =HLOOKUP($B3,BSvTWSpolated!$B$1:$L$250,30+10*FZ$1,0) -> 22.34337679 | GA3: =HLOOKUP($B3,BSvTWSpolated!$B$1:$L$250,30+10*GA$1,0) -> 22.34337679 | GB3: =HLOOKUP($B3,BSvTWSpolated!$B$1:$L$250,30+10*GB$1,0) -> 22.39886223 | GC3: =HLOOKUP($B3,BSvTWSpolated!$B$1:$L$250,30+10*GC$1,0) -> 22.39886223 | GD3: =HLOOKUP($B3,BSvTWSpolated!$B$1:$L$250,30+10*GD$1,0) -> 22.45049591 | GE3: =HLOOKUP($B3,BSvTWSpolated!$B$1:$L$250,30+10*GE$1,0) -> 22.45049591 | GF3: =HLOOKUP($B3,BSvTWSpolated!$B$1:$L$250,30+10*GF$1,0) -> 22.49839636 | GG3: =HLOOKUP($B3,BSvTWSpolated!$B$1:$L$250,30+10*GG$1,0) -> 22.49839636 | GH3: =HLOOKUP($B3,BSvTWSpolated!$B$1:$L$250,30+10*GH$1,0) -> 22.54268214 | GI3: =HLOOKUP($B3,BSvTWSpolated!$B$1:$L$250,30+10*GI$1,0) -> 22.54268214 | GJ3: =HLOOKUP($B3,BSvTWSpolated!$B$1:$L$250,30+10*GJ$1,0) -> 22.58347179 | GK3: =HLOOKUP($B3,BSvTWSpolated!$B$1:$L$250,30+10*GK$1,0) -> 22.58347179 | GL3: =HLOOKUP($B3,BSvTWSpolated!$B$1:$L$250,30+10*GL$1,0) -> 22.62088385 | GM3: =HLOOKUP($B3,BSvTWSpolated!$B$1:$L$250,30+10*GM$1,0) -> 22.62088385 | GN3: =HLOOKUP($B3,BSvTWSpolated!$B$1:$L$250,30+10*GN$1,0) -> 22.65503687 | GO3: =HLOOKUP($B3,BSvTWSpolated!$B$1:$L$250,30+10*GO$1,0) -> 22.65503687 | GP3: =HLOOKUP($B3,BSvTWSpolated!$B$1:$L$250,30+10*GP$1,0) -> 22.68604941 | GQ3: =HLOOKUP($B3,BSvTWSpolated!$B$1:$L$250,30+10*GQ$1,0) -> 22.68604941 | GR3: =HLOOKUP($B3,BSvTWSpolated!$B$1:$L$250,30+10*GR$1,0) -> 22.71404 | GS3: =HLOOKUP($B3,BSvTWSpolated!$B$1:$L$250,30+10*GS$1,0) -> 22.71404 | GT3: =HLOOKUP($B3,BSvTWSpolated!$B$1:$L$250,30+10*GT$1,0) -> 22.73912719 | GU3: =HLOOKUP($B3,BSvTWSpolated!$B$1:$L$250,30+10*GU$1,0) -> 22.73912719 | GV3: =HLOOKUP($B3,BSvTWSpolated!$B$1:$L$250,30+10*GV$1,0) -> 22.76142954 | GW3: =HLOOKUP($B3,BSvTWSpolated!$B$1:$L$250,30+10*GW$1,0) -> 22.76142954 | GX3: =HLOOKUP($B3,BSvTWSpolated!$B$1:$L$250,30+10*GX$1,0) -> 22.78106558 | GY3: =HLOOKUP($B3,BSvTWSpolated!$B$1:$L$250,30+10*GY$1,0) -> 22.78106558 | GZ3: =HLOOKUP($B3,BSvTWSpolated!$B$1:$L$250,30+10*GZ$1,0) -> 22.79815387 | HA3: =HLOOKUP($B3,BSvTWSpolated!$B$1:$L$250,30+10*HA$1,0) -> 22.79815387 | HB3: =HLOOKUP($B3,BSvTWSpolated!$B$1:$L$250,30+10*HB$1,0) -> 22.81281294 | HC3: =HLOOKUP($B3,BSvTWSpolated!$B$1:$L$250,30+10*HC$1,0) -> 22.81281294 | HD3: =HLOOKUP($B3,BSvTWSpolated!$B$1:$L$250,30+10*HD$1,0) -> 22.82516135 | HE3: =HLOOKUP($B3,BSvTWSpolated!$B$1:$L$250,30+10*HE$1,0) -> 22.82516135 | HF3: =HLOOKUP($B3,BSvTWSpolated!$B$1:$L$250,30+10*HF$1,0) -> 22.83531765 | HG3: =HLOOKUP($B3,BSvTWSpolated!$B$1:$L$250,30+10*HG$1,0) -> 22.83531765 | HH3: =HLOOKUP($B3,BSvTWSpolated!$B$1:$L$250,30+10*HH$1,0) -> 22.84340038 | HI3: =HLOOKUP($B3,BSvTWSpolated!$B$1:$L$250,30+10*HI$1,0) -> 22.84340038 | HJ3: =HLOOKUP($B3,BSvTWSpolated!$B$1:$L$250,30+10*HJ$1,0) -> 22.84952808 | HK3: =HLOOKUP($B3,BSvTWSpolated!$B$1:$L$250,30+10*HK$1,0) -> 22.84952808 | HL3: =HLOOKUP($B3,BSvTWSpolated!$B$1:$L$250,30+10*HL$1,0) -> 22.85381931 | HM3: =HLOOKUP($B3,BSvTWSpolated!$B$1:$L$250,30+10*HM$1,0) -> 22.85381931 | HN3: =HLOOKUP($B3,BSvTWSpolated!$B$1:$L$250,30+10*HN$1,0) -> 22.85639261 | HO3: =HLOOKUP($B3,BSvTWSpolated!$B$1:$L$250,30+10*HO$1,0) -> 22.85639261 | HP3: =HLOOKUP($B3,BSvTWSpolated!$B$1:$L$250,30+10*HP$1,0) -> 22.85736652 | HQ3: =HLOOKUP($B3,BSvTWSpolated!$B$1:$L$250,30+10*HQ$1,0) -> 22.85736652 | HR3: =HLOOKUP($B3,BSvTWSpolated!$B$1:$L$250,30+10*HR$1,0) -> 22.85736652 | HS3: =HLOOKUP($B3,BSvTWSpolated!$B$1:$L$250,30+10*HS$1,0) -> 22.85736652 | HT3: =HLOOKUP($B3,BSvTWSpolated!$B$1:$L$250,30+10*HT$1,0) -> 22.85736652 | HU3: =HLOOKUP($B3,BSvTWSpolated!$B$1:$L$250,30+10*HU$1,0) -> 22.85736652 | HV3: =HLOOKUP($B3,BSvTWSpolated!$B$1:$L$250,30+10*HV$1,0) -> 22.85736652 | HW3: =HLOOKUP($B3,BSvTWSpolated!$B$1:$L$250,30+10*HW$1,0) -> 22.85736652 | HX3: =HLOOKUP($B3,BSvTWSpolated!$B$1:$L$250,30+10*HX$1,0) -> 22.85736652 | HY3: =HLOOKUP($B3,BSvTWSpolated!$B$1:$L$250,30+10*HY$1,0) -> 22.85736652 | HZ3: =HLOOKUP($B3,BSvTWSpolated!$B$1:$L$250,30+10*HZ$1,0) -> 22.85736652 | IA3: =HLOOKUP($B3,BSvTWSpolated!$B$1:$L$250,30+10*IA$1,0) -> 22.85736652 | IB3: =HLOOKUP($B3,BSvTWSpolated!$B$1:$L$250,30+10*IB$1,0) -> 22.85736652 | IC3: =HLOOKUP($B3,BSvTWSpolated!$B$1:$L$250,30+10*IC$1,0) -> 22.85736652 | ID3: =HLOOKUP($B3,BSvTWSpolated!$B$1:$L$250,30+10*ID$1,0) -> 22.85736652 | IE3: =HLOOKUP($B3,BSvTWSpolated!$B$1:$L$250,30+10*IE$1,0) -> 22.85736652 | IF3: =HLOOKUP($B3,BSvTWSpolated!$B$1:$L$250,30+10*IF$1,0) -> 22.85736652 | IG3: =HLOOKUP($B3,BSvTWSpolated!$B$1:$L$250,30+10*IG$1,0) -> 22.85736652 | IH3: =HLOOKUP($B3,BSvTWSpolated!$B$1:$L$250,30+10*IH$1,0) -> 22.85736652 | II3: =HLOOKUP($B3,BSvTWSpolated!$B$1:$L$250,30+10*II$1,0) -> 22.85736652 | IJ3: =HLOOKUP($B3,BSvTWSpolated!$B$1:$L$250,30+10*IJ$1,0) -> 22.85736652
B4: 50 | D4: 0 | E4: 0 | F4: 0 | G4: 0 | H4: 0 | I4: 0 | J4: 0 | K4: 0 | L4: 0 | M4: 0 | N4: 0 | O4: 0 | P4: 0 | Q4: 0 | R4: 0 | S4: 0 | T4: =HLOOKUP($B4,BSvTWSpolated!$B$1:$L$250,30+10*T$1,0) -> 0.02752401827 | U4: =HLOOKUP($B4,BSvTWSpolated!$B$1:$L$250,30+10*U$1,0) -> 0.02752401827 | V4: =HLOOKUP($B4,BSvTWSpolated!$B$1:$L$250,30+10*V$1,0) -> 0.1819207602 | W4: =HLOOKUP($B4,BSvTWSpolated!$B$1:$L$250,30+10*W$1,0) -> 0.1819207602 | X4: =HLOOKUP($B4,BSvTWSpolated!$B$1:$L$250,30+10*X$1,0) -> 0.4581894056 | Y4: =HLOOKUP($B4,BSvTWSpolated!$B$1:$L$250,30+10*Y$1,0) -> 0.4581894056 | Z4: =HLOOKUP($B4,BSvTWSpolated!$B$1:$L$250,30+10*Z$1,0) -> 0.84361831 | AA4: =HLOOKUP($B4,BSvTWSpolated!$B$1:$L$250,30+10*AA$1,0) -> 0.84361831 | AB4: =HLOOKUP($B4,BSvTWSpolated!$B$1:$L$250,30+10*AB$1,0) -> 1.325495829 | AC4: =HLOOKUP($B4,BSvTWSpolated!$B$1:$L$250,30+10*AC$1,0) -> 1.325495829 | AD4: =HLOOKUP($B4,BSvTWSpolated!$B$1:$L$250,30+10*AD$1,0) -> 1.891110317 | AE4: =HLOOKUP($B4,BSvTWSpolated!$B$1:$L$250,30+10*AE$1,0) -> 1.891110317 | AF4: =HLOOKUP($B4,BSvTWSpolated!$B$1:$L$250,30+10*AF$1,0) -> 2.527750132 | AG4: =HLOOKUP($B4,BSvTWSpolated!$B$1:$L$250,30+10*AG$1,0) -> 2.527750132 | AH4: =HLOOKUP($B4,BSvTWSpolated!$B$1:$L$250,30+10*AH$1,0) -> 3.222703627 | AI4: =HLOOKUP($B4,BSvTWSpolated!$B$1:$L$250,30+10*AI$1,0) -> 3.222703627 | AJ4: =HLOOKUP($B4,BSvTWSpolated!$B$1:$L$250,30+10*AJ$1,0) -> 3.963259158 | AK4: =HLOOKUP($B4,BSvTWSpolated!$B$1:$L$250,30+10*AK$1,0) -> 3.963259158 | AL4: =HLOOKUP($B4,BSvTWSpolated!$B$1:$L$250,30+10*AL$1,0) -> 4.736705081 | AM4: =HLOOKUP($B4,BSvTWSpolated!$B$1:$L$250,30+10*AM$1,0) -> 4.736705081 | AN4: =HLOOKUP($B4,BSvTWSpolated!$B$1:$L$250,30+10*AN$1,0) -> 5.530329751 | AO4: =HLOOKUP($B4,BSvTWSpolated!$B$1:$L$250,30+10*AO$1,0) -> 5.530329751 | AP4: =HLOOKUP($B4,BSvTWSpolated!$B$1:$L$250,30+10*AP$1,0) -> 6.331421525 | AQ4: =HLOOKUP($B4,BSvTWSpolated!$B$1:$L$250,30+10*AQ$1,0) -> 6.331421525 | AR4: =HLOOKUP($B4,BSvTWSpolated!$B$1:$L$250,30+10*AR$1,0) -> 7.127268756 | AS4: =HLOOKUP($B4,BSvTWSpolated!$B$1:$L$250,30+10*AS$1,0) -> 7.127268756 | AT4: =HLOOKUP($B4,BSvTWSpolated!$B$1:$L$250,30+10*AT$1,0) -> 7.907317999 | AU4: =HLOOKUP($B4,BSvTWSpolated!$B$1:$L$250,30+10*AU$1,0) -> 7.907317999 | AV4: =HLOOKUP($B4,BSvTWSpolated!$B$1:$L$250,30+10*AV$1,0) -> 8.669648593 | AW4: =HLOOKUP($B4,BSvTWSpolated!$B$1:$L$250,30+10*AW$1,0) -> 8.669648593 | AX4: =HLOOKUP($B4,BSvTWSpolated!$B$1:$L$250,30+10*AX$1,0) -> 9.414498076 | AY4: =HLOOKUP($B4,BSvTWSpolated!$B$1:$L$250,30+10*AY$1,0) -> 9.414498076 | AZ4: =HLOOKUP($B4,BSvTWSpolated!$B$1:$L$250,30+10*AZ$1,0) -> 10.14210399 | BA4: =HLOOKUP($B4,BSvTWSpolated!$B$1:$L$250,30+10*BA$1,0) -> 10.14210399 | BB4: =HLOOKUP($B4,BSvTWSpolated!$B$1:$L$250,30+10*BB$1,0) -> 10.85270386 | BC4: =HLOOKUP($B4,BSvTWSpolated!$B$1:$L$250,30+10*BC$1,0) -> 10.85270386 | BD4: =HLOOKUP($B4,BSvTWSpolated!$B$1:$L$250,30+10*BD$1,0) -> 11.54653524 | BE4: =HLOOKUP($B4,BSvTWSpolated!$B$1:$L$250,30+10*BE$1,0) -> 11.54653524 | BF4: =HLOOKUP($B4,BSvTWSpolated!$B$1:$L$250,30+10*BF$1,0) -> 12.22383565 | BG4: =HLOOKUP($B4,BSvTWSpolated!$B$1:$L$250,30+10*BG$1,0) -> 12.22383565 | BH4: =HLOOKUP($B4,BSvTWSpolated!$B$1:$L$250,30+10*BH$1,0) -> 12.88484265 | BI4: =HLOOKUP($B4,BSvTWSpolated!$B$1:$L$250,30+10*BI$1,0) -> 12.88484265 | BJ4: =HLOOKUP($B4,BSvTWSpolated!$B$1:$L$250,30+10*BJ$1,0) -> 13.52979376 | BK4: =HLOOKUP($B4,BSvTWSpolated!$B$1:$L$250,30+10*BK$1,0) -> 13.52979376 | BL4: =HLOOKUP($B4,BSvTWSpolated!$B$1:$L$250,30+10*BL$1,0) -> 14.15892652 | BM4: =HLOOKUP($B4,BSvTWSpolated!$B$1:$L$250,30+10*BM$1,0) -> 14.15892652 | BN4: =HLOOKUP($B4,BSvTWSpolated!$B$1:$L$250,30+10*BN$1,0) -> 14.77247848 | BO4: =HLOOKUP($B4,BSvTWSpolated!$B$1:$L$250,30+10*BO$1,0) -> 14.77247848 | BP4: =HLOOKUP($B4,BSvTWSpolated!$B$1:$L$250,30+10*BP$1,0) -> 15.37068716 | BQ4: =HLOOKUP($B4,BSvTWSpolated!$B$1:$L$250,30+10*BQ$1,0) -> 15.37068716 | BR4: =HLOOKUP($B4,BSvTWSpolated!$B$1:$L$250,30+10*BR$1,0) -> 15.95379011 | BS4: =HLOOKUP($B4,BSvTWSpolated!$B$1:$L$250,30+10*BS$1,0) -> 15.95379011 | BT4: =HLOOKUP($B4,BSvTWSpolated!$B$1:$L$250,30+10*BT$1,0) -> 16.52202486 | BU4: =HLOOKUP($B4,BSvTWSpolated!$B$1:$L$250,30+10*BU$1,0) -> 16.52202486 | BV4: =HLOOKUP($B4,BSvTWSpolated!$B$1:$L$250,30+10*BV$1,0) -> 17.07562896 | BW4: =HLOOKUP($B4,BSvTWSpolated!$B$1:$L$250,30+10*BW$1,0) -> 17.07562896 | BX4: =HLOOKUP($B4,BSvTWSpolated!$B$1:$L$250,30+10*BX$1,0) -> 17.61483993 | BY4: =HLOOKUP($B4,BSvTWSpolated!$B$1:$L$250,30+10*BY$1,0) -> 17.61483993 | BZ4: =HLOOKUP($B4,BSvTWSpolated!$B$1:$L$250,30+10*BZ$1,0) -> 18.13989533 | CA4: =HLOOKUP($B4,BSvTWSpolated!$B$1:$L$250,30+10*CA$1,0) -> 18.13989533 | CB4: =HLOOKUP($B4,BSvTWSpolated!$B$1:$L$250,30+10*CB$1,0) -> 18.65103267 | CC4: =HLOOKUP($B4,BSvTWSpolated!$B$1:$L$250,30+10*CC$1,0) -> 18.65103267 | CD4: =HLOOKUP($B4,BSvTWSpolated!$B$1:$L$250,30+10*CD$1,0) -> 19.14848951 | CE4: =HLOOKUP($B4,BSvTWSpolated!$B$1:$L$250,30+10*CE$1,0) -> 19.14848951 | CF4: =HLOOKUP($B4,BSvTWSpolated!$B$1:$L$250,30+10*CF$1,0) -> 19.63250338 | CG4: =HLOOKUP($B4,BSvTWSpolated!$B$1:$L$250,30+10*CG$1,0) -> 19.63250338 | CH4: =HLOOKUP($B4,BSvTWSpolated!$B$1:$L$250,30+10*CH$1,0) -> 20.10331182 | CI4: =HLOOKUP($B4,BSvTWSpolated!$B$1:$L$250,30+10*CI$1,0) -> 20.10331182 | CJ4: =HLOOKUP($B4,BSvTWSpolated!$B$1:$L$250,30+10*CJ$1,0) -> 20.56115236 | CK4: =HLOOKUP($B4,BSvTWSpolated!$B$1:$L$250,30+10*CK$1,0) -> 20.56115236 | CL4: =HLOOKUP($B4,BSvTWSpolated!$B$1:$L$250,30+10*CL$1,0) -> 21.00626255 | CM4: =HLOOKUP($B4,BSvTWSpolated!$B$1:$L$250,30+10*CM$1,0) -> 21.00626255 | CN4: =HLOOKUP($B4,BSvTWSpolated!$B$1:$L$250,30+10*CN$1,0) -> 21.43887992 | CO4: =HLOOKUP($B4,BSvTWSpolated!$B$1:$L$250,30+10*CO$1,0) -> 21.43887992 | CP4: =HLOOKUP($B4,BSvTWSpolated!$B$1:$L$250,30+10*CP$1,0) -> 21.85924201 | CQ4: =HLOOKUP($B4,BSvTWSpolated!$B$1:$L$250,30+10*CQ$1,0) -> 21.85924201 | CR4: =HLOOKUP($B4,BSvTWSpolated!$B$1:$L$250,30+10*CR$1,0) -> 22.26758635 | CS4: =HLOOKUP($B4,BSvTWSpolated!$B$1:$L$250,30+10*CS$1,0) -> 22.26758635 | CT4: =HLOOKUP($B4,BSvTWSpolated!$B$1:$L$250,30+10*CT$1,0) -> 22.66415049 | CU4: =HLOOKUP($B4,BSvTWSpolated!$B$1:$L$250,30+10*CU$1,0) -> 22.66415049 | CV4: =HLOOKUP($B4,BSvTWSpolated!$B$1:$L$250,30+10*CV$1,0) -> 23.04917196 | CW4: =HLOOKUP($B4,BSvTWSpolated!$B$1:$L$250,30+10*CW$1,0) -> 23.04917196 | CX4: =HLOOKUP($B4,BSvTWSpolated!$B$1:$L$250,30+10*CX$1,0) -> 23.4228883 | CY4: =HLOOKUP($B4,BSvTWSpolated!$B$1:$L$250,30+10*CY$1,0) -> 23.4228883 | CZ4: =HLOOKUP($B4,BSvTWSpolated!$B$1:$L$250,30+10*CZ$1,0) -> 23.78553705 | DA4: =HLOOKUP($B4,BSvTWSpolated!$B$1:$L$250,30+10*DA$1,0) -> 23.78553705 | DB4: =HLOOKUP($B4,BSvTWSpolated!$B$1:$L$250,30+10*DB$1,0) -> 24.13735574 | DC4: =HLOOKUP($B4,BSvTWSpolated!$B$1:$L$250,30+10*DC$1,0) -> 24.13735574 | DD4: =HLOOKUP($B4,BSvTWSpolated!$B$1:$L$250,30+10*DD$1,0) -> 24.47858192 | DE4: =HLOOKUP($B4,BSvTWSpolated!$B$1:$L$250,30+10*DE$1,0) -> 24.47858192 | DF4: =HLOOKUP($B4,BSvTWSpolated!$B$1:$L$250,30+10*DF$1,0) -> 24.80945312 | DG4: =HLOOKUP($B4,BSvTWSpolated!$B$1:$L$250,30+10*DG$1,0) -> 24.80945312 | DH4: =HLOOKUP($B4,BSvTWSpolated!$B$1:$L$250,30+10*DH$1,0) -> 25.13020687 | DI4: =HLOOKUP($B4,BSvTWSpolated!$B$1:$L$250,30+10*DI$1,0) -> 25.13020687 | DJ4: =HLOOKUP($B4,BSvTWSpolated!$B$1:$L$250,30+10*DJ$1,0) -> 25.44108073 | DK4: =HLOOKUP($B4,BSvTWSpolated!$B$1:$L$250,30+10*DK$1,0) -> 25.44108073 | DL4: =HLOOKUP($B4,BSvTWSpolated!$B$1:$L$250,30+10*DL$1,0) -> 25.74231221 | DM4: =HLOOKUP($B4,BSvTWSpolated!$B$1:$L$250,30+10*DM$1,0) -> 25.74231221 | DN4: =HLOOKUP($B4,BSvTWSpolated!$B$1:$L$250,30+10*DN$1,0) -> 26.03413887 | DO4: =HLOOKUP($B4,BSvTWSpolated!$B$1:$L$250,30+10*DO$1,0) -> 26.03413887 | DP4: =HLOOKUP($B4,BSvTWSpolated!$B$1:$L$250,30+10*DP$1,0) -> 26.31679823 | DQ4: =HLOOKUP($B4,BSvTWSpolated!$B$1:$L$250,30+10*DQ$1,0) -> 26.31679823 | DR4: =HLOOKUP($B4,BSvTWSpolated!$B$1:$L$250,30+10*DR$1,0) -> 26.59052785 | DS4: =HLOOKUP($B4,BSvTWSpolated!$B$1:$L$250,30+10*DS$1,0) -> 26.59052785 | DT4: =HLOOKUP($B4,BSvTWSpolated!$B$1:$L$250,30+10*DT$1,0) -> 26.85556524 | DU4: =HLOOKUP($B4,BSvTWSpolated!$B$1:$L$250,30+10*DU$1,0) -> 26.85556524 | DV4: =HLOOKUP($B4,BSvTWSpolated!$B$1:$L$250,30+10*DV$1,0) -> 27.11214797 | DW4: =HLOOKUP($B4,BSvTWSpolated!$B$1:$L$250,30+10*DW$1,0) -> 27.11214797 | DX4: =HLOOKUP($B4,BSvTWSpolated!$B$1:$L$250,30+10*DX$1,0) -> 27.36051355 | DY4: =HLOOKUP($B4,BSvTWSpolated!$B$1:$L$250,30+10*DY$1,0) -> 27.36051355 | DZ4: =HLOOKUP($B4,BSvTWSpolated!$B$1:$L$250,30+10*DZ$1,0) -> 27.60089952 | EA4: =HLOOKUP($B4,BSvTWSpolated!$B$1:$L$250,30+10*EA$1,0) -> 27.60089952 | EB4: =HLOOKUP($B4,BSvTWSpolated!$B$1:$L$250,30+10*EB$1,0) -> 27.83354344 | EC4: =HLOOKUP($B4,BSvTWSpolated!$B$1:$L$250,30+10*EC$1,0) -> 27.83354344 | ED4: =HLOOKUP($B4,BSvTWSpolated!$B$1:$L$250,30+10*ED$1,0) -> 28.05868282 | EE4: =HLOOKUP($B4,BSvTWSpolated!$B$1:$L$250,30+10*EE$1,0) -> 28.05868282 | EF4: =HLOOKUP($B4,BSvTWSpolated!$B$1:$L$250,30+10*EF$1,0) -> 28.27655522 | EG4: =HLOOKUP($B4,BSvTWSpolated!$B$1:$L$250,30+10*EG$1,0) -> 28.27655522 | EH4: =HLOOKUP($B4,BSvTWSpolated!$B$1:$L$250,30+10*EH$1,0) -> 28.48739817 | EI4: =HLOOKUP($B4,BSvTWSpolated!$B$1:$L$250,30+10*EI$1,0) -> 28.48739817 | EJ4: =HLOOKUP($B4,BSvTWSpolated!$B$1:$L$250,30+10*EJ$1,0) -> 28.6914492 | EK4: =HLOOKUP($B4,BSvTWSpolated!$B$1:$L$250,30+10*EK$1,0) -> 28.6914492 | EL4: =HLOOKUP($B4,BSvTWSpolated!$B$1:$L$250,30+10*EL$1,0) -> 28.88894586 | EM4: =HLOOKUP($B4,BSvTWSpolated!$B$1:$L$250,30+10*EM$1,0) -> 28.88894586 | EN4: =HLOOKUP($B4,BSvTWSpolated!$B$1:$L$250,30+10*EN$1,0) -> 29.08012568 | EO4: =HLOOKUP($B4,BSvTWSpolated!$B$1:$L$250,30+10*EO$1,0) -> 29.08012568 | EP4: =HLOOKUP($B4,BSvTWSpolated!$B$1:$L$250,30+10*EP$1,0) -> 29.26519818 | EQ4: =HLOOKUP($B4,BSvTWSpolated!$B$1:$L$250,30+10*EQ$1,0) -> 29.26519818 | ER4: =HLOOKUP($B4,BSvTWSpolated!$B$1:$L$250,30+10*ER$1,0) -> 29.44426082 | ES4: =HLOOKUP($B4,BSvTWSpolated!$B$1:$L$250,30+10*ES$1,0) -> 29.44426082 | ET4: =HLOOKUP($B4,BSvTWSpolated!$B$1:$L$250,30+10*ET$1,0) -> 29.61738302 | EU4: =HLOOKUP($B4,BSvTWSpolated!$B$1:$L$250,30+10*EU$1,0) -> 29.61738302 | EV4: =HLOOKUP($B4,BSvTWSpolated!$B$1:$L$250,30+10*EV$1,0) -> 29.78463423 | EW4: =HLOOKUP($B4,BSvTWSpolated!$B$1:$L$250,30+10*EW$1,0) -> 29.78463423 | EX4: =HLOOKUP($B4,BSvTWSpolated!$B$1:$L$250,30+10*EX$1,0) -> 29.94608388 | EY4: =HLOOKUP($B4,BSvTWSpolated!$B$1:$L$250,30+10*EY$1,0) -> 29.94608388 | EZ4: =HLOOKUP($B4,BSvTWSpolated!$B$1:$L$250,30+10*EZ$1,0) -> 30.10180141 | FA4: =HLOOKUP($B4,BSvTWSpolated!$B$1:$L$250,30+10*FA$1,0) -> 30.10180141 | FB4: =HLOOKUP($B4,BSvTWSpolated!$B$1:$L$250,30+10*FB$1,0) -> 30.25185624 | FC4: =HLOOKUP($B4,BSvTWSpolated!$B$1:$L$250,30+10*FC$1,0) -> 30.25185624 | FD4: =HLOOKUP($B4,BSvTWSpolated!$B$1:$L$250,30+10*FD$1,0) -> 30.39631782 | FE4: =HLOOKUP($B4,BSvTWSpolated!$B$1:$L$250,30+10*FE$1,0) -> 30.39631782 | FF4: =HLOOKUP($B4,BSvTWSpolated!$B$1:$L$250,30+10*FF$1,0) -> 30.53525558 | FG4: =HLOOKUP($B4,BSvTWSpolated!$B$1:$L$250,30+10*FG$1,0) -> 30.53525558 | FH4: =HLOOKUP($B4,BSvTWSpolated!$B$1:$L$250,30+10*FH$1,0) -> 30.66873896 | FI4: =HLOOKUP($B4,BSvTWSpolated!$B$1:$L$250,30+10*FI$1,0) -> 30.66873896 | FJ4: =HLOOKUP($B4,BSvTWSpolated!$B$1:$L$250,30+10*FJ$1,0) -> 30.79683738 | FK4: =HLOOKUP($B4,BSvTWSpolated!$B$1:$L$250,30+10*FK$1,0) -> 30.79683738 | FL4: =HLOOKUP($B4,BSvTWSpolated!$B$1:$L$250,30+10*FL$1,0) -> 30.91962029 | FM4: =HLOOKUP($B4,BSvTWSpolated!$B$1:$L$250,30+10*FM$1,0) -> 30.91962029 | FN4: =HLOOKUP($B4,BSvTWSpolated!$B$1:$L$250,30+10*FN$1,0) -> 31.03715712 | FO4: =HLOOKUP($B4,BSvTWSpolated!$B$1:$L$250,30+10*FO$1,0) -> 31.03715712 | FP4: =HLOOKUP($B4,BSvTWSpolated!$B$1:$L$250,30+10*FP$1,0) -> 31.1495173 | FQ4: =HLOOKUP($B4,BSvTWSpolated!$B$1:$L$250,30+10*FQ$1,0) -> 31.1495173 | FR4: =HLOOKUP($B4,BSvTWSpolated!$B$1:$L$250,30+10*FR$1,0) -> 31.25677028 | FS4: =HLOOKUP($B4,BSvTWSpolated!$B$1:$L$250,30+10*FS$1,0) -> 31.25677028 | FT4: =HLOOKUP($B4,BSvTWSpolated!$B$1:$L$250,30+10*FT$1,0) -> 31.35898547 | FU4: =HLOOKUP($B4,BSvTWSpolated!$B$1:$L$250,30+10*FU$1,0) -> 31.35898547 | FV4: =HLOOKUP($B4,BSvTWSpolated!$B$1:$L$250,30+10*FV$1,0) -> 31.45623233 | FW4: =HLOOKUP($B4,BSvTWSpolated!$B$1:$L$250,30+10*FW$1,0) -> 31.45623233 | FX4: =HLOOKUP($B4,BSvTWSpolated!$B$1:$L$250,30+10*FX$1,0) -> 31.54858029 | FY4: =HLOOKUP($B4,BSvTWSpolated!$B$1:$L$250,30+10*FY$1,0) -> 31.54858029 | FZ4: =HLOOKUP($B4,BSvTWSpolated!$B$1:$L$250,30+10*FZ$1,0) -> 31.63609877 | GA4: =HLOOKUP($B4,BSvTWSpolated!$B$1:$L$250,30+10*GA$1,0) -> 31.63609877 | GB4: =HLOOKUP($B4,BSvTWSpolated!$B$1:$L$250,30+10*GB$1,0) -> 31.71885722 | GC4: =HLOOKUP($B4,BSvTWSpolated!$B$1:$L$250,30+10*GC$1,0) -> 31.71885722 | GD4: =HLOOKUP($B4,BSvTWSpolated!$B$1:$L$250,30+10*GD$1,0) -> 31.79692507 | GE4: =HLOOKUP($B4,BSvTWSpolated!$B$1:$L$250,30+10*GE$1,0) -> 31.79692507 | GF4: =HLOOKUP($B4,BSvTWSpolated!$B$1:$L$250,30+10*GF$1,0) -> 31.87037176 | GG4: =HLOOKUP($B4,BSvTWSpolated!$B$1:$L$250,30+10*GG$1,0) -> 31.87037176 | GH4: =HLOOKUP($B4,BSvTWSpolated!$B$1:$L$250,30+10*GH$1,0) -> 31.93926671 | GI4: =HLOOKUP($B4,BSvTWSpolated!$B$1:$L$250,30+10*GI$1,0) -> 31.93926671 | GJ4: =HLOOKUP($B4,BSvTWSpolated!$B$1:$L$250,30+10*GJ$1,0) -> 32.00367937 | GK4: =HLOOKUP($B4,BSvTWSpolated!$B$1:$L$250,30+10*GK$1,0) -> 32.00367937 | GL4: =HLOOKUP($B4,BSvTWSpolated!$B$1:$L$250,30+10*GL$1,0) -> 32.06367917 | GM4: =HLOOKUP($B4,BSvTWSpolated!$B$1:$L$250,30+10*GM$1,0) -> 32.06367917 | GN4: =HLOOKUP($B4,BSvTWSpolated!$B$1:$L$250,30+10*GN$1,0) -> 32.11933555 | GO4: =HLOOKUP($B4,BSvTWSpolated!$B$1:$L$250,30+10*GO$1,0) -> 32.11933555 | GP4: =HLOOKUP($B4,BSvTWSpolated!$B$1:$L$250,30+10*GP$1,0) -> 32.17071794 | GQ4: =HLOOKUP($B4,BSvTWSpolated!$B$1:$L$250,30+10*GQ$1,0) -> 32.17071794 | GR4: =HLOOKUP($B4,BSvTWSpolated!$B$1:$L$250,30+10*GR$1,0) -> 32.21789577 | GS4: =HLOOKUP($B4,BSvTWSpolated!$B$1:$L$250,30+10*GS$1,0) -> 32.21789577 | GT4: =HLOOKUP($B4,BSvTWSpolated!$B$1:$L$250,30+10*GT$1,0) -> 32.26093848 | GU4: =HLOOKUP($B4,BSvTWSpolated!$B$1:$L$250,30+10*GU$1,0) -> 32.26093848 | GV4: =HLOOKUP($B4,BSvTWSpolated!$B$1:$L$250,30+10*GV$1,0) -> 32.29991551 | GW4: =HLOOKUP($B4,BSvTWSpolated!$B$1:$L$250,30+10*GW$1,0) -> 32.29991551 | GX4: =HLOOKUP($B4,BSvTWSpolated!$B$1:$L$250,30+10*GX$1,0) -> 32.33489629 | GY4: =HLOOKUP($B4,BSvTWSpolated!$B$1:$L$250,30+10*GY$1,0) -> 32.33489629 | GZ4: =HLOOKUP($B4,BSvTWSpolated!$B$1:$L$250,30+10*GZ$1,0) -> 32.36595025 | HA4: =HLOOKUP($B4,BSvTWSpolated!$B$1:$L$250,30+10*HA$1,0) -> 32.36595025 | HB4: =HLOOKUP($B4,BSvTWSpolated!$B$1:$L$250,30+10*HB$1,0) -> 32.39314684 | HC4: =HLOOKUP($B4,BSvTWSpolated!$B$1:$L$250,30+10*HC$1,0) -> 32.39314684 | HD4: =HLOOKUP($B4,BSvTWSpolated!$B$1:$L$250,30+10*HD$1,0) -> 32.41655548 | HE4: =HLOOKUP($B4,BSvTWSpolated!$B$1:$L$250,30+10*HE$1,0) -> 32.41655548 | HF4: =HLOOKUP($B4,BSvTWSpolated!$B$1:$L$250,30+10*HF$1,0) -> 32.43624561 | HG4: =HLOOKUP($B4,BSvTWSpolated!$B$1:$L$250,30+10*HG$1,0) -> 32.43624561 | HH4: =HLOOKUP($B4,BSvTWSpolated!$B$1:$L$250,30+10*HH$1,0) -> 32.45228667 | HI4: =HLOOKUP($B4,BSvTWSpolated!$B$1:$L$250,30+10*HI$1,0) -> 32.45228667 | HJ4: =HLOOKUP($B4,BSvTWSpolated!$B$1:$L$250,30+10*HJ$1,0) -> 32.46474809 | HK4: =HLOOKUP($B4,BSvTWSpolated!$B$1:$L$250,30+10*HK$1,0) -> 32.46474809 | HL4: =HLOOKUP($B4,BSvTWSpolated!$B$1:$L$250,30+10*HL$1,0) -> 32.4736993 | HM4: =HLOOKUP($B4,BSvTWSpolated!$B$1:$L$250,30+10*HM$1,0) -> 32.4736993 | HN4: =HLOOKUP($B4,BSvTWSpolated!$B$1:$L$250,30+10*HN$1,0) -> 32.47920974 | HO4: =HLOOKUP($B4,BSvTWSpolated!$B$1:$L$250,30+10*HO$1,0) -> 32.47920974 | HP4: =HLOOKUP($B4,BSvTWSpolated!$B$1:$L$250,30+10*HP$1,0) -> 32.48134885 | HQ4: =HLOOKUP($B4,BSvTWSpolated!$B$1:$L$250,30+10*HQ$1,0) -> 32.48134885 | HR4: =HLOOKUP($B4,BSvTWSpolated!$B$1:$L$250,30+10*HR$1,0) -> 32.48134885 | HS4: =HLOOKUP($B4,BSvTWSpolated!$B$1:$L$250,30+10*HS$1,0) -> 32.48134885 | HT4: =HLOOKUP($B4,BSvTWSpolated!$B$1:$L$250,30+10*HT$1,0) -> 32.48134885 | HU4: =HLOOKUP($B4,BSvTWSpolated!$B$1:$L$250,30+10*HU$1,0) -> 32.48134885 | HV4: =HLOOKUP($B4,BSvTWSpolated!$B$1:$L$250,30+10*HV$1,0) -> 32.48134885 | HW4: =HLOOKUP($B4,BSvTWSpolated!$B$1:$L$250,30+10*HW$1,0) -> 32.48134885 | HX4: =HLOOKUP($B4,BSvTWSpolated!$B$1:$L$250,30+10*HX$1,0) -> 32.48134885 | HY4: =HLOOKUP($B4,BSvTWSpolated!$B$1:$L$250,30+10*HY$1,0) -> 32.48134885 | HZ4: =HLOOKUP($B4,BSvTWSpolated!$B$1:$L$250,30+10*HZ$1,0) -> 32.48134885 | IA4: =HLOOKUP($B4,BSvTWSpolated!$B$1:$L$250,30+10*IA$1,0) -> 32.48134885 | IB4: =HLOOKUP($B4,BSvTWSpolated!$B$1:$L$250,30+10*IB$1,0) -> 32.48134885 | IC4: =HLOOKUP($B4,BSvTWSpolated!$B$1:$L$250,30+10*IC$1,0) -> 32.48134885 | ID4: =HLOOKUP($B4,BSvTWSpolated!$B$1:$L$250,30+10*ID$1,0) -> 32.48134885 | IE4: =HLOOKUP($B4,BSvTWSpolated!$B$1:$L$250,30+10*IE$1,0) -> 32.48134885 | IF4: =HLOOKUP($B4,BSvTWSpolated!$B$1:$L$250,30+10*IF$1,0) -> 32.48134885 | IG4: =HLOOKUP($B4,BSvTWSpolated!$B$1:$L$250,30+10*IG$1,0) -> 32.48134885 | IH4: =HLOOKUP($B4,BSvTWSpolated!$B$1:$L$250,30+10*IH$1,0) -> 32.48134885 | II4: =HLOOKUP($B4,BSvTWSpolated!$B$1:$L$250,30+10*II$1,0) -> 32.48134885 | IJ4: =HLOOKUP($B4,BSvTWSpolated!$B$1:$L$250,30+10*IJ$1,0) -> 32.48134885
